Workbook

Sheet Notes
A1: Date | B1: Tab | C1: Note | D1: Finalized?
A2: 2012-04-28 | B2: Building Inputs | C2: Calculated redev rate | D2: Y
A3: 2012-04-28 | B3: Dev Type Urban Character | C3: added Street sq ft per acre and street miles per sq mile | D3: Y
A4: 2012-04-28 | B4: Spatial Outputs | C4: need to link via Arc push | D4: Y
A5: 2012-05-02 | B5: Building Inputs | C5: added Civic and Hospitality land use categories | D5: Y
A6: 2012-05-02 | B6: Building Inputs | C6: need to update Mixed Use? column to include hospitality and civic | D6: Y
A7: 2012-09-02 | B7: Building outputs tabs | C7: need to account for redev, as in Scenario outputs tabs | D7: Y
A8: 2012-09-02 | B8: Summary Total and MXD Inputs | C8: calculating weighted median income difficult to impossible with simple Excel functions | D8: Y
A9: 2012-09-02 | B9: Summary Total and MXD Inputs | C9: how do we account for redevelopment's impact to income distribution of existing households? | D9: N
A10: 2012-09-02 | B10: Summary Total | C10: housing units by type: currently accounts for redev… can result in negatives… | D10: Y
A11: 2012-09-02 | B11: Existing Land Use | C11: need to link via Arc push | D11: Y
A12: 2012-09-02 | B12: Existing Developed Area | C12: need to link via Arc push | D12: Y
A13: 2012-09-02 | B13: Dev Type Open Space | C13: need Ecosystem Services parameters from Univ of Utah to include here - assign value to public and private open spaces, and parameters for Landscape dev types | D13: N
A14: 2012-09-02 | B14: Building Inputs | C14: rewrite Macro to align with ROI Model Scenario Spreadsheet tab | D14: Y
A15: 2012-09-02 | B15: Spatial Outputs | C15: need to link via Arc push; incorporate increase in intersection density from newly painted Vacant land via Dev Type street characteristics | D15: N
A16: 2012-11-14 | B16: Summary (new and total) | C16: add hotel rooms in as an output | D16: Y
A17: 2012-11-14 | B17: Dev Type Building Mix | C17: Add hotels to housing unit mix or own category? | D17: Y
A18: 2012-12-14 | B18: Existing Housing and Income tab | C18: Possibly track: sum of EX_SF and EX_MH based on EX_INCOME field? | D18: N

Sheet Quick Start Guide
A11: The Spreadsheet Tabs | B11: Description
A12: Project Info | B12: Inputs required for a range of indicators
A13: Building Inputs | B13: Inputs for the building prototypes that form the building blocks for the Dev Types
A14: Dev Type Streets | B14: Inputs for the street and block characteristics of each Dev Type
A15: Dev Type Inputs | B15: Combine building types to create Dev Types
A16: Dev Type Attributes | B16: Detailed characteristics about each Dev Type
A17: Summary New | B17: New Growth Summary outputs for all 5 Scenarios
A18: Summary Total | B18: Total Development Summary outputs for all 5 Scenarios
A19: SCENARIO1 | B19: Detailed Development Type outputs of Scenario 1
A20: SCENARIO2 | B20: Detailed Development Type outputs of Scenario 2
A21: SCENARIO3 | B21: Detailed Development Type outputs of Scenario 3
A22: SCENARIO4 | B22: Detailed Development Type outputs of Scenario 4
A23: SCENARIO5 | B23: Detailed Development Type outputs of Scenario 5
A24: BUILDING1 | B24: Detailed Building-level outputs of Scenario 1
A25: BUILDING2 | B25: Detailed Building-level outputs of Scenario 2
A26: BUILDING3 | B26: Detailed Building-level outputs of Scenario 3
A27: BUILDING4 | B27: Detailed Building-level outputs of Scenario 4
A28: BUILDING5 | B28: Detailed Building-level outputs of Scenario 5
A30: Tab Color Definition
A31: Input Tab
A32: Output Tab
A33: Reference Tab
A35: Cell Color Definition
A36: Input Cell
A37: Header Cell
A38: Subheader Cell
A39: Output Cell | B39: [white]
A41: Available Indicators | B41: Location
A42: Developed Acres | B42: Summary New Tab, Summary Total Tab
A43: Infill Development | B43: Summary New Tab, Summary Total Tab
A44: Building Square Footage Mix | B44: Summary New Tab
A45: Land Area Mix | B45: Summary New Tab, Summary Total Tab
A46: Population | B46: Summary New Tab, Summary Total Tab
A47: Net New Growth | B47: Summary Total Tab
A48: Displacement From Redevelopment | B48: Summary Total Tab
A49: Housing Mix | B49: Summary New Tab, Summary Total Tab
A50: Affordability | B50: Summary New Tab, Summary Total Tab
A51: Housing Distribution By Income | B51: Summary New Tab
A52: Housing By Building Type | B52: Summary New Tab
A53: Employment Mix | B53: Summary New Tab, Summary Total Tab
A54: Jobs/Housing Balance | B54: Summary New Tab, Summary Total Tab
A55: Affordability (H+T+E) | B55: Summary Total Tab, MXD Travel App, HH Travel App
A56: Density | B56: Summary New Tab, Summary Total Tab
A57: Income | B57: Summary New Tab
A58: Walk and Transit Friendliness | B58: Summary New Tab
A59: Parking | B59: Summary New Tab
A60: Financial | B60: Summary New Tab
A61: Subsidy | B61: Summary New Tab
A62: New Infrastructure | B62: Summary New Tab
A63: Tax Revenue | B63: Summary New Tab, Summary Total Tab
A64: Sustainability | B64: Summary New Tab, Summary Total Tab
A65: Bike Trips | B65: MXD Travel App, HH Travel App
A66: Walk Trips | B66: MXD Travel App, HH Travel App
A67: Transit Trips | B67: MXD Travel App, HH Travel App
A68: Vehicle Trips | B68: MXD Travel App, HH Travel App
A69: Internal Trips | B69: MXD Travel App
A70: External Trips | B70: MXD Travel App, HH Travel App
A71: Vehicle Miles Traveled (VMT) | B71: MXD Travel App, HH Travel App
A72: Traffic Accidents | B72: MXD Travel App, HH Travel App
A73: ULI Shared Parking Savings | B73: MXD Travel App
A74: Transportation Affordability | B74: MXD Travel App
A75: Daily Emissions | B75: MXD Travel App, HH Travel App
A76: Tax Revenue Per New Housing Unit | B76: Fiscal Impact Tool (FIT) App
A77: Operations and Maintenance Costs | B77: Fiscal Impact Tool (FIT) App
A78: Capital Outlays | B78: Fiscal Impact Tool (FIT) App
A79: Cost to Revenue Ratio | B79: Fiscal Impact Tool (FIT) App

Sheet Project Info
A2: Select Project Location (or nearest location)
A3: Metro | B3: Cleveland-Elyria-Mentor, OH Metropolitan Statistical Area
A6: Household / Population Assumptions | B6: Existing Households | D6: New Development Population Generation Rates | G6: Avg. Household Size (New Development)
B7: Avg. Unit Size | C7: Avg. HH Size | D7: Gross Sq Ft per Resident | E7: Max Household Size | F7: Vacancy Rate | G7: Scenario 1 | H7: Scenario 1 | I7: Scenario 1 | J7: Scenario 1 | K7: Scenario 1
A8: Multifamily | B8: 800 | C8: 2.2 | D8: 499 | E8: 1.5 | F8: 0 | G8: ='Summary New'!B165 -> 1.5 | H8: ='Summary New'!D165 -> 0 | I8: ='Summary New'!F165 -> 0 | J8: ='Summary New'!H165 -> 0 | K8: ='Summary New'!J165 -> 0
A9: Townhome | B9: 1200 | C9: 2.4 | D9: 599 | E9: 2.2 | F9: 0
A10: Single Family Small Lot | B10: 1800 | C10: 2.5
A11: Single Family Conventional Lot | B11: 2500 | C11: 2.6 | D11: 699 | E11: 2.55 | F11: 0
A12: Single Family Large Lot | B12: 3000 | C12: 2.7
A13: Mobile Home | B13: 500 | C13: 2.5 | D13: 699 | E13: 2.75 | F13: 0
A16: Existing Average Household Incomes | B16: $ / Year
A18: Multifamily | B18: 44000
A19: Townhome | B19: 48000
A20: Single Family Small Lot | B20: 50000
A21: Single Family Conventional Lot | B21: 52000
A22: Single Family Large Lot | B22: 60000
A23: Mobile Home | B23: 35000
A26: Existing Average Monthly Housing Costs (Rent or Mortgage) | B26: $ / Month
A28: Multifamily | B28: 650
A29: Townhome | B29: 750
A30: Single Family Small Lot | B30: 1000
A31: Single Family Conventional Lot | B31: 1200
A32: Single Family Large Lot | B32: 1400
A33: Mobile Home | B33: 450
A34: Weighted Average | B34: =IF(B35=0,SUMPRODUCT(B28:B33,EX_Res_by_Type)/SUM(EX_Res_by_Type),B35) -> 
A35: Manual Overide Average
A38: Single Family Lot Size Assumptions | B38: Sq Ft
A39: Small Lot Single Family | B39: 5000 | C39: or below
A40: Conventional Lot Single Family | B40: =B39 & " - " & B41 -> 5000 - 7001
A41: Large Lot Single Family | B41: 7001 | C41: or above
A44: Affordability Standards | B44: Maxiumum Housing Expenditures
B45: Owner | C45: Renter
A46: % of Income for Housing | B46: 0.26 | C46: 0.3
A47: Maximum LTV | B47: 0.8
A48: Mortgage Years | B48: 30
A49: Mortgage Interest Rate | B49: 0.06
A52: Student Generation Rates | B52: Units | C52: Public School | G52: Private School
A53: Residential Housing Type | C53: Public School Generation Rate | D53: K-5 | E53: ="6 - 8" -> 6 - 8 | F53: ="9 - 12" -> 9 - 12
A54: Fewer than 8 Units per Acre | B54: 8 | C54: 0.45 | D54: 0.157 | E54: 0.135 | F54: 0.1575 | G54: 0.0582
A55: 9-14 Units per Acre | B55: 14 | C55: 0.21 | D55: 0.0735 | E55: 0.063 | F55: 0.0735 | G55: 0.0482
A56: 15+ Unis per Acre | B56: 15 | C56: 0.15 | D56: 0.0525 | E56: 0.045 | F56: 0.0525 | G56: 0.0451
A57: Table 7-6. Planner's Estimating Guide. Projecting Land-Use and Facility Needs. Arthur C. Nelson. 2004.
A60: Wage Estimator | F60: Envision Wage Estimates
A61: Industry description | B61: Annual payroll ($1,000) | C61: Number of paid employees for pay period | D61: Average Wage | F61: Envision Employment Categories | G61: Adjusted Income ($/yr)
A62: Forestry, fishing, and related activities | D62: =IF(C62=0,0,B62*1000/C62) -> 0 | F62: Retail | G62: =IFERROR(((C68*D68)+(C80*D80))/SUM(C68,C80),0) -> 0
A63: Mining | D63: 0 | F63: Office/Public | G63: =IFERROR(((C64*D64)+(C70*D70)+(C71*D71)+(C73*D73)+(C74*D74)+(C77*D77))/SUM(C64,C70,C71,C73,C74,C77),0) -> 0
A64: Utilities | D64: 0 | F64: Industrial | G64: =IFERROR(((C63*D63)+(C66*D66)+(C69*D69))/SUM(C63,C66,C69),0) -> 0
A65: Construction | D65: 0 | F65: Education | G65: =IFERROR(((C76*D76))/SUM(C76),0) -> 0
A66: Manufacturing | D66: 0 | F66: Hotel | G66: =IFERROR(((C80*D80))/SUM(C80),0) -> 0
A67: Wholesale trade | D67: 0
A68: Retail trade | D68: 0
A69: Transportation and warehousing | D69: 0
A70: Information | D70: 0
A71: Finance and insurance | D71: 0
A72: Real estate and rental and leasing | D72: 0
A73: Professional, scientific, and technical services | D73: 0
A74: Management of companies and enterprises | D74: 0
A75: Administrative and waste services | D75: 0
A76: Educational services | D76: 0
A77: Health care and social assistance | D77: 0
A78: Arts, entertainment, and recreation | D78: 0
A79: Accommodation and food services | D79: 0
A80: Accommodation | D80: 0
A81: Food Services | D81: 0
A82: Other services, except public administration | D82: 0
A83: Government and government enterprises | D83: 0
A84: Total | D84: =IFERROR((SUM(D62:D83*C62:C83)/SUM(C62:C83)),0) -> 0
A87: Property Tax | B87: Annual Property Tax Rate
A88: Residential | B88: 0.07
A89: Commercial | B89: 0.076
A91: Sales Tax | B91: Annual Sales Tax Revenue per Retail Sq Ft
A92: Sales Tax Rate | B92: 0.065
A93: Sales per Sq Ft | B93: 318
A96: New Infrastructure Costs (Capital Costs only) | B96: Unit | C96: Cost
A97: New Roadway | B97: Lane Mile | C97: 2250000
A98: Streetscape | B98: Lineal Foot
A99: Sewerage | B99: Lineal Foot | C99: 100
A100: Utilities - above-ground | B100: Mile | C100: 600000
A101: Water Lines | B101: Lineal Foot | C101: 227
A104: Electrical Energy Fuel Mix | B104: Fuel Mix (%) | C104: CO2 per Million BTU
C105: kg | D105: Pounds | E105: Tons
A106: Coal (anthracite) | C106: 103.69 | D106: =C106*2.20462 -> 228.5970478 | E106: =D106*0.00045359237 -> 0.1036898767
A107: Coal (bituminous) | B107: 1 | C107: 93.28 | D107: 205.6469536 | E107: 0.09327988907
A108: Coal (subbituminous) | C108: 97.17 | D108: 214.2229254 | E108: 0.09716988444
A109: Coal (lignite) | C109: 97.72 | D109: 215.4354664 | E109: 0.09771988379
A110: Diesel fuel & heating oil | C110: 73.15 | D110: 161.267953 | E110: 0.07314991301
A111: Propane | C111: 63.07 | D111: 139.0453834 | E111: 0.06306992499
A112: Natural gas | C112: 53.06 | D112: 116.9771372 | E112: 0.0530599369
A113: http://www.eia.doe.gov/oiaf/1605/coefficients.html
A116: Energy Costs | B116: $ / 1000 BTU
A117: Residential | B117: 12
A118: Commercial | B118: 12
A121: Landscaping Water Consumption
A122: Water per Sq Foot of Lawn Area | B122: 0.05 | C122: Gallons/Sq Ft
A123: Maximum Watered Lawn Area | B123: 0.25 | C123: Acres
A126: Internal Water Consumption
A127: Building Type/Use | B127: Water Use (G/Day)
B128: Resident | C128: Employee
A129: Multifamily Residential | B129: 35
A130: Townhome | B130: 50
A131: Typical Single Family | B131: 70
A132: Large Single Family | B132: 90
A133: Retail | C133: 68
A134: Office | C134: 106
A135: Industrial | C135: 133
A136: Vickers, Amy. Handbook of Water Use and Conservation. (2001)
A138: Waste Water Production
A139: Building Type/Use | B139: Water Waste (G/Day)
B140: Resident | C140: Employee
A141: Multifamily Residential | B141: 60
A142: Townhome | B142: 80
A143: Typical Single Family | B143: 100
A144: Large Single Family | B144: 120
A145: Retail | C145: 38
A146: Office | C146: 49
A147: Industrial | C147: 49
A148: Adapted from Metcalf and Eddy (1991) Wastewater Engineering. Treatment Disposal Reuse, G. Tchobanoglous and F.L. Burton (Eds.), 1820 pp. New York: McGraw-Hill.
A149: http://www.eolss.net/EolssSampleChapters/C06/E6-13-04-05/E6-13-04-05-T14.htm
A151: Solid Waste Production
A152: Building Type/Use | B152: Solid Waste (lbs/Day)
B153: Resident | C153: Employee
A154: Multifamily Residential | B154: 1.5
A155: Townhome | B155: 2
A156: Typical Single Family | B156: 3
A157: Large Single Family | B157: 4
A158: Retail | C158: 5
A159: Office | C159: 3.5
A160: Industrial | C160: 9
A161: http://www.calrecycle.ca.gov/wastechar/wastegenrates/default.htm

Sheet Building Inputs
C1: 1. Load your Prototype buildings
D2: Building and Site Characteristics | K2: Building Square Footage Mix (%) | AA2: Residential | AF2: Housing Type | AI2: Residential Rent | AK2: Residential Sales Price | AN2: Household Characteristics | AU2: Employment | AX2: Retail | BA2: Office | BD2: Industrial | BG2: Public / Civic | BJ2: Educational | BM2: Hotel / Hospitality | BS2: Commercial Parking | BV2: Parking | BZ2: Residential Energy Use (Million BTU / Yr) | CD2: Commercial Energy Use (Million BTU / Yr) | CJ2: Total Building Energy Use | CK2: Energy Cost | CL2: Carbon Emissions (Tons / Yr) | CO2: Landscaping Water Consumption | CQ2: Internal Water Consumption | CU2: Waste Water | CY2: Solid Waste | DC2: Land Cost | DF2: Project Value | DH2: Subsidy | DK2: Property Tax Revenue | DN2: Sales Tax Revenue | DP2: Redevelopment Rate
B3: # | C3: Building Name | D3: Lot Size (Sq Ft) | E3: Building Lot Coverage | F3: Landscaping Lot Coverage | G3: Parking Lot Coverage | H3: Height (Stories) | I3: Floor Area Ratio (FAR) | J3: Bldg Sq Ft | K3: Residential | L3: Multifamily | M3: Townhome | N3: Single Family | O3: Small Lot Single Family | P3: Medium Lot Single Family | Q3: Large Lot Single Family | R3: Mobile Home | S3: Employment | T3: Retail | U3: Office | V3: Industrial | W3: Public / Civic | X3: Educational | Y3: Hotel / Hospitality | Z3: Commercial Parking | AA3: Residential Sq Ft | AB3: Net Sq Ft per Unit | AC3: Gross Sq Ft per Unit | AD3: Dwelling Units / Building | AE3: Dwelling Units / Acre | AF3: Type of Housing | AG3: Percent Renter | AH3: Percent Owner | AI3: Rent ($/SqFt) | AJ3: Avg Rent ($/Mo.) | AK3: Sales Price ($/SqFt) | AL3: Avg Sales Price ($) | AM3: Avg Monthly Mortgage Payment ($) | AN3: Vacancy Rate | AO3: Households per Acre | AP3: Average Household Size | AQ3: Average Number of Workers in HH | AR3: Average School Age Children per Household | AS3: Estimated Household Income Based on Housing Costs | AT3: Estimated Individual Income Based on Employment | AU3: Total Employment Sq Ft | AV3: Total Jobs / Building | AW3: Total Jobs / Acre | AX3: Retail Gross Sq Ft | AY3: Space per Employee | AZ3: Retail Employees / Acre | BA3: Office Gross Sq Ft | BB3: Space per Employee | BC3: Office Employees / Acre | BD3: Industrial Gross Sq Ft | BE3: Space per Employee | BF3: Industrial Employees / Acre | BG3: Public / Civic Gross Sq Ft | BH3: Space per Employee | BI3: Public / Civic Employees / Acre | BJ3: Educational Gross Sq Ft | BK3: Space per Employee | BL3: Educational Employees / Acre | BM3: Hospitality Gross Sq Ft | BN3: Space per Employee | BO3: Hospitality Employees / Acre | BP3: Net Space per Hotel Room | BQ3: Gross Space per Hotel Room | BR3: Hotel Rooms / Acre | BS3: Commercial Parking Gross Sq Ft | BT3: Space per Employee | BU3: Commercial Parking Employees / Acre | BV3: Parking Spaces | BW3: Parking SqFt | BX3: Parking Cost ($) | BY3: % Parking Costs | BZ3: Space Heating (per unit) | CA3: Space Cooling (per unit) | CB3: Other Energy (per unit) | CC3: Total per Unit | CD3: Space Heating (per building) | CE3: Space Cooling (per building) | CF3: Other Energy (per building) | CG3: Total per Commercial Area | CH3: per Employee | CI3: per Sq Ft | CJ3: Total Energy Use | CK3: Residential Energy Cost ($ / Mo) | CL3: Per Unit | CM3: Per Employee | CN3: Total CO2 Emissions per Building | CO3: Landscaping Water Use (G/Unit/Day) | CP3: Landscaping Water Use (G/Building/Day) | CQ3: Per Resident (G/Resident/Day) | CR3: Per Employee (G/Employee/Day) | CS3: Per Unit (G/Day) | CT3: Total Per Building (G/Day/Building) | CU3: Waste Water (G/Resident/Day) | CV3: Waste Water (G/Employee/Day) | CW3: Per Unit (G/Day) | CX3: Waste Water (G/Day/Building) | CY3: Solid Waste (lbs/Resident/Day) | CZ3: Solid Waste (lbs/Employee/Day) | DA3: Per Unit (lbs/Day) | DB3: Solid Waste (lbs/Day/Building) | DC3: Land Cost ($/SqFt) | DD3: Total Site Cost ($) | DE3: Site Cost ($/Acre) | DF3: Project Value ($) | DG3: Project Value per Acre ($/Acre) | DH3: Project Subsidy ($) | DI3: Subsidy per Unit | DJ3: Project Subsidy per Acre ($/Acre) | DK3: Property Tax Revenue ($/yr) | DL3: Property Tax Revenue ($/yr/Unit) | DM3: Property Tax Revenue ($/yr/Acre) | DN3: Sales Tax Revenue ($/yr) | DO3: Sales Tax Revenue ($/yr/Acre) | DP3: Relative Value (0-1 scale)
B4: 1 | C4: test | D4: 10000 | E4: 1 | H4: 1 | I4: 1 | J4: =D4*I4 -> 10000 | K4: 1 | L4: =IF(AF4="MF",$K4,0) -> 1 | M4: =IF(AF4="TH",$K4,0) -> 0 | N4: =IF(AF4="SF",$K4,0) -> 0 | O4: =IF($N4=1,IF($D4<=SF_Small_Lot_Size,1,0),0) -> 0 | P4: =IF($N4=1,IF(AND($D4>SF_Small_Lot_Size,$D4<SF_Large_Lot_Size),1,0),0) -> 0 | Q4: =IF($N4=1,IF($D4>=SF_Large_Lot_Size,1,0),0) -> 0 | R4: =IF($AF4="MH",K4,0) -> 0 | S4: =SUM(T4:Z4) -> 0 | AA4: =B_Gross_Bldg_Sq_Ft*B_Res_per -> 10000 | AB4: 4356 | AC4: 4356 | AD4: =IF(AC4=0,0,(AA4/AC4)) -> 2.295684114 | AE4: =IF(AC4=0,0,(AA4/AC4)*(43560/D4)) -> 10 | AF4: MF | AG4: 1 | AH4: =IF(AG4="",0,IF(AE4=0,0,IF(AG4=1,0,IF(AG4=0,1,1-AG4)))) -> 0 | AI4: 1 | AJ4: =IF(AG4=0,0,AB4*AI4) -> 4356 | AL4: =IF(AH4=0,0,AK4*AB4) -> 0 | AM4: =IF(AL4>0,(AS4*HCost_Max_per_Income_Owner)/12,0) -> 0 | AN4: =IF(AF4="",0,IF(AF4="MF",'Project Info'!$F$8,IF(AF4="TH",'Project Info'!$F$9,IF(AF4="SF",'Project Info'!$F$11,IF(AF4="MH",'Project Info'!$F$13,0))))) -> 0 | AO4: =B_HU_Acre*(1-B_Vacancy_Rate) -> 10 | AP4: =IF(AF4="",0,IF(AF4="MF",IF((AB4/'Project Info'!$D$8)>'Project Info'!$E$8,'Project Info'!$E$8,AB4/'Project Info'!$D$8),IF(AF4="TH",IF((AB4/'Project Info'!$D$9)>'Project Info'!$E$9,'Project Info'!$E$9,AB4/'Project Info'!$D$9),IF(AF4="SF",IF((AB4/'Project Info'!$D$11)>'Project Info'!$E$11,'Project Info'!$E$11,AB4/'Project Info'!$D$11),IF(AF4="MH",IF((AB4/'Project Info'!$D$13)>'Project Info'!$E$13,'Project Info'!$E$13,AB4/'Project Info'!$D$13)))))) -> 1.5 | AQ4: =AP4*0.6 -> 0.9 | AR4: =IF(B_HU_Acre=0,0,IF(B_HU_Acre<School_Children_SF_Den,SUM(School_Children_Pub_SF,School_Children_Priv_SF),IF(B_HU_Acre<School_Children_TH_Den,SUM(School_Children_Pub_TH,School_Children_Priv_TH),IF(B_HU_Acre>=School_Children_TH_Den,SUM(School_Children_Pub_MF,School_Children_Priv_MF),0)))) -> 0.2582 | AS4: =IF(AG4=1,AJ4*12/HCost_Max_per_Income_Renter,IF(AG4=0,(12/HCost_Max_per_Income_Owner)*(AL4*((HCost_Interest_Rate/12*POWER(1+HCost_Interest_Rate/12,12*HCost_Mortgage_Yrs))/(POWER(1+HCost_Interest_Rate/12,12*HCost_Mortgage_Yrs)-1))),IF(OR(AG4>0,AG4<1),(AG4*AJ4*(12/HCost_Max_per_Income_Renter))+(AH4*(12/HCost_Max_per_Income_Owner)*(AL4*((HCost_Interest_Rate/12*POWER(1+HCost_Interest_Rate/12,12*HCost_Mortgage_Yrs))/(POWER(1+HCost_Interest_Rate/12,12*HCost_Mortgage_Yrs)-1))))))) -> 174240 | AT4: =IF(AW4=0,0,AP4*((AZ4/AW4*Wage_RET)+(BC4/AW4*Wage_OFF)+(BF4/AW4*Wage_IND)+(BI4/AW4*Wage_OFF)+(BL4/AW4*Wage_EDU)+(BO4/AW4*Wage_HOTEL))) -> 0 | AU4: =B_Retail_Gross_Sq_Ft+B_Office_Gross_Sq_Ft+B_Industrial_Gross_Sq_Ft+B_Public_Gross_Sq_Ft+B_Educational_Gross_Sq_Ft+B_Hotel_Gross_Sq_Ft -> 0 | AV4: =AW4*(B_Lot_Size/43560) -> 0 | AW4: =AZ4+BC4+BF4+BI4+BL4+BO4 -> 0 | AX4: =B_Ret_per*B_Gross_Bldg_Sq_Ft -> 0 | AZ4: =IF(AY4=0,0,(AX4/AY4)*(43560/B_Lot_Size)) -> 0 | BA4: =B_OFF_per*B_Gross_Bldg_Sq_Ft -> 0 | BC4: =IF(BB4=0,0,(BA4/BB4)*(43560/B_Lot_Size)) -> 0 | BD4: =B_Ind_per*B_Gross_Bldg_Sq_Ft -> 0 | BF4: =IF(BE4=0,0,(BD4/BE4)*(43560/B_Lot_Size)) -> 0 | BG4: =B_Pub_Per*B_Gross_Bldg_Sq_Ft -> 0 | BI4: =IF(BH4=0,0,(BG4/BH4)*(43560/B_Lot_Size)) -> 0 | BJ4: =B_Edu_Per*B_Gross_Bldg_Sq_Ft -> 0 | BL4: =IF(BK4=0,0,(BJ4/BK4)*(43560/B_Lot_Size)) -> 0 | BM4: =B_Hotel_Per*B_Gross_Bldg_Sq_Ft -> 0 | BO4: =IF(BN4=0,0,(BM4/BN4)*(43560/B_Lot_Size)) -> 0 | BR4: =IF(BQ4=0,0,(BM4/BQ4)*(43560/B_Lot_Size)) -> 0 | BS4: =B_PKG_per*B_Gross_Bldg_Sq_Ft -> 0 | BU4: =IF(BT4=0,0,(BS4/BT4)*(43560/B_Lot_Size)) -> 0 | BY4: =IF(DF4=0,0,BX4/DF4) -> 0 | BZ4: =IFERROR(IF(B_Housing_Type="SF",EXP('Residential Energy Coefficients'!$B$3+'Residential Energy Coefficients'!$B$4*LN(B_Net_Sq_Ft_per_Unit)+'Residential Energy Coefficients'!$B$9+'Residential Energy Coefficients'!$B$10*LN(B_HH_Income)+'Residential Energy Coefficients'!$B$16*LN(Residential_Energy_Cost)+'Residential Energy Coefficients'!$B$20+'Residential Energy Coefficients'!$B$24*IFERROR(LOOKUP(Metro_Select,Energy_Metro_Lookup,HDD),0)),IF(B_Housing_Type="TH",EXP('Residential Energy Coefficients'!$E$3+'Residential Energy Coefficients'!$E$4*LN(B_Net_Sq_Ft_per_Unit)+'Residential Energy Coefficients'!$E$9+'Residential Energy Coefficients'!$E$16*LN(Residential_Energy_Cost)+'Residential Energy Coefficients'!$E$19+'Residential Energy Coefficients'!$E$20+'Residential Energy Coefficients'!$E$24*IFERROR(LOOKUP(Metro_Select,Energy_Metro_Lookup,HDD),0)),IF(B_Housing_Type="MF",EXP('Residential Energy Coefficients'!$H$3+'Residential Energy Coefficients'!$H$4*LN(B_Net_Sq_Ft_per_Unit)+'Residential Energy Coefficients'!$H$9+IF(B_Pct_Owner=1,'Residential Energy Coefficients'!$H$12,0)+'Residential Energy Coefficients'!$H$16*LN(Residential_Energy_Cost)+'Residential Energy Coefficients'!$H$20+'Residential Energy Coefficients'!$H$24*IFERROR(LOOKUP(Metro_Select,Energy_Metro_Lookup,HDD),0)),IF(B_Housing_Type="MH",EXP('Residential Energy Coefficients'!$K$3+'Residential Energy Coefficients'!$K$16*LN(Residential_Energy_Cost)+'Residential Energy Coefficients'!$K$24*IFERROR(LOOKUP(Metro_Select,Energy_Metro_Lookup,HDD),0)),0))))/1000,0) -> 30.10546567 | CA4: =IFERROR(IF(B_Housing_Type="SF",EXP('Residential Energy Coefficients'!$C$3+'Residential Energy Coefficients'!$C$4*LN(B_Net_Sq_Ft_per_Unit)+'Residential Energy Coefficients'!$C$10*LN(B_HH_Income)+'Residential Energy Coefficients'!$C$11*B_HH_Size+'Residential Energy Coefficients'!$C$16*LN(Residential_Energy_Cost)+'Residential Energy Coefficients'!$C$19+'Residential Energy Coefficients'!$C$22+'Residential Energy Coefficients'!$C$25*IFERROR(LOOKUP(Metro_Select,Energy_Metro_Lookup,CDD),0)),IF(B_Housing_Type="TH",EXP('Residential Energy Coefficients'!$F$3+'Residential Energy Coefficients'!$F$4*LN(B_Net_Sq_Ft_per_Unit)+'Residential Energy Coefficients'!$F$10*LN(B_HH_Income)+'Residential Energy Coefficients'!$F$11*B_HH_Size+IF(B_Pct_Owner=1,'Residential Energy Coefficients'!$F$12,0)+'Residential Energy Coefficients'!$F$16*LN(Residential_Energy_Cost)+'Residential Energy Coefficients'!$F$22+'Residential Energy Coefficients'!$F$25*IFERROR(LOOKUP(Metro_Select,Energy_Metro_Lookup,CDD),0)),IF(B_Housing_Type="MF",EXP('Residential Energy Coefficients'!$I$3+'Residential Energy Coefficients'!$I$4*LN(B_Net_Sq_Ft_per_Unit)+'Residential Energy Coefficients'!$I$9+'Residential Energy Coefficients'!$I$11*B_HH_Size+'Residential Energy Coefficients'!$I$16*LN(Residential_Energy_Cost)+'Residential Energy Coefficients'!$I$22+'Residential Energy Coefficients'!$I$25*IFERROR(LOOKUP(Metro_Select,Energy_Metro_Lookup,CDD),0)),IF(B_Housing_Type="MH",EXP('Residential Energy Coefficients'!$L$3+'Residential Energy Coefficients'!$L$11*B_HH_Size+'Residential Energy Coefficients'!$L$16*LN(Residential_Energy_Cost)+'Residential Energy Coefficients'!$L$22+'Residential Energy Coefficients'!$L$25*IFERROR(LOOKUP(Metro_Select,Energy_Metro_Lookup,CDD),0)),0))))/1000,0) -> 9.406615563 | CB4: =IFERROR(IF(B_Housing_Type="SF",EXP('Residential Energy Coefficients'!$D$3+'Residential Energy Coefficients'!$D$4*LN(B_Net_Sq_Ft_per_Unit)+'Residential Energy Coefficients'!$D$9+'Residential Energy Coefficients'!$D$10*LN(B_HH_Income)+'Residential Energy Coefficients'!$D$11*B_HH_Size+IF(B_Pct_Owner=1,'Residential Energy Coefficients'!$D$12,0)+'Residential Energy Coefficients'!$D$16*LN(Residential_Energy_Cost)),IF(B_Housing_Type="TH",EXP('Residential Energy Coefficients'!$G$3+'Residential Energy Coefficients'!$G$4*LN(B_Net_Sq_Ft_per_Unit)+'Residential Energy Coefficients'!$G$10*LN(B_HH_Income)+'Residential Energy Coefficients'!$G$11*B_HH_Size+'Residential Energy Coefficients'!$G$16*LN(Residential_Energy_Cost)),IF(B_Housing_Type="MF",EXP('Residential Energy Coefficients'!$J$3+'Residential Energy Coefficients'!$J$4*LN(B_Net_Sq_Ft_per_Unit)+'Residential Energy Coefficients'!$J$10*LN(B_HH_Income)+'Residential Energy Coefficients'!$J$11*B_HH_Size+IF(B_Pct_Owner=1,'Residential Energy Coefficients'!$J$12,0)+'Residential Energy Coefficients'!$J$16*LN(Residential_Energy_Cost)+'Residential Energy Coefficients'!$J$19),IF(B_Housing_Type="MH",EXP('Residential Energy Coefficients'!$M$3+'Residential Energy Coefficients'!$M$4*LN(B_Net_Sq_Ft_per_Unit)+'Residential Energy Coefficients'!$M$11*B_HH_Size+'Residential Energy Coefficients'!$M$16*LN(Residential_Energy_Cost)+'Residential Energy Coefficients'!$M$19),0))))/1000,0) -> 40.95695397 | CC4: =SUM(BZ4:CB4) -> 80.46903521 | CD4: =(IFERROR(EXP('Commercial Energy Coefficients'!$B$3+LN(B_Retail_Gross_Sq_Ft)*'Commercial Energy Coefficients'!$B$4+'Commercial Energy Coefficients'!$B$11+'Commercial Energy Coefficients'!$B$14+'Commercial Energy Coefficients'!$B$18*LN((B_Ret_Emp_Acre)*(B_Lot_Size/43560))+'Commercial Energy Coefficients'!$B$19*LN(40)+'Commercial Energy Coefficients'!$B$21+'Commercial Energy Coefficients'!$B$22*LN(Commercial_Energy_Cost)+'Commercial Energy Coefficients'!$B$23*IFERROR(LOOKUP(Metro_Select,Energy_Metro_Lookup,HDD),0)),0)+IFERROR(EXP('Commercial Energy Coefficients'!$E$3+LN(B_Office_Gross_Sq_Ft)*'Commercial Energy Coefficients'!$E$4+'Commercial Energy Coefficients'!$E$11+'Commercial Energy Coefficients'!$E$14+'Commercial Energy Coefficients'!$E$18*LN((B_Off_Emp_Acre)*(B_Lot_Size/43560))+'Commercial Energy Coefficients'!$E$19*LN(40)+'Commercial Energy Coefficients'!$E$21+'Commercial Energy Coefficients'!$E$22*LN(Commercial_Energy_Cost)+'Commercial Energy Coefficients'!$E$23*IFERROR(LOOKUP(Metro_Select,Energy_Metro_Lookup,HDD),0)),0)+IFERROR(EXP('Commercial Energy Coefficients'!$H$3+LN(B_Public_Gross_Sq_Ft)*'Commercial Energy Coefficients'!$H$4+'Commercial Energy Coefficients'!$H$11+'Commercial Energy Coefficients'!$H$14+'Commercial Energy Coefficients'!$H$18*LN((B_Pub_Emp_Acre)*(B_Lot_Size/43560))+'Commercial Energy Coefficients'!$H$19*LN(40)+'Commercial Energy Coefficients'!$H$21+'Commercial Energy Coefficients'!$H$22*LN(Commercial_Energy_Cost)+'Commercial Energy Coefficients'!$H$23*IFERROR(LOOKUP(Metro_Select,Energy_Metro_Lookup,HDD),0)),0))/1000 -> 0 | CE4: =(IFERROR(EXP('Commercial Energy Coefficients'!$C$3+LN((B_Retail_Gross_Sq_Ft))*'Commercial Energy Coefficients'!$C$4+'Commercial Energy Coefficients'!$C$11+'Commercial Energy Coefficients'!$C$14+'Commercial Energy Coefficients'!$C$18*LN((B_Ret_Emp_Acre)*(B_Lot_Size/43560))+'Commercial Energy Coefficients'!$C$19*LN(40)+'Commercial Energy Coefficients'!$C$21+'Commercial Energy Coefficients'!$C$22*LN(Commercial_Energy_Cost)+'Commercial Energy Coefficients'!$C$24*IFERROR(LOOKUP(Metro_Select,Energy_Metro_Lookup,CDD),0)),0)+IFERROR(EXP('Commercial Energy Coefficients'!$F$3+LN((B_Office_Gross_Sq_Ft))*'Commercial Energy Coefficients'!$F$4+'Commercial Energy Coefficients'!$F$11+'Commercial Energy Coefficients'!$F$14+'Commercial Energy Coefficients'!$F$18*LN((B_Off_Emp_Acre)*(B_Lot_Size/43560))+'Commercial Energy Coefficients'!$F$19*LN(40)+'Commercial Energy Coefficients'!$F$21+'Commercial Energy Coefficients'!$F$22*LN(Commercial_Energy_Cost)+'Commercial Energy Coefficients'!$F$24*IFERROR(LOOKUP(Metro_Select,Energy_Metro_Lookup,CDD),0)),0)+IFERROR(EXP('Commercial Energy Coefficients'!$I$3+LN((B_Public_Gross_Sq_Ft))*'Commercial Energy Coefficients'!$I$4+'Commercial Energy Coefficients'!$I$11+'Commercial Energy Coefficients'!$I$14+'Commercial Energy Coefficients'!$I$18*LN((B_Pub_Emp_Acre)*(B_Lot_Size/43560))+'Commercial Energy Coefficients'!$I$19*LN(40)+'Commercial Energy Coefficients'!$I$21+'Commercial Energy Coefficients'!$I$22*LN(Commercial_Energy_Cost)+'Commercial Energy Coefficients'!$I$24*IFERROR(LOOKUP(Metro_Select,Energy_Metro_Lookup,CDD),0)),0))/1000 -> 0 | CF4: =(IFERROR(EXP('Commercial Energy Coefficients'!$D$3+LN((B_Retail_Gross_Sq_Ft))*'Commercial Energy Coefficients'!$D$4+'Commercial Energy Coefficients'!$D$14+'Commercial Energy Coefficients'!$D$18*LN((B_Ret_Emp_Acre)*(B_Lot_Size/43560))+'Commercial Energy Coefficients'!$D$19*LN(40)+'Commercial Energy Coefficients'!$D$21+'Commercial Energy Coefficients'!$D$22*LN(Commercial_Energy_Cost)),0)+IFERROR(EXP('Commercial Energy Coefficients'!$G$3+LN((B_Office_Gross_Sq_Ft))*'Commercial Energy Coefficients'!$G$4+'Commercial Energy Coefficients'!$G$14+'Commercial Energy Coefficients'!$G$18*LN((B_Off_Emp_Acre)*(B_Lot_Size/43560))+'Commercial Energy Coefficients'!$G$19*LN(40)+'Commercial Energy Coefficients'!$G$21+'Commercial Energy Coefficients'!$G$22*LN(Commercial_Energy_Cost)),0)+IFERROR(EXP('Commercial Energy Coefficients'!$J$3+LN((B_Public_Gross_Sq_Ft))*'Commercial Energy Coefficients'!$J$4+'Commercial Energy Coefficients'!$J$14+'Commercial Energy Coefficients'!$J$18*LN((B_Pub_Emp_Acre)*(B_Lot_Size/43560))+'Commercial Energy Coefficients'!$J$19*LN(40)+'Commercial Energy Coefficients'!$J$21+'Commercial Energy Coefficients'!$J$22*LN(Commercial_Energy_Cost)),0))/1000 -> 0 | CG4: =SUM(CD4:CF4) -> 0 | CH4: =IFERROR(B_Com_Energy_Use/B_EMP_Building,0) -> 0 | CI4: =IFERROR(B_Com_Energy_Use/B_Tot_EMP_SqFt,0) -> 0 | CJ4: =(B_res_energy_use*B_HU_Building)+B_Com_Energy_Use -> 184.7314858 | CK4: =(CC4*Residential_Energy_Cost)/12 -> 80.46903521 | CL4: =IFERROR((B_res_energy_use*SUMPRODUCT(Energy_Carbon_perMMBTU,Energy_Fuel_Mix)),0) -> 7.506142677 | CM4: =IFERROR((B_Com_Energy_Use_per_Emp*SUMPRODUCT(Energy_Carbon_perMMBTU,Energy_Fuel_Mix)),0) -> 0 | CN4: =B_Total_Bldg_Energy_Use*SUMPRODUCT(Energy_Carbon_perMMBTU,Energy_Fuel_Mix) -> 17.2317325 | CO4: =IFERROR(CP4/B_HU_Building,0) -> 0 | CP4: =IF((D4*F4)>'Project Info'!$B$123*43560,'Project Info'!$B$123*43560*'Project Info'!$B$122,D4*F4*'Project Info'!$B$122) -> 0 | CQ4: =IF(AF4="",0,IF(AF4="MF",'Project Info'!$B$129,IF(AF4="TH",'Project Info'!$B$130,IF(AND(OR(AF4="SF",AF4="MH"),AC4>0,AC4<3000),'Project Info'!$B$131,IF(AND(OR(AF4="SF",AF4="MH"),AC4>=3000),'Project Info'!$B$132))))) -> 35 | CR4: =IF(AW4=0,0,(AZ4/AW4*'Project Info'!$C$133)+(BC4/AW4*'Project Info'!$C$134)+(BF4/AW4*'Project Info'!$C$135)) -> 0 | CS4: =(CQ4*AP4) -> 52.5 | CT4: =(CS4*IF($AE4*(D4/43560)<1,1,AE4)+(CR4*$AW4)*(D4/43560)) -> 525 | CU4: =IF(AF4="",0,IF(AF4="MF",'Project Info'!$B$141,IF(AF4="TH",'Project Info'!$B$142,IF(AND(AF4="SF",AC4>0,AC4<3000),'Project Info'!$B$143,IF(AND(AF4="SF",AC4>=3000),'Project Info'!$B$144))))) -> 60 | CV4: =IF(AW4=0,0,(AZ4/AW4*'Project Info'!$C$145)+(BC4/AW4*'Project Info'!$C$146)+(BF4/AW4*'Project Info'!$C$147)) -> 0 | CW4: =(CU4*B_HH_Size) -> 90 | CX4: =(CW4*IF($AE4*($D4/43560)<1,1,$AE4*($D4/43560))+(CV4*$AW4*($D4/43560))) -> 206.6115702 | CY4: =IF(AF4="",0,IF(AF4="MF",'Project Info'!$B$154,IF(AF4="TH",'Project Info'!$B$155,IF(AND(AF4="SF",AC4>0,AC4<3000),'Project Info'!$B$156,IF(AND(AF4="SF",AC4>=3000),'Project Info'!$B$157))))) -> 1.5 | CZ4: =IF(AW4=0,0,(AZ4/AW4*'Project Info'!$C$158)+(BC4/AW4*'Project Info'!$C$159)+(BF4/AW4*'Project Info'!$C$160)) -> 0 | DA4: =(CY4*$AP4) -> 2.25 | DB4: =(DA4*IF($AE4*($D4/43560)<1,1,$AE4*($D4/43560))+(CZ4*$AW4*($D4/43560))) -> 5.165289256 | DD4: =DC4*D4 -> 0 | DE4: =IF($D4=0,0,DD4*(43560/B_Lot_Size)) -> 0 | DG4: =IF($D4=0,0,DF4*(43560/B_Lot_Size)) -> 0 | DI4: =IF(B_HU_Building=0,0,(B_Res_per*B_Subsidy)/B_HU_Building) -> 0 | DJ4: =IF(B_Lot_Size=0,0,DH4*(43560/B_Lot_Size)) -> 0 | DK4: =IFERROR((Prop_Tax_Rate_Res*B_Res_per*B_Project_Value)+(Prop_Tax_Rate_Com*(B_Ret_per+B_OFF_per+B_Ind_per+B_Hotel_Per)*B_Project_Value),0) -> 0 | DL4: =IFERROR((Prop_Tax_Rate_Res*B_Res_per*B_Project_Value)/B_HU_Building,0) -> 0 | DM4: =IFERROR(DK4*(43560/B_Lot_Size),0) -> 0 | DN4: =Sales_Tax_Rate*Sales_per_SqFt*B_Retail_Gross_Sq_Ft -> 0 | DO4: =IFERROR($DN4*(43560/B_Lot_Size),0) -> 0 | DP4: =IFERROR(B_FAR/MAX(B_FAR),0) -> 1
B5: 2 | J5: =D5*I5 -> 0 | L5: =IF(AF5="MF",$K5,0) -> 0 | M5: =IF(AF5="TH",$K5,0) -> 0 | N5: =IF(AF5="SF",$K5,0) -> 0 | O5: 0 | P5: 0 | Q5: 0 | R5: =IF($AF5="MH",K5,0) -> 0 | S5: =SUM(T5:Z5) -> 0 | AA5: 0 | AD5: =IF(AC5=0,0,(AA5/AC5)) -> 0 | AE5: 0 | AH5: 0 | AJ5: 0 | AL5: 0 | AM5: 0 | AN5: =IF(AF5="",0,IF(AF5="MF",'Project Info'!$F$8,IF(AF5="TH",'Project Info'!$F$9,IF(AF5="SF",'Project Info'!$F$11,IF(AF5="MH",'Project Info'!$F$13,0))))) -> 0 | AO5: 0 | AP5: =IF(AF5="",0,IF(AF5="MF",IF((AB5/'Project Info'!$D$8)>'Project Info'!$E$8,'Project Info'!$E$8,AB5/'Project Info'!$D$8),IF(AF5="TH",IF((AB5/'Project Info'!$D$9)>'Project Info'!$E$9,'Project Info'!$E$9,AB5/'Project Info'!$D$9),IF(AF5="SF",IF((AB5/'Project Info'!$D$11)>'Project Info'!$E$11,'Project Info'!$E$11,AB5/'Project Info'!$D$11),IF(AF5="MH",IF((AB5/'Project Info'!$D$13)>'Project Info'!$E$13,'Project Info'!$E$13,AB5/'Project Info'!$D$13)))))) -> 0 | AQ5: =AP5*0.6 -> 0 | AR5: 0 | AS5: 0 | AT5: 0 | AU5: 0 | AV5: 0 | AW5: =AZ5+BC5+BF5+BI5+BL5+BO5 -> 0 | AX5: 0 | AZ5: 0 | BA5: 0 | BC5: 0 | BD5: 0 | BF5: 0 | BG5: 0 | BI5: 0 | BJ5: 0 | BL5: 0 | BM5: 0 | BO5: 0 | BR5: 0 | BS5: 0 | BU5: 0 | BY5: 0 | BZ5: =IFERROR(IF(B_Housing_Type="SF",EXP('Residential Energy Coefficients'!$B$3+'Residential Energy Coefficients'!$B$4*LN(B_Net_Sq_Ft_per_Unit)+'Residential Energy Coefficients'!$B$9+'Residential Energy Coefficients'!$B$10*LN(B_HH_Income)+'Residential Energy Coefficients'!$B$16*LN(Residential_Energy_Cost)+'Residential Energy Coefficients'!$B$20+'Residential Energy Coefficients'!$B$24*IFERROR(LOOKUP(Metro_Select,Energy_Metro_Lookup,HDD),0)),IF(B_Housing_Type="TH",EXP('Residential Energy Coefficients'!$E$3+'Residential Energy Coefficients'!$E$4*LN(B_Net_Sq_Ft_per_Unit)+'Residential Energy Coefficients'!$E$9+'Residential Energy Coefficients'!$E$16*LN(Residential_Energy_Cost)+'Residential Energy Coefficients'!$E$19+'Residential Energy Coefficients'!$E$20+'Residential Energy Coefficients'!$E$24*IFERROR(LOOKUP(Metro_Select,Energy_Metro_Lookup,HDD),0)),IF(B_Housing_Type="MF",EXP('Residential Energy Coefficients'!$H$3+'Residential Energy Coefficients'!$H$4*LN(B_Net_Sq_Ft_per_Unit)+'Residential Energy Coefficients'!$H$9+IF(B_Pct_Owner=1,'Residential Energy Coefficients'!$H$12,0)+'Residential Energy Coefficients'!$H$16*LN(Residential_Energy_Cost)+'Residential Energy Coefficients'!$H$20+'Residential Energy Coefficients'!$H$24*IFERROR(LOOKUP(Metro_Select,Energy_Metro_Lookup,HDD),0)),IF(B_Housing_Type="MH",EXP('Residential Energy Coefficients'!$K$3+'Residential Energy Coefficients'!$K$16*LN(Residential_Energy_Cost)+'Residential Energy Coefficients'!$K$24*IFERROR(LOOKUP(Metro_Select,Energy_Metro_Lookup,HDD),0)),0))))/1000,0) -> 0 | CA5: =IFERROR(IF(B_Housing_Type="SF",EXP('Residential Energy Coefficients'!$C$3+'Residential Energy Coefficients'!$C$4*LN(B_Net_Sq_Ft_per_Unit)+'Residential Energy Coefficients'!$C$10*LN(B_HH_Income)+'Residential Energy Coefficients'!$C$11*B_HH_Size+'Residential Energy Coefficients'!$C$16*LN(Residential_Energy_Cost)+'Residential Energy Coefficients'!$C$19+'Residential Energy Coefficients'!$C$22+'Residential Energy Coefficients'!$C$25*IFERROR(LOOKUP(Metro_Select,Energy_Metro_Lookup,CDD),0)),IF(B_Housing_Type="TH",EXP('Residential Energy Coefficients'!$F$3+'Residential Energy Coefficients'!$F$4*LN(B_Net_Sq_Ft_per_Unit)+'Residential Energy Coefficients'!$F$10*LN(B_HH_Income)+'Residential Energy Coefficients'!$F$11*B_HH_Size+IF(B_Pct_Owner=1,'Residential Energy Coefficients'!$F$12,0)+'Residential Energy Coefficients'!$F$16*LN(Residential_Energy_Cost)+'Residential Energy Coefficients'!$F$22+'Residential Energy Coefficients'!$F$25*IFERROR(LOOKUP(Metro_Select,Energy_Metro_Lookup,CDD),0)),IF(B_Housing_Type="MF",EXP('Residential Energy Coefficients'!$I$3+'Residential Energy Coefficients'!$I$4*LN(B_Net_Sq_Ft_per_Unit)+'Residential Energy Coefficients'!$I$9+'Residential Energy Coefficients'!$I$11*B_HH_Size+'Residential Energy Coefficients'!$I$16*LN(Residential_Energy_Cost)+'Residential Energy Coefficients'!$I$22+'Residential Energy Coefficients'!$I$25*IFERROR(LOOKUP(Metro_Select,Energy_Metro_Lookup,CDD),0)),IF(B_Housing_Type="MH",EXP('Residential Energy Coefficients'!$L$3+'Residential Energy Coefficients'!$L$11*B_HH_Size+'Residential Energy Coefficients'!$L$16*LN(Residential_Energy_Cost)+'Residential Energy Coefficients'!$L$22+'Residential Energy Coefficients'!$L$25*IFERROR(LOOKUP(Metro_Select,Energy_Metro_Lookup,CDD),0)),0))))/1000,0) -> 0 | CB5: =IFERROR(IF(B_Housing_Type="SF",EXP('Residential Energy Coefficients'!$D$3+'Residential Energy Coefficients'!$D$4*LN(B_Net_Sq_Ft_per_Unit)+'Residential Energy Coefficients'!$D$9+'Residential Energy Coefficients'!$D$10*LN(B_HH_Income)+'Residential Energy Coefficients'!$D$11*B_HH_Size+IF(B_Pct_Owner=1,'Residential Energy Coefficients'!$D$12,0)+'Residential Energy Coefficients'!$D$16*LN(Residential_Energy_Cost)),IF(B_Housing_Type="TH",EXP('Residential Energy Coefficients'!$G$3+'Residential Energy Coefficients'!$G$4*LN(B_Net_Sq_Ft_per_Unit)+'Residential Energy Coefficients'!$G$10*LN(B_HH_Income)+'Residential Energy Coefficients'!$G$11*B_HH_Size+'Residential Energy Coefficients'!$G$16*LN(Residential_Energy_Cost)),IF(B_Housing_Type="MF",EXP('Residential Energy Coefficients'!$J$3+'Residential Energy Coefficients'!$J$4*LN(B_Net_Sq_Ft_per_Unit)+'Residential Energy Coefficients'!$J$10*LN(B_HH_Income)+'Residential Energy Coefficients'!$J$11*B_HH_Size+IF(B_Pct_Owner=1,'Residential Energy Coefficients'!$J$12,0)+'Residential Energy Coefficients'!$J$16*LN(Residential_Energy_Cost)+'Residential Energy Coefficients'!$J$19),IF(B_Housing_Type="MH",EXP('Residential Energy Coefficients'!$M$3+'Residential Energy Coefficients'!$M$4*LN(B_Net_Sq_Ft_per_Unit)+'Residential Energy Coefficients'!$M$11*B_HH_Size+'Residential Energy Coefficients'!$M$16*LN(Residential_Energy_Cost)+'Residential Energy Coefficients'!$M$19),0))))/1000,0) -> 0 | CC5: =SUM(BZ5:CB5) -> 0 | CD5: =(IFERROR(EXP('Commercial Energy Coefficients'!$B$3+LN(B_Retail_Gross_Sq_Ft)*'Commercial Energy Coefficients'!$B$4+'Commercial Energy Coefficients'!$B$11+'Commercial Energy Coefficients'!$B$14+'Commercial Energy Coefficients'!$B$18*LN((B_Ret_Emp_Acre)*(B_Lot_Size/43560))+'Commercial Energy Coefficients'!$B$19*LN(40)+'Commercial Energy Coefficients'!$B$21+'Commercial Energy Coefficients'!$B$22*LN(Commercial_Energy_Cost)+'Commercial Energy Coefficients'!$B$23*IFERROR(LOOKUP(Metro_Select,Energy_Metro_Lookup,HDD),0)),0)+IFERROR(EXP('Commercial Energy Coefficients'!$E$3+LN(B_Office_Gross_Sq_Ft)*'Commercial Energy Coefficients'!$E$4+'Commercial Energy Coefficients'!$E$11+'Commercial Energy Coefficients'!$E$14+'Commercial Energy Coefficients'!$E$18*LN((B_Off_Emp_Acre)*(B_Lot_Size/43560))+'Commercial Energy Coefficients'!$E$19*LN(40)+'Commercial Energy Coefficients'!$E$21+'Commercial Energy Coefficients'!$E$22*LN(Commercial_Energy_Cost)+'Commercial Energy Coefficients'!$E$23*IFERROR(LOOKUP(Metro_Select,Energy_Metro_Lookup,HDD),0)),0)+IFERROR(EXP('Commercial Energy Coefficients'!$H$3+LN(B_Public_Gross_Sq_Ft)*'Commercial Energy Coefficients'!$H$4+'Commercial Energy Coefficients'!$H$11+'Commercial Energy Coefficients'!$H$14+'Commercial Energy Coefficients'!$H$18*LN((B_Pub_Emp_Acre)*(B_Lot_Size/43560))+'Commercial Energy Coefficients'!$H$19*LN(40)+'Commercial Energy Coefficients'!$H$21+'Commercial Energy Coefficients'!$H$22*LN(Commercial_Energy_Cost)+'Commercial Energy Coefficients'!$H$23*IFERROR(LOOKUP(Metro_Select,Energy_Metro_Lookup,HDD),0)),0))/1000 -> 0 | CE5: =(IFERROR(EXP('Commercial Energy Coefficients'!$C$3+LN((B_Retail_Gross_Sq_Ft))*'Commercial Energy Coefficients'!$C$4+'Commercial Energy Coefficients'!$C$11+'Commercial Energy Coefficients'!$C$14+'Commercial Energy Coefficients'!$C$18*LN((B_Ret_Emp_Acre)*(B_Lot_Size/43560))+'Commercial Energy Coefficients'!$C$19*LN(40)+'Commercial Energy Coefficients'!$C$21+'Commercial Energy Coefficients'!$C$22*LN(Commercial_Energy_Cost)+'Commercial Energy Coefficients'!$C$24*IFERROR(LOOKUP(Metro_Select,Energy_Metro_Lookup,CDD),0)),0)+IFERROR(EXP('Commercial Energy Coefficients'!$F$3+LN((B_Office_Gross_Sq_Ft))*'Commercial Energy Coefficients'!$F$4+'Commercial Energy Coefficients'!$F$11+'Commercial Energy Coefficients'!$F$14+'Commercial Energy Coefficients'!$F$18*LN((B_Off_Emp_Acre)*(B_Lot_Size/43560))+'Commercial Energy Coefficients'!$F$19*LN(40)+'Commercial Energy Coefficients'!$F$21+'Commercial Energy Coefficients'!$F$22*LN(Commercial_Energy_Cost)+'Commercial Energy Coefficients'!$F$24*IFERROR(LOOKUP(Metro_Select,Energy_Metro_Lookup,CDD),0)),0)+IFERROR(EXP('Commercial Energy Coefficients'!$I$3+LN((B_Public_Gross_Sq_Ft))*'Commercial Energy Coefficients'!$I$4+'Commercial Energy Coefficients'!$I$11+'Commercial Energy Coefficients'!$I$14+'Commercial Energy Coefficients'!$I$18*LN((B_Pub_Emp_Acre)*(B_Lot_Size/43560))+'Commercial Energy Coefficients'!$I$19*LN(40)+'Commercial Energy Coefficients'!$I$21+'Commercial Energy Coefficients'!$I$22*LN(Commercial_Energy_Cost)+'Commercial Energy Coefficients'!$I$24*IFERROR(LOOKUP(Metro_Select,Energy_Metro_Lookup,CDD),0)),0))/1000 -> 0 | CF5: =(IFERROR(EXP('Commercial Energy Coefficients'!$D$3+LN((B_Retail_Gross_Sq_Ft))*'Commercial Energy Coefficients'!$D$4+'Commercial Energy Coefficients'!$D$14+'Commercial Energy Coefficients'!$D$18*LN((B_Ret_Emp_Acre)*(B_Lot_Size/43560))+'Commercial Energy Coefficients'!$D$19*LN(40)+'Commercial Energy Coefficients'!$D$21+'Commercial Energy Coefficients'!$D$22*LN(Commercial_Energy_Cost)),0)+IFERROR(EXP('Commercial Energy Coefficients'!$G$3+LN((B_Office_Gross_Sq_Ft))*'Commercial Energy Coefficients'!$G$4+'Commercial Energy Coefficients'!$G$14+'Commercial Energy Coefficients'!$G$18*LN((B_Off_Emp_Acre)*(B_Lot_Size/43560))+'Commercial Energy Coefficients'!$G$19*LN(40)+'Commercial Energy Coefficients'!$G$21+'Commercial Energy Coefficients'!$G$22*LN(Commercial_Energy_Cost)),0)+IFERROR(EXP('Commercial Energy Coefficients'!$J$3+LN((B_Public_Gross_Sq_Ft))*'Commercial Energy Coefficients'!$J$4+'Commercial Energy Coefficients'!$J$14+'Commercial Energy Coefficients'!$J$18*LN((B_Pub_Emp_Acre)*(B_Lot_Size/43560))+'Commercial Energy Coefficients'!$J$19*LN(40)+'Commercial Energy Coefficients'!$J$21+'Commercial Energy Coefficients'!$J$22*LN(Commercial_Energy_Cost)),0))/1000 -> 0 | CG5: =SUM(CD5:CF5) -> 0 | CH5: 0 | CI5: 0 | CJ5: 0 | CK5: 0 | CL5: 0 | CM5: 0 | CN5: 0 | CO5: 0 | CP5: =IF((D5*F5)>'Project Info'!$B$123*43560,'Project Info'!$B$123*43560*'Project Info'!$B$122,D5*F5*'Project Info'!$B$122) -> 0 | CQ5: =IF(AF5="",0,IF(AF5="MF",'Project Info'!$B$129,IF(AF5="TH",'Project Info'!$B$130,IF(AND(OR(AF5="SF",AF5="MH"),AC5>0,AC5<3000),'Project Info'!$B$131,IF(AND(OR(AF5="SF",AF5="MH"),AC5>=3000),'Project Info'!$B$132))))) -> 0 | CR5: =IF(AW5=0,0,(AZ5/AW5*'Project Info'!$C$133)+(BC5/AW5*'Project Info'!$C$134)+(BF5/AW5*'Project Info'!$C$135)) -> 0 | CS5: 0 | CT5: 0 | CU5: =IF(AF5="",0,IF(AF5="MF",'Project Info'!$B$141,IF(AF5="TH",'Project Info'!$B$142,IF(AND(AF5="SF",AC5>0,AC5<3000),'Project Info'!$B$143,IF(AND(AF5="SF",AC5>=3000),'Project Info'!$B$144))))) -> 0 | CV5: =IF(AW5=0,0,(AZ5/AW5*'Project Info'!$C$145)+(BC5/AW5*'Project Info'!$C$146)+(BF5/AW5*'Project Info'!$C$147)) -> 0 | CW5: 0 | CX5: 0 | CY5: =IF(AF5="",0,IF(AF5="MF",'Project Info'!$B$154,IF(AF5="TH",'Project Info'!$B$155,IF(AND(AF5="SF",AC5>0,AC5<3000),'Project Info'!$B$156,IF(AND(AF5="SF",AC5>=3000),'Project Info'!$B$157))))) -> 0 | CZ5: =IF(AW5=0,0,(AZ5/AW5*'Project Info'!$C$158)+(BC5/AW5*'Project Info'!$C$159)+(BF5/AW5*'Project Info'!$C$160)) -> 0 | DA5: 0 | DB5: 0 | DD5: 0 | DE5: 0 | DG5: 0 | DI5: 0 | DJ5: 0 | DK5: 0 | DL5: 0 | DM5: 0 | DN5: 0 | DO5: 0 | DP5: 0
B6: 3 | J6: 0 | L6: 0 | M6: 0 | N6: 0 | O6: 0 | P6: 0 | Q6: 0 | R6: 0 | S6: 0 | AA6: 0 | AD6: 0 | AE6: 0 | AH6: 0 | AJ6: 0 | AL6: 0 | AM6: 0 | AN6: =IF(AF6="",0,IF(AF6="MF",'Project Info'!$F$8,IF(AF6="TH",'Project Info'!$F$9,IF(AF6="SF",'Project Info'!$F$11,IF(AF6="MH",'Project Info'!$F$13,0))))) -> 0 | AO6: 0 | AP6: =IF(AF6="",0,IF(AF6="MF",IF((AB6/'Project Info'!$D$8)>'Project Info'!$E$8,'Project Info'!$E$8,AB6/'Project Info'!$D$8),IF(AF6="TH",IF((AB6/'Project Info'!$D$9)>'Project Info'!$E$9,'Project Info'!$E$9,AB6/'Project Info'!$D$9),IF(AF6="SF",IF((AB6/'Project Info'!$D$11)>'Project Info'!$E$11,'Project Info'!$E$11,AB6/'Project Info'!$D$11),IF(AF6="MH",IF((AB6/'Project Info'!$D$13)>'Project Info'!$E$13,'Project Info'!$E$13,AB6/'Project Info'!$D$13)))))) -> 0 | AQ6: 0 | AR6: 0 | AS6: 0 | AT6: 0 | AU6: 0 | AV6: 0 | AW6: 0 | AX6: 0 | AZ6: 0 | BA6: 0 | BC6: 0 | BD6: 0 | BF6: 0 | BG6: 0 | BI6: 0 | BJ6: 0 | BL6: 0 | BM6: 0 | BO6: 0 | BR6: 0 | BS6: 0 | BU6: 0 | BY6: 0 | BZ6: =IFERROR(IF(B_Housing_Type="SF",EXP('Residential Energy Coefficients'!$B$3+'Residential Energy Coefficients'!$B$4*LN(B_Net_Sq_Ft_per_Unit)+'Residential Energy Coefficients'!$B$9+'Residential Energy Coefficients'!$B$10*LN(B_HH_Income)+'Residential Energy Coefficients'!$B$16*LN(Residential_Energy_Cost)+'Residential Energy Coefficients'!$B$20+'Residential Energy Coefficients'!$B$24*IFERROR(LOOKUP(Metro_Select,Energy_Metro_Lookup,HDD),0)),IF(B_Housing_Type="TH",EXP('Residential Energy Coefficients'!$E$3+'Residential Energy Coefficients'!$E$4*LN(B_Net_Sq_Ft_per_Unit)+'Residential Energy Coefficients'!$E$9+'Residential Energy Coefficients'!$E$16*LN(Residential_Energy_Cost)+'Residential Energy Coefficients'!$E$19+'Residential Energy Coefficients'!$E$20+'Residential Energy Coefficients'!$E$24*IFERROR(LOOKUP(Metro_Select,Energy_Metro_Lookup,HDD),0)),IF(B_Housing_Type="MF",EXP('Residential Energy Coefficients'!$H$3+'Residential Energy Coefficients'!$H$4*LN(B_Net_Sq_Ft_per_Unit)+'Residential Energy Coefficients'!$H$9+IF(B_Pct_Owner=1,'Residential Energy Coefficients'!$H$12,0)+'Residential Energy Coefficients'!$H$16*LN(Residential_Energy_Cost)+'Residential Energy Coefficients'!$H$20+'Residential Energy Coefficients'!$H$24*IFERROR(LOOKUP(Metro_Select,Energy_Metro_Lookup,HDD),0)),IF(B_Housing_Type="MH",EXP('Residential Energy Coefficients'!$K$3+'Residential Energy Coefficients'!$K$16*LN(Residential_Energy_Cost)+'Residential Energy Coefficients'!$K$24*IFERROR(LOOKUP(Metro_Select,Energy_Metro_Lookup,HDD),0)),0))))/1000,0) -> 0 | CA6: =IFERROR(IF(B_Housing_Type="SF",EXP('Residential Energy Coefficients'!$C$3+'Residential Energy Coefficients'!$C$4*LN(B_Net_Sq_Ft_per_Unit)+'Residential Energy Coefficients'!$C$10*LN(B_HH_Income)+'Residential Energy Coefficients'!$C$11*B_HH_Size+'Residential Energy Coefficients'!$C$16*LN(Residential_Energy_Cost)+'Residential Energy Coefficients'!$C$19+'Residential Energy Coefficients'!$C$22+'Residential Energy Coefficients'!$C$25*IFERROR(LOOKUP(Metro_Select,Energy_Metro_Lookup,CDD),0)),IF(B_Housing_Type="TH",EXP('Residential Energy Coefficients'!$F$3+'Residential Energy Coefficients'!$F$4*LN(B_Net_Sq_Ft_per_Unit)+'Residential Energy Coefficients'!$F$10*LN(B_HH_Income)+'Residential Energy Coefficients'!$F$11*B_HH_Size+IF(B_Pct_Owner=1,'Residential Energy Coefficients'!$F$12,0)+'Residential Energy Coefficients'!$F$16*LN(Residential_Energy_Cost)+'Residential Energy Coefficients'!$F$22+'Residential Energy Coefficients'!$F$25*IFERROR(LOOKUP(Metro_Select,Energy_Metro_Lookup,CDD),0)),IF(B_Housing_Type="MF",EXP('Residential Energy Coefficients'!$I$3+'Residential Energy Coefficients'!$I$4*LN(B_Net_Sq_Ft_per_Unit)+'Residential Energy Coefficients'!$I$9+'Residential Energy Coefficients'!$I$11*B_HH_Size+'Residential Energy Coefficients'!$I$16*LN(Residential_Energy_Cost)+'Residential Energy Coefficients'!$I$22+'Residential Energy Coefficients'!$I$25*IFERROR(LOOKUP(Metro_Select,Energy_Metro_Lookup,CDD),0)),IF(B_Housing_Type="MH",EXP('Residential Energy Coefficients'!$L$3+'Residential Energy Coefficients'!$L$11*B_HH_Size+'Residential Energy Coefficients'!$L$16*LN(Residential_Energy_Cost)+'Residential Energy Coefficients'!$L$22+'Residential Energy Coefficients'!$L$25*IFERROR(LOOKUP(Metro_Select,Energy_Metro_Lookup,CDD),0)),0))))/1000,0) -> 0 | CB6: =IFERROR(IF(B_Housing_Type="SF",EXP('Residential Energy Coefficients'!$D$3+'Residential Energy Coefficients'!$D$4*LN(B_Net_Sq_Ft_per_Unit)+'Residential Energy Coefficients'!$D$9+'Residential Energy Coefficients'!$D$10*LN(B_HH_Income)+'Residential Energy Coefficients'!$D$11*B_HH_Size+IF(B_Pct_Owner=1,'Residential Energy Coefficients'!$D$12,0)+'Residential Energy Coefficients'!$D$16*LN(Residential_Energy_Cost)),IF(B_Housing_Type="TH",EXP('Residential Energy Coefficients'!$G$3+'Residential Energy Coefficients'!$G$4*LN(B_Net_Sq_Ft_per_Unit)+'Residential Energy Coefficients'!$G$10*LN(B_HH_Income)+'Residential Energy Coefficients'!$G$11*B_HH_Size+'Residential Energy Coefficients'!$G$16*LN(Residential_Energy_Cost)),IF(B_Housing_Type="MF",EXP('Residential Energy Coefficients'!$J$3+'Residential Energy Coefficients'!$J$4*LN(B_Net_Sq_Ft_per_Unit)+'Residential Energy Coefficients'!$J$10*LN(B_HH_Income)+'Residential Energy Coefficients'!$J$11*B_HH_Size+IF(B_Pct_Owner=1,'Residential Energy Coefficients'!$J$12,0)+'Residential Energy Coefficients'!$J$16*LN(Residential_Energy_Cost)+'Residential Energy Coefficients'!$J$19),IF(B_Housing_Type="MH",EXP('Residential Energy Coefficients'!$M$3+'Residential Energy Coefficients'!$M$4*LN(B_Net_Sq_Ft_per_Unit)+'Residential Energy Coefficients'!$M$11*B_HH_Size+'Residential Energy Coefficients'!$M$16*LN(Residential_Energy_Cost)+'Residential Energy Coefficients'!$M$19),0))))/1000,0) -> 0 | CC6: 0 | CD6: =(IFERROR(EXP('Commercial Energy Coefficients'!$B$3+LN(B_Retail_Gross_Sq_Ft)*'Commercial Energy Coefficients'!$B$4+'Commercial Energy Coefficients'!$B$11+'Commercial Energy Coefficients'!$B$14+'Commercial Energy Coefficients'!$B$18*LN((B_Ret_Emp_Acre)*(B_Lot_Size/43560))+'Commercial Energy Coefficients'!$B$19*LN(40)+'Commercial Energy Coefficients'!$B$21+'Commercial Energy Coefficients'!$B$22*LN(Commercial_Energy_Cost)+'Commercial Energy Coefficients'!$B$23*IFERROR(LOOKUP(Metro_Select,Energy_Metro_Lookup,HDD),0)),0)+IFERROR(EXP('Commercial Energy Coefficients'!$E$3+LN(B_Office_Gross_Sq_Ft)*'Commercial Energy Coefficients'!$E$4+'Commercial Energy Coefficients'!$E$11+'Commercial Energy Coefficients'!$E$14+'Commercial Energy Coefficients'!$E$18*LN((B_Off_Emp_Acre)*(B_Lot_Size/43560))+'Commercial Energy Coefficients'!$E$19*LN(40)+'Commercial Energy Coefficients'!$E$21+'Commercial Energy Coefficients'!$E$22*LN(Commercial_Energy_Cost)+'Commercial Energy Coefficients'!$E$23*IFERROR(LOOKUP(Metro_Select,Energy_Metro_Lookup,HDD),0)),0)+IFERROR(EXP('Commercial Energy Coefficients'!$H$3+LN(B_Public_Gross_Sq_Ft)*'Commercial Energy Coefficients'!$H$4+'Commercial Energy Coefficients'!$H$11+'Commercial Energy Coefficients'!$H$14+'Commercial Energy Coefficients'!$H$18*LN((B_Pub_Emp_Acre)*(B_Lot_Size/43560))+'Commercial Energy Coefficients'!$H$19*LN(40)+'Commercial Energy Coefficients'!$H$21+'Commercial Energy Coefficients'!$H$22*LN(Commercial_Energy_Cost)+'Commercial Energy Coefficients'!$H$23*IFERROR(LOOKUP(Metro_Select,Energy_Metro_Lookup,HDD),0)),0))/1000 -> 0 | CE6: =(IFERROR(EXP('Commercial Energy Coefficients'!$C$3+LN((B_Retail_Gross_Sq_Ft))*'Commercial Energy Coefficients'!$C$4+'Commercial Energy Coefficients'!$C$11+'Commercial Energy Coefficients'!$C$14+'Commercial Energy Coefficients'!$C$18*LN((B_Ret_Emp_Acre)*(B_Lot_Size/43560))+'Commercial Energy Coefficients'!$C$19*LN(40)+'Commercial Energy Coefficients'!$C$21+'Commercial Energy Coefficients'!$C$22*LN(Commercial_Energy_Cost)+'Commercial Energy Coefficients'!$C$24*IFERROR(LOOKUP(Metro_Select,Energy_Metro_Lookup,CDD),0)),0)+IFERROR(EXP('Commercial Energy Coefficients'!$F$3+LN((B_Office_Gross_Sq_Ft))*'Commercial Energy Coefficients'!$F$4+'Commercial Energy Coefficients'!$F$11+'Commercial Energy Coefficients'!$F$14+'Commercial Energy Coefficients'!$F$18*LN((B_Off_Emp_Acre)*(B_Lot_Size/43560))+'Commercial Energy Coefficients'!$F$19*LN(40)+'Commercial Energy Coefficients'!$F$21+'Commercial Energy Coefficients'!$F$22*LN(Commercial_Energy_Cost)+'Commercial Energy Coefficients'!$F$24*IFERROR(LOOKUP(Metro_Select,Energy_Metro_Lookup,CDD),0)),0)+IFERROR(EXP('Commercial Energy Coefficients'!$I$3+LN((B_Public_Gross_Sq_Ft))*'Commercial Energy Coefficients'!$I$4+'Commercial Energy Coefficients'!$I$11+'Commercial Energy Coefficients'!$I$14+'Commercial Energy Coefficients'!$I$18*LN((B_Pub_Emp_Acre)*(B_Lot_Size/43560))+'Commercial Energy Coefficients'!$I$19*LN(40)+'Commercial Energy Coefficients'!$I$21+'Commercial Energy Coefficients'!$I$22*LN(Commercial_Energy_Cost)+'Commercial Energy Coefficients'!$I$24*IFERROR(LOOKUP(Metro_Select,Energy_Metro_Lookup,CDD),0)),0))/1000 -> 0 | CF6: =(IFERROR(EXP('Commercial Energy Coefficients'!$D$3+LN((B_Retail_Gross_Sq_Ft))*'Commercial Energy Coefficients'!$D$4+'Commercial Energy Coefficients'!$D$14+'Commercial Energy Coefficients'!$D$18*LN((B_Ret_Emp_Acre)*(B_Lot_Size/43560))+'Commercial Energy Coefficients'!$D$19*LN(40)+'Commercial Energy Coefficients'!$D$21+'Commercial Energy Coefficients'!$D$22*LN(Commercial_Energy_Cost)),0)+IFERROR(EXP('Commercial Energy Coefficients'!$G$3+LN((B_Office_Gross_Sq_Ft))*'Commercial Energy Coefficients'!$G$4+'Commercial Energy Coefficients'!$G$14+'Commercial Energy Coefficients'!$G$18*LN((B_Off_Emp_Acre)*(B_Lot_Size/43560))+'Commercial Energy Coefficients'!$G$19*LN(40)+'Commercial Energy Coefficients'!$G$21+'Commercial Energy Coefficients'!$G$22*LN(Commercial_Energy_Cost)),0)+IFERROR(EXP('Commercial Energy Coefficients'!$J$3+LN((B_Public_Gross_Sq_Ft))*'Commercial Energy Coefficients'!$J$4+'Commercial Energy Coefficients'!$J$14+'Commercial Energy Coefficients'!$J$18*LN((B_Pub_Emp_Acre)*(B_Lot_Size/43560))+'Commercial Energy Coefficients'!$J$19*LN(40)+'Commercial Energy Coefficients'!$J$21+'Commercial Energy Coefficients'!$J$22*LN(Commercial_Energy_Cost)),0))/1000 -> 0 | CG6: 0 | CH6: 0 | CI6: 0 | CJ6: 0 | CK6: 0 | CL6: 0 | CM6: 0 | CN6: 0 | CO6: 0 | CP6: =IF((D6*F6)>'Project Info'!$B$123*43560,'Project Info'!$B$123*43560*'Project Info'!$B$122,D6*F6*'Project Info'!$B$122) -> 0 | CQ6: =IF(AF6="",0,IF(AF6="MF",'Project Info'!$B$129,IF(AF6="TH",'Project Info'!$B$130,IF(AND(OR(AF6="SF",AF6="MH"),AC6>0,AC6<3000),'Project Info'!$B$131,IF(AND(OR(AF6="SF",AF6="MH"),AC6>=3000),'Project Info'!$B$132))))) -> 0 | CR6: =IF(AW6=0,0,(AZ6/AW6*'Project Info'!$C$133)+(BC6/AW6*'Project Info'!$C$134)+(BF6/AW6*'Project Info'!$C$135)) -> 0 | CS6: 0 | CT6: 0 | CU6: =IF(AF6="",0,IF(AF6="MF",'Project Info'!$B$141,IF(AF6="TH",'Project Info'!$B$142,IF(AND(AF6="SF",AC6>0,AC6<3000),'Project Info'!$B$143,IF(AND(AF6="SF",AC6>=3000),'Project Info'!$B$144))))) -> 0 | CV6: =IF(AW6=0,0,(AZ6/AW6*'Project Info'!$C$145)+(BC6/AW6*'Project Info'!$C$146)+(BF6/AW6*'Project Info'!$C$147)) -> 0 | CW6: 0 | CX6: 0 | CY6: =IF(AF6="",0,IF(AF6="MF",'Project Info'!$B$154,IF(AF6="TH",'Project Info'!$B$155,IF(AND(AF6="SF",AC6>0,AC6<3000),'Project Info'!$B$156,IF(AND(AF6="SF",AC6>=3000),'Project Info'!$B$157))))) -> 0 | CZ6: =IF(AW6=0,0,(AZ6/AW6*'Project Info'!$C$158)+(BC6/AW6*'Project Info'!$C$159)+(BF6/AW6*'Project Info'!$C$160)) -> 0 | DA6: 0 | DB6: 0 | DD6: 0 | DE6: 0 | DG6: 0 | DI6: 0 | DJ6: 0 | DK6: 0 | DL6: 0 | DM6: 0 | DN6: 0 | DO6: 0 | DP6: 0
B7: 4 | J7: 0 | L7: 0 | M7: 0 | N7: 0 | O7: 0 | P7: 0 | Q7: 0 | R7: 0 | S7: 0 | AA7: 0 | AD7: 0 | AE7: 0 | AH7: 0 | AJ7: 0 | AL7: 0 | AM7: 0 | AN7: =IF(AF7="",0,IF(AF7="MF",'Project Info'!$F$8,IF(AF7="TH",'Project Info'!$F$9,IF(AF7="SF",'Project Info'!$F$11,IF(AF7="MH",'Project Info'!$F$13,0))))) -> 0 | AO7: 0 | AP7: =IF(AF7="",0,IF(AF7="MF",IF((AB7/'Project Info'!$D$8)>'Project Info'!$E$8,'Project Info'!$E$8,AB7/'Project Info'!$D$8),IF(AF7="TH",IF((AB7/'Project Info'!$D$9)>'Project Info'!$E$9,'Project Info'!$E$9,AB7/'Project Info'!$D$9),IF(AF7="SF",IF((AB7/'Project Info'!$D$11)>'Project Info'!$E$11,'Project Info'!$E$11,AB7/'Project Info'!$D$11),IF(AF7="MH",IF((AB7/'Project Info'!$D$13)>'Project Info'!$E$13,'Project Info'!$E$13,AB7/'Project Info'!$D$13)))))) -> 0 | AQ7: 0 | AR7: 0 | AS7: 0 | AT7: 0 | AU7: 0 | AV7: 0 | AW7: 0 | AX7: 0 | AZ7: 0 | BA7: 0 | BC7: 0 | BD7: 0 | BF7: 0 | BG7: 0 | BI7: 0 | BJ7: 0 | BL7: 0 | BM7: 0 | BO7: 0 | BR7: 0 | BS7: 0 | BU7: 0 | BY7: 0 | BZ7: =IFERROR(IF(B_Housing_Type="SF",EXP('Residential Energy Coefficients'!$B$3+'Residential Energy Coefficients'!$B$4*LN(B_Net_Sq_Ft_per_Unit)+'Residential Energy Coefficients'!$B$9+'Residential Energy Coefficients'!$B$10*LN(B_HH_Income)+'Residential Energy Coefficients'!$B$16*LN(Residential_Energy_Cost)+'Residential Energy Coefficients'!$B$20+'Residential Energy Coefficients'!$B$24*IFERROR(LOOKUP(Metro_Select,Energy_Metro_Lookup,HDD),0)),IF(B_Housing_Type="TH",EXP('Residential Energy Coefficients'!$E$3+'Residential Energy Coefficients'!$E$4*LN(B_Net_Sq_Ft_per_Unit)+'Residential Energy Coefficients'!$E$9+'Residential Energy Coefficients'!$E$16*LN(Residential_Energy_Cost)+'Residential Energy Coefficients'!$E$19+'Residential Energy Coefficients'!$E$20+'Residential Energy Coefficients'!$E$24*IFERROR(LOOKUP(Metro_Select,Energy_Metro_Lookup,HDD),0)),IF(B_Housing_Type="MF",EXP('Residential Energy Coefficients'!$H$3+'Residential Energy Coefficients'!$H$4*LN(B_Net_Sq_Ft_per_Unit)+'Residential Energy Coefficients'!$H$9+IF(B_Pct_Owner=1,'Residential Energy Coefficients'!$H$12,0)+'Residential Energy Coefficients'!$H$16*LN(Residential_Energy_Cost)+'Residential Energy Coefficients'!$H$20+'Residential Energy Coefficients'!$H$24*IFERROR(LOOKUP(Metro_Select,Energy_Metro_Lookup,HDD),0)),IF(B_Housing_Type="MH",EXP('Residential Energy Coefficients'!$K$3+'Residential Energy Coefficients'!$K$16*LN(Residential_Energy_Cost)+'Residential Energy Coefficients'!$K$24*IFERROR(LOOKUP(Metro_Select,Energy_Metro_Lookup,HDD),0)),0))))/1000,0) -> 0 | CA7: =IFERROR(IF(B_Housing_Type="SF",EXP('Residential Energy Coefficients'!$C$3+'Residential Energy Coefficients'!$C$4*LN(B_Net_Sq_Ft_per_Unit)+'Residential Energy Coefficients'!$C$10*LN(B_HH_Income)+'Residential Energy Coefficients'!$C$11*B_HH_Size+'Residential Energy Coefficients'!$C$16*LN(Residential_Energy_Cost)+'Residential Energy Coefficients'!$C$19+'Residential Energy Coefficients'!$C$22+'Residential Energy Coefficients'!$C$25*IFERROR(LOOKUP(Metro_Select,Energy_Metro_Lookup,CDD),0)),IF(B_Housing_Type="TH",EXP('Residential Energy Coefficients'!$F$3+'Residential Energy Coefficients'!$F$4*LN(B_Net_Sq_Ft_per_Unit)+'Residential Energy Coefficients'!$F$10*LN(B_HH_Income)+'Residential Energy Coefficients'!$F$11*B_HH_Size+IF(B_Pct_Owner=1,'Residential Energy Coefficients'!$F$12,0)+'Residential Energy Coefficients'!$F$16*LN(Residential_Energy_Cost)+'Residential Energy Coefficients'!$F$22+'Residential Energy Coefficients'!$F$25*IFERROR(LOOKUP(Metro_Select,Energy_Metro_Lookup,CDD),0)),IF(B_Housing_Type="MF",EXP('Residential Energy Coefficients'!$I$3+'Residential Energy Coefficients'!$I$4*LN(B_Net_Sq_Ft_per_Unit)+'Residential Energy Coefficients'!$I$9+'Residential Energy Coefficients'!$I$11*B_HH_Size+'Residential Energy Coefficients'!$I$16*LN(Residential_Energy_Cost)+'Residential Energy Coefficients'!$I$22+'Residential Energy Coefficients'!$I$25*IFERROR(LOOKUP(Metro_Select,Energy_Metro_Lookup,CDD),0)),IF(B_Housing_Type="MH",EXP('Residential Energy Coefficients'!$L$3+'Residential Energy Coefficients'!$L$11*B_HH_Size+'Residential Energy Coefficients'!$L$16*LN(Residential_Energy_Cost)+'Residential Energy Coefficients'!$L$22+'Residential Energy Coefficients'!$L$25*IFERROR(LOOKUP(Metro_Select,Energy_Metro_Lookup,CDD),0)),0))))/1000,0) -> 0 | CB7: =IFERROR(IF(B_Housing_Type="SF",EXP('Residential Energy Coefficients'!$D$3+'Residential Energy Coefficients'!$D$4*LN(B_Net_Sq_Ft_per_Unit)+'Residential Energy Coefficients'!$D$9+'Residential Energy Coefficients'!$D$10*LN(B_HH_Income)+'Residential Energy Coefficients'!$D$11*B_HH_Size+IF(B_Pct_Owner=1,'Residential Energy Coefficients'!$D$12,0)+'Residential Energy Coefficients'!$D$16*LN(Residential_Energy_Cost)),IF(B_Housing_Type="TH",EXP('Residential Energy Coefficients'!$G$3+'Residential Energy Coefficients'!$G$4*LN(B_Net_Sq_Ft_per_Unit)+'Residential Energy Coefficients'!$G$10*LN(B_HH_Income)+'Residential Energy Coefficients'!$G$11*B_HH_Size+'Residential Energy Coefficients'!$G$16*LN(Residential_Energy_Cost)),IF(B_Housing_Type="MF",EXP('Residential Energy Coefficients'!$J$3+'Residential Energy Coefficients'!$J$4*LN(B_Net_Sq_Ft_per_Unit)+'Residential Energy Coefficients'!$J$10*LN(B_HH_Income)+'Residential Energy Coefficients'!$J$11*B_HH_Size+IF(B_Pct_Owner=1,'Residential Energy Coefficients'!$J$12,0)+'Residential Energy Coefficients'!$J$16*LN(Residential_Energy_Cost)+'Residential Energy Coefficients'!$J$19),IF(B_Housing_Type="MH",EXP('Residential Energy Coefficients'!$M$3+'Residential Energy Coefficients'!$M$4*LN(B_Net_Sq_Ft_per_Unit)+'Residential Energy Coefficients'!$M$11*B_HH_Size+'Residential Energy Coefficients'!$M$16*LN(Residential_Energy_Cost)+'Residential Energy Coefficients'!$M$19),0))))/1000,0) -> 0 | CC7: 0 | CD7: =(IFERROR(EXP('Commercial Energy Coefficients'!$B$3+LN(B_Retail_Gross_Sq_Ft)*'Commercial Energy Coefficients'!$B$4+'Commercial Energy Coefficients'!$B$11+'Commercial Energy Coefficients'!$B$14+'Commercial Energy Coefficients'!$B$18*LN((B_Ret_Emp_Acre)*(B_Lot_Size/43560))+'Commercial Energy Coefficients'!$B$19*LN(40)+'Commercial Energy Coefficients'!$B$21+'Commercial Energy Coefficients'!$B$22*LN(Commercial_Energy_Cost)+'Commercial Energy Coefficients'!$B$23*IFERROR(LOOKUP(Metro_Select,Energy_Metro_Lookup,HDD),0)),0)+IFERROR(EXP('Commercial Energy Coefficients'!$E$3+LN(B_Office_Gross_Sq_Ft)*'Commercial Energy Coefficients'!$E$4+'Commercial Energy Coefficients'!$E$11+'Commercial Energy Coefficients'!$E$14+'Commercial Energy Coefficients'!$E$18*LN((B_Off_Emp_Acre)*(B_Lot_Size/43560))+'Commercial Energy Coefficients'!$E$19*LN(40)+'Commercial Energy Coefficients'!$E$21+'Commercial Energy Coefficients'!$E$22*LN(Commercial_Energy_Cost)+'Commercial Energy Coefficients'!$E$23*IFERROR(LOOKUP(Metro_Select,Energy_Metro_Lookup,HDD),0)),0)+IFERROR(EXP('Commercial Energy Coefficients'!$H$3+LN(B_Public_Gross_Sq_Ft)*'Commercial Energy Coefficients'!$H$4+'Commercial Energy Coefficients'!$H$11+'Commercial Energy Coefficients'!$H$14+'Commercial Energy Coefficients'!$H$18*LN((B_Pub_Emp_Acre)*(B_Lot_Size/43560))+'Commercial Energy Coefficients'!$H$19*LN(40)+'Commercial Energy Coefficients'!$H$21+'Commercial Energy Coefficients'!$H$22*LN(Commercial_Energy_Cost)+'Commercial Energy Coefficients'!$H$23*IFERROR(LOOKUP(Metro_Select,Energy_Metro_Lookup,HDD),0)),0))/1000 -> 0 | CE7: =(IFERROR(EXP('Commercial Energy Coefficients'!$C$3+LN((B_Retail_Gross_Sq_Ft))*'Commercial Energy Coefficients'!$C$4+'Commercial Energy Coefficients'!$C$11+'Commercial Energy Coefficients'!$C$14+'Commercial Energy Coefficients'!$C$18*LN((B_Ret_Emp_Acre)*(B_Lot_Size/43560))+'Commercial Energy Coefficients'!$C$19*LN(40)+'Commercial Energy Coefficients'!$C$21+'Commercial Energy Coefficients'!$C$22*LN(Commercial_Energy_Cost)+'Commercial Energy Coefficients'!$C$24*IFERROR(LOOKUP(Metro_Select,Energy_Metro_Lookup,CDD),0)),0)+IFERROR(EXP('Commercial Energy Coefficients'!$F$3+LN((B_Office_Gross_Sq_Ft))*'Commercial Energy Coefficients'!$F$4+'Commercial Energy Coefficients'!$F$11+'Commercial Energy Coefficients'!$F$14+'Commercial Energy Coefficients'!$F$18*LN((B_Off_Emp_Acre)*(B_Lot_Size/43560))+'Commercial Energy Coefficients'!$F$19*LN(40)+'Commercial Energy Coefficients'!$F$21+'Commercial Energy Coefficients'!$F$22*LN(Commercial_Energy_Cost)+'Commercial Energy Coefficients'!$F$24*IFERROR(LOOKUP(Metro_Select,Energy_Metro_Lookup,CDD),0)),0)+IFERROR(EXP('Commercial Energy Coefficients'!$I$3+LN((B_Public_Gross_Sq_Ft))*'Commercial Energy Coefficients'!$I$4+'Commercial Energy Coefficients'!$I$11+'Commercial Energy Coefficients'!$I$14+'Commercial Energy Coefficients'!$I$18*LN((B_Pub_Emp_Acre)*(B_Lot_Size/43560))+'Commercial Energy Coefficients'!$I$19*LN(40)+'Commercial Energy Coefficients'!$I$21+'Commercial Energy Coefficients'!$I$22*LN(Commercial_Energy_Cost)+'Commercial Energy Coefficients'!$I$24*IFERROR(LOOKUP(Metro_Select,Energy_Metro_Lookup,CDD),0)),0))/1000 -> 0 | CF7: =(IFERROR(EXP('Commercial Energy Coefficients'!$D$3+LN((B_Retail_Gross_Sq_Ft))*'Commercial Energy Coefficients'!$D$4+'Commercial Energy Coefficients'!$D$14+'Commercial Energy Coefficients'!$D$18*LN((B_Ret_Emp_Acre)*(B_Lot_Size/43560))+'Commercial Energy Coefficients'!$D$19*LN(40)+'Commercial Energy Coefficients'!$D$21+'Commercial Energy Coefficients'!$D$22*LN(Commercial_Energy_Cost)),0)+IFERROR(EXP('Commercial Energy Coefficients'!$G$3+LN((B_Office_Gross_Sq_Ft))*'Commercial Energy Coefficients'!$G$4+'Commercial Energy Coefficients'!$G$14+'Commercial Energy Coefficients'!$G$18*LN((B_Off_Emp_Acre)*(B_Lot_Size/43560))+'Commercial Energy Coefficients'!$G$19*LN(40)+'Commercial Energy Coefficients'!$G$21+'Commercial Energy Coefficients'!$G$22*LN(Commercial_Energy_Cost)),0)+IFERROR(EXP('Commercial Energy Coefficients'!$J$3+LN((B_Public_Gross_Sq_Ft))*'Commercial Energy Coefficients'!$J$4+'Commercial Energy Coefficients'!$J$14+'Commercial Energy Coefficients'!$J$18*LN((B_Pub_Emp_Acre)*(B_Lot_Size/43560))+'Commercial Energy Coefficients'!$J$19*LN(40)+'Commercial Energy Coefficients'!$J$21+'Commercial Energy Coefficients'!$J$22*LN(Commercial_Energy_Cost)),0))/1000 -> 0 | CG7: 0 | CH7: 0 | CI7: 0 | CJ7: 0 | CK7: 0 | CL7: 0 | CM7: 0 | CN7: 0 | CO7: 0 | CP7: =IF((D7*F7)>'Project Info'!$B$123*43560,'Project Info'!$B$123*43560*'Project Info'!$B$122,D7*F7*'Project Info'!$B$122) -> 0 | CQ7: =IF(AF7="",0,IF(AF7="MF",'Project Info'!$B$129,IF(AF7="TH",'Project Info'!$B$130,IF(AND(OR(AF7="SF",AF7="MH"),AC7>0,AC7<3000),'Project Info'!$B$131,IF(AND(OR(AF7="SF",AF7="MH"),AC7>=3000),'Project Info'!$B$132))))) -> 0 | CR7: =IF(AW7=0,0,(AZ7/AW7*'Project Info'!$C$133)+(BC7/AW7*'Project Info'!$C$134)+(BF7/AW7*'Project Info'!$C$135)) -> 0 | CS7: 0 | CT7: 0 | CU7: =IF(AF7="",0,IF(AF7="MF",'Project Info'!$B$141,IF(AF7="TH",'Project Info'!$B$142,IF(AND(AF7="SF",AC7>0,AC7<3000),'Project Info'!$B$143,IF(AND(AF7="SF",AC7>=3000),'Project Info'!$B$144))))) -> 0 | CV7: =IF(AW7=0,0,(AZ7/AW7*'Project Info'!$C$145)+(BC7/AW7*'Project Info'!$C$146)+(BF7/AW7*'Project Info'!$C$147)) -> 0 | CW7: 0 | CX7: 0 | CY7: =IF(AF7="",0,IF(AF7="MF",'Project Info'!$B$154,IF(AF7="TH",'Project Info'!$B$155,IF(AND(AF7="SF",AC7>0,AC7<3000),'Project Info'!$B$156,IF(AND(AF7="SF",AC7>=3000),'Project Info'!$B$157))))) -> 0 | CZ7: =IF(AW7=0,0,(AZ7/AW7*'Project Info'!$C$158)+(BC7/AW7*'Project Info'!$C$159)+(BF7/AW7*'Project Info'!$C$160)) -> 0 | DA7: 0 | DB7: 0 | DD7: 0 | DE7: 0 | DG7: 0 | DI7: 0 | DJ7: 0 | DK7: 0 | DL7: 0 | DM7: 0 | DN7: 0 | DO7: 0 | DP7: 0
B8: 5 | J8: 0 | L8: 0 | M8: 0 | N8: 0 | O8: 0 | P8: 0 | Q8: 0 | R8: 0 | S8: 0 | AA8: 0 | AD8: 0 | AE8: 0 | AH8: 0 | AJ8: 0 | AL8: 0 | AM8: 0 | AN8: =IF(AF8="",0,IF(AF8="MF",'Project Info'!$F$8,IF(AF8="TH",'Project Info'!$F$9,IF(AF8="SF",'Project Info'!$F$11,IF(AF8="MH",'Project Info'!$F$13,0))))) -> 0 | AO8: 0 | AP8: =IF(AF8="",0,IF(AF8="MF",IF((AB8/'Project Info'!$D$8)>'Project Info'!$E$8,'Project Info'!$E$8,AB8/'Project Info'!$D$8),IF(AF8="TH",IF((AB8/'Project Info'!$D$9)>'Project Info'!$E$9,'Project Info'!$E$9,AB8/'Project Info'!$D$9),IF(AF8="SF",IF((AB8/'Project Info'!$D$11)>'Project Info'!$E$11,'Project Info'!$E$11,AB8/'Project Info'!$D$11),IF(AF8="MH",IF((AB8/'Project Info'!$D$13)>'Project Info'!$E$13,'Project Info'!$E$13,AB8/'Project Info'!$D$13)))))) -> 0 | AQ8: 0 | AR8: 0 | AS8: 0 | AT8: 0 | AU8: 0 | AV8: 0 | AW8: 0 | AX8: 0 | AZ8: 0 | BA8: 0 | BC8: 0 | BD8: 0 | BF8: 0 | BG8: 0 | BI8: 0 | BJ8: 0 | BL8: 0 | BM8: 0 | BO8: 0 | BR8: 0 | BS8: 0 | BU8: 0 | BY8: 0 | BZ8: =IFERROR(IF(B_Housing_Type="SF",EXP('Residential Energy Coefficients'!$B$3+'Residential Energy Coefficients'!$B$4*LN(B_Net_Sq_Ft_per_Unit)+'Residential Energy Coefficients'!$B$9+'Residential Energy Coefficients'!$B$10*LN(B_HH_Income)+'Residential Energy Coefficients'!$B$16*LN(Residential_Energy_Cost)+'Residential Energy Coefficients'!$B$20+'Residential Energy Coefficients'!$B$24*IFERROR(LOOKUP(Metro_Select,Energy_Metro_Lookup,HDD),0)),IF(B_Housing_Type="TH",EXP('Residential Energy Coefficients'!$E$3+'Residential Energy Coefficients'!$E$4*LN(B_Net_Sq_Ft_per_Unit)+'Residential Energy Coefficients'!$E$9+'Residential Energy Coefficients'!$E$16*LN(Residential_Energy_Cost)+'Residential Energy Coefficients'!$E$19+'Residential Energy Coefficients'!$E$20+'Residential Energy Coefficients'!$E$24*IFERROR(LOOKUP(Metro_Select,Energy_Metro_Lookup,HDD),0)),IF(B_Housing_Type="MF",EXP('Residential Energy Coefficients'!$H$3+'Residential Energy Coefficients'!$H$4*LN(B_Net_Sq_Ft_per_Unit)+'Residential Energy Coefficients'!$H$9+IF(B_Pct_Owner=1,'Residential Energy Coefficients'!$H$12,0)+'Residential Energy Coefficients'!$H$16*LN(Residential_Energy_Cost)+'Residential Energy Coefficients'!$H$20+'Residential Energy Coefficients'!$H$24*IFERROR(LOOKUP(Metro_Select,Energy_Metro_Lookup,HDD),0)),IF(B_Housing_Type="MH",EXP('Residential Energy Coefficients'!$K$3+'Residential Energy Coefficients'!$K$16*LN(Residential_Energy_Cost)+'Residential Energy Coefficients'!$K$24*IFERROR(LOOKUP(Metro_Select,Energy_Metro_Lookup,HDD),0)),0))))/1000,0) -> 0 | CA8: =IFERROR(IF(B_Housing_Type="SF",EXP('Residential Energy Coefficients'!$C$3+'Residential Energy Coefficients'!$C$4*LN(B_Net_Sq_Ft_per_Unit)+'Residential Energy Coefficients'!$C$10*LN(B_HH_Income)+'Residential Energy Coefficients'!$C$11*B_HH_Size+'Residential Energy Coefficients'!$C$16*LN(Residential_Energy_Cost)+'Residential Energy Coefficients'!$C$19+'Residential Energy Coefficients'!$C$22+'Residential Energy Coefficients'!$C$25*IFERROR(LOOKUP(Metro_Select,Energy_Metro_Lookup,CDD),0)),IF(B_Housing_Type="TH",EXP('Residential Energy Coefficients'!$F$3+'Residential Energy Coefficients'!$F$4*LN(B_Net_Sq_Ft_per_Unit)+'Residential Energy Coefficients'!$F$10*LN(B_HH_Income)+'Residential Energy Coefficients'!$F$11*B_HH_Size+IF(B_Pct_Owner=1,'Residential Energy Coefficients'!$F$12,0)+'Residential Energy Coefficients'!$F$16*LN(Residential_Energy_Cost)+'Residential Energy Coefficients'!$F$22+'Residential Energy Coefficients'!$F$25*IFERROR(LOOKUP(Metro_Select,Energy_Metro_Lookup,CDD),0)),IF(B_Housing_Type="MF",EXP('Residential Energy Coefficients'!$I$3+'Residential Energy Coefficients'!$I$4*LN(B_Net_Sq_Ft_per_Unit)+'Residential Energy Coefficients'!$I$9+'Residential Energy Coefficients'!$I$11*B_HH_Size+'Residential Energy Coefficients'!$I$16*LN(Residential_Energy_Cost)+'Residential Energy Coefficients'!$I$22+'Residential Energy Coefficients'!$I$25*IFERROR(LOOKUP(Metro_Select,Energy_Metro_Lookup,CDD),0)),IF(B_Housing_Type="MH",EXP('Residential Energy Coefficients'!$L$3+'Residential Energy Coefficients'!$L$11*B_HH_Size+'Residential Energy Coefficients'!$L$16*LN(Residential_Energy_Cost)+'Residential Energy Coefficients'!$L$22+'Residential Energy Coefficients'!$L$25*IFERROR(LOOKUP(Metro_Select,Energy_Metro_Lookup,CDD),0)),0))))/1000,0) -> 0 | CB8: =IFERROR(IF(B_Housing_Type="SF",EXP('Residential Energy Coefficients'!$D$3+'Residential Energy Coefficients'!$D$4*LN(B_Net_Sq_Ft_per_Unit)+'Residential Energy Coefficients'!$D$9+'Residential Energy Coefficients'!$D$10*LN(B_HH_Income)+'Residential Energy Coefficients'!$D$11*B_HH_Size+IF(B_Pct_Owner=1,'Residential Energy Coefficients'!$D$12,0)+'Residential Energy Coefficients'!$D$16*LN(Residential_Energy_Cost)),IF(B_Housing_Type="TH",EXP('Residential Energy Coefficients'!$G$3+'Residential Energy Coefficients'!$G$4*LN(B_Net_Sq_Ft_per_Unit)+'Residential Energy Coefficients'!$G$10*LN(B_HH_Income)+'Residential Energy Coefficients'!$G$11*B_HH_Size+'Residential Energy Coefficients'!$G$16*LN(Residential_Energy_Cost)),IF(B_Housing_Type="MF",EXP('Residential Energy Coefficients'!$J$3+'Residential Energy Coefficients'!$J$4*LN(B_Net_Sq_Ft_per_Unit)+'Residential Energy Coefficients'!$J$10*LN(B_HH_Income)+'Residential Energy Coefficients'!$J$11*B_HH_Size+IF(B_Pct_Owner=1,'Residential Energy Coefficients'!$J$12,0)+'Residential Energy Coefficients'!$J$16*LN(Residential_Energy_Cost)+'Residential Energy Coefficients'!$J$19),IF(B_Housing_Type="MH",EXP('Residential Energy Coefficients'!$M$3+'Residential Energy Coefficients'!$M$4*LN(B_Net_Sq_Ft_per_Unit)+'Residential Energy Coefficients'!$M$11*B_HH_Size+'Residential Energy Coefficients'!$M$16*LN(Residential_Energy_Cost)+'Residential Energy Coefficients'!$M$19),0))))/1000,0) -> 0 | CC8: 0 | CD8: =(IFERROR(EXP('Commercial Energy Coefficients'!$B$3+LN(B_Retail_Gross_Sq_Ft)*'Commercial Energy Coefficients'!$B$4+'Commercial Energy Coefficients'!$B$11+'Commercial Energy Coefficients'!$B$14+'Commercial Energy Coefficients'!$B$18*LN((B_Ret_Emp_Acre)*(B_Lot_Size/43560))+'Commercial Energy Coefficients'!$B$19*LN(40)+'Commercial Energy Coefficients'!$B$21+'Commercial Energy Coefficients'!$B$22*LN(Commercial_Energy_Cost)+'Commercial Energy Coefficients'!$B$23*IFERROR(LOOKUP(Metro_Select,Energy_Metro_Lookup,HDD),0)),0)+IFERROR(EXP('Commercial Energy Coefficients'!$E$3+LN(B_Office_Gross_Sq_Ft)*'Commercial Energy Coefficients'!$E$4+'Commercial Energy Coefficients'!$E$11+'Commercial Energy Coefficients'!$E$14+'Commercial Energy Coefficients'!$E$18*LN((B_Off_Emp_Acre)*(B_Lot_Size/43560))+'Commercial Energy Coefficients'!$E$19*LN(40)+'Commercial Energy Coefficients'!$E$21+'Commercial Energy Coefficients'!$E$22*LN(Commercial_Energy_Cost)+'Commercial Energy Coefficients'!$E$23*IFERROR(LOOKUP(Metro_Select,Energy_Metro_Lookup,HDD),0)),0)+IFERROR(EXP('Commercial Energy Coefficients'!$H$3+LN(B_Public_Gross_Sq_Ft)*'Commercial Energy Coefficients'!$H$4+'Commercial Energy Coefficients'!$H$11+'Commercial Energy Coefficients'!$H$14+'Commercial Energy Coefficients'!$H$18*LN((B_Pub_Emp_Acre)*(B_Lot_Size/43560))+'Commercial Energy Coefficients'!$H$19*LN(40)+'Commercial Energy Coefficients'!$H$21+'Commercial Energy Coefficients'!$H$22*LN(Commercial_Energy_Cost)+'Commercial Energy Coefficients'!$H$23*IFERROR(LOOKUP(Metro_Select,Energy_Metro_Lookup,HDD),0)),0))/1000 -> 0 | CE8: =(IFERROR(EXP('Commercial Energy Coefficients'!$C$3+LN((B_Retail_Gross_Sq_Ft))*'Commercial Energy Coefficients'!$C$4+'Commercial Energy Coefficients'!$C$11+'Commercial Energy Coefficients'!$C$14+'Commercial Energy Coefficients'!$C$18*LN((B_Ret_Emp_Acre)*(B_Lot_Size/43560))+'Commercial Energy Coefficients'!$C$19*LN(40)+'Commercial Energy Coefficients'!$C$21+'Commercial Energy Coefficients'!$C$22*LN(Commercial_Energy_Cost)+'Commercial Energy Coefficients'!$C$24*IFERROR(LOOKUP(Metro_Select,Energy_Metro_Lookup,CDD),0)),0)+IFERROR(EXP('Commercial Energy Coefficients'!$F$3+LN((B_Office_Gross_Sq_Ft))*'Commercial Energy Coefficients'!$F$4+'Commercial Energy Coefficients'!$F$11+'Commercial Energy Coefficients'!$F$14+'Commercial Energy Coefficients'!$F$18*LN((B_Off_Emp_Acre)*(B_Lot_Size/43560))+'Commercial Energy Coefficients'!$F$19*LN(40)+'Commercial Energy Coefficients'!$F$21+'Commercial Energy Coefficients'!$F$22*LN(Commercial_Energy_Cost)+'Commercial Energy Coefficients'!$F$24*IFERROR(LOOKUP(Metro_Select,Energy_Metro_Lookup,CDD),0)),0)+IFERROR(EXP('Commercial Energy Coefficients'!$I$3+LN((B_Public_Gross_Sq_Ft))*'Commercial Energy Coefficients'!$I$4+'Commercial Energy Coefficients'!$I$11+'Commercial Energy Coefficients'!$I$14+'Commercial Energy Coefficients'!$I$18*LN((B_Pub_Emp_Acre)*(B_Lot_Size/43560))+'Commercial Energy Coefficients'!$I$19*LN(40)+'Commercial Energy Coefficients'!$I$21+'Commercial Energy Coefficients'!$I$22*LN(Commercial_Energy_Cost)+'Commercial Energy Coefficients'!$I$24*IFERROR(LOOKUP(Metro_Select,Energy_Metro_Lookup,CDD),0)),0))/1000 -> 0 | CF8: =(IFERROR(EXP('Commercial Energy Coefficients'!$D$3+LN((B_Retail_Gross_Sq_Ft))*'Commercial Energy Coefficients'!$D$4+'Commercial Energy Coefficients'!$D$14+'Commercial Energy Coefficients'!$D$18*LN((B_Ret_Emp_Acre)*(B_Lot_Size/43560))+'Commercial Energy Coefficients'!$D$19*LN(40)+'Commercial Energy Coefficients'!$D$21+'Commercial Energy Coefficients'!$D$22*LN(Commercial_Energy_Cost)),0)+IFERROR(EXP('Commercial Energy Coefficients'!$G$3+LN((B_Office_Gross_Sq_Ft))*'Commercial Energy Coefficients'!$G$4+'Commercial Energy Coefficients'!$G$14+'Commercial Energy Coefficients'!$G$18*LN((B_Off_Emp_Acre)*(B_Lot_Size/43560))+'Commercial Energy Coefficients'!$G$19*LN(40)+'Commercial Energy Coefficients'!$G$21+'Commercial Energy Coefficients'!$G$22*LN(Commercial_Energy_Cost)),0)+IFERROR(EXP('Commercial Energy Coefficients'!$J$3+LN((B_Public_Gross_Sq_Ft))*'Commercial Energy Coefficients'!$J$4+'Commercial Energy Coefficients'!$J$14+'Commercial Energy Coefficients'!$J$18*LN((B_Pub_Emp_Acre)*(B_Lot_Size/43560))+'Commercial Energy Coefficients'!$J$19*LN(40)+'Commercial Energy Coefficients'!$J$21+'Commercial Energy Coefficients'!$J$22*LN(Commercial_Energy_Cost)),0))/1000 -> 0 | CG8: 0 | CH8: 0 | CI8: 0 | CJ8: 0 | CK8: 0 | CL8: 0 | CM8: 0 | CN8: 0 | CO8: 0 | CP8: =IF((D8*F8)>'Project Info'!$B$123*43560,'Project Info'!$B$123*43560*'Project Info'!$B$122,D8*F8*'Project Info'!$B$122) -> 0 | CQ8: =IF(AF8="",0,IF(AF8="MF",'Project Info'!$B$129,IF(AF8="TH",'Project Info'!$B$130,IF(AND(OR(AF8="SF",AF8="MH"),AC8>0,AC8<3000),'Project Info'!$B$131,IF(AND(OR(AF8="SF",AF8="MH"),AC8>=3000),'Project Info'!$B$132))))) -> 0 | CR8: =IF(AW8=0,0,(AZ8/AW8*'Project Info'!$C$133)+(BC8/AW8*'Project Info'!$C$134)+(BF8/AW8*'Project Info'!$C$135)) -> 0 | CS8: 0 | CT8: 0 | CU8: =IF(AF8="",0,IF(AF8="MF",'Project Info'!$B$141,IF(AF8="TH",'Project Info'!$B$142,IF(AND(OR(AF8="SF",AF8="MH"),AC8>0,AC8<3000),'Project Info'!$B$143,IF(AND(OR(AF8="SF",AF8="MH"),AC8>=3000),'Project Info'!$B$144))))) -> 0 | CV8: =IF(AW8=0,0,(AZ8/AW8*'Project Info'!$C$145)+(BC8/AW8*'Project Info'!$C$146)+(BF8/AW8*'Project Info'!$C$147)) -> 0 | CW8: 0 | CX8: 0 | CY8: =IF(AF8="",0,IF(AF8="MF",'Project Info'!$B$154,IF(AF8="TH",'Project Info'!$B$155,IF(AND(OR(AF8="SF",AF8="MH"),AC8>0,AC8<3000),'Project Info'!$B$156,IF(AND(OR(AF8="SF",AF8="MH"),AC8>=3000),'Project Info'!$B$157))))) -> 0 | CZ8: =IF(AW8=0,0,(AZ8/AW8*'Project Info'!$C$158)+(BC8/AW8*'Project Info'!$C$159)+(BF8/AW8*'Project Info'!$C$160)) -> 0 | DA8: 0 | DB8: 0 | DD8: 0 | DE8: 0 | DG8: 0 | DI8: 0 | DJ8: 0 | DK8: 0 | DL8: 0 | DM8: 0 | DN8: 0 | DO8: 0 | DP8: 0
B9: 6 | J9: 0 | L9: 0 | M9: 0 | N9: 0 | O9: 0 | P9: 0 | Q9: 0 | R9: 0 | S9: 0 | AA9: 0 | AD9: 0 | AE9: 0 | AH9: 0 | AJ9: 0 | AL9: 0 | AM9: 0 | AN9: =IF(AF9="",0,IF(AF9="MF",'Project Info'!$F$8,IF(AF9="TH",'Project Info'!$F$9,IF(AF9="SF",'Project Info'!$F$11,IF(AF9="MH",'Project Info'!$F$13,0))))) -> 0 | AO9: 0 | AP9: =IF(AF9="",0,IF(AF9="MF",IF((AB9/'Project Info'!$D$8)>'Project Info'!$E$8,'Project Info'!$E$8,AB9/'Project Info'!$D$8),IF(AF9="TH",IF((AB9/'Project Info'!$D$9)>'Project Info'!$E$9,'Project Info'!$E$9,AB9/'Project Info'!$D$9),IF(AF9="SF",IF((AB9/'Project Info'!$D$11)>'Project Info'!$E$11,'Project Info'!$E$11,AB9/'Project Info'!$D$11),IF(AF9="MH",IF((AB9/'Project Info'!$D$13)>'Project Info'!$E$13,'Project Info'!$E$13,AB9/'Project Info'!$D$13)))))) -> 0 | AQ9: 0 | AR9: 0 | AS9: 0 | AT9: 0 | AU9: 0 | AV9: 0 | AW9: 0 | AX9: 0 | AZ9: 0 | BA9: 0 | BC9: 0 | BD9: 0 | BF9: 0 | BG9: 0 | BI9: 0 | BJ9: 0 | BL9: 0 | BM9: 0 | BO9: 0 | BR9: 0 | BS9: 0 | BU9: 0 | BY9: 0 | BZ9: =IFERROR(IF(B_Housing_Type="SF",EXP('Residential Energy Coefficients'!$B$3+'Residential Energy Coefficients'!$B$4*LN(B_Net_Sq_Ft_per_Unit)+'Residential Energy Coefficients'!$B$9+'Residential Energy Coefficients'!$B$10*LN(B_HH_Income)+'Residential Energy Coefficients'!$B$16*LN(Residential_Energy_Cost)+'Residential Energy Coefficients'!$B$20+'Residential Energy Coefficients'!$B$24*IFERROR(LOOKUP(Metro_Select,Energy_Metro_Lookup,HDD),0)),IF(B_Housing_Type="TH",EXP('Residential Energy Coefficients'!$E$3+'Residential Energy Coefficients'!$E$4*LN(B_Net_Sq_Ft_per_Unit)+'Residential Energy Coefficients'!$E$9+'Residential Energy Coefficients'!$E$16*LN(Residential_Energy_Cost)+'Residential Energy Coefficients'!$E$19+'Residential Energy Coefficients'!$E$20+'Residential Energy Coefficients'!$E$24*IFERROR(LOOKUP(Metro_Select,Energy_Metro_Lookup,HDD),0)),IF(B_Housing_Type="MF",EXP('Residential Energy Coefficients'!$H$3+'Residential Energy Coefficients'!$H$4*LN(B_Net_Sq_Ft_per_Unit)+'Residential Energy Coefficients'!$H$9+IF(B_Pct_Owner=1,'Residential Energy Coefficients'!$H$12,0)+'Residential Energy Coefficients'!$H$16*LN(Residential_Energy_Cost)+'Residential Energy Coefficients'!$H$20+'Residential Energy Coefficients'!$H$24*IFERROR(LOOKUP(Metro_Select,Energy_Metro_Lookup,HDD),0)),IF(B_Housing_Type="MH",EXP('Residential Energy Coefficients'!$K$3+'Residential Energy Coefficients'!$K$16*LN(Residential_Energy_Cost)+'Residential Energy Coefficients'!$K$24*IFERROR(LOOKUP(Metro_Select,Energy_Metro_Lookup,HDD),0)),0))))/1000,0) -> 0 | CA9: =IFERROR(IF(B_Housing_Type="SF",EXP('Residential Energy Coefficients'!$C$3+'Residential Energy Coefficients'!$C$4*LN(B_Net_Sq_Ft_per_Unit)+'Residential Energy Coefficients'!$C$10*LN(B_HH_Income)+'Residential Energy Coefficients'!$C$11*B_HH_Size+'Residential Energy Coefficients'!$C$16*LN(Residential_Energy_Cost)+'Residential Energy Coefficients'!$C$19+'Residential Energy Coefficients'!$C$22+'Residential Energy Coefficients'!$C$25*IFERROR(LOOKUP(Metro_Select,Energy_Metro_Lookup,CDD),0)),IF(B_Housing_Type="TH",EXP('Residential Energy Coefficients'!$F$3+'Residential Energy Coefficients'!$F$4*LN(B_Net_Sq_Ft_per_Unit)+'Residential Energy Coefficients'!$F$10*LN(B_HH_Income)+'Residential Energy Coefficients'!$F$11*B_HH_Size+IF(B_Pct_Owner=1,'Residential Energy Coefficients'!$F$12,0)+'Residential Energy Coefficients'!$F$16*LN(Residential_Energy_Cost)+'Residential Energy Coefficients'!$F$22+'Residential Energy Coefficients'!$F$25*IFERROR(LOOKUP(Metro_Select,Energy_Metro_Lookup,CDD),0)),IF(B_Housing_Type="MF",EXP('Residential Energy Coefficients'!$I$3+'Residential Energy Coefficients'!$I$4*LN(B_Net_Sq_Ft_per_Unit)+'Residential Energy Coefficients'!$I$9+'Residential Energy Coefficients'!$I$11*B_HH_Size+'Residential Energy Coefficients'!$I$16*LN(Residential_Energy_Cost)+'Residential Energy Coefficients'!$I$22+'Residential Energy Coefficients'!$I$25*IFERROR(LOOKUP(Metro_Select,Energy_Metro_Lookup,CDD),0)),IF(B_Housing_Type="MH",EXP('Residential Energy Coefficients'!$L$3+'Residential Energy Coefficients'!$L$11*B_HH_Size+'Residential Energy Coefficients'!$L$16*LN(Residential_Energy_Cost)+'Residential Energy Coefficients'!$L$22+'Residential Energy Coefficients'!$L$25*IFERROR(LOOKUP(Metro_Select,Energy_Metro_Lookup,CDD),0)),0))))/1000,0) -> 0 | CB9: =IFERROR(IF(B_Housing_Type="SF",EXP('Residential Energy Coefficients'!$D$3+'Residential Energy Coefficients'!$D$4*LN(B_Net_Sq_Ft_per_Unit)+'Residential Energy Coefficients'!$D$9+'Residential Energy Coefficients'!$D$10*LN(B_HH_Income)+'Residential Energy Coefficients'!$D$11*B_HH_Size+IF(B_Pct_Owner=1,'Residential Energy Coefficients'!$D$12,0)+'Residential Energy Coefficients'!$D$16*LN(Residential_Energy_Cost)),IF(B_Housing_Type="TH",EXP('Residential Energy Coefficients'!$G$3+'Residential Energy Coefficients'!$G$4*LN(B_Net_Sq_Ft_per_Unit)+'Residential Energy Coefficients'!$G$10*LN(B_HH_Income)+'Residential Energy Coefficients'!$G$11*B_HH_Size+'Residential Energy Coefficients'!$G$16*LN(Residential_Energy_Cost)),IF(B_Housing_Type="MF",EXP('Residential Energy Coefficients'!$J$3+'Residential Energy Coefficients'!$J$4*LN(B_Net_Sq_Ft_per_Unit)+'Residential Energy Coefficients'!$J$10*LN(B_HH_Income)+'Residential Energy Coefficients'!$J$11*B_HH_Size+IF(B_Pct_Owner=1,'Residential Energy Coefficients'!$J$12,0)+'Residential Energy Coefficients'!$J$16*LN(Residential_Energy_Cost)+'Residential Energy Coefficients'!$J$19),IF(B_Housing_Type="MH",EXP('Residential Energy Coefficients'!$M$3+'Residential Energy Coefficients'!$M$4*LN(B_Net_Sq_Ft_per_Unit)+'Residential Energy Coefficients'!$M$11*B_HH_Size+'Residential Energy Coefficients'!$M$16*LN(Residential_Energy_Cost)+'Residential Energy Coefficients'!$M$19),0))))/1000,0) -> 0 | CC9: 0 | CD9: =(IFERROR(EXP('Commercial Energy Coefficients'!$B$3+LN(B_Retail_Gross_Sq_Ft)*'Commercial Energy Coefficients'!$B$4+'Commercial Energy Coefficients'!$B$11+'Commercial Energy Coefficients'!$B$14+'Commercial Energy Coefficients'!$B$18*LN((B_Ret_Emp_Acre)*(B_Lot_Size/43560))+'Commercial Energy Coefficients'!$B$19*LN(40)+'Commercial Energy Coefficients'!$B$21+'Commercial Energy Coefficients'!$B$22*LN(Commercial_Energy_Cost)+'Commercial Energy Coefficients'!$B$23*IFERROR(LOOKUP(Metro_Select,Energy_Metro_Lookup,HDD),0)),0)+IFERROR(EXP('Commercial Energy Coefficients'!$E$3+LN(B_Office_Gross_Sq_Ft)*'Commercial Energy Coefficients'!$E$4+'Commercial Energy Coefficients'!$E$11+'Commercial Energy Coefficients'!$E$14+'Commercial Energy Coefficients'!$E$18*LN((B_Off_Emp_Acre)*(B_Lot_Size/43560))+'Commercial Energy Coefficients'!$E$19*LN(40)+'Commercial Energy Coefficients'!$E$21+'Commercial Energy Coefficients'!$E$22*LN(Commercial_Energy_Cost)+'Commercial Energy Coefficients'!$E$23*IFERROR(LOOKUP(Metro_Select,Energy_Metro_Lookup,HDD),0)),0)+IFERROR(EXP('Commercial Energy Coefficients'!$H$3+LN(B_Public_Gross_Sq_Ft)*'Commercial Energy Coefficients'!$H$4+'Commercial Energy Coefficients'!$H$11+'Commercial Energy Coefficients'!$H$14+'Commercial Energy Coefficients'!$H$18*LN((B_Pub_Emp_Acre)*(B_Lot_Size/43560))+'Commercial Energy Coefficients'!$H$19*LN(40)+'Commercial Energy Coefficients'!$H$21+'Commercial Energy Coefficients'!$H$22*LN(Commercial_Energy_Cost)+'Commercial Energy Coefficients'!$H$23*IFERROR(LOOKUP(Metro_Select,Energy_Metro_Lookup,HDD),0)),0))/1000 -> 0 | CE9: =(IFERROR(EXP('Commercial Energy Coefficients'!$C$3+LN((B_Retail_Gross_Sq_Ft))*'Commercial Energy Coefficients'!$C$4+'Commercial Energy Coefficients'!$C$11+'Commercial Energy Coefficients'!$C$14+'Commercial Energy Coefficients'!$C$18*LN((B_Ret_Emp_Acre)*(B_Lot_Size/43560))+'Commercial Energy Coefficients'!$C$19*LN(40)+'Commercial Energy Coefficients'!$C$21+'Commercial Energy Coefficients'!$C$22*LN(Commercial_Energy_Cost)+'Commercial Energy Coefficients'!$C$24*IFERROR(LOOKUP(Metro_Select,Energy_Metro_Lookup,CDD),0)),0)+IFERROR(EXP('Commercial Energy Coefficients'!$F$3+LN((B_Office_Gross_Sq_Ft))*'Commercial Energy Coefficients'!$F$4+'Commercial Energy Coefficients'!$F$11+'Commercial Energy Coefficients'!$F$14+'Commercial Energy Coefficients'!$F$18*LN((B_Off_Emp_Acre)*(B_Lot_Size/43560))+'Commercial Energy Coefficients'!$F$19*LN(40)+'Commercial Energy Coefficients'!$F$21+'Commercial Energy Coefficients'!$F$22*LN(Commercial_Energy_Cost)+'Commercial Energy Coefficients'!$F$24*IFERROR(LOOKUP(Metro_Select,Energy_Metro_Lookup,CDD),0)),0)+IFERROR(EXP('Commercial Energy Coefficients'!$I$3+LN((B_Public_Gross_Sq_Ft))*'Commercial Energy Coefficients'!$I$4+'Commercial Energy Coefficients'!$I$11+'Commercial Energy Coefficients'!$I$14+'Commercial Energy Coefficients'!$I$18*LN((B_Pub_Emp_Acre)*(B_Lot_Size/43560))+'Commercial Energy Coefficients'!$I$19*LN(40)+'Commercial Energy Coefficients'!$I$21+'Commercial Energy Coefficients'!$I$22*LN(Commercial_Energy_Cost)+'Commercial Energy Coefficients'!$I$24*IFERROR(LOOKUP(Metro_Select,Energy_Metro_Lookup,CDD),0)),0))/1000 -> 0 | CF9: =(IFERROR(EXP('Commercial Energy Coefficients'!$D$3+LN((B_Retail_Gross_Sq_Ft))*'Commercial Energy Coefficients'!$D$4+'Commercial Energy Coefficients'!$D$14+'Commercial Energy Coefficients'!$D$18*LN((B_Ret_Emp_Acre)*(B_Lot_Size/43560))+'Commercial Energy Coefficients'!$D$19*LN(40)+'Commercial Energy Coefficients'!$D$21+'Commercial Energy Coefficients'!$D$22*LN(Commercial_Energy_Cost)),0)+IFERROR(EXP('Commercial Energy Coefficients'!$G$3+LN((B_Office_Gross_Sq_Ft))*'Commercial Energy Coefficients'!$G$4+'Commercial Energy Coefficients'!$G$14+'Commercial Energy Coefficients'!$G$18*LN((B_Off_Emp_Acre)*(B_Lot_Size/43560))+'Commercial Energy Coefficients'!$G$19*LN(40)+'Commercial Energy Coefficients'!$G$21+'Commercial Energy Coefficients'!$G$22*LN(Commercial_Energy_Cost)),0)+IFERROR(EXP('Commercial Energy Coefficients'!$J$3+LN((B_Public_Gross_Sq_Ft))*'Commercial Energy Coefficients'!$J$4+'Commercial Energy Coefficients'!$J$14+'Commercial Energy Coefficients'!$J$18*LN((B_Pub_Emp_Acre)*(B_Lot_Size/43560))+'Commercial Energy Coefficients'!$J$19*LN(40)+'Commercial Energy Coefficients'!$J$21+'Commercial Energy Coefficients'!$J$22*LN(Commercial_Energy_Cost)),0))/1000 -> 0 | CG9: 0 | CH9: 0 | CI9: 0 | CJ9: 0 | CK9: 0 | CL9: 0 | CM9: 0 | CN9: 0 | CO9: 0 | CP9: =IF((D9*F9)>'Project Info'!$B$123*43560,'Project Info'!$B$123*43560*'Project Info'!$B$122,D9*F9*'Project Info'!$B$122) -> 0 | CQ9: =IF(AF9="",0,IF(AF9="MF",'Project Info'!$B$129,IF(AF9="TH",'Project Info'!$B$130,IF(AND(OR(AF9="SF",AF9="MH"),AC9>0,AC9<3000),'Project Info'!$B$131,IF(AND(OR(AF9="SF",AF9="MH"),AC9>=3000),'Project Info'!$B$132))))) -> 0 | CR9: =IF(AW9=0,0,(AZ9/AW9*'Project Info'!$C$133)+(BC9/AW9*'Project Info'!$C$134)+(BF9/AW9*'Project Info'!$C$135)) -> 0 | CS9: 0 | CT9: 0 | CU9: =IF(AF9="",0,IF(AF9="MF",'Project Info'!$B$141,IF(AF9="TH",'Project Info'!$B$142,IF(AND(OR(AF9="SF",AF9="MH"),AC9>0,AC9<3000),'Project Info'!$B$143,IF(AND(OR(AF9="SF",AF9="MH"),AC9>=3000),'Project Info'!$B$144))))) -> 0 | CV9: =IF(AW9=0,0,(AZ9/AW9*'Project Info'!$C$145)+(BC9/AW9*'Project Info'!$C$146)+(BF9/AW9*'Project Info'!$C$147)) -> 0 | CW9: 0 | CX9: 0 | CY9: =IF(AF9="",0,IF(AF9="MF",'Project Info'!$B$154,IF(AF9="TH",'Project Info'!$B$155,IF(AND(OR(AF9="SF",AF9="MH"),AC9>0,AC9<3000),'Project Info'!$B$156,IF(AND(OR(AF9="SF",AF9="MH"),AC9>=3000),'Project Info'!$B$157))))) -> 0 | CZ9: =IF(AW9=0,0,(AZ9/AW9*'Project Info'!$C$158)+(BC9/AW9*'Project Info'!$C$159)+(BF9/AW9*'Project Info'!$C$160)) -> 0 | DA9: 0 | DB9: 0 | DD9: 0 | DE9: 0 | DG9: 0 | DI9: 0 | DJ9: 0 | DK9: 0 | DL9: 0 | DM9: 0 | DN9: 0 | DO9: 0 | DP9: 0
B10: 7 | J10: 0 | L10: 0 | M10: 0 | N10: 0 | O10: 0 | P10: 0 | Q10: 0 | R10: 0 | S10: 0 | AA10: 0 | AD10: 0 | AE10: 0 | AH10: 0 | AJ10: 0 | AL10: 0 | AM10: 0 | AN10: =IF(AF10="",0,IF(AF10="MF",'Project Info'!$F$8,IF(AF10="TH",'Project Info'!$F$9,IF(AF10="SF",'Project Info'!$F$11,IF(AF10="MH",'Project Info'!$F$13,0))))) -> 0 | AO10: 0 | AP10: =IF(AF10="",0,IF(AF10="MF",IF((AB10/'Project Info'!$D$8)>'Project Info'!$E$8,'Project Info'!$E$8,AB10/'Project Info'!$D$8),IF(AF10="TH",IF((AB10/'Project Info'!$D$9)>'Project Info'!$E$9,'Project Info'!$E$9,AB10/'Project Info'!$D$9),IF(AF10="SF",IF((AB10/'Project Info'!$D$11)>'Project Info'!$E$11,'Project Info'!$E$11,AB10/'Project Info'!$D$11),IF(AF10="MH",IF((AB10/'Project Info'!$D$13)>'Project Info'!$E$13,'Project Info'!$E$13,AB10/'Project Info'!$D$13)))))) -> 0 | AQ10: 0 | AR10: 0 | AS10: 0 | AT10: 0 | AU10: 0 | AV10: 0 | AW10: 0 | AX10: 0 | AZ10: 0 | BA10: 0 | BC10: 0 | BD10: 0 | BF10: 0 | BG10: 0 | BI10: 0 | BJ10: 0 | BL10: 0 | BM10: 0 | BO10: 0 | BR10: 0 | BS10: 0 | BU10: 0 | BY10: 0 | BZ10: =IFERROR(IF(B_Housing_Type="SF",EXP('Residential Energy Coefficients'!$B$3+'Residential Energy Coefficients'!$B$4*LN(B_Net_Sq_Ft_per_Unit)+'Residential Energy Coefficients'!$B$9+'Residential Energy Coefficients'!$B$10*LN(B_HH_Income)+'Residential Energy Coefficients'!$B$16*LN(Residential_Energy_Cost)+'Residential Energy Coefficients'!$B$20+'Residential Energy Coefficients'!$B$24*IFERROR(LOOKUP(Metro_Select,Energy_Metro_Lookup,HDD),0)),IF(B_Housing_Type="TH",EXP('Residential Energy Coefficients'!$E$3+'Residential Energy Coefficients'!$E$4*LN(B_Net_Sq_Ft_per_Unit)+'Residential Energy Coefficients'!$E$9+'Residential Energy Coefficients'!$E$16*LN(Residential_Energy_Cost)+'Residential Energy Coefficients'!$E$19+'Residential Energy Coefficients'!$E$20+'Residential Energy Coefficients'!$E$24*IFERROR(LOOKUP(Metro_Select,Energy_Metro_Lookup,HDD),0)),IF(B_Housing_Type="MF",EXP('Residential Energy Coefficients'!$H$3+'Residential Energy Coefficients'!$H$4*LN(B_Net_Sq_Ft_per_Unit)+'Residential Energy Coefficients'!$H$9+IF(B_Pct_Owner=1,'Residential Energy Coefficients'!$H$12,0)+'Residential Energy Coefficients'!$H$16*LN(Residential_Energy_Cost)+'Residential Energy Coefficients'!$H$20+'Residential Energy Coefficients'!$H$24*IFERROR(LOOKUP(Metro_Select,Energy_Metro_Lookup,HDD),0)),IF(B_Housing_Type="MH",EXP('Residential Energy Coefficients'!$K$3+'Residential Energy Coefficients'!$K$16*LN(Residential_Energy_Cost)+'Residential Energy Coefficients'!$K$24*IFERROR(LOOKUP(Metro_Select,Energy_Metro_Lookup,HDD),0)),0))))/1000,0) -> 0 | CA10: =IFERROR(IF(B_Housing_Type="SF",EXP('Residential Energy Coefficients'!$C$3+'Residential Energy Coefficients'!$C$4*LN(B_Net_Sq_Ft_per_Unit)+'Residential Energy Coefficients'!$C$10*LN(B_HH_Income)+'Residential Energy Coefficients'!$C$11*B_HH_Size+'Residential Energy Coefficients'!$C$16*LN(Residential_Energy_Cost)+'Residential Energy Coefficients'!$C$19+'Residential Energy Coefficients'!$C$22+'Residential Energy Coefficients'!$C$25*IFERROR(LOOKUP(Metro_Select,Energy_Metro_Lookup,CDD),0)),IF(B_Housing_Type="TH",EXP('Residential Energy Coefficients'!$F$3+'Residential Energy Coefficients'!$F$4*LN(B_Net_Sq_Ft_per_Unit)+'Residential Energy Coefficients'!$F$10*LN(B_HH_Income)+'Residential Energy Coefficients'!$F$11*B_HH_Size+IF(B_Pct_Owner=1,'Residential Energy Coefficients'!$F$12,0)+'Residential Energy Coefficients'!$F$16*LN(Residential_Energy_Cost)+'Residential Energy Coefficients'!$F$22+'Residential Energy Coefficients'!$F$25*IFERROR(LOOKUP(Metro_Select,Energy_Metro_Lookup,CDD),0)),IF(B_Housing_Type="MF",EXP('Residential Energy Coefficients'!$I$3+'Residential Energy Coefficients'!$I$4*LN(B_Net_Sq_Ft_per_Unit)+'Residential Energy Coefficients'!$I$9+'Residential Energy Coefficients'!$I$11*B_HH_Size+'Residential Energy Coefficients'!$I$16*LN(Residential_Energy_Cost)+'Residential Energy Coefficients'!$I$22+'Residential Energy Coefficients'!$I$25*IFERROR(LOOKUP(Metro_Select,Energy_Metro_Lookup,CDD),0)),IF(B_Housing_Type="MH",EXP('Residential Energy Coefficients'!$L$3+'Residential Energy Coefficients'!$L$11*B_HH_Size+'Residential Energy Coefficients'!$L$16*LN(Residential_Energy_Cost)+'Residential Energy Coefficients'!$L$22+'Residential Energy Coefficients'!$L$25*IFERROR(LOOKUP(Metro_Select,Energy_Metro_Lookup,CDD),0)),0))))/1000,0) -> 0 | CB10: =IFERROR(IF(B_Housing_Type="SF",EXP('Residential Energy Coefficients'!$D$3+'Residential Energy Coefficients'!$D$4*LN(B_Net_Sq_Ft_per_Unit)+'Residential Energy Coefficients'!$D$9+'Residential Energy Coefficients'!$D$10*LN(B_HH_Income)+'Residential Energy Coefficients'!$D$11*B_HH_Size+IF(B_Pct_Owner=1,'Residential Energy Coefficients'!$D$12,0)+'Residential Energy Coefficients'!$D$16*LN(Residential_Energy_Cost)),IF(B_Housing_Type="TH",EXP('Residential Energy Coefficients'!$G$3+'Residential Energy Coefficients'!$G$4*LN(B_Net_Sq_Ft_per_Unit)+'Residential Energy Coefficients'!$G$10*LN(B_HH_Income)+'Residential Energy Coefficients'!$G$11*B_HH_Size+'Residential Energy Coefficients'!$G$16*LN(Residential_Energy_Cost)),IF(B_Housing_Type="MF",EXP('Residential Energy Coefficients'!$J$3+'Residential Energy Coefficients'!$J$4*LN(B_Net_Sq_Ft_per_Unit)+'Residential Energy Coefficients'!$J$10*LN(B_HH_Income)+'Residential Energy Coefficients'!$J$11*B_HH_Size+IF(B_Pct_Owner=1,'Residential Energy Coefficients'!$J$12,0)+'Residential Energy Coefficients'!$J$16*LN(Residential_Energy_Cost)+'Residential Energy Coefficients'!$J$19),IF(B_Housing_Type="MH",EXP('Residential Energy Coefficients'!$M$3+'Residential Energy Coefficients'!$M$4*LN(B_Net_Sq_Ft_per_Unit)+'Residential Energy Coefficients'!$M$11*B_HH_Size+'Residential Energy Coefficients'!$M$16*LN(Residential_Energy_Cost)+'Residential Energy Coefficients'!$M$19),0))))/1000,0) -> 0 | CC10: 0 | CD10: =(IFERROR(EXP('Commercial Energy Coefficients'!$B$3+LN(B_Retail_Gross_Sq_Ft)*'Commercial Energy Coefficients'!$B$4+'Commercial Energy Coefficients'!$B$11+'Commercial Energy Coefficients'!$B$14+'Commercial Energy Coefficients'!$B$18*LN((B_Ret_Emp_Acre)*(B_Lot_Size/43560))+'Commercial Energy Coefficients'!$B$19*LN(40)+'Commercial Energy Coefficients'!$B$21+'Commercial Energy Coefficients'!$B$22*LN(Commercial_Energy_Cost)+'Commercial Energy Coefficients'!$B$23*IFERROR(LOOKUP(Metro_Select,Energy_Metro_Lookup,HDD),0)),0)+IFERROR(EXP('Commercial Energy Coefficients'!$E$3+LN(B_Office_Gross_Sq_Ft)*'Commercial Energy Coefficients'!$E$4+'Commercial Energy Coefficients'!$E$11+'Commercial Energy Coefficients'!$E$14+'Commercial Energy Coefficients'!$E$18*LN((B_Off_Emp_Acre)*(B_Lot_Size/43560))+'Commercial Energy Coefficients'!$E$19*LN(40)+'Commercial Energy Coefficients'!$E$21+'Commercial Energy Coefficients'!$E$22*LN(Commercial_Energy_Cost)+'Commercial Energy Coefficients'!$E$23*IFERROR(LOOKUP(Metro_Select,Energy_Metro_Lookup,HDD),0)),0)+IFERROR(EXP('Commercial Energy Coefficients'!$H$3+LN(B_Public_Gross_Sq_Ft)*'Commercial Energy Coefficients'!$H$4+'Commercial Energy Coefficients'!$H$11+'Commercial Energy Coefficients'!$H$14+'Commercial Energy Coefficients'!$H$18*LN((B_Pub_Emp_Acre)*(B_Lot_Size/43560))+'Commercial Energy Coefficients'!$H$19*LN(40)+'Commercial Energy Coefficients'!$H$21+'Commercial Energy Coefficients'!$H$22*LN(Commercial_Energy_Cost)+'Commercial Energy Coefficients'!$H$23*IFERROR(LOOKUP(Metro_Select,Energy_Metro_Lookup,HDD),0)),0))/1000 -> 0 | CE10: =(IFERROR(EXP('Commercial Energy Coefficients'!$C$3+LN((B_Retail_Gross_Sq_Ft))*'Commercial Energy Coefficients'!$C$4+'Commercial Energy Coefficients'!$C$11+'Commercial Energy Coefficients'!$C$14+'Commercial Energy Coefficients'!$C$18*LN((B_Ret_Emp_Acre)*(B_Lot_Size/43560))+'Commercial Energy Coefficients'!$C$19*LN(40)+'Commercial Energy Coefficients'!$C$21+'Commercial Energy Coefficients'!$C$22*LN(Commercial_Energy_Cost)+'Commercial Energy Coefficients'!$C$24*IFERROR(LOOKUP(Metro_Select,Energy_Metro_Lookup,CDD),0)),0)+IFERROR(EXP('Commercial Energy Coefficients'!$F$3+LN((B_Office_Gross_Sq_Ft))*'Commercial Energy Coefficients'!$F$4+'Commercial Energy Coefficients'!$F$11+'Commercial Energy Coefficients'!$F$14+'Commercial Energy Coefficients'!$F$18*LN((B_Off_Emp_Acre)*(B_Lot_Size/43560))+'Commercial Energy Coefficients'!$F$19*LN(40)+'Commercial Energy Coefficients'!$F$21+'Commercial Energy Coefficients'!$F$22*LN(Commercial_Energy_Cost)+'Commercial Energy Coefficients'!$F$24*IFERROR(LOOKUP(Metro_Select,Energy_Metro_Lookup,CDD),0)),0)+IFERROR(EXP('Commercial Energy Coefficients'!$I$3+LN((B_Public_Gross_Sq_Ft))*'Commercial Energy Coefficients'!$I$4+'Commercial Energy Coefficients'!$I$11+'Commercial Energy Coefficients'!$I$14+'Commercial Energy Coefficients'!$I$18*LN((B_Pub_Emp_Acre)*(B_Lot_Size/43560))+'Commercial Energy Coefficients'!$I$19*LN(40)+'Commercial Energy Coefficients'!$I$21+'Commercial Energy Coefficients'!$I$22*LN(Commercial_Energy_Cost)+'Commercial Energy Coefficients'!$I$24*IFERROR(LOOKUP(Metro_Select,Energy_Metro_Lookup,CDD),0)),0))/1000 -> 0 | CF10: =(IFERROR(EXP('Commercial Energy Coefficients'!$D$3+LN((B_Retail_Gross_Sq_Ft))*'Commercial Energy Coefficients'!$D$4+'Commercial Energy Coefficients'!$D$14+'Commercial Energy Coefficients'!$D$18*LN((B_Ret_Emp_Acre)*(B_Lot_Size/43560))+'Commercial Energy Coefficients'!$D$19*LN(40)+'Commercial Energy Coefficients'!$D$21+'Commercial Energy Coefficients'!$D$22*LN(Commercial_Energy_Cost)),0)+IFERROR(EXP('Commercial Energy Coefficients'!$G$3+LN((B_Office_Gross_Sq_Ft))*'Commercial Energy Coefficients'!$G$4+'Commercial Energy Coefficients'!$G$14+'Commercial Energy Coefficients'!$G$18*LN((B_Off_Emp_Acre)*(B_Lot_Size/43560))+'Commercial Energy Coefficients'!$G$19*LN(40)+'Commercial Energy Coefficients'!$G$21+'Commercial Energy Coefficients'!$G$22*LN(Commercial_Energy_Cost)),0)+IFERROR(EXP('Commercial Energy Coefficients'!$J$3+LN((B_Public_Gross_Sq_Ft))*'Commercial Energy Coefficients'!$J$4+'Commercial Energy Coefficients'!$J$14+'Commercial Energy Coefficients'!$J$18*LN((B_Pub_Emp_Acre)*(B_Lot_Size/43560))+'Commercial Energy Coefficients'!$J$19*LN(40)+'Commercial Energy Coefficients'!$J$21+'Commercial Energy Coefficients'!$J$22*LN(Commercial_Energy_Cost)),0))/1000 -> 0 | CG10: 0 | CH10: 0 | CI10: 0 | CJ10: 0 | CK10: 0 | CL10: 0 | CM10: 0 | CN10: 0 | CO10: 0 | CP10: =IF((D10*F10)>'Project Info'!$B$123*43560,'Project Info'!$B$123*43560*'Project Info'!$B$122,D10*F10*'Project Info'!$B$122) -> 0 | CQ10: =IF(AF10="",0,IF(AF10="MF",'Project Info'!$B$129,IF(AF10="TH",'Project Info'!$B$130,IF(AND(OR(AF10="SF",AF10="MH"),AC10>0,AC10<3000),'Project Info'!$B$131,IF(AND(OR(AF10="SF",AF10="MH"),AC10>=3000),'Project Info'!$B$132))))) -> 0 | CR10: =IF(AW10=0,0,(AZ10/AW10*'Project Info'!$C$133)+(BC10/AW10*'Project Info'!$C$134)+(BF10/AW10*'Project Info'!$C$135)) -> 0 | CS10: 0 | CT10: 0 | CU10: =IF(AF10="",0,IF(AF10="MF",'Project Info'!$B$141,IF(AF10="TH",'Project Info'!$B$142,IF(AND(OR(AF10="SF",AF10="MH"),AC10>0,AC10<3000),'Project Info'!$B$143,IF(AND(OR(AF10="SF",AF10="MH"),AC10>=3000),'Project Info'!$B$144))))) -> 0 | CV10: =IF(AW10=0,0,(AZ10/AW10*'Project Info'!$C$145)+(BC10/AW10*'Project Info'!$C$146)+(BF10/AW10*'Project Info'!$C$147)) -> 0 | CW10: 0 | CX10: 0 | CY10: =IF(AF10="",0,IF(AF10="MF",'Project Info'!$B$154,IF(AF10="TH",'Project Info'!$B$155,IF(AND(OR(AF10="SF",AF10="MH"),AC10>0,AC10<3000),'Project Info'!$B$156,IF(AND(OR(AF10="SF",AF10="MH"),AC10>=3000),'Project Info'!$B$157))))) -> 0 | CZ10: =IF(AW10=0,0,(AZ10/AW10*'Project Info'!$C$158)+(BC10/AW10*'Project Info'!$C$159)+(BF10/AW10*'Project Info'!$C$160)) -> 0 | DA10: 0 | DB10: 0 | DD10: 0 | DE10: 0 | DG10: 0 | DI10: 0 | DJ10: 0 | DK10: 0 | DL10: 0 | DM10: 0 | DN10: 0 | DO10: 0 | DP10: 0
B11: 8 | J11: 0 | L11: 0 | M11: 0 | N11: 0 | O11: 0 | P11: 0 | Q11: 0 | R11: 0 | S11: 0 | AA11: 0 | AD11: 0 | AE11: 0 | AH11: 0 | AJ11: 0 | AL11: 0 | AM11: 0 | AN11: =IF(AF11="",0,IF(AF11="MF",'Project Info'!$F$8,IF(AF11="TH",'Project Info'!$F$9,IF(AF11="SF",'Project Info'!$F$11,IF(AF11="MH",'Project Info'!$F$13,0))))) -> 0 | AO11: 0 | AP11: =IF(AF11="",0,IF(AF11="MF",IF((AB11/'Project Info'!$D$8)>'Project Info'!$E$8,'Project Info'!$E$8,AB11/'Project Info'!$D$8),IF(AF11="TH",IF((AB11/'Project Info'!$D$9)>'Project Info'!$E$9,'Project Info'!$E$9,AB11/'Project Info'!$D$9),IF(AF11="SF",IF((AB11/'Project Info'!$D$11)>'Project Info'!$E$11,'Project Info'!$E$11,AB11/'Project Info'!$D$11),IF(AF11="MH",IF((AB11/'Project Info'!$D$13)>'Project Info'!$E$13,'Project Info'!$E$13,AB11/'Project Info'!$D$13)))))) -> 0 | AQ11: 0 | AR11: 0 | AS11: 0 | AT11: 0 | AU11: 0 | AV11: 0 | AW11: 0 | AX11: 0 | AZ11: 0 | BA11: 0 | BC11: 0 | BD11: 0 | BF11: 0 | BG11: 0 | BI11: 0 | BJ11: 0 | BL11: 0 | BM11: 0 | BO11: 0 | BR11: 0 | BS11: 0 | BU11: 0 | BY11: 0 | BZ11: =IFERROR(IF(B_Housing_Type="SF",EXP('Residential Energy Coefficients'!$B$3+'Residential Energy Coefficients'!$B$4*LN(B_Net_Sq_Ft_per_Unit)+'Residential Energy Coefficients'!$B$9+'Residential Energy Coefficients'!$B$10*LN(B_HH_Income)+'Residential Energy Coefficients'!$B$16*LN(Residential_Energy_Cost)+'Residential Energy Coefficients'!$B$20+'Residential Energy Coefficients'!$B$24*IFERROR(LOOKUP(Metro_Select,Energy_Metro_Lookup,HDD),0)),IF(B_Housing_Type="TH",EXP('Residential Energy Coefficients'!$E$3+'Residential Energy Coefficients'!$E$4*LN(B_Net_Sq_Ft_per_Unit)+'Residential Energy Coefficients'!$E$9+'Residential Energy Coefficients'!$E$16*LN(Residential_Energy_Cost)+'Residential Energy Coefficients'!$E$19+'Residential Energy Coefficients'!$E$20+'Residential Energy Coefficients'!$E$24*IFERROR(LOOKUP(Metro_Select,Energy_Metro_Lookup,HDD),0)),IF(B_Housing_Type="MF",EXP('Residential Energy Coefficients'!$H$3+'Residential Energy Coefficients'!$H$4*LN(B_Net_Sq_Ft_per_Unit)+'Residential Energy Coefficients'!$H$9+IF(B_Pct_Owner=1,'Residential Energy Coefficients'!$H$12,0)+'Residential Energy Coefficients'!$H$16*LN(Residential_Energy_Cost)+'Residential Energy Coefficients'!$H$20+'Residential Energy Coefficients'!$H$24*IFERROR(LOOKUP(Metro_Select,Energy_Metro_Lookup,HDD),0)),IF(B_Housing_Type="MH",EXP('Residential Energy Coefficients'!$K$3+'Residential Energy Coefficients'!$K$16*LN(Residential_Energy_Cost)+'Residential Energy Coefficients'!$K$24*IFERROR(LOOKUP(Metro_Select,Energy_Metro_Lookup,HDD),0)),0))))/1000,0) -> 0 | CA11: =IFERROR(IF(B_Housing_Type="SF",EXP('Residential Energy Coefficients'!$C$3+'Residential Energy Coefficients'!$C$4*LN(B_Net_Sq_Ft_per_Unit)+'Residential Energy Coefficients'!$C$10*LN(B_HH_Income)+'Residential Energy Coefficients'!$C$11*B_HH_Size+'Residential Energy Coefficients'!$C$16*LN(Residential_Energy_Cost)+'Residential Energy Coefficients'!$C$19+'Residential Energy Coefficients'!$C$22+'Residential Energy Coefficients'!$C$25*IFERROR(LOOKUP(Metro_Select,Energy_Metro_Lookup,CDD),0)),IF(B_Housing_Type="TH",EXP('Residential Energy Coefficients'!$F$3+'Residential Energy Coefficients'!$F$4*LN(B_Net_Sq_Ft_per_Unit)+'Residential Energy Coefficients'!$F$10*LN(B_HH_Income)+'Residential Energy Coefficients'!$F$11*B_HH_Size+IF(B_Pct_Owner=1,'Residential Energy Coefficients'!$F$12,0)+'Residential Energy Coefficients'!$F$16*LN(Residential_Energy_Cost)+'Residential Energy Coefficients'!$F$22+'Residential Energy Coefficients'!$F$25*IFERROR(LOOKUP(Metro_Select,Energy_Metro_Lookup,CDD),0)),IF(B_Housing_Type="MF",EXP('Residential Energy Coefficients'!$I$3+'Residential Energy Coefficients'!$I$4*LN(B_Net_Sq_Ft_per_Unit)+'Residential Energy Coefficients'!$I$9+'Residential Energy Coefficients'!$I$11*B_HH_Size+'Residential Energy Coefficients'!$I$16*LN(Residential_Energy_Cost)+'Residential Energy Coefficients'!$I$22+'Residential Energy Coefficients'!$I$25*IFERROR(LOOKUP(Metro_Select,Energy_Metro_Lookup,CDD),0)),IF(B_Housing_Type="MH",EXP('Residential Energy Coefficients'!$L$3+'Residential Energy Coefficients'!$L$11*B_HH_Size+'Residential Energy Coefficients'!$L$16*LN(Residential_Energy_Cost)+'Residential Energy Coefficients'!$L$22+'Residential Energy Coefficients'!$L$25*IFERROR(LOOKUP(Metro_Select,Energy_Metro_Lookup,CDD),0)),0))))/1000,0) -> 0 | CB11: =IFERROR(IF(B_Housing_Type="SF",EXP('Residential Energy Coefficients'!$D$3+'Residential Energy Coefficients'!$D$4*LN(B_Net_Sq_Ft_per_Unit)+'Residential Energy Coefficients'!$D$9+'Residential Energy Coefficients'!$D$10*LN(B_HH_Income)+'Residential Energy Coefficients'!$D$11*B_HH_Size+IF(B_Pct_Owner=1,'Residential Energy Coefficients'!$D$12,0)+'Residential Energy Coefficients'!$D$16*LN(Residential_Energy_Cost)),IF(B_Housing_Type="TH",EXP('Residential Energy Coefficients'!$G$3+'Residential Energy Coefficients'!$G$4*LN(B_Net_Sq_Ft_per_Unit)+'Residential Energy Coefficients'!$G$10*LN(B_HH_Income)+'Residential Energy Coefficients'!$G$11*B_HH_Size+'Residential Energy Coefficients'!$G$16*LN(Residential_Energy_Cost)),IF(B_Housing_Type="MF",EXP('Residential Energy Coefficients'!$J$3+'Residential Energy Coefficients'!$J$4*LN(B_Net_Sq_Ft_per_Unit)+'Residential Energy Coefficients'!$J$10*LN(B_HH_Income)+'Residential Energy Coefficients'!$J$11*B_HH_Size+IF(B_Pct_Owner=1,'Residential Energy Coefficients'!$J$12,0)+'Residential Energy Coefficients'!$J$16*LN(Residential_Energy_Cost)+'Residential Energy Coefficients'!$J$19),IF(B_Housing_Type="MH",EXP('Residential Energy Coefficients'!$M$3+'Residential Energy Coefficients'!$M$4*LN(B_Net_Sq_Ft_per_Unit)+'Residential Energy Coefficients'!$M$11*B_HH_Size+'Residential Energy Coefficients'!$M$16*LN(Residential_Energy_Cost)+'Residential Energy Coefficients'!$M$19),0))))/1000,0) -> 0 | CC11: 0 | CD11: =(IFERROR(EXP('Commercial Energy Coefficients'!$B$3+LN(B_Retail_Gross_Sq_Ft)*'Commercial Energy Coefficients'!$B$4+'Commercial Energy Coefficients'!$B$11+'Commercial Energy Coefficients'!$B$14+'Commercial Energy Coefficients'!$B$18*LN((B_Ret_Emp_Acre)*(B_Lot_Size/43560))+'Commercial Energy Coefficients'!$B$19*LN(40)+'Commercial Energy Coefficients'!$B$21+'Commercial Energy Coefficients'!$B$22*LN(Commercial_Energy_Cost)+'Commercial Energy Coefficients'!$B$23*IFERROR(LOOKUP(Metro_Select,Energy_Metro_Lookup,HDD),0)),0)+IFERROR(EXP('Commercial Energy Coefficients'!$E$3+LN(B_Office_Gross_Sq_Ft)*'Commercial Energy Coefficients'!$E$4+'Commercial Energy Coefficients'!$E$11+'Commercial Energy Coefficients'!$E$14+'Commercial Energy Coefficients'!$E$18*LN((B_Off_Emp_Acre)*(B_Lot_Size/43560))+'Commercial Energy Coefficients'!$E$19*LN(40)+'Commercial Energy Coefficients'!$E$21+'Commercial Energy Coefficients'!$E$22*LN(Commercial_Energy_Cost)+'Commercial Energy Coefficients'!$E$23*IFERROR(LOOKUP(Metro_Select,Energy_Metro_Lookup,HDD),0)),0)+IFERROR(EXP('Commercial Energy Coefficients'!$H$3+LN(B_Public_Gross_Sq_Ft)*'Commercial Energy Coefficients'!$H$4+'Commercial Energy Coefficients'!$H$11+'Commercial Energy Coefficients'!$H$14+'Commercial Energy Coefficients'!$H$18*LN((B_Pub_Emp_Acre)*(B_Lot_Size/43560))+'Commercial Energy Coefficients'!$H$19*LN(40)+'Commercial Energy Coefficients'!$H$21+'Commercial Energy Coefficients'!$H$22*LN(Commercial_Energy_Cost)+'Commercial Energy Coefficients'!$H$23*IFERROR(LOOKUP(Metro_Select,Energy_Metro_Lookup,HDD),0)),0))/1000 -> 0 | CE11: =(IFERROR(EXP('Commercial Energy Coefficients'!$C$3+LN((B_Retail_Gross_Sq_Ft))*'Commercial Energy Coefficients'!$C$4+'Commercial Energy Coefficients'!$C$11+'Commercial Energy Coefficients'!$C$14+'Commercial Energy Coefficients'!$C$18*LN((B_Ret_Emp_Acre)*(B_Lot_Size/43560))+'Commercial Energy Coefficients'!$C$19*LN(40)+'Commercial Energy Coefficients'!$C$21+'Commercial Energy Coefficients'!$C$22*LN(Commercial_Energy_Cost)+'Commercial Energy Coefficients'!$C$24*IFERROR(LOOKUP(Metro_Select,Energy_Metro_Lookup,CDD),0)),0)+IFERROR(EXP('Commercial Energy Coefficients'!$F$3+LN((B_Office_Gross_Sq_Ft))*'Commercial Energy Coefficients'!$F$4+'Commercial Energy Coefficients'!$F$11+'Commercial Energy Coefficients'!$F$14+'Commercial Energy Coefficients'!$F$18*LN((B_Off_Emp_Acre)*(B_Lot_Size/43560))+'Commercial Energy Coefficients'!$F$19*LN(40)+'Commercial Energy Coefficients'!$F$21+'Commercial Energy Coefficients'!$F$22*LN(Commercial_Energy_Cost)+'Commercial Energy Coefficients'!$F$24*IFERROR(LOOKUP(Metro_Select,Energy_Metro_Lookup,CDD),0)),0)+IFERROR(EXP('Commercial Energy Coefficients'!$I$3+LN((B_Public_Gross_Sq_Ft))*'Commercial Energy Coefficients'!$I$4+'Commercial Energy Coefficients'!$I$11+'Commercial Energy Coefficients'!$I$14+'Commercial Energy Coefficients'!$I$18*LN((B_Pub_Emp_Acre)*(B_Lot_Size/43560))+'Commercial Energy Coefficients'!$I$19*LN(40)+'Commercial Energy Coefficients'!$I$21+'Commercial Energy Coefficients'!$I$22*LN(Commercial_Energy_Cost)+'Commercial Energy Coefficients'!$I$24*IFERROR(LOOKUP(Metro_Select,Energy_Metro_Lookup,CDD),0)),0))/1000 -> 0 | CF11: =(IFERROR(EXP('Commercial Energy Coefficients'!$D$3+LN((B_Retail_Gross_Sq_Ft))*'Commercial Energy Coefficients'!$D$4+'Commercial Energy Coefficients'!$D$14+'Commercial Energy Coefficients'!$D$18*LN((B_Ret_Emp_Acre)*(B_Lot_Size/43560))+'Commercial Energy Coefficients'!$D$19*LN(40)+'Commercial Energy Coefficients'!$D$21+'Commercial Energy Coefficients'!$D$22*LN(Commercial_Energy_Cost)),0)+IFERROR(EXP('Commercial Energy Coefficients'!$G$3+LN((B_Office_Gross_Sq_Ft))*'Commercial Energy Coefficients'!$G$4+'Commercial Energy Coefficients'!$G$14+'Commercial Energy Coefficients'!$G$18*LN((B_Off_Emp_Acre)*(B_Lot_Size/43560))+'Commercial Energy Coefficients'!$G$19*LN(40)+'Commercial Energy Coefficients'!$G$21+'Commercial Energy Coefficients'!$G$22*LN(Commercial_Energy_Cost)),0)+IFERROR(EXP('Commercial Energy Coefficients'!$J$3+LN((B_Public_Gross_Sq_Ft))*'Commercial Energy Coefficients'!$J$4+'Commercial Energy Coefficients'!$J$14+'Commercial Energy Coefficients'!$J$18*LN((B_Pub_Emp_Acre)*(B_Lot_Size/43560))+'Commercial Energy Coefficients'!$J$19*LN(40)+'Commercial Energy Coefficients'!$J$21+'Commercial Energy Coefficients'!$J$22*LN(Commercial_Energy_Cost)),0))/1000 -> 0 | CG11: 0 | CH11: 0 | CI11: 0 | CJ11: 0 | CK11: 0 | CL11: 0 | CM11: 0 | CN11: 0 | CO11: 0 | CP11: =IF((D11*F11)>'Project Info'!$B$123*43560,'Project Info'!$B$123*43560*'Project Info'!$B$122,D11*F11*'Project Info'!$B$122) -> 0 | CQ11: =IF(AF11="",0,IF(AF11="MF",'Project Info'!$B$129,IF(AF11="TH",'Project Info'!$B$130,IF(AND(OR(AF11="SF",AF11="MH"),AC11>0,AC11<3000),'Project Info'!$B$131,IF(AND(OR(AF11="SF",AF11="MH"),AC11>=3000),'Project Info'!$B$132))))) -> 0 | CR11: =IF(AW11=0,0,(AZ11/AW11*'Project Info'!$C$133)+(BC11/AW11*'Project Info'!$C$134)+(BF11/AW11*'Project Info'!$C$135)) -> 0 | CS11: 0 | CT11: 0 | CU11: =IF(AF11="",0,IF(AF11="MF",'Project Info'!$B$141,IF(AF11="TH",'Project Info'!$B$142,IF(AND(OR(AF11="SF",AF11="MH"),AC11>0,AC11<3000),'Project Info'!$B$143,IF(AND(OR(AF11="SF",AF11="MH"),AC11>=3000),'Project Info'!$B$144))))) -> 0 | CV11: =IF(AW11=0,0,(AZ11/AW11*'Project Info'!$C$145)+(BC11/AW11*'Project Info'!$C$146)+(BF11/AW11*'Project Info'!$C$147)) -> 0 | CW11: 0 | CX11: 0 | CY11: =IF(AF11="",0,IF(AF11="MF",'Project Info'!$B$154,IF(AF11="TH",'Project Info'!$B$155,IF(AND(OR(AF11="SF",AF11="MH"),AC11>0,AC11<3000),'Project Info'!$B$156,IF(AND(OR(AF11="SF",AF11="MH"),AC11>=3000),'Project Info'!$B$157))))) -> 0 | CZ11: =IF(AW11=0,0,(AZ11/AW11*'Project Info'!$C$158)+(BC11/AW11*'Project Info'!$C$159)+(BF11/AW11*'Project Info'!$C$160)) -> 0 | DA11: 0 | DB11: 0 | DD11: 0 | DE11: 0 | DG11: 0 | DI11: 0 | DJ11: 0 | DK11: 0 | DL11: 0 | DM11: 0 | DN11: 0 | DO11: 0 | DP11: 0
B12: 9 | J12: 0 | L12: 0 | M12: 0 | N12: 0 | O12: 0 | P12: 0 | Q12: 0 | R12: 0 | S12: 0 | AA12: 0 | AD12: 0 | AE12: 0 | AH12: 0 | AJ12: 0 | AL12: 0 | AM12: 0 | AN12: =IF(AF12="",0,IF(AF12="MF",'Project Info'!$F$8,IF(AF12="TH",'Project Info'!$F$9,IF(AF12="SF",'Project Info'!$F$11,IF(AF12="MH",'Project Info'!$F$13,0))))) -> 0 | AO12: 0 | AP12: =IF(AF12="",0,IF(AF12="MF",IF((AB12/'Project Info'!$D$8)>'Project Info'!$E$8,'Project Info'!$E$8,AB12/'Project Info'!$D$8),IF(AF12="TH",IF((AB12/'Project Info'!$D$9)>'Project Info'!$E$9,'Project Info'!$E$9,AB12/'Project Info'!$D$9),IF(AF12="SF",IF((AB12/'Project Info'!$D$11)>'Project Info'!$E$11,'Project Info'!$E$11,AB12/'Project Info'!$D$11),IF(AF12="MH",IF((AB12/'Project Info'!$D$13)>'Project Info'!$E$13,'Project Info'!$E$13,AB12/'Project Info'!$D$13)))))) -> 0 | AQ12: 0 | AR12: 0 | AS12: 0 | AT12: 0 | AU12: 0 | AV12: 0 | AW12: 0 | AX12: 0 | AZ12: 0 | BA12: 0 | BC12: 0 | BD12: 0 | BF12: 0 | BG12: 0 | BI12: 0 | BJ12: 0 | BL12: 0 | BM12: 0 | BO12: 0 | BR12: 0 | BS12: 0 | BU12: 0 | BY12: 0 | BZ12: =IFERROR(IF(B_Housing_Type="SF",EXP('Residential Energy Coefficients'!$B$3+'Residential Energy Coefficients'!$B$4*LN(B_Net_Sq_Ft_per_Unit)+'Residential Energy Coefficients'!$B$9+'Residential Energy Coefficients'!$B$10*LN(B_HH_Income)+'Residential Energy Coefficients'!$B$16*LN(Residential_Energy_Cost)+'Residential Energy Coefficients'!$B$20+'Residential Energy Coefficients'!$B$24*IFERROR(LOOKUP(Metro_Select,Energy_Metro_Lookup,HDD),0)),IF(B_Housing_Type="TH",EXP('Residential Energy Coefficients'!$E$3+'Residential Energy Coefficients'!$E$4*LN(B_Net_Sq_Ft_per_Unit)+'Residential Energy Coefficients'!$E$9+'Residential Energy Coefficients'!$E$16*LN(Residential_Energy_Cost)+'Residential Energy Coefficients'!$E$19+'Residential Energy Coefficients'!$E$20+'Residential Energy Coefficients'!$E$24*IFERROR(LOOKUP(Metro_Select,Energy_Metro_Lookup,HDD),0)),IF(B_Housing_Type="MF",EXP('Residential Energy Coefficients'!$H$3+'Residential Energy Coefficients'!$H$4*LN(B_Net_Sq_Ft_per_Unit)+'Residential Energy Coefficients'!$H$9+IF(B_Pct_Owner=1,'Residential Energy Coefficients'!$H$12,0)+'Residential Energy Coefficients'!$H$16*LN(Residential_Energy_Cost)+'Residential Energy Coefficients'!$H$20+'Residential Energy Coefficients'!$H$24*IFERROR(LOOKUP(Metro_Select,Energy_Metro_Lookup,HDD),0)),IF(B_Housing_Type="MH",EXP('Residential Energy Coefficients'!$K$3+'Residential Energy Coefficients'!$K$16*LN(Residential_Energy_Cost)+'Residential Energy Coefficients'!$K$24*IFERROR(LOOKUP(Metro_Select,Energy_Metro_Lookup,HDD),0)),0))))/1000,0) -> 0 | CA12: =IFERROR(IF(B_Housing_Type="SF",EXP('Residential Energy Coefficients'!$C$3+'Residential Energy Coefficients'!$C$4*LN(B_Net_Sq_Ft_per_Unit)+'Residential Energy Coefficients'!$C$10*LN(B_HH_Income)+'Residential Energy Coefficients'!$C$11*B_HH_Size+'Residential Energy Coefficients'!$C$16*LN(Residential_Energy_Cost)+'Residential Energy Coefficients'!$C$19+'Residential Energy Coefficients'!$C$22+'Residential Energy Coefficients'!$C$25*IFERROR(LOOKUP(Metro_Select,Energy_Metro_Lookup,CDD),0)),IF(B_Housing_Type="TH",EXP('Residential Energy Coefficients'!$F$3+'Residential Energy Coefficients'!$F$4*LN(B_Net_Sq_Ft_per_Unit)+'Residential Energy Coefficients'!$F$10*LN(B_HH_Income)+'Residential Energy Coefficients'!$F$11*B_HH_Size+IF(B_Pct_Owner=1,'Residential Energy Coefficients'!$F$12,0)+'Residential Energy Coefficients'!$F$16*LN(Residential_Energy_Cost)+'Residential Energy Coefficients'!$F$22+'Residential Energy Coefficients'!$F$25*IFERROR(LOOKUP(Metro_Select,Energy_Metro_Lookup,CDD),0)),IF(B_Housing_Type="MF",EXP('Residential Energy Coefficients'!$I$3+'Residential Energy Coefficients'!$I$4*LN(B_Net_Sq_Ft_per_Unit)+'Residential Energy Coefficients'!$I$9+'Residential Energy Coefficients'!$I$11*B_HH_Size+'Residential Energy Coefficients'!$I$16*LN(Residential_Energy_Cost)+'Residential Energy Coefficients'!$I$22+'Residential Energy Coefficients'!$I$25*IFERROR(LOOKUP(Metro_Select,Energy_Metro_Lookup,CDD),0)),IF(B_Housing_Type="MH",EXP('Residential Energy Coefficients'!$L$3+'Residential Energy Coefficients'!$L$11*B_HH_Size+'Residential Energy Coefficients'!$L$16*LN(Residential_Energy_Cost)+'Residential Energy Coefficients'!$L$22+'Residential Energy Coefficients'!$L$25*IFERROR(LOOKUP(Metro_Select,Energy_Metro_Lookup,CDD),0)),0))))/1000,0) -> 0 | CB12: =IFERROR(IF(B_Housing_Type="SF",EXP('Residential Energy Coefficients'!$D$3+'Residential Energy Coefficients'!$D$4*LN(B_Net_Sq_Ft_per_Unit)+'Residential Energy Coefficients'!$D$9+'Residential Energy Coefficients'!$D$10*LN(B_HH_Income)+'Residential Energy Coefficients'!$D$11*B_HH_Size+IF(B_Pct_Owner=1,'Residential Energy Coefficients'!$D$12,0)+'Residential Energy Coefficients'!$D$16*LN(Residential_Energy_Cost)),IF(B_Housing_Type="TH",EXP('Residential Energy Coefficients'!$G$3+'Residential Energy Coefficients'!$G$4*LN(B_Net_Sq_Ft_per_Unit)+'Residential Energy Coefficients'!$G$10*LN(B_HH_Income)+'Residential Energy Coefficients'!$G$11*B_HH_Size+'Residential Energy Coefficients'!$G$16*LN(Residential_Energy_Cost)),IF(B_Housing_Type="MF",EXP('Residential Energy Coefficients'!$J$3+'Residential Energy Coefficients'!$J$4*LN(B_Net_Sq_Ft_per_Unit)+'Residential Energy Coefficients'!$J$10*LN(B_HH_Income)+'Residential Energy Coefficients'!$J$11*B_HH_Size+IF(B_Pct_Owner=1,'Residential Energy Coefficients'!$J$12,0)+'Residential Energy Coefficients'!$J$16*LN(Residential_Energy_Cost)+'Residential Energy Coefficients'!$J$19),IF(B_Housing_Type="MH",EXP('Residential Energy Coefficients'!$M$3+'Residential Energy Coefficients'!$M$4*LN(B_Net_Sq_Ft_per_Unit)+'Residential Energy Coefficients'!$M$11*B_HH_Size+'Residential Energy Coefficients'!$M$16*LN(Residential_Energy_Cost)+'Residential Energy Coefficients'!$M$19),0))))/1000,0) -> 0 | CC12: 0 | CD12: =(IFERROR(EXP('Commercial Energy Coefficients'!$B$3+LN(B_Retail_Gross_Sq_Ft)*'Commercial Energy Coefficients'!$B$4+'Commercial Energy Coefficients'!$B$11+'Commercial Energy Coefficients'!$B$14+'Commercial Energy Coefficients'!$B$18*LN((B_Ret_Emp_Acre)*(B_Lot_Size/43560))+'Commercial Energy Coefficients'!$B$19*LN(40)+'Commercial Energy Coefficients'!$B$21+'Commercial Energy Coefficients'!$B$22*LN(Commercial_Energy_Cost)+'Commercial Energy Coefficients'!$B$23*IFERROR(LOOKUP(Metro_Select,Energy_Metro_Lookup,HDD),0)),0)+IFERROR(EXP('Commercial Energy Coefficients'!$E$3+LN(B_Office_Gross_Sq_Ft)*'Commercial Energy Coefficients'!$E$4+'Commercial Energy Coefficients'!$E$11+'Commercial Energy Coefficients'!$E$14+'Commercial Energy Coefficients'!$E$18*LN((B_Off_Emp_Acre)*(B_Lot_Size/43560))+'Commercial Energy Coefficients'!$E$19*LN(40)+'Commercial Energy Coefficients'!$E$21+'Commercial Energy Coefficients'!$E$22*LN(Commercial_Energy_Cost)+'Commercial Energy Coefficients'!$E$23*IFERROR(LOOKUP(Metro_Select,Energy_Metro_Lookup,HDD),0)),0)+IFERROR(EXP('Commercial Energy Coefficients'!$H$3+LN(B_Public_Gross_Sq_Ft)*'Commercial Energy Coefficients'!$H$4+'Commercial Energy Coefficients'!$H$11+'Commercial Energy Coefficients'!$H$14+'Commercial Energy Coefficients'!$H$18*LN((B_Pub_Emp_Acre)*(B_Lot_Size/43560))+'Commercial Energy Coefficients'!$H$19*LN(40)+'Commercial Energy Coefficients'!$H$21+'Commercial Energy Coefficients'!$H$22*LN(Commercial_Energy_Cost)+'Commercial Energy Coefficients'!$H$23*IFERROR(LOOKUP(Metro_Select,Energy_Metro_Lookup,HDD),0)),0))/1000 -> 0 | CE12: =(IFERROR(EXP('Commercial Energy Coefficients'!$C$3+LN((B_Retail_Gross_Sq_Ft))*'Commercial Energy Coefficients'!$C$4+'Commercial Energy Coefficients'!$C$11+'Commercial Energy Coefficients'!$C$14+'Commercial Energy Coefficients'!$C$18*LN((B_Ret_Emp_Acre)*(B_Lot_Size/43560))+'Commercial Energy Coefficients'!$C$19*LN(40)+'Commercial Energy Coefficients'!$C$21+'Commercial Energy Coefficients'!$C$22*LN(Commercial_Energy_Cost)+'Commercial Energy Coefficients'!$C$24*IFERROR(LOOKUP(Metro_Select,Energy_Metro_Lookup,CDD),0)),0)+IFERROR(EXP('Commercial Energy Coefficients'!$F$3+LN((B_Office_Gross_Sq_Ft))*'Commercial Energy Coefficients'!$F$4+'Commercial Energy Coefficients'!$F$11+'Commercial Energy Coefficients'!$F$14+'Commercial Energy Coefficients'!$F$18*LN((B_Off_Emp_Acre)*(B_Lot_Size/43560))+'Commercial Energy Coefficients'!$F$19*LN(40)+'Commercial Energy Coefficients'!$F$21+'Commercial Energy Coefficients'!$F$22*LN(Commercial_Energy_Cost)+'Commercial Energy Coefficients'!$F$24*IFERROR(LOOKUP(Metro_Select,Energy_Metro_Lookup,CDD),0)),0)+IFERROR(EXP('Commercial Energy Coefficients'!$I$3+LN((B_Public_Gross_Sq_Ft))*'Commercial Energy Coefficients'!$I$4+'Commercial Energy Coefficients'!$I$11+'Commercial Energy Coefficients'!$I$14+'Commercial Energy Coefficients'!$I$18*LN((B_Pub_Emp_Acre)*(B_Lot_Size/43560))+'Commercial Energy Coefficients'!$I$19*LN(40)+'Commercial Energy Coefficients'!$I$21+'Commercial Energy Coefficients'!$I$22*LN(Commercial_Energy_Cost)+'Commercial Energy Coefficients'!$I$24*IFERROR(LOOKUP(Metro_Select,Energy_Metro_Lookup,CDD),0)),0))/1000 -> 0 | CF12: =(IFERROR(EXP('Commercial Energy Coefficients'!$D$3+LN((B_Retail_Gross_Sq_Ft))*'Commercial Energy Coefficients'!$D$4+'Commercial Energy Coefficients'!$D$14+'Commercial Energy Coefficients'!$D$18*LN((B_Ret_Emp_Acre)*(B_Lot_Size/43560))+'Commercial Energy Coefficients'!$D$19*LN(40)+'Commercial Energy Coefficients'!$D$21+'Commercial Energy Coefficients'!$D$22*LN(Commercial_Energy_Cost)),0)+IFERROR(EXP('Commercial Energy Coefficients'!$G$3+LN((B_Office_Gross_Sq_Ft))*'Commercial Energy Coefficients'!$G$4+'Commercial Energy Coefficients'!$G$14+'Commercial Energy Coefficients'!$G$18*LN((B_Off_Emp_Acre)*(B_Lot_Size/43560))+'Commercial Energy Coefficients'!$G$19*LN(40)+'Commercial Energy Coefficients'!$G$21+'Commercial Energy Coefficients'!$G$22*LN(Commercial_Energy_Cost)),0)+IFERROR(EXP('Commercial Energy Coefficients'!$J$3+LN((B_Public_Gross_Sq_Ft))*'Commercial Energy Coefficients'!$J$4+'Commercial Energy Coefficients'!$J$14+'Commercial Energy Coefficients'!$J$18*LN((B_Pub_Emp_Acre)*(B_Lot_Size/43560))+'Commercial Energy Coefficients'!$J$19*LN(40)+'Commercial Energy Coefficients'!$J$21+'Commercial Energy Coefficients'!$J$22*LN(Commercial_Energy_Cost)),0))/1000 -> 0 | CG12: 0 | CH12: 0 | CI12: 0 | CJ12: 0 | CK12: 0 | CL12: 0 | CM12: 0 | CN12: 0 | CO12: 0 | CP12: =IF((D12*F12)>'Project Info'!$B$123*43560,'Project Info'!$B$123*43560*'Project Info'!$B$122,D12*F12*'Project Info'!$B$122) -> 0 | CQ12: =IF(AF12="",0,IF(AF12="MF",'Project Info'!$B$129,IF(AF12="TH",'Project Info'!$B$130,IF(AND(OR(AF12="SF",AF12="MH"),AC12>0,AC12<3000),'Project Info'!$B$131,IF(AND(OR(AF12="SF",AF12="MH"),AC12>=3000),'Project Info'!$B$132))))) -> 0 | CR12: =IF(AW12=0,0,(AZ12/AW12*'Project Info'!$C$133)+(BC12/AW12*'Project Info'!$C$134)+(BF12/AW12*'Project Info'!$C$135)) -> 0 | CS12: 0 | CT12: 0 | CU12: =IF(AF12="",0,IF(AF12="MF",'Project Info'!$B$141,IF(AF12="TH",'Project Info'!$B$142,IF(AND(OR(AF12="SF",AF12="MH"),AC12>0,AC12<3000),'Project Info'!$B$143,IF(AND(OR(AF12="SF",AF12="MH"),AC12>=3000),'Project Info'!$B$144))))) -> 0 | CV12: =IF(AW12=0,0,(AZ12/AW12*'Project Info'!$C$145)+(BC12/AW12*'Project Info'!$C$146)+(BF12/AW12*'Project Info'!$C$147)) -> 0 | CW12: 0 | CX12: 0 | CY12: =IF(AF12="",0,IF(AF12="MF",'Project Info'!$B$154,IF(AF12="TH",'Project Info'!$B$155,IF(AND(OR(AF12="SF",AF12="MH"),AC12>0,AC12<3000),'Project Info'!$B$156,IF(AND(OR(AF12="SF",AF12="MH"),AC12>=3000),'Project Info'!$B$157))))) -> 0 | CZ12: =IF(AW12=0,0,(AZ12/AW12*'Project Info'!$C$158)+(BC12/AW12*'Project Info'!$C$159)+(BF12/AW12*'Project Info'!$C$160)) -> 0 | DA12: 0 | DB12: 0 | DD12: 0 | DE12: 0 | DG12: 0 | DI12: 0 | DJ12: 0 | DK12: 0 | DL12: 0 | DM12: 0 | DN12: 0 | DO12: 0 | DP12: 0
B13: 10 | J13: 0 | L13: 0 | M13: 0 | N13: 0 | O13: 0 | P13: 0 | Q13: 0 | R13: 0 | S13: 0 | AA13: 0 | AD13: 0 | AE13: 0 | AH13: 0 | AJ13: 0 | AL13: 0 | AM13: 0 | AN13: =IF(AF13="",0,IF(AF13="MF",'Project Info'!$F$8,IF(AF13="TH",'Project Info'!$F$9,IF(AF13="SF",'Project Info'!$F$11,IF(AF13="MH",'Project Info'!$F$13,0))))) -> 0 | AO13: 0 | AP13: =IF(AF13="",0,IF(AF13="MF",IF((AB13/'Project Info'!$D$8)>'Project Info'!$E$8,'Project Info'!$E$8,AB13/'Project Info'!$D$8),IF(AF13="TH",IF((AB13/'Project Info'!$D$9)>'Project Info'!$E$9,'Project Info'!$E$9,AB13/'Project Info'!$D$9),IF(AF13="SF",IF((AB13/'Project Info'!$D$11)>'Project Info'!$E$11,'Project Info'!$E$11,AB13/'Project Info'!$D$11),IF(AF13="MH",IF((AB13/'Project Info'!$D$13)>'Project Info'!$E$13,'Project Info'!$E$13,AB13/'Project Info'!$D$13)))))) -> 0 | AQ13: 0 | AR13: 0 | AS13: 0 | AT13: 0 | AU13: 0 | AV13: 0 | AW13: 0 | AX13: 0 | AZ13: 0 | BA13: 0 | BC13: 0 | BD13: 0 | BF13: 0 | BG13: 0 | BI13: 0 | BJ13: 0 | BL13: 0 | BM13: 0 | BO13: 0 | BR13: 0 | BS13: 0 | BU13: 0 | BY13: 0 | BZ13: =IFERROR(IF(B_Housing_Type="SF",EXP('Residential Energy Coefficients'!$B$3+'Residential Energy Coefficients'!$B$4*LN(B_Net_Sq_Ft_per_Unit)+'Residential Energy Coefficients'!$B$9+'Residential Energy Coefficients'!$B$10*LN(B_HH_Income)+'Residential Energy Coefficients'!$B$16*LN(Residential_Energy_Cost)+'Residential Energy Coefficients'!$B$20+'Residential Energy Coefficients'!$B$24*IFERROR(LOOKUP(Metro_Select,Energy_Metro_Lookup,HDD),0)),IF(B_Housing_Type="TH",EXP('Residential Energy Coefficients'!$E$3+'Residential Energy Coefficients'!$E$4*LN(B_Net_Sq_Ft_per_Unit)+'Residential Energy Coefficients'!$E$9+'Residential Energy Coefficients'!$E$16*LN(Residential_Energy_Cost)+'Residential Energy Coefficients'!$E$19+'Residential Energy Coefficients'!$E$20+'Residential Energy Coefficients'!$E$24*IFERROR(LOOKUP(Metro_Select,Energy_Metro_Lookup,HDD),0)),IF(B_Housing_Type="MF",EXP('Residential Energy Coefficients'!$H$3+'Residential Energy Coefficients'!$H$4*LN(B_Net_Sq_Ft_per_Unit)+'Residential Energy Coefficients'!$H$9+IF(B_Pct_Owner=1,'Residential Energy Coefficients'!$H$12,0)+'Residential Energy Coefficients'!$H$16*LN(Residential_Energy_Cost)+'Residential Energy Coefficients'!$H$20+'Residential Energy Coefficients'!$H$24*IFERROR(LOOKUP(Metro_Select,Energy_Metro_Lookup,HDD),0)),IF(B_Housing_Type="MH",EXP('Residential Energy Coefficients'!$K$3+'Residential Energy Coefficients'!$K$16*LN(Residential_Energy_Cost)+'Residential Energy Coefficients'!$K$24*IFERROR(LOOKUP(Metro_Select,Energy_Metro_Lookup,HDD),0)),0))))/1000,0) -> 0 | CA13: =IFERROR(IF(B_Housing_Type="SF",EXP('Residential Energy Coefficients'!$C$3+'Residential Energy Coefficients'!$C$4*LN(B_Net_Sq_Ft_per_Unit)+'Residential Energy Coefficients'!$C$10*LN(B_HH_Income)+'Residential Energy Coefficients'!$C$11*B_HH_Size+'Residential Energy Coefficients'!$C$16*LN(Residential_Energy_Cost)+'Residential Energy Coefficients'!$C$19+'Residential Energy Coefficients'!$C$22+'Residential Energy Coefficients'!$C$25*IFERROR(LOOKUP(Metro_Select,Energy_Metro_Lookup,CDD),0)),IF(B_Housing_Type="TH",EXP('Residential Energy Coefficients'!$F$3+'Residential Energy Coefficients'!$F$4*LN(B_Net_Sq_Ft_per_Unit)+'Residential Energy Coefficients'!$F$10*LN(B_HH_Income)+'Residential Energy Coefficients'!$F$11*B_HH_Size+IF(B_Pct_Owner=1,'Residential Energy Coefficients'!$F$12,0)+'Residential Energy Coefficients'!$F$16*LN(Residential_Energy_Cost)+'Residential Energy Coefficients'!$F$22+'Residential Energy Coefficients'!$F$25*IFERROR(LOOKUP(Metro_Select,Energy_Metro_Lookup,CDD),0)),IF(B_Housing_Type="MF",EXP('Residential Energy Coefficients'!$I$3+'Residential Energy Coefficients'!$I$4*LN(B_Net_Sq_Ft_per_Unit)+'Residential Energy Coefficients'!$I$9+'Residential Energy Coefficients'!$I$11*B_HH_Size+'Residential Energy Coefficients'!$I$16*LN(Residential_Energy_Cost)+'Residential Energy Coefficients'!$I$22+'Residential Energy Coefficients'!$I$25*IFERROR(LOOKUP(Metro_Select,Energy_Metro_Lookup,CDD),0)),IF(B_Housing_Type="MH",EXP('Residential Energy Coefficients'!$L$3+'Residential Energy Coefficients'!$L$11*B_HH_Size+'Residential Energy Coefficients'!$L$16*LN(Residential_Energy_Cost)+'Residential Energy Coefficients'!$L$22+'Residential Energy Coefficients'!$L$25*IFERROR(LOOKUP(Metro_Select,Energy_Metro_Lookup,CDD),0)),0))))/1000,0) -> 0 | CB13: =IFERROR(IF(B_Housing_Type="SF",EXP('Residential Energy Coefficients'!$D$3+'Residential Energy Coefficients'!$D$4*LN(B_Net_Sq_Ft_per_Unit)+'Residential Energy Coefficients'!$D$9+'Residential Energy Coefficients'!$D$10*LN(B_HH_Income)+'Residential Energy Coefficients'!$D$11*B_HH_Size+IF(B_Pct_Owner=1,'Residential Energy Coefficients'!$D$12,0)+'Residential Energy Coefficients'!$D$16*LN(Residential_Energy_Cost)),IF(B_Housing_Type="TH",EXP('Residential Energy Coefficients'!$G$3+'Residential Energy Coefficients'!$G$4*LN(B_Net_Sq_Ft_per_Unit)+'Residential Energy Coefficients'!$G$10*LN(B_HH_Income)+'Residential Energy Coefficients'!$G$11*B_HH_Size+'Residential Energy Coefficients'!$G$16*LN(Residential_Energy_Cost)),IF(B_Housing_Type="MF",EXP('Residential Energy Coefficients'!$J$3+'Residential Energy Coefficients'!$J$4*LN(B_Net_Sq_Ft_per_Unit)+'Residential Energy Coefficients'!$J$10*LN(B_HH_Income)+'Residential Energy Coefficients'!$J$11*B_HH_Size+IF(B_Pct_Owner=1,'Residential Energy Coefficients'!$J$12,0)+'Residential Energy Coefficients'!$J$16*LN(Residential_Energy_Cost)+'Residential Energy Coefficients'!$J$19),IF(B_Housing_Type="MH",EXP('Residential Energy Coefficients'!$M$3+'Residential Energy Coefficients'!$M$4*LN(B_Net_Sq_Ft_per_Unit)+'Residential Energy Coefficients'!$M$11*B_HH_Size+'Residential Energy Coefficients'!$M$16*LN(Residential_Energy_Cost)+'Residential Energy Coefficients'!$M$19),0))))/1000,0) -> 0 | CC13: 0 | CD13: =(IFERROR(EXP('Commercial Energy Coefficients'!$B$3+LN(B_Retail_Gross_Sq_Ft)*'Commercial Energy Coefficients'!$B$4+'Commercial Energy Coefficients'!$B$11+'Commercial Energy Coefficients'!$B$14+'Commercial Energy Coefficients'!$B$18*LN((B_Ret_Emp_Acre)*(B_Lot_Size/43560))+'Commercial Energy Coefficients'!$B$19*LN(40)+'Commercial Energy Coefficients'!$B$21+'Commercial Energy Coefficients'!$B$22*LN(Commercial_Energy_Cost)+'Commercial Energy Coefficients'!$B$23*IFERROR(LOOKUP(Metro_Select,Energy_Metro_Lookup,HDD),0)),0)+IFERROR(EXP('Commercial Energy Coefficients'!$E$3+LN(B_Office_Gross_Sq_Ft)*'Commercial Energy Coefficients'!$E$4+'Commercial Energy Coefficients'!$E$11+'Commercial Energy Coefficients'!$E$14+'Commercial Energy Coefficients'!$E$18*LN((B_Off_Emp_Acre)*(B_Lot_Size/43560))+'Commercial Energy Coefficients'!$E$19*LN(40)+'Commercial Energy Coefficients'!$E$21+'Commercial Energy Coefficients'!$E$22*LN(Commercial_Energy_Cost)+'Commercial Energy Coefficients'!$E$23*IFERROR(LOOKUP(Metro_Select,Energy_Metro_Lookup,HDD),0)),0)+IFERROR(EXP('Commercial Energy Coefficients'!$H$3+LN(B_Public_Gross_Sq_Ft)*'Commercial Energy Coefficients'!$H$4+'Commercial Energy Coefficients'!$H$11+'Commercial Energy Coefficients'!$H$14+'Commercial Energy Coefficients'!$H$18*LN((B_Pub_Emp_Acre)*(B_Lot_Size/43560))+'Commercial Energy Coefficients'!$H$19*LN(40)+'Commercial Energy Coefficients'!$H$21+'Commercial Energy Coefficients'!$H$22*LN(Commercial_Energy_Cost)+'Commercial Energy Coefficients'!$H$23*IFERROR(LOOKUP(Metro_Select,Energy_Metro_Lookup,HDD),0)),0))/1000 -> 0 | CE13: =(IFERROR(EXP('Commercial Energy Coefficients'!$C$3+LN((B_Retail_Gross_Sq_Ft))*'Commercial Energy Coefficients'!$C$4+'Commercial Energy Coefficients'!$C$11+'Commercial Energy Coefficients'!$C$14+'Commercial Energy Coefficients'!$C$18*LN((B_Ret_Emp_Acre)*(B_Lot_Size/43560))+'Commercial Energy Coefficients'!$C$19*LN(40)+'Commercial Energy Coefficients'!$C$21+'Commercial Energy Coefficients'!$C$22*LN(Commercial_Energy_Cost)+'Commercial Energy Coefficients'!$C$24*IFERROR(LOOKUP(Metro_Select,Energy_Metro_Lookup,CDD),0)),0)+IFERROR(EXP('Commercial Energy Coefficients'!$F$3+LN((B_Office_Gross_Sq_Ft))*'Commercial Energy Coefficients'!$F$4+'Commercial Energy Coefficients'!$F$11+'Commercial Energy Coefficients'!$F$14+'Commercial Energy Coefficients'!$F$18*LN((B_Off_Emp_Acre)*(B_Lot_Size/43560))+'Commercial Energy Coefficients'!$F$19*LN(40)+'Commercial Energy Coefficients'!$F$21+'Commercial Energy Coefficients'!$F$22*LN(Commercial_Energy_Cost)+'Commercial Energy Coefficients'!$F$24*IFERROR(LOOKUP(Metro_Select,Energy_Metro_Lookup,CDD),0)),0)+IFERROR(EXP('Commercial Energy Coefficients'!$I$3+LN((B_Public_Gross_Sq_Ft))*'Commercial Energy Coefficients'!$I$4+'Commercial Energy Coefficients'!$I$11+'Commercial Energy Coefficients'!$I$14+'Commercial Energy Coefficients'!$I$18*LN((B_Pub_Emp_Acre)*(B_Lot_Size/43560))+'Commercial Energy Coefficients'!$I$19*LN(40)+'Commercial Energy Coefficients'!$I$21+'Commercial Energy Coefficients'!$I$22*LN(Commercial_Energy_Cost)+'Commercial Energy Coefficients'!$I$24*IFERROR(LOOKUP(Metro_Select,Energy_Metro_Lookup,CDD),0)),0))/1000 -> 0 | CF13: =(IFERROR(EXP('Commercial Energy Coefficients'!$D$3+LN((B_Retail_Gross_Sq_Ft))*'Commercial Energy Coefficients'!$D$4+'Commercial Energy Coefficients'!$D$14+'Commercial Energy Coefficients'!$D$18*LN((B_Ret_Emp_Acre)*(B_Lot_Size/43560))+'Commercial Energy Coefficients'!$D$19*LN(40)+'Commercial Energy Coefficients'!$D$21+'Commercial Energy Coefficients'!$D$22*LN(Commercial_Energy_Cost)),0)+IFERROR(EXP('Commercial Energy Coefficients'!$G$3+LN((B_Office_Gross_Sq_Ft))*'Commercial Energy Coefficients'!$G$4+'Commercial Energy Coefficients'!$G$14+'Commercial Energy Coefficients'!$G$18*LN((B_Off_Emp_Acre)*(B_Lot_Size/43560))+'Commercial Energy Coefficients'!$G$19*LN(40)+'Commercial Energy Coefficients'!$G$21+'Commercial Energy Coefficients'!$G$22*LN(Commercial_Energy_Cost)),0)+IFERROR(EXP('Commercial Energy Coefficients'!$J$3+LN((B_Public_Gross_Sq_Ft))*'Commercial Energy Coefficients'!$J$4+'Commercial Energy Coefficients'!$J$14+'Commercial Energy Coefficients'!$J$18*LN((B_Pub_Emp_Acre)*(B_Lot_Size/43560))+'Commercial Energy Coefficients'!$J$19*LN(40)+'Commercial Energy Coefficients'!$J$21+'Commercial Energy Coefficients'!$J$22*LN(Commercial_Energy_Cost)),0))/1000 -> 0 | CG13: 0 | CH13: 0 | CI13: 0 | CJ13: 0 | CK13: 0 | CL13: 0 | CM13: 0 | CN13: 0 | CO13: 0 | CP13: =IF((D13*F13)>'Project Info'!$B$123*43560,'Project Info'!$B$123*43560*'Project Info'!$B$122,D13*F13*'Project Info'!$B$122) -> 0 | CQ13: =IF(AF13="",0,IF(AF13="MF",'Project Info'!$B$129,IF(AF13="TH",'Project Info'!$B$130,IF(AND(OR(AF13="SF",AF13="MH"),AC13>0,AC13<3000),'Project Info'!$B$131,IF(AND(OR(AF13="SF",AF13="MH"),AC13>=3000),'Project Info'!$B$132))))) -> 0 | CR13: =IF(AW13=0,0,(AZ13/AW13*'Project Info'!$C$133)+(BC13/AW13*'Project Info'!$C$134)+(BF13/AW13*'Project Info'!$C$135)) -> 0 | CS13: 0 | CT13: 0 | CU13: =IF(AF13="",0,IF(AF13="MF",'Project Info'!$B$141,IF(AF13="TH",'Project Info'!$B$142,IF(AND(OR(AF13="SF",AF13="MH"),AC13>0,AC13<3000),'Project Info'!$B$143,IF(AND(OR(AF13="SF",AF13="MH"),AC13>=3000),'Project Info'!$B$144))))) -> 0 | CV13: =IF(AW13=0,0,(AZ13/AW13*'Project Info'!$C$145)+(BC13/AW13*'Project Info'!$C$146)+(BF13/AW13*'Project Info'!$C$147)) -> 0 | CW13: 0 | CX13: 0 | CY13: =IF(AF13="",0,IF(AF13="MF",'Project Info'!$B$154,IF(AF13="TH",'Project Info'!$B$155,IF(AND(OR(AF13="SF",AF13="MH"),AC13>0,AC13<3000),'Project Info'!$B$156,IF(AND(OR(AF13="SF",AF13="MH"),AC13>=3000),'Project Info'!$B$157))))) -> 0 | CZ13: =IF(AW13=0,0,(AZ13/AW13*'Project Info'!$C$158)+(BC13/AW13*'Project Info'!$C$159)+(BF13/AW13*'Project Info'!$C$160)) -> 0 | DA13: 0 | DB13: 0 | DD13: 0 | DE13: 0 | DG13: 0 | DI13: 0 | DJ13: 0 | DK13: 0 | DL13: 0 | DM13: 0 | DN13: 0 | DO13: 0 | DP13: 0
B14: 11 | J14: 0 | L14: 0 | M14: 0 | N14: 0 | O14: 0 | P14: 0 | Q14: 0 | R14: 0 | S14: =SUM(T14:Z14) -> 0 | AA14: 0 | AD14: =IF(AC14=0,0,(AA14/AC14)) -> 0 | AE14: 0 | AH14: 0 | AJ14: 0 | AL14: =IF(AH14=0,0,AK14*AB14) -> 0 | AM14: =IF(AL14>0,(AS14*HCost_Max_per_Income_Owner)/12,0) -> 0 | AN14: =IF(AF14="",0,IF(AF14="MF",'Project Info'!$F$8,IF(AF14="TH",'Project Info'!$F$9,IF(AF14="SF",'Project Info'!$F$11,IF(AF14="MH",'Project Info'!$F$13,0))))) -> 0 | AO14: 0 | AP14: =IF(AF14="",0,IF(AF14="MF",IF((AB14/'Project Info'!$D$8)>'Project Info'!$E$8,'Project Info'!$E$8,AB14/'Project Info'!$D$8),IF(AF14="TH",IF((AB14/'Project Info'!$D$9)>'Project Info'!$E$9,'Project Info'!$E$9,AB14/'Project Info'!$D$9),IF(AF14="SF",IF((AB14/'Project Info'!$D$11)>'Project Info'!$E$11,'Project Info'!$E$11,AB14/'Project Info'!$D$11),IF(AF14="MH",IF((AB14/'Project Info'!$D$13)>'Project Info'!$E$13,'Project Info'!$E$13,AB14/'Project Info'!$D$13)))))) -> 0 | AQ14: =AP14*0.6 -> 0 | AR14: 0 | AS14: =IF(AG14=1,AJ14*12/HCost_Max_per_Income_Renter,IF(AG14=0,(12/HCost_Max_per_Income_Owner)*(AL14*((HCost_Interest_Rate/12*POWER(1+HCost_Interest_Rate/12,12*HCost_Mortgage_Yrs))/(POWER(1+HCost_Interest_Rate/12,12*HCost_Mortgage_Yrs)-1))),IF(OR(AG14>0,AG14<1),(AG14*AJ14*(12/HCost_Max_per_Income_Renter))+(AH14*(12/HCost_Max_per_Income_Owner)*(AL14*((HCost_Interest_Rate/12*POWER(1+HCost_Interest_Rate/12,12*HCost_Mortgage_Yrs))/(POWER(1+HCost_Interest_Rate/12,12*HCost_Mortgage_Yrs)-1))))))) -> 0 | AT14: =IF(AW14=0,0,AP14*((AZ14/AW14*Wage_RET)+(BC14/AW14*Wage_OFF)+(BF14/AW14*Wage_IND)+(BI14/AW14*Wage_OFF)+(BL14/AW14*Wage_EDU)+(BO14/AW14*Wage_HOTEL))) -> 0 | AU14: 0 | AV14: =AW14*(B_Lot_Size/43560) -> 0 | AW14: =AZ14+BC14+BF14+BI14+BL14+BO14 -> 0 | AX14: 0 | AZ14: =IF(AY14=0,0,(AX14/AY14)*(43560/B_Lot_Size)) -> 0 | BA14: 0 | BC14: =IF(BB14=0,0,(BA14/BB14)*(43560/B_Lot_Size)) -> 0 | BD14: 0 | BF14: =IF(BE14=0,0,(BD14/BE14)*(43560/B_Lot_Size)) -> 0 | BG14: 0 | BI14: =IF(BH14=0,0,(BG14/BH14)*(43560/B_Lot_Size)) -> 0 | BJ14: 0 | BL14: =IF(BK14=0,0,(BJ14/BK14)*(43560/B_Lot_Size)) -> 0 | BM14: 0 | BO14: 0 | BR14: 0 | BS14: 0 | BU14: 0 | BY14: 0 | BZ14: =IFERROR(IF(B_Housing_Type="SF",EXP('Residential Energy Coefficients'!$B$3+'Residential Energy Coefficients'!$B$4*LN(B_Net_Sq_Ft_per_Unit)+'Residential Energy Coefficients'!$B$9+'Residential Energy Coefficients'!$B$10*LN(B_HH_Income)+'Residential Energy Coefficients'!$B$16*LN(Residential_Energy_Cost)+'Residential Energy Coefficients'!$B$20+'Residential Energy Coefficients'!$B$24*IFERROR(LOOKUP(Metro_Select,Energy_Metro_Lookup,HDD),0)),IF(B_Housing_Type="TH",EXP('Residential Energy Coefficients'!$E$3+'Residential Energy Coefficients'!$E$4*LN(B_Net_Sq_Ft_per_Unit)+'Residential Energy Coefficients'!$E$9+'Residential Energy Coefficients'!$E$16*LN(Residential_Energy_Cost)+'Residential Energy Coefficients'!$E$19+'Residential Energy Coefficients'!$E$20+'Residential Energy Coefficients'!$E$24*IFERROR(LOOKUP(Metro_Select,Energy_Metro_Lookup,HDD),0)),IF(B_Housing_Type="MF",EXP('Residential Energy Coefficients'!$H$3+'Residential Energy Coefficients'!$H$4*LN(B_Net_Sq_Ft_per_Unit)+'Residential Energy Coefficients'!$H$9+IF(B_Pct_Owner=1,'Residential Energy Coefficients'!$H$12,0)+'Residential Energy Coefficients'!$H$16*LN(Residential_Energy_Cost)+'Residential Energy Coefficients'!$H$20+'Residential Energy Coefficients'!$H$24*IFERROR(LOOKUP(Metro_Select,Energy_Metro_Lookup,HDD),0)),IF(B_Housing_Type="MH",EXP('Residential Energy Coefficients'!$K$3+'Residential Energy Coefficients'!$K$16*LN(Residential_Energy_Cost)+'Residential Energy Coefficients'!$K$24*IFERROR(LOOKUP(Metro_Select,Energy_Metro_Lookup,HDD),0)),0))))/1000,0) -> 0 | CA14: =IFERROR(IF(B_Housing_Type="SF",EXP('Residential Energy Coefficients'!$C$3+'Residential Energy Coefficients'!$C$4*LN(B_Net_Sq_Ft_per_Unit)+'Residential Energy Coefficients'!$C$10*LN(B_HH_Income)+'Residential Energy Coefficients'!$C$11*B_HH_Size+'Residential Energy Coefficients'!$C$16*LN(Residential_Energy_Cost)+'Residential Energy Coefficients'!$C$19+'Residential Energy Coefficients'!$C$22+'Residential Energy Coefficients'!$C$25*IFERROR(LOOKUP(Metro_Select,Energy_Metro_Lookup,CDD),0)),IF(B_Housing_Type="TH",EXP('Residential Energy Coefficients'!$F$3+'Residential Energy Coefficients'!$F$4*LN(B_Net_Sq_Ft_per_Unit)+'Residential Energy Coefficients'!$F$10*LN(B_HH_Income)+'Residential Energy Coefficients'!$F$11*B_HH_Size+IF(B_Pct_Owner=1,'Residential Energy Coefficients'!$F$12,0)+'Residential Energy Coefficients'!$F$16*LN(Residential_Energy_Cost)+'Residential Energy Coefficients'!$F$22+'Residential Energy Coefficients'!$F$25*IFERROR(LOOKUP(Metro_Select,Energy_Metro_Lookup,CDD),0)),IF(B_Housing_Type="MF",EXP('Residential Energy Coefficients'!$I$3+'Residential Energy Coefficients'!$I$4*LN(B_Net_Sq_Ft_per_Unit)+'Residential Energy Coefficients'!$I$9+'Residential Energy Coefficients'!$I$11*B_HH_Size+'Residential Energy Coefficients'!$I$16*LN(Residential_Energy_Cost)+'Residential Energy Coefficients'!$I$22+'Residential Energy Coefficients'!$I$25*IFERROR(LOOKUP(Metro_Select,Energy_Metro_Lookup,CDD),0)),IF(B_Housing_Type="MH",EXP('Residential Energy Coefficients'!$L$3+'Residential Energy Coefficients'!$L$11*B_HH_Size+'Residential Energy Coefficients'!$L$16*LN(Residential_Energy_Cost)+'Residential Energy Coefficients'!$L$22+'Residential Energy Coefficients'!$L$25*IFERROR(LOOKUP(Metro_Select,Energy_Metro_Lookup,CDD),0)),0))))/1000,0) -> 0 | CB14: =IFERROR(IF(B_Housing_Type="SF",EXP('Residential Energy Coefficients'!$D$3+'Residential Energy Coefficients'!$D$4*LN(B_Net_Sq_Ft_per_Unit)+'Residential Energy Coefficients'!$D$9+'Residential Energy Coefficients'!$D$10*LN(B_HH_Income)+'Residential Energy Coefficients'!$D$11*B_HH_Size+IF(B_Pct_Owner=1,'Residential Energy Coefficients'!$D$12,0)+'Residential Energy Coefficients'!$D$16*LN(Residential_Energy_Cost)),IF(B_Housing_Type="TH",EXP('Residential Energy Coefficients'!$G$3+'Residential Energy Coefficients'!$G$4*LN(B_Net_Sq_Ft_per_Unit)+'Residential Energy Coefficients'!$G$10*LN(B_HH_Income)+'Residential Energy Coefficients'!$G$11*B_HH_Size+'Residential Energy Coefficients'!$G$16*LN(Residential_Energy_Cost)),IF(B_Housing_Type="MF",EXP('Residential Energy Coefficients'!$J$3+'Residential Energy Coefficients'!$J$4*LN(B_Net_Sq_Ft_per_Unit)+'Residential Energy Coefficients'!$J$10*LN(B_HH_Income)+'Residential Energy Coefficients'!$J$11*B_HH_Size+IF(B_Pct_Owner=1,'Residential Energy Coefficients'!$J$12,0)+'Residential Energy Coefficients'!$J$16*LN(Residential_Energy_Cost)+'Residential Energy Coefficients'!$J$19),IF(B_Housing_Type="MH",EXP('Residential Energy Coefficients'!$M$3+'Residential Energy Coefficients'!$M$4*LN(B_Net_Sq_Ft_per_Unit)+'Residential Energy Coefficients'!$M$11*B_HH_Size+'Residential Energy Coefficients'!$M$16*LN(Residential_Energy_Cost)+'Residential Energy Coefficients'!$M$19),0))))/1000,0) -> 0 | CC14: =SUM(BZ14:CB14) -> 0 | CD14: =(IFERROR(EXP('Commercial Energy Coefficients'!$B$3+LN(B_Retail_Gross_Sq_Ft)*'Commercial Energy Coefficients'!$B$4+'Commercial Energy Coefficients'!$B$11+'Commercial Energy Coefficients'!$B$14+'Commercial Energy Coefficients'!$B$18*LN((B_Ret_Emp_Acre)*(B_Lot_Size/43560))+'Commercial Energy Coefficients'!$B$19*LN(40)+'Commercial Energy Coefficients'!$B$21+'Commercial Energy Coefficients'!$B$22*LN(Commercial_Energy_Cost)+'Commercial Energy Coefficients'!$B$23*IFERROR(LOOKUP(Metro_Select,Energy_Metro_Lookup,HDD),0)),0)+IFERROR(EXP('Commercial Energy Coefficients'!$E$3+LN(B_Office_Gross_Sq_Ft)*'Commercial Energy Coefficients'!$E$4+'Commercial Energy Coefficients'!$E$11+'Commercial Energy Coefficients'!$E$14+'Commercial Energy Coefficients'!$E$18*LN((B_Off_Emp_Acre)*(B_Lot_Size/43560))+'Commercial Energy Coefficients'!$E$19*LN(40)+'Commercial Energy Coefficients'!$E$21+'Commercial Energy Coefficients'!$E$22*LN(Commercial_Energy_Cost)+'Commercial Energy Coefficients'!$E$23*IFERROR(LOOKUP(Metro_Select,Energy_Metro_Lookup,HDD),0)),0)+IFERROR(EXP('Commercial Energy Coefficients'!$H$3+LN(B_Public_Gross_Sq_Ft)*'Commercial Energy Coefficients'!$H$4+'Commercial Energy Coefficients'!$H$11+'Commercial Energy Coefficients'!$H$14+'Commercial Energy Coefficients'!$H$18*LN((B_Pub_Emp_Acre)*(B_Lot_Size/43560))+'Commercial Energy Coefficients'!$H$19*LN(40)+'Commercial Energy Coefficients'!$H$21+'Commercial Energy Coefficients'!$H$22*LN(Commercial_Energy_Cost)+'Commercial Energy Coefficients'!$H$23*IFERROR(LOOKUP(Metro_Select,Energy_Metro_Lookup,HDD),0)),0))/1000 -> 0 | CE14: =(IFERROR(EXP('Commercial Energy Coefficients'!$C$3+LN((B_Retail_Gross_Sq_Ft))*'Commercial Energy Coefficients'!$C$4+'Commercial Energy Coefficients'!$C$11+'Commercial Energy Coefficients'!$C$14+'Commercial Energy Coefficients'!$C$18*LN((B_Ret_Emp_Acre)*(B_Lot_Size/43560))+'Commercial Energy Coefficients'!$C$19*LN(40)+'Commercial Energy Coefficients'!$C$21+'Commercial Energy Coefficients'!$C$22*LN(Commercial_Energy_Cost)+'Commercial Energy Coefficients'!$C$24*IFERROR(LOOKUP(Metro_Select,Energy_Metro_Lookup,CDD),0)),0)+IFERROR(EXP('Commercial Energy Coefficients'!$F$3+LN((B_Office_Gross_Sq_Ft))*'Commercial Energy Coefficients'!$F$4+'Commercial Energy Coefficients'!$F$11+'Commercial Energy Coefficients'!$F$14+'Commercial Energy Coefficients'!$F$18*LN((B_Off_Emp_Acre)*(B_Lot_Size/43560))+'Commercial Energy Coefficients'!$F$19*LN(40)+'Commercial Energy Coefficients'!$F$21+'Commercial Energy Coefficients'!$F$22*LN(Commercial_Energy_Cost)+'Commercial Energy Coefficients'!$F$24*IFERROR(LOOKUP(Metro_Select,Energy_Metro_Lookup,CDD),0)),0)+IFERROR(EXP('Commercial Energy Coefficients'!$I$3+LN((B_Public_Gross_Sq_Ft))*'Commercial Energy Coefficients'!$I$4+'Commercial Energy Coefficients'!$I$11+'Commercial Energy Coefficients'!$I$14+'Commercial Energy Coefficients'!$I$18*LN((B_Pub_Emp_Acre)*(B_Lot_Size/43560))+'Commercial Energy Coefficients'!$I$19*LN(40)+'Commercial Energy Coefficients'!$I$21+'Commercial Energy Coefficients'!$I$22*LN(Commercial_Energy_Cost)+'Commercial Energy Coefficients'!$I$24*IFERROR(LOOKUP(Metro_Select,Energy_Metro_Lookup,CDD),0)),0))/1000 -> 0 | CF14: =(IFERROR(EXP('Commercial Energy Coefficients'!$D$3+LN((B_Retail_Gross_Sq_Ft))*'Commercial Energy Coefficients'!$D$4+'Commercial Energy Coefficients'!$D$14+'Commercial Energy Coefficients'!$D$18*LN((B_Ret_Emp_Acre)*(B_Lot_Size/43560))+'Commercial Energy Coefficients'!$D$19*LN(40)+'Commercial Energy Coefficients'!$D$21+'Commercial Energy Coefficients'!$D$22*LN(Commercial_Energy_Cost)),0)+IFERROR(EXP('Commercial Energy Coefficients'!$G$3+LN((B_Office_Gross_Sq_Ft))*'Commercial Energy Coefficients'!$G$4+'Commercial Energy Coefficients'!$G$14+'Commercial Energy Coefficients'!$G$18*LN((B_Off_Emp_Acre)*(B_Lot_Size/43560))+'Commercial Energy Coefficients'!$G$19*LN(40)+'Commercial Energy Coefficients'!$G$21+'Commercial Energy Coefficients'!$G$22*LN(Commercial_Energy_Cost)),0)+IFERROR(EXP('Commercial Energy Coefficients'!$J$3+LN((B_Public_Gross_Sq_Ft))*'Commercial Energy Coefficients'!$J$4+'Commercial Energy Coefficients'!$J$14+'Commercial Energy Coefficients'!$J$18*LN((B_Pub_Emp_Acre)*(B_Lot_Size/43560))+'Commercial Energy Coefficients'!$J$19*LN(40)+'Commercial Energy Coefficients'!$J$21+'Commercial Energy Coefficients'!$J$22*LN(Commercial_Energy_Cost)),0))/1000 -> 0 | CG14: =SUM(CD14:CF14) -> 0 | CH14: 0 | CI14: 0 | CJ14: 0 | CK14: =(CC14*Residential_Energy_Cost)/12 -> 0 | CL14: 0 | CM14: 0 | CN14: 0 | CO14: =IFERROR(CP14/B_HU_Building,0) -> 0 | CP14: =IF((D14*F14)>'Project Info'!$B$123*43560,'Project Info'!$B$123*43560*'Project Info'!$B$122,D14*F14*'Project Info'!$B$122) -> 0 | CQ14: =IF(AF14="",0,IF(AF14="MF",'Project Info'!$B$129,IF(AF14="TH",'Project Info'!$B$130,IF(AND(OR(AF14="SF",AF14="MH"),AC14>0,AC14<3000),'Project Info'!$B$131,IF(AND(OR(AF14="SF",AF14="MH"),AC14>=3000),'Project Info'!$B$132))))) -> 0 | CR14: =IF(AW14=0,0,(AZ14/AW14*'Project Info'!$C$133)+(BC14/AW14*'Project Info'!$C$134)+(BF14/AW14*'Project Info'!$C$135)) -> 0 | CS14: =(CQ14*AP14) -> 0 | CT14: 0 | CU14: =IF(AF14="",0,IF(AF14="MF",'Project Info'!$B$141,IF(AF14="TH",'Project Info'!$B$142,IF(AND(OR(AF14="SF",AF14="MH"),AC14>0,AC14<3000),'Project Info'!$B$143,IF(AND(OR(AF14="SF",AF14="MH"),AC14>=3000),'Project Info'!$B$144))))) -> 0 | CV14: =IF(AW14=0,0,(AZ14/AW14*'Project Info'!$C$145)+(BC14/AW14*'Project Info'!$C$146)+(BF14/AW14*'Project Info'!$C$147)) -> 0 | CW14: =(CU14*B_HH_Size) -> 0 | CX14: 0 | CY14: =IF(AF14="",0,IF(AF14="MF",'Project Info'!$B$154,IF(AF14="TH",'Project Info'!$B$155,IF(AND(OR(AF14="SF",AF14="MH"),AC14>0,AC14<3000),'Project Info'!$B$156,IF(AND(OR(AF14="SF",AF14="MH"),AC14>=3000),'Project Info'!$B$157))))) -> 0 | CZ14: =IF(AW14=0,0,(AZ14/AW14*'Project Info'!$C$158)+(BC14/AW14*'Project Info'!$C$159)+(BF14/AW14*'Project Info'!$C$160)) -> 0 | DA14: =(CY14*$AP14) -> 0 | DB14: 0 | DD14: 0 | DE14: =IF($D14=0,0,DD14*(43560/B_Lot_Size)) -> 0 | DG14: 0 | DI14: 0 | DJ14: =IF(B_Lot_Size=0,0,DH14*(43560/B_Lot_Size)) -> 0 | DK14: 0 | DL14: 0 | DM14: =IFERROR(DK14*(43560/B_Lot_Size),0) -> 0 | DN14: 0 | DO14: 0 | DP14: 0
B15: 12 | J15: 0 | L15: 0 | M15: 0 | N15: 0 | O15: 0 | P15: 0 | Q15: 0 | R15: 0 | S15: 0 | AA15: 0 | AD15: 0 | AE15: 0 | AH15: 0 | AJ15: 0 | AL15: 0 | AM15: 0 | AN15: =IF(AF15="",0,IF(AF15="MF",'Project Info'!$F$8,IF(AF15="TH",'Project Info'!$F$9,IF(AF15="SF",'Project Info'!$F$11,IF(AF15="MH",'Project Info'!$F$13,0))))) -> 0 | AO15: 0 | AP15: =IF(AF15="",0,IF(AF15="MF",IF((AB15/'Project Info'!$D$8)>'Project Info'!$E$8,'Project Info'!$E$8,AB15/'Project Info'!$D$8),IF(AF15="TH",IF((AB15/'Project Info'!$D$9)>'Project Info'!$E$9,'Project Info'!$E$9,AB15/'Project Info'!$D$9),IF(AF15="SF",IF((AB15/'Project Info'!$D$11)>'Project Info'!$E$11,'Project Info'!$E$11,AB15/'Project Info'!$D$11),IF(AF15="MH",IF((AB15/'Project Info'!$D$13)>'Project Info'!$E$13,'Project Info'!$E$13,AB15/'Project Info'!$D$13)))))) -> 0 | AQ15: 0 | AR15: 0 | AS15: 0 | AT15: 0 | AU15: 0 | AV15: 0 | AW15: 0 | AX15: 0 | AZ15: 0 | BA15: 0 | BC15: 0 | BD15: 0 | BF15: 0 | BG15: 0 | BI15: 0 | BJ15: 0 | BL15: 0 | BM15: 0 | BO15: 0 | BR15: 0 | BS15: 0 | BU15: 0 | BY15: 0 | BZ15: =IFERROR(IF(B_Housing_Type="SF",EXP('Residential Energy Coefficients'!$B$3+'Residential Energy Coefficients'!$B$4*LN(B_Net_Sq_Ft_per_Unit)+'Residential Energy Coefficients'!$B$9+'Residential Energy Coefficients'!$B$10*LN(B_HH_Income)+'Residential Energy Coefficients'!$B$16*LN(Residential_Energy_Cost)+'Residential Energy Coefficients'!$B$20+'Residential Energy Coefficients'!$B$24*IFERROR(LOOKUP(Metro_Select,Energy_Metro_Lookup,HDD),0)),IF(B_Housing_Type="TH",EXP('Residential Energy Coefficients'!$E$3+'Residential Energy Coefficients'!$E$4*LN(B_Net_Sq_Ft_per_Unit)+'Residential Energy Coefficients'!$E$9+'Residential Energy Coefficients'!$E$16*LN(Residential_Energy_Cost)+'Residential Energy Coefficients'!$E$19+'Residential Energy Coefficients'!$E$20+'Residential Energy Coefficients'!$E$24*IFERROR(LOOKUP(Metro_Select,Energy_Metro_Lookup,HDD),0)),IF(B_Housing_Type="MF",EXP('Residential Energy Coefficients'!$H$3+'Residential Energy Coefficients'!$H$4*LN(B_Net_Sq_Ft_per_Unit)+'Residential Energy Coefficients'!$H$9+IF(B_Pct_Owner=1,'Residential Energy Coefficients'!$H$12,0)+'Residential Energy Coefficients'!$H$16*LN(Residential_Energy_Cost)+'Residential Energy Coefficients'!$H$20+'Residential Energy Coefficients'!$H$24*IFERROR(LOOKUP(Metro_Select,Energy_Metro_Lookup,HDD),0)),IF(B_Housing_Type="MH",EXP('Residential Energy Coefficients'!$K$3+'Residential Energy Coefficients'!$K$16*LN(Residential_Energy_Cost)+'Residential Energy Coefficients'!$K$24*IFERROR(LOOKUP(Metro_Select,Energy_Metro_Lookup,HDD),0)),0))))/1000,0) -> 0 | CA15: =IFERROR(IF(B_Housing_Type="SF",EXP('Residential Energy Coefficients'!$C$3+'Residential Energy Coefficients'!$C$4*LN(B_Net_Sq_Ft_per_Unit)+'Residential Energy Coefficients'!$C$10*LN(B_HH_Income)+'Residential Energy Coefficients'!$C$11*B_HH_Size+'Residential Energy Coefficients'!$C$16*LN(Residential_Energy_Cost)+'Residential Energy Coefficients'!$C$19+'Residential Energy Coefficients'!$C$22+'Residential Energy Coefficients'!$C$25*IFERROR(LOOKUP(Metro_Select,Energy_Metro_Lookup,CDD),0)),IF(B_Housing_Type="TH",EXP('Residential Energy Coefficients'!$F$3+'Residential Energy Coefficients'!$F$4*LN(B_Net_Sq_Ft_per_Unit)+'Residential Energy Coefficients'!$F$10*LN(B_HH_Income)+'Residential Energy Coefficients'!$F$11*B_HH_Size+IF(B_Pct_Owner=1,'Residential Energy Coefficients'!$F$12,0)+'Residential Energy Coefficients'!$F$16*LN(Residential_Energy_Cost)+'Residential Energy Coefficients'!$F$22+'Residential Energy Coefficients'!$F$25*IFERROR(LOOKUP(Metro_Select,Energy_Metro_Lookup,CDD),0)),IF(B_Housing_Type="MF",EXP('Residential Energy Coefficients'!$I$3+'Residential Energy Coefficients'!$I$4*LN(B_Net_Sq_Ft_per_Unit)+'Residential Energy Coefficients'!$I$9+'Residential Energy Coefficients'!$I$11*B_HH_Size+'Residential Energy Coefficients'!$I$16*LN(Residential_Energy_Cost)+'Residential Energy Coefficients'!$I$22+'Residential Energy Coefficients'!$I$25*IFERROR(LOOKUP(Metro_Select,Energy_Metro_Lookup,CDD),0)),IF(B_Housing_Type="MH",EXP('Residential Energy Coefficients'!$L$3+'Residential Energy Coefficients'!$L$11*B_HH_Size+'Residential Energy Coefficients'!$L$16*LN(Residential_Energy_Cost)+'Residential Energy Coefficients'!$L$22+'Residential Energy Coefficients'!$L$25*IFERROR(LOOKUP(Metro_Select,Energy_Metro_Lookup,CDD),0)),0))))/1000,0) -> 0 | CB15: =IFERROR(IF(B_Housing_Type="SF",EXP('Residential Energy Coefficients'!$D$3+'Residential Energy Coefficients'!$D$4*LN(B_Net_Sq_Ft_per_Unit)+'Residential Energy Coefficients'!$D$9+'Residential Energy Coefficients'!$D$10*LN(B_HH_Income)+'Residential Energy Coefficients'!$D$11*B_HH_Size+IF(B_Pct_Owner=1,'Residential Energy Coefficients'!$D$12,0)+'Residential Energy Coefficients'!$D$16*LN(Residential_Energy_Cost)),IF(B_Housing_Type="TH",EXP('Residential Energy Coefficients'!$G$3+'Residential Energy Coefficients'!$G$4*LN(B_Net_Sq_Ft_per_Unit)+'Residential Energy Coefficients'!$G$10*LN(B_HH_Income)+'Residential Energy Coefficients'!$G$11*B_HH_Size+'Residential Energy Coefficients'!$G$16*LN(Residential_Energy_Cost)),IF(B_Housing_Type="MF",EXP('Residential Energy Coefficients'!$J$3+'Residential Energy Coefficients'!$J$4*LN(B_Net_Sq_Ft_per_Unit)+'Residential Energy Coefficients'!$J$10*LN(B_HH_Income)+'Residential Energy Coefficients'!$J$11*B_HH_Size+IF(B_Pct_Owner=1,'Residential Energy Coefficients'!$J$12,0)+'Residential Energy Coefficients'!$J$16*LN(Residential_Energy_Cost)+'Residential Energy Coefficients'!$J$19),IF(B_Housing_Type="MH",EXP('Residential Energy Coefficients'!$M$3+'Residential Energy Coefficients'!$M$4*LN(B_Net_Sq_Ft_per_Unit)+'Residential Energy Coefficients'!$M$11*B_HH_Size+'Residential Energy Coefficients'!$M$16*LN(Residential_Energy_Cost)+'Residential Energy Coefficients'!$M$19),0))))/1000,0) -> 0 | CC15: 0 | CD15: =(IFERROR(EXP('Commercial Energy Coefficients'!$B$3+LN(B_Retail_Gross_Sq_Ft)*'Commercial Energy Coefficients'!$B$4+'Commercial Energy Coefficients'!$B$11+'Commercial Energy Coefficients'!$B$14+'Commercial Energy Coefficients'!$B$18*LN((B_Ret_Emp_Acre)*(B_Lot_Size/43560))+'Commercial Energy Coefficients'!$B$19*LN(40)+'Commercial Energy Coefficients'!$B$21+'Commercial Energy Coefficients'!$B$22*LN(Commercial_Energy_Cost)+'Commercial Energy Coefficients'!$B$23*IFERROR(LOOKUP(Metro_Select,Energy_Metro_Lookup,HDD),0)),0)+IFERROR(EXP('Commercial Energy Coefficients'!$E$3+LN(B_Office_Gross_Sq_Ft)*'Commercial Energy Coefficients'!$E$4+'Commercial Energy Coefficients'!$E$11+'Commercial Energy Coefficients'!$E$14+'Commercial Energy Coefficients'!$E$18*LN((B_Off_Emp_Acre)*(B_Lot_Size/43560))+'Commercial Energy Coefficients'!$E$19*LN(40)+'Commercial Energy Coefficients'!$E$21+'Commercial Energy Coefficients'!$E$22*LN(Commercial_Energy_Cost)+'Commercial Energy Coefficients'!$E$23*IFERROR(LOOKUP(Metro_Select,Energy_Metro_Lookup,HDD),0)),0)+IFERROR(EXP('Commercial Energy Coefficients'!$H$3+LN(B_Public_Gross_Sq_Ft)*'Commercial Energy Coefficients'!$H$4+'Commercial Energy Coefficients'!$H$11+'Commercial Energy Coefficients'!$H$14+'Commercial Energy Coefficients'!$H$18*LN((B_Pub_Emp_Acre)*(B_Lot_Size/43560))+'Commercial Energy Coefficients'!$H$19*LN(40)+'Commercial Energy Coefficients'!$H$21+'Commercial Energy Coefficients'!$H$22*LN(Commercial_Energy_Cost)+'Commercial Energy Coefficients'!$H$23*IFERROR(LOOKUP(Metro_Select,Energy_Metro_Lookup,HDD),0)),0))/1000 -> 0 | CE15: =(IFERROR(EXP('Commercial Energy Coefficients'!$C$3+LN((B_Retail_Gross_Sq_Ft))*'Commercial Energy Coefficients'!$C$4+'Commercial Energy Coefficients'!$C$11+'Commercial Energy Coefficients'!$C$14+'Commercial Energy Coefficients'!$C$18*LN((B_Ret_Emp_Acre)*(B_Lot_Size/43560))+'Commercial Energy Coefficients'!$C$19*LN(40)+'Commercial Energy Coefficients'!$C$21+'Commercial Energy Coefficients'!$C$22*LN(Commercial_Energy_Cost)+'Commercial Energy Coefficients'!$C$24*IFERROR(LOOKUP(Metro_Select,Energy_Metro_Lookup,CDD),0)),0)+IFERROR(EXP('Commercial Energy Coefficients'!$F$3+LN((B_Office_Gross_Sq_Ft))*'Commercial Energy Coefficients'!$F$4+'Commercial Energy Coefficients'!$F$11+'Commercial Energy Coefficients'!$F$14+'Commercial Energy Coefficients'!$F$18*LN((B_Off_Emp_Acre)*(B_Lot_Size/43560))+'Commercial Energy Coefficients'!$F$19*LN(40)+'Commercial Energy Coefficients'!$F$21+'Commercial Energy Coefficients'!$F$22*LN(Commercial_Energy_Cost)+'Commercial Energy Coefficients'!$F$24*IFERROR(LOOKUP(Metro_Select,Energy_Metro_Lookup,CDD),0)),0)+IFERROR(EXP('Commercial Energy Coefficients'!$I$3+LN((B_Public_Gross_Sq_Ft))*'Commercial Energy Coefficients'!$I$4+'Commercial Energy Coefficients'!$I$11+'Commercial Energy Coefficients'!$I$14+'Commercial Energy Coefficients'!$I$18*LN((B_Pub_Emp_Acre)*(B_Lot_Size/43560))+'Commercial Energy Coefficients'!$I$19*LN(40)+'Commercial Energy Coefficients'!$I$21+'Commercial Energy Coefficients'!$I$22*LN(Commercial_Energy_Cost)+'Commercial Energy Coefficients'!$I$24*IFERROR(LOOKUP(Metro_Select,Energy_Metro_Lookup,CDD),0)),0))/1000 -> 0 | CF15: =(IFERROR(EXP('Commercial Energy Coefficients'!$D$3+LN((B_Retail_Gross_Sq_Ft))*'Commercial Energy Coefficients'!$D$4+'Commercial Energy Coefficients'!$D$14+'Commercial Energy Coefficients'!$D$18*LN((B_Ret_Emp_Acre)*(B_Lot_Size/43560))+'Commercial Energy Coefficients'!$D$19*LN(40)+'Commercial Energy Coefficients'!$D$21+'Commercial Energy Coefficients'!$D$22*LN(Commercial_Energy_Cost)),0)+IFERROR(EXP('Commercial Energy Coefficients'!$G$3+LN((B_Office_Gross_Sq_Ft))*'Commercial Energy Coefficients'!$G$4+'Commercial Energy Coefficients'!$G$14+'Commercial Energy Coefficients'!$G$18*LN((B_Off_Emp_Acre)*(B_Lot_Size/43560))+'Commercial Energy Coefficients'!$G$19*LN(40)+'Commercial Energy Coefficients'!$G$21+'Commercial Energy Coefficients'!$G$22*LN(Commercial_Energy_Cost)),0)+IFERROR(EXP('Commercial Energy Coefficients'!$J$3+LN((B_Public_Gross_Sq_Ft))*'Commercial Energy Coefficients'!$J$4+'Commercial Energy Coefficients'!$J$14+'Commercial Energy Coefficients'!$J$18*LN((B_Pub_Emp_Acre)*(B_Lot_Size/43560))+'Commercial Energy Coefficients'!$J$19*LN(40)+'Commercial Energy Coefficients'!$J$21+'Commercial Energy Coefficients'!$J$22*LN(Commercial_Energy_Cost)),0))/1000 -> 0 | CG15: 0 | CH15: 0 | CI15: 0 | CJ15: 0 | CK15: 0 | CL15: 0 | CM15: 0 | CN15: 0 | CO15: 0 | CP15: =IF((D15*F15)>'Project Info'!$B$123*43560,'Project Info'!$B$123*43560*'Project Info'!$B$122,D15*F15*'Project Info'!$B$122) -> 0 | CQ15: =IF(AF15="",0,IF(AF15="MF",'Project Info'!$B$129,IF(AF15="TH",'Project Info'!$B$130,IF(AND(OR(AF15="SF",AF15="MH"),AC15>0,AC15<3000),'Project Info'!$B$131,IF(AND(OR(AF15="SF",AF15="MH"),AC15>=3000),'Project Info'!$B$132))))) -> 0 | CR15: =IF(AW15=0,0,(AZ15/AW15*'Project Info'!$C$133)+(BC15/AW15*'Project Info'!$C$134)+(BF15/AW15*'Project Info'!$C$135)) -> 0 | CS15: 0 | CT15: 0 | CU15: =IF(AF15="",0,IF(AF15="MF",'Project Info'!$B$141,IF(AF15="TH",'Project Info'!$B$142,IF(AND(OR(AF15="SF",AF15="MH"),AC15>0,AC15<3000),'Project Info'!$B$143,IF(AND(OR(AF15="SF",AF15="MH"),AC15>=3000),'Project Info'!$B$144))))) -> 0 | CV15: =IF(AW15=0,0,(AZ15/AW15*'Project Info'!$C$145)+(BC15/AW15*'Project Info'!$C$146)+(BF15/AW15*'Project Info'!$C$147)) -> 0 | CW15: 0 | CX15: 0 | CY15: =IF(AF15="",0,IF(AF15="MF",'Project Info'!$B$154,IF(AF15="TH",'Project Info'!$B$155,IF(AND(OR(AF15="SF",AF15="MH"),AC15>0,AC15<3000),'Project Info'!$B$156,IF(AND(OR(AF15="SF",AF15="MH"),AC15>=3000),'Project Info'!$B$157))))) -> 0 | CZ15: =IF(AW15=0,0,(AZ15/AW15*'Project Info'!$C$158)+(BC15/AW15*'Project Info'!$C$159)+(BF15/AW15*'Project Info'!$C$160)) -> 0 | DA15: 0 | DB15: 0 | DD15: 0 | DE15: 0 | DG15: 0 | DI15: 0 | DJ15: 0 | DK15: 0 | DL15: 0 | DM15: 0 | DN15: 0 | DO15: 0 | DP15: 0
B16: 13 | J16: 0 | L16: 0 | M16: 0 | N16: 0 | O16: 0 | P16: 0 | Q16: 0 | R16: 0 | S16: 0 | AA16: 0 | AD16: 0 | AE16: 0 | AH16: 0 | AJ16: 0 | AL16: 0 | AM16: 0 | AN16: =IF(AF16="",0,IF(AF16="MF",'Project Info'!$F$8,IF(AF16="TH",'Project Info'!$F$9,IF(AF16="SF",'Project Info'!$F$11,IF(AF16="MH",'Project Info'!$F$13,0))))) -> 0 | AO16: 0 | AP16: =IF(AF16="",0,IF(AF16="MF",IF((AB16/'Project Info'!$D$8)>'Project Info'!$E$8,'Project Info'!$E$8,AB16/'Project Info'!$D$8),IF(AF16="TH",IF((AB16/'Project Info'!$D$9)>'Project Info'!$E$9,'Project Info'!$E$9,AB16/'Project Info'!$D$9),IF(AF16="SF",IF((AB16/'Project Info'!$D$11)>'Project Info'!$E$11,'Project Info'!$E$11,AB16/'Project Info'!$D$11),IF(AF16="MH",IF((AB16/'Project Info'!$D$13)>'Project Info'!$E$13,'Project Info'!$E$13,AB16/'Project Info'!$D$13)))))) -> 0 | AQ16: 0 | AR16: 0 | AS16: 0 | AT16: 0 | AU16: 0 | AV16: 0 | AW16: 0 | AX16: 0 | AZ16: 0 | BA16: 0 | BC16: 0 | BD16: 0 | BF16: 0 | BG16: 0 | BI16: 0 | BJ16: 0 | BL16: 0 | BM16: 0 | BO16: 0 | BR16: 0 | BS16: 0 | BU16: 0 | BY16: 0 | BZ16: =IFERROR(IF(B_Housing_Type="SF",EXP('Residential Energy Coefficients'!$B$3+'Residential Energy Coefficients'!$B$4*LN(B_Net_Sq_Ft_per_Unit)+'Residential Energy Coefficients'!$B$9+'Residential Energy Coefficients'!$B$10*LN(B_HH_Income)+'Residential Energy Coefficients'!$B$16*LN(Residential_Energy_Cost)+'Residential Energy Coefficients'!$B$20+'Residential Energy Coefficients'!$B$24*IFERROR(LOOKUP(Metro_Select,Energy_Metro_Lookup,HDD),0)),IF(B_Housing_Type="TH",EXP('Residential Energy Coefficients'!$E$3+'Residential Energy Coefficients'!$E$4*LN(B_Net_Sq_Ft_per_Unit)+'Residential Energy Coefficients'!$E$9+'Residential Energy Coefficients'!$E$16*LN(Residential_Energy_Cost)+'Residential Energy Coefficients'!$E$19+'Residential Energy Coefficients'!$E$20+'Residential Energy Coefficients'!$E$24*IFERROR(LOOKUP(Metro_Select,Energy_Metro_Lookup,HDD),0)),IF(B_Housing_Type="MF",EXP('Residential Energy Coefficients'!$H$3+'Residential Energy Coefficients'!$H$4*LN(B_Net_Sq_Ft_per_Unit)+'Residential Energy Coefficients'!$H$9+IF(B_Pct_Owner=1,'Residential Energy Coefficients'!$H$12,0)+'Residential Energy Coefficients'!$H$16*LN(Residential_Energy_Cost)+'Residential Energy Coefficients'!$H$20+'Residential Energy Coefficients'!$H$24*IFERROR(LOOKUP(Metro_Select,Energy_Metro_Lookup,HDD),0)),IF(B_Housing_Type="MH",EXP('Residential Energy Coefficients'!$K$3+'Residential Energy Coefficients'!$K$16*LN(Residential_Energy_Cost)+'Residential Energy Coefficients'!$K$24*IFERROR(LOOKUP(Metro_Select,Energy_Metro_Lookup,HDD),0)),0))))/1000,0) -> 0 | CA16: =IFERROR(IF(B_Housing_Type="SF",EXP('Residential Energy Coefficients'!$C$3+'Residential Energy Coefficients'!$C$4*LN(B_Net_Sq_Ft_per_Unit)+'Residential Energy Coefficients'!$C$10*LN(B_HH_Income)+'Residential Energy Coefficients'!$C$11*B_HH_Size+'Residential Energy Coefficients'!$C$16*LN(Residential_Energy_Cost)+'Residential Energy Coefficients'!$C$19+'Residential Energy Coefficients'!$C$22+'Residential Energy Coefficients'!$C$25*IFERROR(LOOKUP(Metro_Select,Energy_Metro_Lookup,CDD),0)),IF(B_Housing_Type="TH",EXP('Residential Energy Coefficients'!$F$3+'Residential Energy Coefficients'!$F$4*LN(B_Net_Sq_Ft_per_Unit)+'Residential Energy Coefficients'!$F$10*LN(B_HH_Income)+'Residential Energy Coefficients'!$F$11*B_HH_Size+IF(B_Pct_Owner=1,'Residential Energy Coefficients'!$F$12,0)+'Residential Energy Coefficients'!$F$16*LN(Residential_Energy_Cost)+'Residential Energy Coefficients'!$F$22+'Residential Energy Coefficients'!$F$25*IFERROR(LOOKUP(Metro_Select,Energy_Metro_Lookup,CDD),0)),IF(B_Housing_Type="MF",EXP('Residential Energy Coefficients'!$I$3+'Residential Energy Coefficients'!$I$4*LN(B_Net_Sq_Ft_per_Unit)+'Residential Energy Coefficients'!$I$9+'Residential Energy Coefficients'!$I$11*B_HH_Size+'Residential Energy Coefficients'!$I$16*LN(Residential_Energy_Cost)+'Residential Energy Coefficients'!$I$22+'Residential Energy Coefficients'!$I$25*IFERROR(LOOKUP(Metro_Select,Energy_Metro_Lookup,CDD),0)),IF(B_Housing_Type="MH",EXP('Residential Energy Coefficients'!$L$3+'Residential Energy Coefficients'!$L$11*B_HH_Size+'Residential Energy Coefficients'!$L$16*LN(Residential_Energy_Cost)+'Residential Energy Coefficients'!$L$22+'Residential Energy Coefficients'!$L$25*IFERROR(LOOKUP(Metro_Select,Energy_Metro_Lookup,CDD),0)),0))))/1000,0) -> 0 | CB16: =IFERROR(IF(B_Housing_Type="SF",EXP('Residential Energy Coefficients'!$D$3+'Residential Energy Coefficients'!$D$4*LN(B_Net_Sq_Ft_per_Unit)+'Residential Energy Coefficients'!$D$9+'Residential Energy Coefficients'!$D$10*LN(B_HH_Income)+'Residential Energy Coefficients'!$D$11*B_HH_Size+IF(B_Pct_Owner=1,'Residential Energy Coefficients'!$D$12,0)+'Residential Energy Coefficients'!$D$16*LN(Residential_Energy_Cost)),IF(B_Housing_Type="TH",EXP('Residential Energy Coefficients'!$G$3+'Residential Energy Coefficients'!$G$4*LN(B_Net_Sq_Ft_per_Unit)+'Residential Energy Coefficients'!$G$10*LN(B_HH_Income)+'Residential Energy Coefficients'!$G$11*B_HH_Size+'Residential Energy Coefficients'!$G$16*LN(Residential_Energy_Cost)),IF(B_Housing_Type="MF",EXP('Residential Energy Coefficients'!$J$3+'Residential Energy Coefficients'!$J$4*LN(B_Net_Sq_Ft_per_Unit)+'Residential Energy Coefficients'!$J$10*LN(B_HH_Income)+'Residential Energy Coefficients'!$J$11*B_HH_Size+IF(B_Pct_Owner=1,'Residential Energy Coefficients'!$J$12,0)+'Residential Energy Coefficients'!$J$16*LN(Residential_Energy_Cost)+'Residential Energy Coefficients'!$J$19),IF(B_Housing_Type="MH",EXP('Residential Energy Coefficients'!$M$3+'Residential Energy Coefficients'!$M$4*LN(B_Net_Sq_Ft_per_Unit)+'Residential Energy Coefficients'!$M$11*B_HH_Size+'Residential Energy Coefficients'!$M$16*LN(Residential_Energy_Cost)+'Residential Energy Coefficients'!$M$19),0))))/1000,0) -> 0 | CC16: 0 | CD16: =(IFERROR(EXP('Commercial Energy Coefficients'!$B$3+LN(B_Retail_Gross_Sq_Ft)*'Commercial Energy Coefficients'!$B$4+'Commercial Energy Coefficients'!$B$11+'Commercial Energy Coefficients'!$B$14+'Commercial Energy Coefficients'!$B$18*LN((B_Ret_Emp_Acre)*(B_Lot_Size/43560))+'Commercial Energy Coefficients'!$B$19*LN(40)+'Commercial Energy Coefficients'!$B$21+'Commercial Energy Coefficients'!$B$22*LN(Commercial_Energy_Cost)+'Commercial Energy Coefficients'!$B$23*IFERROR(LOOKUP(Metro_Select,Energy_Metro_Lookup,HDD),0)),0)+IFERROR(EXP('Commercial Energy Coefficients'!$E$3+LN(B_Office_Gross_Sq_Ft)*'Commercial Energy Coefficients'!$E$4+'Commercial Energy Coefficients'!$E$11+'Commercial Energy Coefficients'!$E$14+'Commercial Energy Coefficients'!$E$18*LN((B_Off_Emp_Acre)*(B_Lot_Size/43560))+'Commercial Energy Coefficients'!$E$19*LN(40)+'Commercial Energy Coefficients'!$E$21+'Commercial Energy Coefficients'!$E$22*LN(Commercial_Energy_Cost)+'Commercial Energy Coefficients'!$E$23*IFERROR(LOOKUP(Metro_Select,Energy_Metro_Lookup,HDD),0)),0)+IFERROR(EXP('Commercial Energy Coefficients'!$H$3+LN(B_Public_Gross_Sq_Ft)*'Commercial Energy Coefficients'!$H$4+'Commercial Energy Coefficients'!$H$11+'Commercial Energy Coefficients'!$H$14+'Commercial Energy Coefficients'!$H$18*LN((B_Pub_Emp_Acre)*(B_Lot_Size/43560))+'Commercial Energy Coefficients'!$H$19*LN(40)+'Commercial Energy Coefficients'!$H$21+'Commercial Energy Coefficients'!$H$22*LN(Commercial_Energy_Cost)+'Commercial Energy Coefficients'!$H$23*IFERROR(LOOKUP(Metro_Select,Energy_Metro_Lookup,HDD),0)),0))/1000 -> 0 | CE16: =(IFERROR(EXP('Commercial Energy Coefficients'!$C$3+LN((B_Retail_Gross_Sq_Ft))*'Commercial Energy Coefficients'!$C$4+'Commercial Energy Coefficients'!$C$11+'Commercial Energy Coefficients'!$C$14+'Commercial Energy Coefficients'!$C$18*LN((B_Ret_Emp_Acre)*(B_Lot_Size/43560))+'Commercial Energy Coefficients'!$C$19*LN(40)+'Commercial Energy Coefficients'!$C$21+'Commercial Energy Coefficients'!$C$22*LN(Commercial_Energy_Cost)+'Commercial Energy Coefficients'!$C$24*IFERROR(LOOKUP(Metro_Select,Energy_Metro_Lookup,CDD),0)),0)+IFERROR(EXP('Commercial Energy Coefficients'!$F$3+LN((B_Office_Gross_Sq_Ft))*'Commercial Energy Coefficients'!$F$4+'Commercial Energy Coefficients'!$F$11+'Commercial Energy Coefficients'!$F$14+'Commercial Energy Coefficients'!$F$18*LN((B_Off_Emp_Acre)*(B_Lot_Size/43560))+'Commercial Energy Coefficients'!$F$19*LN(40)+'Commercial Energy Coefficients'!$F$21+'Commercial Energy Coefficients'!$F$22*LN(Commercial_Energy_Cost)+'Commercial Energy Coefficients'!$F$24*IFERROR(LOOKUP(Metro_Select,Energy_Metro_Lookup,CDD),0)),0)+IFERROR(EXP('Commercial Energy Coefficients'!$I$3+LN((B_Public_Gross_Sq_Ft))*'Commercial Energy Coefficients'!$I$4+'Commercial Energy Coefficients'!$I$11+'Commercial Energy Coefficients'!$I$14+'Commercial Energy Coefficients'!$I$18*LN((B_Pub_Emp_Acre)*(B_Lot_Size/43560))+'Commercial Energy Coefficients'!$I$19*LN(40)+'Commercial Energy Coefficients'!$I$21+'Commercial Energy Coefficients'!$I$22*LN(Commercial_Energy_Cost)+'Commercial Energy Coefficients'!$I$24*IFERROR(LOOKUP(Metro_Select,Energy_Metro_Lookup,CDD),0)),0))/1000 -> 0 | CF16: =(IFERROR(EXP('Commercial Energy Coefficients'!$D$3+LN((B_Retail_Gross_Sq_Ft))*'Commercial Energy Coefficients'!$D$4+'Commercial Energy Coefficients'!$D$14+'Commercial Energy Coefficients'!$D$18*LN((B_Ret_Emp_Acre)*(B_Lot_Size/43560))+'Commercial Energy Coefficients'!$D$19*LN(40)+'Commercial Energy Coefficients'!$D$21+'Commercial Energy Coefficients'!$D$22*LN(Commercial_Energy_Cost)),0)+IFERROR(EXP('Commercial Energy Coefficients'!$G$3+LN((B_Office_Gross_Sq_Ft))*'Commercial Energy Coefficients'!$G$4+'Commercial Energy Coefficients'!$G$14+'Commercial Energy Coefficients'!$G$18*LN((B_Off_Emp_Acre)*(B_Lot_Size/43560))+'Commercial Energy Coefficients'!$G$19*LN(40)+'Commercial Energy Coefficients'!$G$21+'Commercial Energy Coefficients'!$G$22*LN(Commercial_Energy_Cost)),0)+IFERROR(EXP('Commercial Energy Coefficients'!$J$3+LN((B_Public_Gross_Sq_Ft))*'Commercial Energy Coefficients'!$J$4+'Commercial Energy Coefficients'!$J$14+'Commercial Energy Coefficients'!$J$18*LN((B_Pub_Emp_Acre)*(B_Lot_Size/43560))+'Commercial Energy Coefficients'!$J$19*LN(40)+'Commercial Energy Coefficients'!$J$21+'Commercial Energy Coefficients'!$J$22*LN(Commercial_Energy_Cost)),0))/1000 -> 0 | CG16: 0 | CH16: 0 | CI16: 0 | CJ16: 0 | CK16: 0 | CL16: 0 | CM16: 0 | CN16: 0 | CO16: 0 | CP16: =IF((D16*F16)>'Project Info'!$B$123*43560,'Project Info'!$B$123*43560*'Project Info'!$B$122,D16*F16*'Project Info'!$B$122) -> 0 | CQ16: =IF(AF16="",0,IF(AF16="MF",'Project Info'!$B$129,IF(AF16="TH",'Project Info'!$B$130,IF(AND(OR(AF16="SF",AF16="MH"),AC16>0,AC16<3000),'Project Info'!$B$131,IF(AND(OR(AF16="SF",AF16="MH"),AC16>=3000),'Project Info'!$B$132))))) -> 0 | CR16: =IF(AW16=0,0,(AZ16/AW16*'Project Info'!$C$133)+(BC16/AW16*'Project Info'!$C$134)+(BF16/AW16*'Project Info'!$C$135)) -> 0 | CS16: 0 | CT16: 0 | CU16: =IF(AF16="",0,IF(AF16="MF",'Project Info'!$B$141,IF(AF16="TH",'Project Info'!$B$142,IF(AND(OR(AF16="SF",AF16="MH"),AC16>0,AC16<3000),'Project Info'!$B$143,IF(AND(OR(AF16="SF",AF16="MH"),AC16>=3000),'Project Info'!$B$144))))) -> 0 | CV16: =IF(AW16=0,0,(AZ16/AW16*'Project Info'!$C$145)+(BC16/AW16*'Project Info'!$C$146)+(BF16/AW16*'Project Info'!$C$147)) -> 0 | CW16: 0 | CX16: 0 | CY16: =IF(AF16="",0,IF(AF16="MF",'Project Info'!$B$154,IF(AF16="TH",'Project Info'!$B$155,IF(AND(OR(AF16="SF",AF16="MH"),AC16>0,AC16<3000),'Project Info'!$B$156,IF(AND(OR(AF16="SF",AF16="MH"),AC16>=3000),'Project Info'!$B$157))))) -> 0 | CZ16: =IF(AW16=0,0,(AZ16/AW16*'Project Info'!$C$158)+(BC16/AW16*'Project Info'!$C$159)+(BF16/AW16*'Project Info'!$C$160)) -> 0 | DA16: 0 | DB16: 0 | DD16: 0 | DE16: 0 | DG16: 0 | DI16: 0 | DJ16: 0 | DK16: 0 | DL16: 0 | DM16: 0 | DN16: 0 | DO16: 0 | DP16: 0
B17: 14 | J17: 0 | L17: 0 | M17: 0 | N17: 0 | O17: 0 | P17: 0 | Q17: 0 | R17: 0 | S17: 0 | AA17: 0 | AD17: 0 | AE17: 0 | AH17: 0 | AJ17: 0 | AL17: 0 | AM17: 0 | AN17: =IF(AF17="",0,IF(AF17="MF",'Project Info'!$F$8,IF(AF17="TH",'Project Info'!$F$9,IF(AF17="SF",'Project Info'!$F$11,IF(AF17="MH",'Project Info'!$F$13,0))))) -> 0 | AO17: 0 | AP17: =IF(AF17="",0,IF(AF17="MF",IF((AB17/'Project Info'!$D$8)>'Project Info'!$E$8,'Project Info'!$E$8,AB17/'Project Info'!$D$8),IF(AF17="TH",IF((AB17/'Project Info'!$D$9)>'Project Info'!$E$9,'Project Info'!$E$9,AB17/'Project Info'!$D$9),IF(AF17="SF",IF((AB17/'Project Info'!$D$11)>'Project Info'!$E$11,'Project Info'!$E$11,AB17/'Project Info'!$D$11),IF(AF17="MH",IF((AB17/'Project Info'!$D$13)>'Project Info'!$E$13,'Project Info'!$E$13,AB17/'Project Info'!$D$13)))))) -> 0 | AQ17: 0 | AR17: 0 | AS17: 0 | AT17: 0 | AU17: 0 | AV17: 0 | AW17: 0 | AX17: 0 | AZ17: 0 | BA17: 0 | BC17: 0 | BD17: 0 | BF17: 0 | BG17: 0 | BI17: 0 | BJ17: 0 | BL17: 0 | BM17: 0 | BO17: 0 | BR17: 0 | BS17: 0 | BU17: 0 | BY17: 0 | BZ17: =IFERROR(IF(B_Housing_Type="SF",EXP('Residential Energy Coefficients'!$B$3+'Residential Energy Coefficients'!$B$4*LN(B_Net_Sq_Ft_per_Unit)+'Residential Energy Coefficients'!$B$9+'Residential Energy Coefficients'!$B$10*LN(B_HH_Income)+'Residential Energy Coefficients'!$B$16*LN(Residential_Energy_Cost)+'Residential Energy Coefficients'!$B$20+'Residential Energy Coefficients'!$B$24*IFERROR(LOOKUP(Metro_Select,Energy_Metro_Lookup,HDD),0)),IF(B_Housing_Type="TH",EXP('Residential Energy Coefficients'!$E$3+'Residential Energy Coefficients'!$E$4*LN(B_Net_Sq_Ft_per_Unit)+'Residential Energy Coefficients'!$E$9+'Residential Energy Coefficients'!$E$16*LN(Residential_Energy_Cost)+'Residential Energy Coefficients'!$E$19+'Residential Energy Coefficients'!$E$20+'Residential Energy Coefficients'!$E$24*IFERROR(LOOKUP(Metro_Select,Energy_Metro_Lookup,HDD),0)),IF(B_Housing_Type="MF",EXP('Residential Energy Coefficients'!$H$3+'Residential Energy Coefficients'!$H$4*LN(B_Net_Sq_Ft_per_Unit)+'Residential Energy Coefficients'!$H$9+IF(B_Pct_Owner=1,'Residential Energy Coefficients'!$H$12,0)+'Residential Energy Coefficients'!$H$16*LN(Residential_Energy_Cost)+'Residential Energy Coefficients'!$H$20+'Residential Energy Coefficients'!$H$24*IFERROR(LOOKUP(Metro_Select,Energy_Metro_Lookup,HDD),0)),IF(B_Housing_Type="MH",EXP('Residential Energy Coefficients'!$K$3+'Residential Energy Coefficients'!$K$16*LN(Residential_Energy_Cost)+'Residential Energy Coefficients'!$K$24*IFERROR(LOOKUP(Metro_Select,Energy_Metro_Lookup,HDD),0)),0))))/1000,0) -> 0 | CA17: =IFERROR(IF(B_Housing_Type="SF",EXP('Residential Energy Coefficients'!$C$3+'Residential Energy Coefficients'!$C$4*LN(B_Net_Sq_Ft_per_Unit)+'Residential Energy Coefficients'!$C$10*LN(B_HH_Income)+'Residential Energy Coefficients'!$C$11*B_HH_Size+'Residential Energy Coefficients'!$C$16*LN(Residential_Energy_Cost)+'Residential Energy Coefficients'!$C$19+'Residential Energy Coefficients'!$C$22+'Residential Energy Coefficients'!$C$25*IFERROR(LOOKUP(Metro_Select,Energy_Metro_Lookup,CDD),0)),IF(B_Housing_Type="TH",EXP('Residential Energy Coefficients'!$F$3+'Residential Energy Coefficients'!$F$4*LN(B_Net_Sq_Ft_per_Unit)+'Residential Energy Coefficients'!$F$10*LN(B_HH_Income)+'Residential Energy Coefficients'!$F$11*B_HH_Size+IF(B_Pct_Owner=1,'Residential Energy Coefficients'!$F$12,0)+'Residential Energy Coefficients'!$F$16*LN(Residential_Energy_Cost)+'Residential Energy Coefficients'!$F$22+'Residential Energy Coefficients'!$F$25*IFERROR(LOOKUP(Metro_Select,Energy_Metro_Lookup,CDD),0)),IF(B_Housing_Type="MF",EXP('Residential Energy Coefficients'!$I$3+'Residential Energy Coefficients'!$I$4*LN(B_Net_Sq_Ft_per_Unit)+'Residential Energy Coefficients'!$I$9+'Residential Energy Coefficients'!$I$11*B_HH_Size+'Residential Energy Coefficients'!$I$16*LN(Residential_Energy_Cost)+'Residential Energy Coefficients'!$I$22+'Residential Energy Coefficients'!$I$25*IFERROR(LOOKUP(Metro_Select,Energy_Metro_Lookup,CDD),0)),IF(B_Housing_Type="MH",EXP('Residential Energy Coefficients'!$L$3+'Residential Energy Coefficients'!$L$11*B_HH_Size+'Residential Energy Coefficients'!$L$16*LN(Residential_Energy_Cost)+'Residential Energy Coefficients'!$L$22+'Residential Energy Coefficients'!$L$25*IFERROR(LOOKUP(Metro_Select,Energy_Metro_Lookup,CDD),0)),0))))/1000,0) -> 0 | CB17: =IFERROR(IF(B_Housing_Type="SF",EXP('Residential Energy Coefficients'!$D$3+'Residential Energy Coefficients'!$D$4*LN(B_Net_Sq_Ft_per_Unit)+'Residential Energy Coefficients'!$D$9+'Residential Energy Coefficients'!$D$10*LN(B_HH_Income)+'Residential Energy Coefficients'!$D$11*B_HH_Size+IF(B_Pct_Owner=1,'Residential Energy Coefficients'!$D$12,0)+'Residential Energy Coefficients'!$D$16*LN(Residential_Energy_Cost)),IF(B_Housing_Type="TH",EXP('Residential Energy Coefficients'!$G$3+'Residential Energy Coefficients'!$G$4*LN(B_Net_Sq_Ft_per_Unit)+'Residential Energy Coefficients'!$G$10*LN(B_HH_Income)+'Residential Energy Coefficients'!$G$11*B_HH_Size+'Residential Energy Coefficients'!$G$16*LN(Residential_Energy_Cost)),IF(B_Housing_Type="MF",EXP('Residential Energy Coefficients'!$J$3+'Residential Energy Coefficients'!$J$4*LN(B_Net_Sq_Ft_per_Unit)+'Residential Energy Coefficients'!$J$10*LN(B_HH_Income)+'Residential Energy Coefficients'!$J$11*B_HH_Size+IF(B_Pct_Owner=1,'Residential Energy Coefficients'!$J$12,0)+'Residential Energy Coefficients'!$J$16*LN(Residential_Energy_Cost)+'Residential Energy Coefficients'!$J$19),IF(B_Housing_Type="MH",EXP('Residential Energy Coefficients'!$M$3+'Residential Energy Coefficients'!$M$4*LN(B_Net_Sq_Ft_per_Unit)+'Residential Energy Coefficients'!$M$11*B_HH_Size+'Residential Energy Coefficients'!$M$16*LN(Residential_Energy_Cost)+'Residential Energy Coefficients'!$M$19),0))))/1000,0) -> 0 | CC17: 0 | CD17: =(IFERROR(EXP('Commercial Energy Coefficients'!$B$3+LN(B_Retail_Gross_Sq_Ft)*'Commercial Energy Coefficients'!$B$4+'Commercial Energy Coefficients'!$B$11+'Commercial Energy Coefficients'!$B$14+'Commercial Energy Coefficients'!$B$18*LN((B_Ret_Emp_Acre)*(B_Lot_Size/43560))+'Commercial Energy Coefficients'!$B$19*LN(40)+'Commercial Energy Coefficients'!$B$21+'Commercial Energy Coefficients'!$B$22*LN(Commercial_Energy_Cost)+'Commercial Energy Coefficients'!$B$23*IFERROR(LOOKUP(Metro_Select,Energy_Metro_Lookup,HDD),0)),0)+IFERROR(EXP('Commercial Energy Coefficients'!$E$3+LN(B_Office_Gross_Sq_Ft)*'Commercial Energy Coefficients'!$E$4+'Commercial Energy Coefficients'!$E$11+'Commercial Energy Coefficients'!$E$14+'Commercial Energy Coefficients'!$E$18*LN((B_Off_Emp_Acre)*(B_Lot_Size/43560))+'Commercial Energy Coefficients'!$E$19*LN(40)+'Commercial Energy Coefficients'!$E$21+'Commercial Energy Coefficients'!$E$22*LN(Commercial_Energy_Cost)+'Commercial Energy Coefficients'!$E$23*IFERROR(LOOKUP(Metro_Select,Energy_Metro_Lookup,HDD),0)),0)+IFERROR(EXP('Commercial Energy Coefficients'!$H$3+LN(B_Public_Gross_Sq_Ft)*'Commercial Energy Coefficients'!$H$4+'Commercial Energy Coefficients'!$H$11+'Commercial Energy Coefficients'!$H$14+'Commercial Energy Coefficients'!$H$18*LN((B_Pub_Emp_Acre)*(B_Lot_Size/43560))+'Commercial Energy Coefficients'!$H$19*LN(40)+'Commercial Energy Coefficients'!$H$21+'Commercial Energy Coefficients'!$H$22*LN(Commercial_Energy_Cost)+'Commercial Energy Coefficients'!$H$23*IFERROR(LOOKUP(Metro_Select,Energy_Metro_Lookup,HDD),0)),0))/1000 -> 0 | CE17: =(IFERROR(EXP('Commercial Energy Coefficients'!$C$3+LN((B_Retail_Gross_Sq_Ft))*'Commercial Energy Coefficients'!$C$4+'Commercial Energy Coefficients'!$C$11+'Commercial Energy Coefficients'!$C$14+'Commercial Energy Coefficients'!$C$18*LN((B_Ret_Emp_Acre)*(B_Lot_Size/43560))+'Commercial Energy Coefficients'!$C$19*LN(40)+'Commercial Energy Coefficients'!$C$21+'Commercial Energy Coefficients'!$C$22*LN(Commercial_Energy_Cost)+'Commercial Energy Coefficients'!$C$24*IFERROR(LOOKUP(Metro_Select,Energy_Metro_Lookup,CDD),0)),0)+IFERROR(EXP('Commercial Energy Coefficients'!$F$3+LN((B_Office_Gross_Sq_Ft))*'Commercial Energy Coefficients'!$F$4+'Commercial Energy Coefficients'!$F$11+'Commercial Energy Coefficients'!$F$14+'Commercial Energy Coefficients'!$F$18*LN((B_Off_Emp_Acre)*(B_Lot_Size/43560))+'Commercial Energy Coefficients'!$F$19*LN(40)+'Commercial Energy Coefficients'!$F$21+'Commercial Energy Coefficients'!$F$22*LN(Commercial_Energy_Cost)+'Commercial Energy Coefficients'!$F$24*IFERROR(LOOKUP(Metro_Select,Energy_Metro_Lookup,CDD),0)),0)+IFERROR(EXP('Commercial Energy Coefficients'!$I$3+LN((B_Public_Gross_Sq_Ft))*'Commercial Energy Coefficients'!$I$4+'Commercial Energy Coefficients'!$I$11+'Commercial Energy Coefficients'!$I$14+'Commercial Energy Coefficients'!$I$18*LN((B_Pub_Emp_Acre)*(B_Lot_Size/43560))+'Commercial Energy Coefficients'!$I$19*LN(40)+'Commercial Energy Coefficients'!$I$21+'Commercial Energy Coefficients'!$I$22*LN(Commercial_Energy_Cost)+'Commercial Energy Coefficients'!$I$24*IFERROR(LOOKUP(Metro_Select,Energy_Metro_Lookup,CDD),0)),0))/1000 -> 0 | CF17: =(IFERROR(EXP('Commercial Energy Coefficients'!$D$3+LN((B_Retail_Gross_Sq_Ft))*'Commercial Energy Coefficients'!$D$4+'Commercial Energy Coefficients'!$D$14+'Commercial Energy Coefficients'!$D$18*LN((B_Ret_Emp_Acre)*(B_Lot_Size/43560))+'Commercial Energy Coefficients'!$D$19*LN(40)+'Commercial Energy Coefficients'!$D$21+'Commercial Energy Coefficients'!$D$22*LN(Commercial_Energy_Cost)),0)+IFERROR(EXP('Commercial Energy Coefficients'!$G$3+LN((B_Office_Gross_Sq_Ft))*'Commercial Energy Coefficients'!$G$4+'Commercial Energy Coefficients'!$G$14+'Commercial Energy Coefficients'!$G$18*LN((B_Off_Emp_Acre)*(B_Lot_Size/43560))+'Commercial Energy Coefficients'!$G$19*LN(40)+'Commercial Energy Coefficients'!$G$21+'Commercial Energy Coefficients'!$G$22*LN(Commercial_Energy_Cost)),0)+IFERROR(EXP('Commercial Energy Coefficients'!$J$3+LN((B_Public_Gross_Sq_Ft))*'Commercial Energy Coefficients'!$J$4+'Commercial Energy Coefficients'!$J$14+'Commercial Energy Coefficients'!$J$18*LN((B_Pub_Emp_Acre)*(B_Lot_Size/43560))+'Commercial Energy Coefficients'!$J$19*LN(40)+'Commercial Energy Coefficients'!$J$21+'Commercial Energy Coefficients'!$J$22*LN(Commercial_Energy_Cost)),0))/1000 -> 0 | CG17: 0 | CH17: 0 | CI17: 0 | CJ17: 0 | CK17: 0 | CL17: 0 | CM17: 0 | CN17: 0 | CO17: 0 | CP17: =IF((D17*F17)>'Project Info'!$B$123*43560,'Project Info'!$B$123*43560*'Project Info'!$B$122,D17*F17*'Project Info'!$B$122) -> 0 | CQ17: =IF(AF17="",0,IF(AF17="MF",'Project Info'!$B$129,IF(AF17="TH",'Project Info'!$B$130,IF(AND(OR(AF17="SF",AF17="MH"),AC17>0,AC17<3000),'Project Info'!$B$131,IF(AND(OR(AF17="SF",AF17="MH"),AC17>=3000),'Project Info'!$B$132))))) -> 0 | CR17: =IF(AW17=0,0,(AZ17/AW17*'Project Info'!$C$133)+(BC17/AW17*'Project Info'!$C$134)+(BF17/AW17*'Project Info'!$C$135)) -> 0 | CS17: 0 | CT17: 0 | CU17: =IF(AF17="",0,IF(AF17="MF",'Project Info'!$B$141,IF(AF17="TH",'Project Info'!$B$142,IF(AND(OR(AF17="SF",AF17="MH"),AC17>0,AC17<3000),'Project Info'!$B$143,IF(AND(OR(AF17="SF",AF17="MH"),AC17>=3000),'Project Info'!$B$144))))) -> 0 | CV17: =IF(AW17=0,0,(AZ17/AW17*'Project Info'!$C$145)+(BC17/AW17*'Project Info'!$C$146)+(BF17/AW17*'Project Info'!$C$147)) -> 0 | CW17: 0 | CX17: 0 | CY17: =IF(AF17="",0,IF(AF17="MF",'Project Info'!$B$154,IF(AF17="TH",'Project Info'!$B$155,IF(AND(OR(AF17="SF",AF17="MH"),AC17>0,AC17<3000),'Project Info'!$B$156,IF(AND(OR(AF17="SF",AF17="MH"),AC17>=3000),'Project Info'!$B$157))))) -> 0 | CZ17: =IF(AW17=0,0,(AZ17/AW17*'Project Info'!$C$158)+(BC17/AW17*'Project Info'!$C$159)+(BF17/AW17*'Project Info'!$C$160)) -> 0 | DA17: 0 | DB17: 0 | DD17: 0 | DE17: 0 | DG17: 0 | DI17: 0 | DJ17: 0 | DK17: 0 | DL17: 0 | DM17: 0 | DN17: 0 | DO17: 0 | DP17: 0
B18: 15 | J18: 0 | L18: 0 | M18: 0 | N18: 0 | O18: 0 | P18: 0 | Q18: 0 | R18: 0 | S18: 0 | AA18: 0 | AD18: 0 | AE18: 0 | AH18: 0 | AJ18: 0 | AL18: 0 | AM18: 0 | AN18: =IF(AF18="",0,IF(AF18="MF",'Project Info'!$F$8,IF(AF18="TH",'Project Info'!$F$9,IF(AF18="SF",'Project Info'!$F$11,IF(AF18="MH",'Project Info'!$F$13,0))))) -> 0 | AO18: 0 | AP18: =IF(AF18="",0,IF(AF18="MF",IF((AB18/'Project Info'!$D$8)>'Project Info'!$E$8,'Project Info'!$E$8,AB18/'Project Info'!$D$8),IF(AF18="TH",IF((AB18/'Project Info'!$D$9)>'Project Info'!$E$9,'Project Info'!$E$9,AB18/'Project Info'!$D$9),IF(AF18="SF",IF((AB18/'Project Info'!$D$11)>'Project Info'!$E$11,'Project Info'!$E$11,AB18/'Project Info'!$D$11),IF(AF18="MH",IF((AB18/'Project Info'!$D$13)>'Project Info'!$E$13,'Project Info'!$E$13,AB18/'Project Info'!$D$13)))))) -> 0 | AQ18: 0 | AR18: 0 | AS18: 0 | AT18: 0 | AU18: 0 | AV18: 0 | AW18: 0 | AX18: 0 | AZ18: 0 | BA18: 0 | BC18: 0 | BD18: 0 | BF18: 0 | BG18: 0 | BI18: 0 | BJ18: 0 | BL18: 0 | BM18: 0 | BO18: 0 | BR18: 0 | BS18: 0 | BU18: 0 | BY18: 0 | BZ18: =IFERROR(IF(B_Housing_Type="SF",EXP('Residential Energy Coefficients'!$B$3+'Residential Energy Coefficients'!$B$4*LN(B_Net_Sq_Ft_per_Unit)+'Residential Energy Coefficients'!$B$9+'Residential Energy Coefficients'!$B$10*LN(B_HH_Income)+'Residential Energy Coefficients'!$B$16*LN(Residential_Energy_Cost)+'Residential Energy Coefficients'!$B$20+'Residential Energy Coefficients'!$B$24*IFERROR(LOOKUP(Metro_Select,Energy_Metro_Lookup,HDD),0)),IF(B_Housing_Type="TH",EXP('Residential Energy Coefficients'!$E$3+'Residential Energy Coefficients'!$E$4*LN(B_Net_Sq_Ft_per_Unit)+'Residential Energy Coefficients'!$E$9+'Residential Energy Coefficients'!$E$16*LN(Residential_Energy_Cost)+'Residential Energy Coefficients'!$E$19+'Residential Energy Coefficients'!$E$20+'Residential Energy Coefficients'!$E$24*IFERROR(LOOKUP(Metro_Select,Energy_Metro_Lookup,HDD),0)),IF(B_Housing_Type="MF",EXP('Residential Energy Coefficients'!$H$3+'Residential Energy Coefficients'!$H$4*LN(B_Net_Sq_Ft_per_Unit)+'Residential Energy Coefficients'!$H$9+IF(B_Pct_Owner=1,'Residential Energy Coefficients'!$H$12,0)+'Residential Energy Coefficients'!$H$16*LN(Residential_Energy_Cost)+'Residential Energy Coefficients'!$H$20+'Residential Energy Coefficients'!$H$24*IFERROR(LOOKUP(Metro_Select,Energy_Metro_Lookup,HDD),0)),IF(B_Housing_Type="MH",EXP('Residential Energy Coefficients'!$K$3+'Residential Energy Coefficients'!$K$16*LN(Residential_Energy_Cost)+'Residential Energy Coefficients'!$K$24*IFERROR(LOOKUP(Metro_Select,Energy_Metro_Lookup,HDD),0)),0))))/1000,0) -> 0 | CA18: =IFERROR(IF(B_Housing_Type="SF",EXP('Residential Energy Coefficients'!$C$3+'Residential Energy Coefficients'!$C$4*LN(B_Net_Sq_Ft_per_Unit)+'Residential Energy Coefficients'!$C$10*LN(B_HH_Income)+'Residential Energy Coefficients'!$C$11*B_HH_Size+'Residential Energy Coefficients'!$C$16*LN(Residential_Energy_Cost)+'Residential Energy Coefficients'!$C$19+'Residential Energy Coefficients'!$C$22+'Residential Energy Coefficients'!$C$25*IFERROR(LOOKUP(Metro_Select,Energy_Metro_Lookup,CDD),0)),IF(B_Housing_Type="TH",EXP('Residential Energy Coefficients'!$F$3+'Residential Energy Coefficients'!$F$4*LN(B_Net_Sq_Ft_per_Unit)+'Residential Energy Coefficients'!$F$10*LN(B_HH_Income)+'Residential Energy Coefficients'!$F$11*B_HH_Size+IF(B_Pct_Owner=1,'Residential Energy Coefficients'!$F$12,0)+'Residential Energy Coefficients'!$F$16*LN(Residential_Energy_Cost)+'Residential Energy Coefficients'!$F$22+'Residential Energy Coefficients'!$F$25*IFERROR(LOOKUP(Metro_Select,Energy_Metro_Lookup,CDD),0)),IF(B_Housing_Type="MF",EXP('Residential Energy Coefficients'!$I$3+'Residential Energy Coefficients'!$I$4*LN(B_Net_Sq_Ft_per_Unit)+'Residential Energy Coefficients'!$I$9+'Residential Energy Coefficients'!$I$11*B_HH_Size+'Residential Energy Coefficients'!$I$16*LN(Residential_Energy_Cost)+'Residential Energy Coefficients'!$I$22+'Residential Energy Coefficients'!$I$25*IFERROR(LOOKUP(Metro_Select,Energy_Metro_Lookup,CDD),0)),IF(B_Housing_Type="MH",EXP('Residential Energy Coefficients'!$L$3+'Residential Energy Coefficients'!$L$11*B_HH_Size+'Residential Energy Coefficients'!$L$16*LN(Residential_Energy_Cost)+'Residential Energy Coefficients'!$L$22+'Residential Energy Coefficients'!$L$25*IFERROR(LOOKUP(Metro_Select,Energy_Metro_Lookup,CDD),0)),0))))/1000,0) -> 0 | CB18: =IFERROR(IF(B_Housing_Type="SF",EXP('Residential Energy Coefficients'!$D$3+'Residential Energy Coefficients'!$D$4*LN(B_Net_Sq_Ft_per_Unit)+'Residential Energy Coefficients'!$D$9+'Residential Energy Coefficients'!$D$10*LN(B_HH_Income)+'Residential Energy Coefficients'!$D$11*B_HH_Size+IF(B_Pct_Owner=1,'Residential Energy Coefficients'!$D$12,0)+'Residential Energy Coefficients'!$D$16*LN(Residential_Energy_Cost)),IF(B_Housing_Type="TH",EXP('Residential Energy Coefficients'!$G$3+'Residential Energy Coefficients'!$G$4*LN(B_Net_Sq_Ft_per_Unit)+'Residential Energy Coefficients'!$G$10*LN(B_HH_Income)+'Residential Energy Coefficients'!$G$11*B_HH_Size+'Residential Energy Coefficients'!$G$16*LN(Residential_Energy_Cost)),IF(B_Housing_Type="MF",EXP('Residential Energy Coefficients'!$J$3+'Residential Energy Coefficients'!$J$4*LN(B_Net_Sq_Ft_per_Unit)+'Residential Energy Coefficients'!$J$10*LN(B_HH_Income)+'Residential Energy Coefficients'!$J$11*B_HH_Size+IF(B_Pct_Owner=1,'Residential Energy Coefficients'!$J$12,0)+'Residential Energy Coefficients'!$J$16*LN(Residential_Energy_Cost)+'Residential Energy Coefficients'!$J$19),IF(B_Housing_Type="MH",EXP('Residential Energy Coefficients'!$M$3+'Residential Energy Coefficients'!$M$4*LN(B_Net_Sq_Ft_per_Unit)+'Residential Energy Coefficients'!$M$11*B_HH_Size+'Residential Energy Coefficients'!$M$16*LN(Residential_Energy_Cost)+'Residential Energy Coefficients'!$M$19),0))))/1000,0) -> 0 | CC18: 0 | CD18: =(IFERROR(EXP('Commercial Energy Coefficients'!$B$3+LN(B_Retail_Gross_Sq_Ft)*'Commercial Energy Coefficients'!$B$4+'Commercial Energy Coefficients'!$B$11+'Commercial Energy Coefficients'!$B$14+'Commercial Energy Coefficients'!$B$18*LN((B_Ret_Emp_Acre)*(B_Lot_Size/43560))+'Commercial Energy Coefficients'!$B$19*LN(40)+'Commercial Energy Coefficients'!$B$21+'Commercial Energy Coefficients'!$B$22*LN(Commercial_Energy_Cost)+'Commercial Energy Coefficients'!$B$23*IFERROR(LOOKUP(Metro_Select,Energy_Metro_Lookup,HDD),0)),0)+IFERROR(EXP('Commercial Energy Coefficients'!$E$3+LN(B_Office_Gross_Sq_Ft)*'Commercial Energy Coefficients'!$E$4+'Commercial Energy Coefficients'!$E$11+'Commercial Energy Coefficients'!$E$14+'Commercial Energy Coefficients'!$E$18*LN((B_Off_Emp_Acre)*(B_Lot_Size/43560))+'Commercial Energy Coefficients'!$E$19*LN(40)+'Commercial Energy Coefficients'!$E$21+'Commercial Energy Coefficients'!$E$22*LN(Commercial_Energy_Cost)+'Commercial Energy Coefficients'!$E$23*IFERROR(LOOKUP(Metro_Select,Energy_Metro_Lookup,HDD),0)),0)+IFERROR(EXP('Commercial Energy Coefficients'!$H$3+LN(B_Public_Gross_Sq_Ft)*'Commercial Energy Coefficients'!$H$4+'Commercial Energy Coefficients'!$H$11+'Commercial Energy Coefficients'!$H$14+'Commercial Energy Coefficients'!$H$18*LN((B_Pub_Emp_Acre)*(B_Lot_Size/43560))+'Commercial Energy Coefficients'!$H$19*LN(40)+'Commercial Energy Coefficients'!$H$21+'Commercial Energy Coefficients'!$H$22*LN(Commercial_Energy_Cost)+'Commercial Energy Coefficients'!$H$23*IFERROR(LOOKUP(Metro_Select,Energy_Metro_Lookup,HDD),0)),0))/1000 -> 0 | CE18: =(IFERROR(EXP('Commercial Energy Coefficients'!$C$3+LN((B_Retail_Gross_Sq_Ft))*'Commercial Energy Coefficients'!$C$4+'Commercial Energy Coefficients'!$C$11+'Commercial Energy Coefficients'!$C$14+'Commercial Energy Coefficients'!$C$18*LN((B_Ret_Emp_Acre)*(B_Lot_Size/43560))+'Commercial Energy Coefficients'!$C$19*LN(40)+'Commercial Energy Coefficients'!$C$21+'Commercial Energy Coefficients'!$C$22*LN(Commercial_Energy_Cost)+'Commercial Energy Coefficients'!$C$24*IFERROR(LOOKUP(Metro_Select,Energy_Metro_Lookup,CDD),0)),0)+IFERROR(EXP('Commercial Energy Coefficients'!$F$3+LN((B_Office_Gross_Sq_Ft))*'Commercial Energy Coefficients'!$F$4+'Commercial Energy Coefficients'!$F$11+'Commercial Energy Coefficients'!$F$14+'Commercial Energy Coefficients'!$F$18*LN((B_Off_Emp_Acre)*(B_Lot_Size/43560))+'Commercial Energy Coefficients'!$F$19*LN(40)+'Commercial Energy Coefficients'!$F$21+'Commercial Energy Coefficients'!$F$22*LN(Commercial_Energy_Cost)+'Commercial Energy Coefficients'!$F$24*IFERROR(LOOKUP(Metro_Select,Energy_Metro_Lookup,CDD),0)),0)+IFERROR(EXP('Commercial Energy Coefficients'!$I$3+LN((B_Public_Gross_Sq_Ft))*'Commercial Energy Coefficients'!$I$4+'Commercial Energy Coefficients'!$I$11+'Commercial Energy Coefficients'!$I$14+'Commercial Energy Coefficients'!$I$18*LN((B_Pub_Emp_Acre)*(B_Lot_Size/43560))+'Commercial Energy Coefficients'!$I$19*LN(40)+'Commercial Energy Coefficients'!$I$21+'Commercial Energy Coefficients'!$I$22*LN(Commercial_Energy_Cost)+'Commercial Energy Coefficients'!$I$24*IFERROR(LOOKUP(Metro_Select,Energy_Metro_Lookup,CDD),0)),0))/1000 -> 0 | CF18: =(IFERROR(EXP('Commercial Energy Coefficients'!$D$3+LN((B_Retail_Gross_Sq_Ft))*'Commercial Energy Coefficients'!$D$4+'Commercial Energy Coefficients'!$D$14+'Commercial Energy Coefficients'!$D$18*LN((B_Ret_Emp_Acre)*(B_Lot_Size/43560))+'Commercial Energy Coefficients'!$D$19*LN(40)+'Commercial Energy Coefficients'!$D$21+'Commercial Energy Coefficients'!$D$22*LN(Commercial_Energy_Cost)),0)+IFERROR(EXP('Commercial Energy Coefficients'!$G$3+LN((B_Office_Gross_Sq_Ft))*'Commercial Energy Coefficients'!$G$4+'Commercial Energy Coefficients'!$G$14+'Commercial Energy Coefficients'!$G$18*LN((B_Off_Emp_Acre)*(B_Lot_Size/43560))+'Commercial Energy Coefficients'!$G$19*LN(40)+'Commercial Energy Coefficients'!$G$21+'Commercial Energy Coefficients'!$G$22*LN(Commercial_Energy_Cost)),0)+IFERROR(EXP('Commercial Energy Coefficients'!$J$3+LN((B_Public_Gross_Sq_Ft))*'Commercial Energy Coefficients'!$J$4+'Commercial Energy Coefficients'!$J$14+'Commercial Energy Coefficients'!$J$18*LN((B_Pub_Emp_Acre)*(B_Lot_Size/43560))+'Commercial Energy Coefficients'!$J$19*LN(40)+'Commercial Energy Coefficients'!$J$21+'Commercial Energy Coefficients'!$J$22*LN(Commercial_Energy_Cost)),0))/1000 -> 0 | CG18: 0 | CH18: 0 | CI18: 0 | CJ18: 0 | CK18: 0 | CL18: 0 | CM18: 0 | CN18: 0 | CO18: 0 | CP18: =IF((D18*F18)>'Project Info'!$B$123*43560,'Project Info'!$B$123*43560*'Project Info'!$B$122,D18*F18*'Project Info'!$B$122) -> 0 | CQ18: =IF(AF18="",0,IF(AF18="MF",'Project Info'!$B$129,IF(AF18="TH",'Project Info'!$B$130,IF(AND(OR(AF18="SF",AF18="MH"),AC18>0,AC18<3000),'Project Info'!$B$131,IF(AND(OR(AF18="SF",AF18="MH"),AC18>=3000),'Project Info'!$B$132))))) -> 0 | CR18: =IF(AW18=0,0,(AZ18/AW18*'Project Info'!$C$133)+(BC18/AW18*'Project Info'!$C$134)+(BF18/AW18*'Project Info'!$C$135)) -> 0 | CS18: 0 | CT18: 0 | CU18: =IF(AF18="",0,IF(AF18="MF",'Project Info'!$B$141,IF(AF18="TH",'Project Info'!$B$142,IF(AND(OR(AF18="SF",AF18="MH"),AC18>0,AC18<3000),'Project Info'!$B$143,IF(AND(OR(AF18="SF",AF18="MH"),AC18>=3000),'Project Info'!$B$144))))) -> 0 | CV18: =IF(AW18=0,0,(AZ18/AW18*'Project Info'!$C$145)+(BC18/AW18*'Project Info'!$C$146)+(BF18/AW18*'Project Info'!$C$147)) -> 0 | CW18: 0 | CX18: 0 | CY18: =IF(AF18="",0,IF(AF18="MF",'Project Info'!$B$154,IF(AF18="TH",'Project Info'!$B$155,IF(AND(OR(AF18="SF",AF18="MH"),AC18>0,AC18<3000),'Project Info'!$B$156,IF(AND(OR(AF18="SF",AF18="MH"),AC18>=3000),'Project Info'!$B$157))))) -> 0 | CZ18: =IF(AW18=0,0,(AZ18/AW18*'Project Info'!$C$158)+(BC18/AW18*'Project Info'!$C$159)+(BF18/AW18*'Project Info'!$C$160)) -> 0 | DA18: 0 | DB18: 0 | DD18: 0 | DE18: 0 | DG18: 0 | DI18: 0 | DJ18: 0 | DK18: 0 | DL18: 0 | DM18: 0 | DN18: 0 | DO18: 0 | DP18: 0
B19: 16 | J19: 0 | L19: 0 | M19: 0 | N19: 0 | O19: 0 | P19: 0 | Q19: 0 | R19: 0 | S19: 0 | AA19: 0 | AD19: 0 | AE19: 0 | AH19: 0 | AJ19: 0 | AL19: 0 | AM19: 0 | AN19: =IF(AF19="",0,IF(AF19="MF",'Project Info'!$F$8,IF(AF19="TH",'Project Info'!$F$9,IF(AF19="SF",'Project Info'!$F$11,IF(AF19="MH",'Project Info'!$F$13,0))))) -> 0 | AO19: 0 | AP19: =IF(AF19="",0,IF(AF19="MF",IF((AB19/'Project Info'!$D$8)>'Project Info'!$E$8,'Project Info'!$E$8,AB19/'Project Info'!$D$8),IF(AF19="TH",IF((AB19/'Project Info'!$D$9)>'Project Info'!$E$9,'Project Info'!$E$9,AB19/'Project Info'!$D$9),IF(AF19="SF",IF((AB19/'Project Info'!$D$11)>'Project Info'!$E$11,'Project Info'!$E$11,AB19/'Project Info'!$D$11),IF(AF19="MH",IF((AB19/'Project Info'!$D$13)>'Project Info'!$E$13,'Project Info'!$E$13,AB19/'Project Info'!$D$13)))))) -> 0 | AQ19: 0 | AR19: 0 | AS19: 0 | AT19: 0 | AU19: 0 | AV19: 0 | AW19: 0 | AX19: 0 | AZ19: 0 | BA19: 0 | BC19: 0 | BD19: 0 | BF19: 0 | BG19: 0 | BI19: 0 | BJ19: 0 | BL19: 0 | BM19: 0 | BO19: 0 | BR19: 0 | BS19: 0 | BU19: 0 | BY19: 0 | BZ19: =IFERROR(IF(B_Housing_Type="SF",EXP('Residential Energy Coefficients'!$B$3+'Residential Energy Coefficients'!$B$4*LN(B_Net_Sq_Ft_per_Unit)+'Residential Energy Coefficients'!$B$9+'Residential Energy Coefficients'!$B$10*LN(B_HH_Income)+'Residential Energy Coefficients'!$B$16*LN(Residential_Energy_Cost)+'Residential Energy Coefficients'!$B$20+'Residential Energy Coefficients'!$B$24*IFERROR(LOOKUP(Metro_Select,Energy_Metro_Lookup,HDD),0)),IF(B_Housing_Type="TH",EXP('Residential Energy Coefficients'!$E$3+'Residential Energy Coefficients'!$E$4*LN(B_Net_Sq_Ft_per_Unit)+'Residential Energy Coefficients'!$E$9+'Residential Energy Coefficients'!$E$16*LN(Residential_Energy_Cost)+'Residential Energy Coefficients'!$E$19+'Residential Energy Coefficients'!$E$20+'Residential Energy Coefficients'!$E$24*IFERROR(LOOKUP(Metro_Select,Energy_Metro_Lookup,HDD),0)),IF(B_Housing_Type="MF",EXP('Residential Energy Coefficients'!$H$3+'Residential Energy Coefficients'!$H$4*LN(B_Net_Sq_Ft_per_Unit)+'Residential Energy Coefficients'!$H$9+IF(B_Pct_Owner=1,'Residential Energy Coefficients'!$H$12,0)+'Residential Energy Coefficients'!$H$16*LN(Residential_Energy_Cost)+'Residential Energy Coefficients'!$H$20+'Residential Energy Coefficients'!$H$24*IFERROR(LOOKUP(Metro_Select,Energy_Metro_Lookup,HDD),0)),IF(B_Housing_Type="MH",EXP('Residential Energy Coefficients'!$K$3+'Residential Energy Coefficients'!$K$16*LN(Residential_Energy_Cost)+'Residential Energy Coefficients'!$K$24*IFERROR(LOOKUP(Metro_Select,Energy_Metro_Lookup,HDD),0)),0))))/1000,0) -> 0 | CA19: =IFERROR(IF(B_Housing_Type="SF",EXP('Residential Energy Coefficients'!$C$3+'Residential Energy Coefficients'!$C$4*LN(B_Net_Sq_Ft_per_Unit)+'Residential Energy Coefficients'!$C$10*LN(B_HH_Income)+'Residential Energy Coefficients'!$C$11*B_HH_Size+'Residential Energy Coefficients'!$C$16*LN(Residential_Energy_Cost)+'Residential Energy Coefficients'!$C$19+'Residential Energy Coefficients'!$C$22+'Residential Energy Coefficients'!$C$25*IFERROR(LOOKUP(Metro_Select,Energy_Metro_Lookup,CDD),0)),IF(B_Housing_Type="TH",EXP('Residential Energy Coefficients'!$F$3+'Residential Energy Coefficients'!$F$4*LN(B_Net_Sq_Ft_per_Unit)+'Residential Energy Coefficients'!$F$10*LN(B_HH_Income)+'Residential Energy Coefficients'!$F$11*B_HH_Size+IF(B_Pct_Owner=1,'Residential Energy Coefficients'!$F$12,0)+'Residential Energy Coefficients'!$F$16*LN(Residential_Energy_Cost)+'Residential Energy Coefficients'!$F$22+'Residential Energy Coefficients'!$F$25*IFERROR(LOOKUP(Metro_Select,Energy_Metro_Lookup,CDD),0)),IF(B_Housing_Type="MF",EXP('Residential Energy Coefficients'!$I$3+'Residential Energy Coefficients'!$I$4*LN(B_Net_Sq_Ft_per_Unit)+'Residential Energy Coefficients'!$I$9+'Residential Energy Coefficients'!$I$11*B_HH_Size+'Residential Energy Coefficients'!$I$16*LN(Residential_Energy_Cost)+'Residential Energy Coefficients'!$I$22+'Residential Energy Coefficients'!$I$25*IFERROR(LOOKUP(Metro_Select,Energy_Metro_Lookup,CDD),0)),IF(B_Housing_Type="MH",EXP('Residential Energy Coefficients'!$L$3+'Residential Energy Coefficients'!$L$11*B_HH_Size+'Residential Energy Coefficients'!$L$16*LN(Residential_Energy_Cost)+'Residential Energy Coefficients'!$L$22+'Residential Energy Coefficients'!$L$25*IFERROR(LOOKUP(Metro_Select,Energy_Metro_Lookup,CDD),0)),0))))/1000,0) -> 0 | CB19: =IFERROR(IF(B_Housing_Type="SF",EXP('Residential Energy Coefficients'!$D$3+'Residential Energy Coefficients'!$D$4*LN(B_Net_Sq_Ft_per_Unit)+'Residential Energy Coefficients'!$D$9+'Residential Energy Coefficients'!$D$10*LN(B_HH_Income)+'Residential Energy Coefficients'!$D$11*B_HH_Size+IF(B_Pct_Owner=1,'Residential Energy Coefficients'!$D$12,0)+'Residential Energy Coefficients'!$D$16*LN(Residential_Energy_Cost)),IF(B_Housing_Type="TH",EXP('Residential Energy Coefficients'!$G$3+'Residential Energy Coefficients'!$G$4*LN(B_Net_Sq_Ft_per_Unit)+'Residential Energy Coefficients'!$G$10*LN(B_HH_Income)+'Residential Energy Coefficients'!$G$11*B_HH_Size+'Residential Energy Coefficients'!$G$16*LN(Residential_Energy_Cost)),IF(B_Housing_Type="MF",EXP('Residential Energy Coefficients'!$J$3+'Residential Energy Coefficients'!$J$4*LN(B_Net_Sq_Ft_per_Unit)+'Residential Energy Coefficients'!$J$10*LN(B_HH_Income)+'Residential Energy Coefficients'!$J$11*B_HH_Size+IF(B_Pct_Owner=1,'Residential Energy Coefficients'!$J$12,0)+'Residential Energy Coefficients'!$J$16*LN(Residential_Energy_Cost)+'Residential Energy Coefficients'!$J$19),IF(B_Housing_Type="MH",EXP('Residential Energy Coefficients'!$M$3+'Residential Energy Coefficients'!$M$4*LN(B_Net_Sq_Ft_per_Unit)+'Residential Energy Coefficients'!$M$11*B_HH_Size+'Residential Energy Coefficients'!$M$16*LN(Residential_Energy_Cost)+'Residential Energy Coefficients'!$M$19),0))))/1000,0) -> 0 | CC19: 0 | CD19: =(IFERROR(EXP('Commercial Energy Coefficients'!$B$3+LN(B_Retail_Gross_Sq_Ft)*'Commercial Energy Coefficients'!$B$4+'Commercial Energy Coefficients'!$B$11+'Commercial Energy Coefficients'!$B$14+'Commercial Energy Coefficients'!$B$18*LN((B_Ret_Emp_Acre)*(B_Lot_Size/43560))+'Commercial Energy Coefficients'!$B$19*LN(40)+'Commercial Energy Coefficients'!$B$21+'Commercial Energy Coefficients'!$B$22*LN(Commercial_Energy_Cost)+'Commercial Energy Coefficients'!$B$23*IFERROR(LOOKUP(Metro_Select,Energy_Metro_Lookup,HDD),0)),0)+IFERROR(EXP('Commercial Energy Coefficients'!$E$3+LN(B_Office_Gross_Sq_Ft)*'Commercial Energy Coefficients'!$E$4+'Commercial Energy Coefficients'!$E$11+'Commercial Energy Coefficients'!$E$14+'Commercial Energy Coefficients'!$E$18*LN((B_Off_Emp_Acre)*(B_Lot_Size/43560))+'Commercial Energy Coefficients'!$E$19*LN(40)+'Commercial Energy Coefficients'!$E$21+'Commercial Energy Coefficients'!$E$22*LN(Commercial_Energy_Cost)+'Commercial Energy Coefficients'!$E$23*IFERROR(LOOKUP(Metro_Select,Energy_Metro_Lookup,HDD),0)),0)+IFERROR(EXP('Commercial Energy Coefficients'!$H$3+LN(B_Public_Gross_Sq_Ft)*'Commercial Energy Coefficients'!$H$4+'Commercial Energy Coefficients'!$H$11+'Commercial Energy Coefficients'!$H$14+'Commercial Energy Coefficients'!$H$18*LN((B_Pub_Emp_Acre)*(B_Lot_Size/43560))+'Commercial Energy Coefficients'!$H$19*LN(40)+'Commercial Energy Coefficients'!$H$21+'Commercial Energy Coefficients'!$H$22*LN(Commercial_Energy_Cost)+'Commercial Energy Coefficients'!$H$23*IFERROR(LOOKUP(Metro_Select,Energy_Metro_Lookup,HDD),0)),0))/1000 -> 0 | CE19: =(IFERROR(EXP('Commercial Energy Coefficients'!$C$3+LN((B_Retail_Gross_Sq_Ft))*'Commercial Energy Coefficients'!$C$4+'Commercial Energy Coefficients'!$C$11+'Commercial Energy Coefficients'!$C$14+'Commercial Energy Coefficients'!$C$18*LN((B_Ret_Emp_Acre)*(B_Lot_Size/43560))+'Commercial Energy Coefficients'!$C$19*LN(40)+'Commercial Energy Coefficients'!$C$21+'Commercial Energy Coefficients'!$C$22*LN(Commercial_Energy_Cost)+'Commercial Energy Coefficients'!$C$24*IFERROR(LOOKUP(Metro_Select,Energy_Metro_Lookup,CDD),0)),0)+IFERROR(EXP('Commercial Energy Coefficients'!$F$3+LN((B_Office_Gross_Sq_Ft))*'Commercial Energy Coefficients'!$F$4+'Commercial Energy Coefficients'!$F$11+'Commercial Energy Coefficients'!$F$14+'Commercial Energy Coefficients'!$F$18*LN((B_Off_Emp_Acre)*(B_Lot_Size/43560))+'Commercial Energy Coefficients'!$F$19*LN(40)+'Commercial Energy Coefficients'!$F$21+'Commercial Energy Coefficients'!$F$22*LN(Commercial_Energy_Cost)+'Commercial Energy Coefficients'!$F$24*IFERROR(LOOKUP(Metro_Select,Energy_Metro_Lookup,CDD),0)),0)+IFERROR(EXP('Commercial Energy Coefficients'!$I$3+LN((B_Public_Gross_Sq_Ft))*'Commercial Energy Coefficients'!$I$4+'Commercial Energy Coefficients'!$I$11+'Commercial Energy Coefficients'!$I$14+'Commercial Energy Coefficients'!$I$18*LN((B_Pub_Emp_Acre)*(B_Lot_Size/43560))+'Commercial Energy Coefficients'!$I$19*LN(40)+'Commercial Energy Coefficients'!$I$21+'Commercial Energy Coefficients'!$I$22*LN(Commercial_Energy_Cost)+'Commercial Energy Coefficients'!$I$24*IFERROR(LOOKUP(Metro_Select,Energy_Metro_Lookup,CDD),0)),0))/1000 -> 0 | CF19: =(IFERROR(EXP('Commercial Energy Coefficients'!$D$3+LN((B_Retail_Gross_Sq_Ft))*'Commercial Energy Coefficients'!$D$4+'Commercial Energy Coefficients'!$D$14+'Commercial Energy Coefficients'!$D$18*LN((B_Ret_Emp_Acre)*(B_Lot_Size/43560))+'Commercial Energy Coefficients'!$D$19*LN(40)+'Commercial Energy Coefficients'!$D$21+'Commercial Energy Coefficients'!$D$22*LN(Commercial_Energy_Cost)),0)+IFERROR(EXP('Commercial Energy Coefficients'!$G$3+LN((B_Office_Gross_Sq_Ft))*'Commercial Energy Coefficients'!$G$4+'Commercial Energy Coefficients'!$G$14+'Commercial Energy Coefficients'!$G$18*LN((B_Off_Emp_Acre)*(B_Lot_Size/43560))+'Commercial Energy Coefficients'!$G$19*LN(40)+'Commercial Energy Coefficients'!$G$21+'Commercial Energy Coefficients'!$G$22*LN(Commercial_Energy_Cost)),0)+IFERROR(EXP('Commercial Energy Coefficients'!$J$3+LN((B_Public_Gross_Sq_Ft))*'Commercial Energy Coefficients'!$J$4+'Commercial Energy Coefficients'!$J$14+'Commercial Energy Coefficients'!$J$18*LN((B_Pub_Emp_Acre)*(B_Lot_Size/43560))+'Commercial Energy Coefficients'!$J$19*LN(40)+'Commercial Energy Coefficients'!$J$21+'Commercial Energy Coefficients'!$J$22*LN(Commercial_Energy_Cost)),0))/1000 -> 0 | CG19: 0 | CH19: 0 | CI19: 0 | CJ19: 0 | CK19: 0 | CL19: 0 | CM19: 0 | CN19: 0 | CO19: 0 | CP19: =IF((D19*F19)>'Project Info'!$B$123*43560,'Project Info'!$B$123*43560*'Project Info'!$B$122,D19*F19*'Project Info'!$B$122) -> 0 | CQ19: =IF(AF19="",0,IF(AF19="MF",'Project Info'!$B$129,IF(AF19="TH",'Project Info'!$B$130,IF(AND(OR(AF19="SF",AF19="MH"),AC19>0,AC19<3000),'Project Info'!$B$131,IF(AND(OR(AF19="SF",AF19="MH"),AC19>=3000),'Project Info'!$B$132))))) -> 0 | CR19: =IF(AW19=0,0,(AZ19/AW19*'Project Info'!$C$133)+(BC19/AW19*'Project Info'!$C$134)+(BF19/AW19*'Project Info'!$C$135)) -> 0 | CS19: 0 | CT19: 0 | CU19: =IF(AF19="",0,IF(AF19="MF",'Project Info'!$B$141,IF(AF19="TH",'Project Info'!$B$142,IF(AND(OR(AF19="SF",AF19="MH"),AC19>0,AC19<3000),'Project Info'!$B$143,IF(AND(OR(AF19="SF",AF19="MH"),AC19>=3000),'Project Info'!$B$144))))) -> 0 | CV19: =IF(AW19=0,0,(AZ19/AW19*'Project Info'!$C$145)+(BC19/AW19*'Project Info'!$C$146)+(BF19/AW19*'Project Info'!$C$147)) -> 0 | CW19: 0 | CX19: 0 | CY19: =IF(AF19="",0,IF(AF19="MF",'Project Info'!$B$154,IF(AF19="TH",'Project Info'!$B$155,IF(AND(OR(AF19="SF",AF19="MH"),AC19>0,AC19<3000),'Project Info'!$B$156,IF(AND(OR(AF19="SF",AF19="MH"),AC19>=3000),'Project Info'!$B$157))))) -> 0 | CZ19: =IF(AW19=0,0,(AZ19/AW19*'Project Info'!$C$158)+(BC19/AW19*'Project Info'!$C$159)+(BF19/AW19*'Project Info'!$C$160)) -> 0 | DA19: 0 | DB19: 0 | DD19: 0 | DE19: 0 | DG19: 0 | DI19: 0 | DJ19: 0 | DK19: 0 | DL19: 0 | DM19: 0 | DN19: 0 | DO19: 0 | DP19: 0
B20: 17 | J20: 0 | L20: 0 | M20: 0 | N20: 0 | O20: 0 | P20: 0 | Q20: 0 | R20: 0 | S20: 0 | AA20: 0 | AD20: 0 | AE20: 0 | AH20: 0 | AJ20: 0 | AL20: 0 | AM20: 0 | AN20: =IF(AF20="",0,IF(AF20="MF",'Project Info'!$F$8,IF(AF20="TH",'Project Info'!$F$9,IF(AF20="SF",'Project Info'!$F$11,IF(AF20="MH",'Project Info'!$F$13,0))))) -> 0 | AO20: 0 | AP20: =IF(AF20="",0,IF(AF20="MF",IF((AB20/'Project Info'!$D$8)>'Project Info'!$E$8,'Project Info'!$E$8,AB20/'Project Info'!$D$8),IF(AF20="TH",IF((AB20/'Project Info'!$D$9)>'Project Info'!$E$9,'Project Info'!$E$9,AB20/'Project Info'!$D$9),IF(AF20="SF",IF((AB20/'Project Info'!$D$11)>'Project Info'!$E$11,'Project Info'!$E$11,AB20/'Project Info'!$D$11),IF(AF20="MH",IF((AB20/'Project Info'!$D$13)>'Project Info'!$E$13,'Project Info'!$E$13,AB20/'Project Info'!$D$13)))))) -> 0 | AQ20: 0 | AR20: 0 | AS20: 0 | AT20: 0 | AU20: 0 | AV20: 0 | AW20: 0 | AX20: 0 | AZ20: 0 | BA20: 0 | BC20: 0 | BD20: 0 | BF20: 0 | BG20: 0 | BI20: 0 | BJ20: 0 | BL20: 0 | BM20: 0 | BO20: 0 | BR20: 0 | BS20: 0 | BU20: 0 | BY20: 0 | BZ20: =IFERROR(IF(B_Housing_Type="SF",EXP('Residential Energy Coefficients'!$B$3+'Residential Energy Coefficients'!$B$4*LN(B_Net_Sq_Ft_per_Unit)+'Residential Energy Coefficients'!$B$9+'Residential Energy Coefficients'!$B$10*LN(B_HH_Income)+'Residential Energy Coefficients'!$B$16*LN(Residential_Energy_Cost)+'Residential Energy Coefficients'!$B$20+'Residential Energy Coefficients'!$B$24*IFERROR(LOOKUP(Metro_Select,Energy_Metro_Lookup,HDD),0)),IF(B_Housing_Type="TH",EXP('Residential Energy Coefficients'!$E$3+'Residential Energy Coefficients'!$E$4*LN(B_Net_Sq_Ft_per_Unit)+'Residential Energy Coefficients'!$E$9+'Residential Energy Coefficients'!$E$16*LN(Residential_Energy_Cost)+'Residential Energy Coefficients'!$E$19+'Residential Energy Coefficients'!$E$20+'Residential Energy Coefficients'!$E$24*IFERROR(LOOKUP(Metro_Select,Energy_Metro_Lookup,HDD),0)),IF(B_Housing_Type="MF",EXP('Residential Energy Coefficients'!$H$3+'Residential Energy Coefficients'!$H$4*LN(B_Net_Sq_Ft_per_Unit)+'Residential Energy Coefficients'!$H$9+IF(B_Pct_Owner=1,'Residential Energy Coefficients'!$H$12,0)+'Residential Energy Coefficients'!$H$16*LN(Residential_Energy_Cost)+'Residential Energy Coefficients'!$H$20+'Residential Energy Coefficients'!$H$24*IFERROR(LOOKUP(Metro_Select,Energy_Metro_Lookup,HDD),0)),IF(B_Housing_Type="MH",EXP('Residential Energy Coefficients'!$K$3+'Residential Energy Coefficients'!$K$16*LN(Residential_Energy_Cost)+'Residential Energy Coefficients'!$K$24*IFERROR(LOOKUP(Metro_Select,Energy_Metro_Lookup,HDD),0)),0))))/1000,0) -> 0 | CA20: =IFERROR(IF(B_Housing_Type="SF",EXP('Residential Energy Coefficients'!$C$3+'Residential Energy Coefficients'!$C$4*LN(B_Net_Sq_Ft_per_Unit)+'Residential Energy Coefficients'!$C$10*LN(B_HH_Income)+'Residential Energy Coefficients'!$C$11*B_HH_Size+'Residential Energy Coefficients'!$C$16*LN(Residential_Energy_Cost)+'Residential Energy Coefficients'!$C$19+'Residential Energy Coefficients'!$C$22+'Residential Energy Coefficients'!$C$25*IFERROR(LOOKUP(Metro_Select,Energy_Metro_Lookup,CDD),0)),IF(B_Housing_Type="TH",EXP('Residential Energy Coefficients'!$F$3+'Residential Energy Coefficients'!$F$4*LN(B_Net_Sq_Ft_per_Unit)+'Residential Energy Coefficients'!$F$10*LN(B_HH_Income)+'Residential Energy Coefficients'!$F$11*B_HH_Size+IF(B_Pct_Owner=1,'Residential Energy Coefficients'!$F$12,0)+'Residential Energy Coefficients'!$F$16*LN(Residential_Energy_Cost)+'Residential Energy Coefficients'!$F$22+'Residential Energy Coefficients'!$F$25*IFERROR(LOOKUP(Metro_Select,Energy_Metro_Lookup,CDD),0)),IF(B_Housing_Type="MF",EXP('Residential Energy Coefficients'!$I$3+'Residential Energy Coefficients'!$I$4*LN(B_Net_Sq_Ft_per_Unit)+'Residential Energy Coefficients'!$I$9+'Residential Energy Coefficients'!$I$11*B_HH_Size+'Residential Energy Coefficients'!$I$16*LN(Residential_Energy_Cost)+'Residential Energy Coefficients'!$I$22+'Residential Energy Coefficients'!$I$25*IFERROR(LOOKUP(Metro_Select,Energy_Metro_Lookup,CDD),0)),IF(B_Housing_Type="MH",EXP('Residential Energy Coefficients'!$L$3+'Residential Energy Coefficients'!$L$11*B_HH_Size+'Residential Energy Coefficients'!$L$16*LN(Residential_Energy_Cost)+'Residential Energy Coefficients'!$L$22+'Residential Energy Coefficients'!$L$25*IFERROR(LOOKUP(Metro_Select,Energy_Metro_Lookup,CDD),0)),0))))/1000,0) -> 0 | CB20: =IFERROR(IF(B_Housing_Type="SF",EXP('Residential Energy Coefficients'!$D$3+'Residential Energy Coefficients'!$D$4*LN(B_Net_Sq_Ft_per_Unit)+'Residential Energy Coefficients'!$D$9+'Residential Energy Coefficients'!$D$10*LN(B_HH_Income)+'Residential Energy Coefficients'!$D$11*B_HH_Size+IF(B_Pct_Owner=1,'Residential Energy Coefficients'!$D$12,0)+'Residential Energy Coefficients'!$D$16*LN(Residential_Energy_Cost)),IF(B_Housing_Type="TH",EXP('Residential Energy Coefficients'!$G$3+'Residential Energy Coefficients'!$G$4*LN(B_Net_Sq_Ft_per_Unit)+'Residential Energy Coefficients'!$G$10*LN(B_HH_Income)+'Residential Energy Coefficients'!$G$11*B_HH_Size+'Residential Energy Coefficients'!$G$16*LN(Residential_Energy_Cost)),IF(B_Housing_Type="MF",EXP('Residential Energy Coefficients'!$J$3+'Residential Energy Coefficients'!$J$4*LN(B_Net_Sq_Ft_per_Unit)+'Residential Energy Coefficients'!$J$10*LN(B_HH_Income)+'Residential Energy Coefficients'!$J$11*B_HH_Size+IF(B_Pct_Owner=1,'Residential Energy Coefficients'!$J$12,0)+'Residential Energy Coefficients'!$J$16*LN(Residential_Energy_Cost)+'Residential Energy Coefficients'!$J$19),IF(B_Housing_Type="MH",EXP('Residential Energy Coefficients'!$M$3+'Residential Energy Coefficients'!$M$4*LN(B_Net_Sq_Ft_per_Unit)+'Residential Energy Coefficients'!$M$11*B_HH_Size+'Residential Energy Coefficients'!$M$16*LN(Residential_Energy_Cost)+'Residential Energy Coefficients'!$M$19),0))))/1000,0) -> 0 | CC20: 0 | CD20: =(IFERROR(EXP('Commercial Energy Coefficients'!$B$3+LN(B_Retail_Gross_Sq_Ft)*'Commercial Energy Coefficients'!$B$4+'Commercial Energy Coefficients'!$B$11+'Commercial Energy Coefficients'!$B$14+'Commercial Energy Coefficients'!$B$18*LN((B_Ret_Emp_Acre)*(B_Lot_Size/43560))+'Commercial Energy Coefficients'!$B$19*LN(40)+'Commercial Energy Coefficients'!$B$21+'Commercial Energy Coefficients'!$B$22*LN(Commercial_Energy_Cost)+'Commercial Energy Coefficients'!$B$23*IFERROR(LOOKUP(Metro_Select,Energy_Metro_Lookup,HDD),0)),0)+IFERROR(EXP('Commercial Energy Coefficients'!$E$3+LN(B_Office_Gross_Sq_Ft)*'Commercial Energy Coefficients'!$E$4+'Commercial Energy Coefficients'!$E$11+'Commercial Energy Coefficients'!$E$14+'Commercial Energy Coefficients'!$E$18*LN((B_Off_Emp_Acre)*(B_Lot_Size/43560))+'Commercial Energy Coefficients'!$E$19*LN(40)+'Commercial Energy Coefficients'!$E$21+'Commercial Energy Coefficients'!$E$22*LN(Commercial_Energy_Cost)+'Commercial Energy Coefficients'!$E$23*IFERROR(LOOKUP(Metro_Select,Energy_Metro_Lookup,HDD),0)),0)+IFERROR(EXP('Commercial Energy Coefficients'!$H$3+LN(B_Public_Gross_Sq_Ft)*'Commercial Energy Coefficients'!$H$4+'Commercial Energy Coefficients'!$H$11+'Commercial Energy Coefficients'!$H$14+'Commercial Energy Coefficients'!$H$18*LN((B_Pub_Emp_Acre)*(B_Lot_Size/43560))+'Commercial Energy Coefficients'!$H$19*LN(40)+'Commercial Energy Coefficients'!$H$21+'Commercial Energy Coefficients'!$H$22*LN(Commercial_Energy_Cost)+'Commercial Energy Coefficients'!$H$23*IFERROR(LOOKUP(Metro_Select,Energy_Metro_Lookup,HDD),0)),0))/1000 -> 0 | CE20: =(IFERROR(EXP('Commercial Energy Coefficients'!$C$3+LN((B_Retail_Gross_Sq_Ft))*'Commercial Energy Coefficients'!$C$4+'Commercial Energy Coefficients'!$C$11+'Commercial Energy Coefficients'!$C$14+'Commercial Energy Coefficients'!$C$18*LN((B_Ret_Emp_Acre)*(B_Lot_Size/43560))+'Commercial Energy Coefficients'!$C$19*LN(40)+'Commercial Energy Coefficients'!$C$21+'Commercial Energy Coefficients'!$C$22*LN(Commercial_Energy_Cost)+'Commercial Energy Coefficients'!$C$24*IFERROR(LOOKUP(Metro_Select,Energy_Metro_Lookup,CDD),0)),0)+IFERROR(EXP('Commercial Energy Coefficients'!$F$3+LN((B_Office_Gross_Sq_Ft))*'Commercial Energy Coefficients'!$F$4+'Commercial Energy Coefficients'!$F$11+'Commercial Energy Coefficients'!$F$14+'Commercial Energy Coefficients'!$F$18*LN((B_Off_Emp_Acre)*(B_Lot_Size/43560))+'Commercial Energy Coefficients'!$F$19*LN(40)+'Commercial Energy Coefficients'!$F$21+'Commercial Energy Coefficients'!$F$22*LN(Commercial_Energy_Cost)+'Commercial Energy Coefficients'!$F$24*IFERROR(LOOKUP(Metro_Select,Energy_Metro_Lookup,CDD),0)),0)+IFERROR(EXP('Commercial Energy Coefficients'!$I$3+LN((B_Public_Gross_Sq_Ft))*'Commercial Energy Coefficients'!$I$4+'Commercial Energy Coefficients'!$I$11+'Commercial Energy Coefficients'!$I$14+'Commercial Energy Coefficients'!$I$18*LN((B_Pub_Emp_Acre)*(B_Lot_Size/43560))+'Commercial Energy Coefficients'!$I$19*LN(40)+'Commercial Energy Coefficients'!$I$21+'Commercial Energy Coefficients'!$I$22*LN(Commercial_Energy_Cost)+'Commercial Energy Coefficients'!$I$24*IFERROR(LOOKUP(Metro_Select,Energy_Metro_Lookup,CDD),0)),0))/1000 -> 0 | CF20: =(IFERROR(EXP('Commercial Energy Coefficients'!$D$3+LN((B_Retail_Gross_Sq_Ft))*'Commercial Energy Coefficients'!$D$4+'Commercial Energy Coefficients'!$D$14+'Commercial Energy Coefficients'!$D$18*LN((B_Ret_Emp_Acre)*(B_Lot_Size/43560))+'Commercial Energy Coefficients'!$D$19*LN(40)+'Commercial Energy Coefficients'!$D$21+'Commercial Energy Coefficients'!$D$22*LN(Commercial_Energy_Cost)),0)+IFERROR(EXP('Commercial Energy Coefficients'!$G$3+LN((B_Office_Gross_Sq_Ft))*'Commercial Energy Coefficients'!$G$4+'Commercial Energy Coefficients'!$G$14+'Commercial Energy Coefficients'!$G$18*LN((B_Off_Emp_Acre)*(B_Lot_Size/43560))+'Commercial Energy Coefficients'!$G$19*LN(40)+'Commercial Energy Coefficients'!$G$21+'Commercial Energy Coefficients'!$G$22*LN(Commercial_Energy_Cost)),0)+IFERROR(EXP('Commercial Energy Coefficients'!$J$3+LN((B_Public_Gross_Sq_Ft))*'Commercial Energy Coefficients'!$J$4+'Commercial Energy Coefficients'!$J$14+'Commercial Energy Coefficients'!$J$18*LN((B_Pub_Emp_Acre)*(B_Lot_Size/43560))+'Commercial Energy Coefficients'!$J$19*LN(40)+'Commercial Energy Coefficients'!$J$21+'Commercial Energy Coefficients'!$J$22*LN(Commercial_Energy_Cost)),0))/1000 -> 0 | CG20: 0 | CH20: 0 | CI20: 0 | CJ20: 0 | CK20: 0 | CL20: 0 | CM20: 0 | CN20: 0 | CO20: 0 | CP20: =IF((D20*F20)>'Project Info'!$B$123*43560,'Project Info'!$B$123*43560*'Project Info'!$B$122,D20*F20*'Project Info'!$B$122) -> 0 | CQ20: =IF(AF20="",0,IF(AF20="MF",'Project Info'!$B$129,IF(AF20="TH",'Project Info'!$B$130,IF(AND(OR(AF20="SF",AF20="MH"),AC20>0,AC20<3000),'Project Info'!$B$131,IF(AND(OR(AF20="SF",AF20="MH"),AC20>=3000),'Project Info'!$B$132))))) -> 0 | CR20: =IF(AW20=0,0,(AZ20/AW20*'Project Info'!$C$133)+(BC20/AW20*'Project Info'!$C$134)+(BF20/AW20*'Project Info'!$C$135)) -> 0 | CS20: 0 | CT20: 0 | CU20: =IF(AF20="",0,IF(AF20="MF",'Project Info'!$B$141,IF(AF20="TH",'Project Info'!$B$142,IF(AND(OR(AF20="SF",AF20="MH"),AC20>0,AC20<3000),'Project Info'!$B$143,IF(AND(OR(AF20="SF",AF20="MH"),AC20>=3000),'Project Info'!$B$144))))) -> 0 | CV20: =IF(AW20=0,0,(AZ20/AW20*'Project Info'!$C$145)+(BC20/AW20*'Project Info'!$C$146)+(BF20/AW20*'Project Info'!$C$147)) -> 0 | CW20: 0 | CX20: 0 | CY20: =IF(AF20="",0,IF(AF20="MF",'Project Info'!$B$154,IF(AF20="TH",'Project Info'!$B$155,IF(AND(OR(AF20="SF",AF20="MH"),AC20>0,AC20<3000),'Project Info'!$B$156,IF(AND(OR(AF20="SF",AF20="MH"),AC20>=3000),'Project Info'!$B$157))))) -> 0 | CZ20: =IF(AW20=0,0,(AZ20/AW20*'Project Info'!$C$158)+(BC20/AW20*'Project Info'!$C$159)+(BF20/AW20*'Project Info'!$C$160)) -> 0 | DA20: 0 | DB20: 0 | DD20: 0 | DE20: 0 | DG20: 0 | DI20: 0 | DJ20: 0 | DK20: 0 | DL20: 0 | DM20: 0 | DN20: 0 | DO20: 0 | DP20: 0
B21: 18 | J21: 0 | L21: 0 | M21: 0 | N21: 0 | O21: 0 | P21: 0 | Q21: 0 | R21: 0 | S21: 0 | AA21: 0 | AD21: 0 | AE21: 0 | AH21: 0 | AJ21: 0 | AL21: 0 | AM21: 0 | AN21: =IF(AF21="",0,IF(AF21="MF",'Project Info'!$F$8,IF(AF21="TH",'Project Info'!$F$9,IF(AF21="SF",'Project Info'!$F$11,IF(AF21="MH",'Project Info'!$F$13,0))))) -> 0 | AO21: 0 | AP21: =IF(AF21="",0,IF(AF21="MF",IF((AB21/'Project Info'!$D$8)>'Project Info'!$E$8,'Project Info'!$E$8,AB21/'Project Info'!$D$8),IF(AF21="TH",IF((AB21/'Project Info'!$D$9)>'Project Info'!$E$9,'Project Info'!$E$9,AB21/'Project Info'!$D$9),IF(AF21="SF",IF((AB21/'Project Info'!$D$11)>'Project Info'!$E$11,'Project Info'!$E$11,AB21/'Project Info'!$D$11),IF(AF21="MH",IF((AB21/'Project Info'!$D$13)>'Project Info'!$E$13,'Project Info'!$E$13,AB21/'Project Info'!$D$13)))))) -> 0 | AQ21: 0 | AR21: 0 | AS21: 0 | AT21: 0 | AU21: 0 | AV21: 0 | AW21: 0 | AX21: 0 | AZ21: 0 | BA21: 0 | BC21: 0 | BD21: 0 | BF21: 0 | BG21: 0 | BI21: 0 | BJ21: 0 | BL21: 0 | BM21: 0 | BO21: 0 | BR21: 0 | BS21: 0 | BU21: 0 | BY21: 0 | BZ21: =IFERROR(IF(B_Housing_Type="SF",EXP('Residential Energy Coefficients'!$B$3+'Residential Energy Coefficients'!$B$4*LN(B_Net_Sq_Ft_per_Unit)+'Residential Energy Coefficients'!$B$9+'Residential Energy Coefficients'!$B$10*LN(B_HH_Income)+'Residential Energy Coefficients'!$B$16*LN(Residential_Energy_Cost)+'Residential Energy Coefficients'!$B$20+'Residential Energy Coefficients'!$B$24*IFERROR(LOOKUP(Metro_Select,Energy_Metro_Lookup,HDD),0)),IF(B_Housing_Type="TH",EXP('Residential Energy Coefficients'!$E$3+'Residential Energy Coefficients'!$E$4*LN(B_Net_Sq_Ft_per_Unit)+'Residential Energy Coefficients'!$E$9+'Residential Energy Coefficients'!$E$16*LN(Residential_Energy_Cost)+'Residential Energy Coefficients'!$E$19+'Residential Energy Coefficients'!$E$20+'Residential Energy Coefficients'!$E$24*IFERROR(LOOKUP(Metro_Select,Energy_Metro_Lookup,HDD),0)),IF(B_Housing_Type="MF",EXP('Residential Energy Coefficients'!$H$3+'Residential Energy Coefficients'!$H$4*LN(B_Net_Sq_Ft_per_Unit)+'Residential Energy Coefficients'!$H$9+IF(B_Pct_Owner=1,'Residential Energy Coefficients'!$H$12,0)+'Residential Energy Coefficients'!$H$16*LN(Residential_Energy_Cost)+'Residential Energy Coefficients'!$H$20+'Residential Energy Coefficients'!$H$24*IFERROR(LOOKUP(Metro_Select,Energy_Metro_Lookup,HDD),0)),IF(B_Housing_Type="MH",EXP('Residential Energy Coefficients'!$K$3+'Residential Energy Coefficients'!$K$16*LN(Residential_Energy_Cost)+'Residential Energy Coefficients'!$K$24*IFERROR(LOOKUP(Metro_Select,Energy_Metro_Lookup,HDD),0)),0))))/1000,0) -> 0 | CA21: =IFERROR(IF(B_Housing_Type="SF",EXP('Residential Energy Coefficients'!$C$3+'Residential Energy Coefficients'!$C$4*LN(B_Net_Sq_Ft_per_Unit)+'Residential Energy Coefficients'!$C$10*LN(B_HH_Income)+'Residential Energy Coefficients'!$C$11*B_HH_Size+'Residential Energy Coefficients'!$C$16*LN(Residential_Energy_Cost)+'Residential Energy Coefficients'!$C$19+'Residential Energy Coefficients'!$C$22+'Residential Energy Coefficients'!$C$25*IFERROR(LOOKUP(Metro_Select,Energy_Metro_Lookup,CDD),0)),IF(B_Housing_Type="TH",EXP('Residential Energy Coefficients'!$F$3+'Residential Energy Coefficients'!$F$4*LN(B_Net_Sq_Ft_per_Unit)+'Residential Energy Coefficients'!$F$10*LN(B_HH_Income)+'Residential Energy Coefficients'!$F$11*B_HH_Size+IF(B_Pct_Owner=1,'Residential Energy Coefficients'!$F$12,0)+'Residential Energy Coefficients'!$F$16*LN(Residential_Energy_Cost)+'Residential Energy Coefficients'!$F$22+'Residential Energy Coefficients'!$F$25*IFERROR(LOOKUP(Metro_Select,Energy_Metro_Lookup,CDD),0)),IF(B_Housing_Type="MF",EXP('Residential Energy Coefficients'!$I$3+'Residential Energy Coefficients'!$I$4*LN(B_Net_Sq_Ft_per_Unit)+'Residential Energy Coefficients'!$I$9+'Residential Energy Coefficients'!$I$11*B_HH_Size+'Residential Energy Coefficients'!$I$16*LN(Residential_Energy_Cost)+'Residential Energy Coefficients'!$I$22+'Residential Energy Coefficients'!$I$25*IFERROR(LOOKUP(Metro_Select,Energy_Metro_Lookup,CDD),0)),IF(B_Housing_Type="MH",EXP('Residential Energy Coefficients'!$L$3+'Residential Energy Coefficients'!$L$11*B_HH_Size+'Residential Energy Coefficients'!$L$16*LN(Residential_Energy_Cost)+'Residential Energy Coefficients'!$L$22+'Residential Energy Coefficients'!$L$25*IFERROR(LOOKUP(Metro_Select,Energy_Metro_Lookup,CDD),0)),0))))/1000,0) -> 0 | CB21: =IFERROR(IF(B_Housing_Type="SF",EXP('Residential Energy Coefficients'!$D$3+'Residential Energy Coefficients'!$D$4*LN(B_Net_Sq_Ft_per_Unit)+'Residential Energy Coefficients'!$D$9+'Residential Energy Coefficients'!$D$10*LN(B_HH_Income)+'Residential Energy Coefficients'!$D$11*B_HH_Size+IF(B_Pct_Owner=1,'Residential Energy Coefficients'!$D$12,0)+'Residential Energy Coefficients'!$D$16*LN(Residential_Energy_Cost)),IF(B_Housing_Type="TH",EXP('Residential Energy Coefficients'!$G$3+'Residential Energy Coefficients'!$G$4*LN(B_Net_Sq_Ft_per_Unit)+'Residential Energy Coefficients'!$G$10*LN(B_HH_Income)+'Residential Energy Coefficients'!$G$11*B_HH_Size+'Residential Energy Coefficients'!$G$16*LN(Residential_Energy_Cost)),IF(B_Housing_Type="MF",EXP('Residential Energy Coefficients'!$J$3+'Residential Energy Coefficients'!$J$4*LN(B_Net_Sq_Ft_per_Unit)+'Residential Energy Coefficients'!$J$10*LN(B_HH_Income)+'Residential Energy Coefficients'!$J$11*B_HH_Size+IF(B_Pct_Owner=1,'Residential Energy Coefficients'!$J$12,0)+'Residential Energy Coefficients'!$J$16*LN(Residential_Energy_Cost)+'Residential Energy Coefficients'!$J$19),IF(B_Housing_Type="MH",EXP('Residential Energy Coefficients'!$M$3+'Residential Energy Coefficients'!$M$4*LN(B_Net_Sq_Ft_per_Unit)+'Residential Energy Coefficients'!$M$11*B_HH_Size+'Residential Energy Coefficients'!$M$16*LN(Residential_Energy_Cost)+'Residential Energy Coefficients'!$M$19),0))))/1000,0) -> 0 | CC21: 0 | CD21: =(IFERROR(EXP('Commercial Energy Coefficients'!$B$3+LN(B_Retail_Gross_Sq_Ft)*'Commercial Energy Coefficients'!$B$4+'Commercial Energy Coefficients'!$B$11+'Commercial Energy Coefficients'!$B$14+'Commercial Energy Coefficients'!$B$18*LN((B_Ret_Emp_Acre)*(B_Lot_Size/43560))+'Commercial Energy Coefficients'!$B$19*LN(40)+'Commercial Energy Coefficients'!$B$21+'Commercial Energy Coefficients'!$B$22*LN(Commercial_Energy_Cost)+'Commercial Energy Coefficients'!$B$23*IFERROR(LOOKUP(Metro_Select,Energy_Metro_Lookup,HDD),0)),0)+IFERROR(EXP('Commercial Energy Coefficients'!$E$3+LN(B_Office_Gross_Sq_Ft)*'Commercial Energy Coefficients'!$E$4+'Commercial Energy Coefficients'!$E$11+'Commercial Energy Coefficients'!$E$14+'Commercial Energy Coefficients'!$E$18*LN((B_Off_Emp_Acre)*(B_Lot_Size/43560))+'Commercial Energy Coefficients'!$E$19*LN(40)+'Commercial Energy Coefficients'!$E$21+'Commercial Energy Coefficients'!$E$22*LN(Commercial_Energy_Cost)+'Commercial Energy Coefficients'!$E$23*IFERROR(LOOKUP(Metro_Select,Energy_Metro_Lookup,HDD),0)),0)+IFERROR(EXP('Commercial Energy Coefficients'!$H$3+LN(B_Public_Gross_Sq_Ft)*'Commercial Energy Coefficients'!$H$4+'Commercial Energy Coefficients'!$H$11+'Commercial Energy Coefficients'!$H$14+'Commercial Energy Coefficients'!$H$18*LN((B_Pub_Emp_Acre)*(B_Lot_Size/43560))+'Commercial Energy Coefficients'!$H$19*LN(40)+'Commercial Energy Coefficients'!$H$21+'Commercial Energy Coefficients'!$H$22*LN(Commercial_Energy_Cost)+'Commercial Energy Coefficients'!$H$23*IFERROR(LOOKUP(Metro_Select,Energy_Metro_Lookup,HDD),0)),0))/1000 -> 0 | CE21: =(IFERROR(EXP('Commercial Energy Coefficients'!$C$3+LN((B_Retail_Gross_Sq_Ft))*'Commercial Energy Coefficients'!$C$4+'Commercial Energy Coefficients'!$C$11+'Commercial Energy Coefficients'!$C$14+'Commercial Energy Coefficients'!$C$18*LN((B_Ret_Emp_Acre)*(B_Lot_Size/43560))+'Commercial Energy Coefficients'!$C$19*LN(40)+'Commercial Energy Coefficients'!$C$21+'Commercial Energy Coefficients'!$C$22*LN(Commercial_Energy_Cost)+'Commercial Energy Coefficients'!$C$24*IFERROR(LOOKUP(Metro_Select,Energy_Metro_Lookup,CDD),0)),0)+IFERROR(EXP('Commercial Energy Coefficients'!$F$3+LN((B_Office_Gross_Sq_Ft))*'Commercial Energy Coefficients'!$F$4+'Commercial Energy Coefficients'!$F$11+'Commercial Energy Coefficients'!$F$14+'Commercial Energy Coefficients'!$F$18*LN((B_Off_Emp_Acre)*(B_Lot_Size/43560))+'Commercial Energy Coefficients'!$F$19*LN(40)+'Commercial Energy Coefficients'!$F$21+'Commercial Energy Coefficients'!$F$22*LN(Commercial_Energy_Cost)+'Commercial Energy Coefficients'!$F$24*IFERROR(LOOKUP(Metro_Select,Energy_Metro_Lookup,CDD),0)),0)+IFERROR(EXP('Commercial Energy Coefficients'!$I$3+LN((B_Public_Gross_Sq_Ft))*'Commercial Energy Coefficients'!$I$4+'Commercial Energy Coefficients'!$I$11+'Commercial Energy Coefficients'!$I$14+'Commercial Energy Coefficients'!$I$18*LN((B_Pub_Emp_Acre)*(B_Lot_Size/43560))+'Commercial Energy Coefficients'!$I$19*LN(40)+'Commercial Energy Coefficients'!$I$21+'Commercial Energy Coefficients'!$I$22*LN(Commercial_Energy_Cost)+'Commercial Energy Coefficients'!$I$24*IFERROR(LOOKUP(Metro_Select,Energy_Metro_Lookup,CDD),0)),0))/1000 -> 0 | CF21: =(IFERROR(EXP('Commercial Energy Coefficients'!$D$3+LN((B_Retail_Gross_Sq_Ft))*'Commercial Energy Coefficients'!$D$4+'Commercial Energy Coefficients'!$D$14+'Commercial Energy Coefficients'!$D$18*LN((B_Ret_Emp_Acre)*(B_Lot_Size/43560))+'Commercial Energy Coefficients'!$D$19*LN(40)+'Commercial Energy Coefficients'!$D$21+'Commercial Energy Coefficients'!$D$22*LN(Commercial_Energy_Cost)),0)+IFERROR(EXP('Commercial Energy Coefficients'!$G$3+LN((B_Office_Gross_Sq_Ft))*'Commercial Energy Coefficients'!$G$4+'Commercial Energy Coefficients'!$G$14+'Commercial Energy Coefficients'!$G$18*LN((B_Off_Emp_Acre)*(B_Lot_Size/43560))+'Commercial Energy Coefficients'!$G$19*LN(40)+'Commercial Energy Coefficients'!$G$21+'Commercial Energy Coefficients'!$G$22*LN(Commercial_Energy_Cost)),0)+IFERROR(EXP('Commercial Energy Coefficients'!$J$3+LN((B_Public_Gross_Sq_Ft))*'Commercial Energy Coefficients'!$J$4+'Commercial Energy Coefficients'!$J$14+'Commercial Energy Coefficients'!$J$18*LN((B_Pub_Emp_Acre)*(B_Lot_Size/43560))+'Commercial Energy Coefficients'!$J$19*LN(40)+'Commercial Energy Coefficients'!$J$21+'Commercial Energy Coefficients'!$J$22*LN(Commercial_Energy_Cost)),0))/1000 -> 0 | CG21: 0 | CH21: 0 | CI21: 0 | CJ21: 0 | CK21: 0 | CL21: 0 | CM21: 0 | CN21: 0 | CO21: 0 | CP21: =IF((D21*F21)>'Project Info'!$B$123*43560,'Project Info'!$B$123*43560*'Project Info'!$B$122,D21*F21*'Project Info'!$B$122) -> 0 | CQ21: =IF(AF21="",0,IF(AF21="MF",'Project Info'!$B$129,IF(AF21="TH",'Project Info'!$B$130,IF(AND(OR(AF21="SF",AF21="MH"),AC21>0,AC21<3000),'Project Info'!$B$131,IF(AND(OR(AF21="SF",AF21="MH"),AC21>=3000),'Project Info'!$B$132))))) -> 0 | CR21: =IF(AW21=0,0,(AZ21/AW21*'Project Info'!$C$133)+(BC21/AW21*'Project Info'!$C$134)+(BF21/AW21*'Project Info'!$C$135)) -> 0 | CS21: 0 | CT21: 0 | CU21: =IF(AF21="",0,IF(AF21="MF",'Project Info'!$B$141,IF(AF21="TH",'Project Info'!$B$142,IF(AND(OR(AF21="SF",AF21="MH"),AC21>0,AC21<3000),'Project Info'!$B$143,IF(AND(OR(AF21="SF",AF21="MH"),AC21>=3000),'Project Info'!$B$144))))) -> 0 | CV21: =IF(AW21=0,0,(AZ21/AW21*'Project Info'!$C$145)+(BC21/AW21*'Project Info'!$C$146)+(BF21/AW21*'Project Info'!$C$147)) -> 0 | CW21: 0 | CX21: 0 | CY21: =IF(AF21="",0,IF(AF21="MF",'Project Info'!$B$154,IF(AF21="TH",'Project Info'!$B$155,IF(AND(OR(AF21="SF",AF21="MH"),AC21>0,AC21<3000),'Project Info'!$B$156,IF(AND(OR(AF21="SF",AF21="MH"),AC21>=3000),'Project Info'!$B$157))))) -> 0 | CZ21: =IF(AW21=0,0,(AZ21/AW21*'Project Info'!$C$158)+(BC21/AW21*'Project Info'!$C$159)+(BF21/AW21*'Project Info'!$C$160)) -> 0 | DA21: 0 | DB21: 0 | DD21: 0 | DE21: 0 | DG21: 0 | DI21: 0 | DJ21: 0 | DK21: 0 | DL21: 0 | DM21: 0 | DN21: 0 | DO21: 0 | DP21: 0
B22: 19 | J22: 0 | L22: 0 | M22: 0 | N22: 0 | O22: 0 | P22: 0 | Q22: 0 | R22: 0 | S22: 0 | AA22: 0 | AD22: 0 | AE22: 0 | AH22: 0 | AJ22: 0 | AL22: 0 | AM22: 0 | AN22: =IF(AF22="",0,IF(AF22="MF",'Project Info'!$F$8,IF(AF22="TH",'Project Info'!$F$9,IF(AF22="SF",'Project Info'!$F$11,IF(AF22="MH",'Project Info'!$F$13,0))))) -> 0 | AO22: 0 | AP22: =IF(AF22="",0,IF(AF22="MF",IF((AB22/'Project Info'!$D$8)>'Project Info'!$E$8,'Project Info'!$E$8,AB22/'Project Info'!$D$8),IF(AF22="TH",IF((AB22/'Project Info'!$D$9)>'Project Info'!$E$9,'Project Info'!$E$9,AB22/'Project Info'!$D$9),IF(AF22="SF",IF((AB22/'Project Info'!$D$11)>'Project Info'!$E$11,'Project Info'!$E$11,AB22/'Project Info'!$D$11),IF(AF22="MH",IF((AB22/'Project Info'!$D$13)>'Project Info'!$E$13,'Project Info'!$E$13,AB22/'Project Info'!$D$13)))))) -> 0 | AQ22: 0 | AR22: 0 | AS22: 0 | AT22: 0 | AU22: 0 | AV22: 0 | AW22: 0 | AX22: 0 | AZ22: 0 | BA22: 0 | BC22: 0 | BD22: 0 | BF22: 0 | BG22: 0 | BI22: 0 | BJ22: 0 | BL22: 0 | BM22: 0 | BO22: 0 | BR22: 0 | BS22: 0 | BU22: 0 | BY22: 0 | BZ22: =IFERROR(IF(B_Housing_Type="SF",EXP('Residential Energy Coefficients'!$B$3+'Residential Energy Coefficients'!$B$4*LN(B_Net_Sq_Ft_per_Unit)+'Residential Energy Coefficients'!$B$9+'Residential Energy Coefficients'!$B$10*LN(B_HH_Income)+'Residential Energy Coefficients'!$B$16*LN(Residential_Energy_Cost)+'Residential Energy Coefficients'!$B$20+'Residential Energy Coefficients'!$B$24*IFERROR(LOOKUP(Metro_Select,Energy_Metro_Lookup,HDD),0)),IF(B_Housing_Type="TH",EXP('Residential Energy Coefficients'!$E$3+'Residential Energy Coefficients'!$E$4*LN(B_Net_Sq_Ft_per_Unit)+'Residential Energy Coefficients'!$E$9+'Residential Energy Coefficients'!$E$16*LN(Residential_Energy_Cost)+'Residential Energy Coefficients'!$E$19+'Residential Energy Coefficients'!$E$20+'Residential Energy Coefficients'!$E$24*IFERROR(LOOKUP(Metro_Select,Energy_Metro_Lookup,HDD),0)),IF(B_Housing_Type="MF",EXP('Residential Energy Coefficients'!$H$3+'Residential Energy Coefficients'!$H$4*LN(B_Net_Sq_Ft_per_Unit)+'Residential Energy Coefficients'!$H$9+IF(B_Pct_Owner=1,'Residential Energy Coefficients'!$H$12,0)+'Residential Energy Coefficients'!$H$16*LN(Residential_Energy_Cost)+'Residential Energy Coefficients'!$H$20+'Residential Energy Coefficients'!$H$24*IFERROR(LOOKUP(Metro_Select,Energy_Metro_Lookup,HDD),0)),IF(B_Housing_Type="MH",EXP('Residential Energy Coefficients'!$K$3+'Residential Energy Coefficients'!$K$16*LN(Residential_Energy_Cost)+'Residential Energy Coefficients'!$K$24*IFERROR(LOOKUP(Metro_Select,Energy_Metro_Lookup,HDD),0)),0))))/1000,0) -> 0 | CA22: =IFERROR(IF(B_Housing_Type="SF",EXP('Residential Energy Coefficients'!$C$3+'Residential Energy Coefficients'!$C$4*LN(B_Net_Sq_Ft_per_Unit)+'Residential Energy Coefficients'!$C$10*LN(B_HH_Income)+'Residential Energy Coefficients'!$C$11*B_HH_Size+'Residential Energy Coefficients'!$C$16*LN(Residential_Energy_Cost)+'Residential Energy Coefficients'!$C$19+'Residential Energy Coefficients'!$C$22+'Residential Energy Coefficients'!$C$25*IFERROR(LOOKUP(Metro_Select,Energy_Metro_Lookup,CDD),0)),IF(B_Housing_Type="TH",EXP('Residential Energy Coefficients'!$F$3+'Residential Energy Coefficients'!$F$4*LN(B_Net_Sq_Ft_per_Unit)+'Residential Energy Coefficients'!$F$10*LN(B_HH_Income)+'Residential Energy Coefficients'!$F$11*B_HH_Size+IF(B_Pct_Owner=1,'Residential Energy Coefficients'!$F$12,0)+'Residential Energy Coefficients'!$F$16*LN(Residential_Energy_Cost)+'Residential Energy Coefficients'!$F$22+'Residential Energy Coefficients'!$F$25*IFERROR(LOOKUP(Metro_Select,Energy_Metro_Lookup,CDD),0)),IF(B_Housing_Type="MF",EXP('Residential Energy Coefficients'!$I$3+'Residential Energy Coefficients'!$I$4*LN(B_Net_Sq_Ft_per_Unit)+'Residential Energy Coefficients'!$I$9+'Residential Energy Coefficients'!$I$11*B_HH_Size+'Residential Energy Coefficients'!$I$16*LN(Residential_Energy_Cost)+'Residential Energy Coefficients'!$I$22+'Residential Energy Coefficients'!$I$25*IFERROR(LOOKUP(Metro_Select,Energy_Metro_Lookup,CDD),0)),IF(B_Housing_Type="MH",EXP('Residential Energy Coefficients'!$L$3+'Residential Energy Coefficients'!$L$11*B_HH_Size+'Residential Energy Coefficients'!$L$16*LN(Residential_Energy_Cost)+'Residential Energy Coefficients'!$L$22+'Residential Energy Coefficients'!$L$25*IFERROR(LOOKUP(Metro_Select,Energy_Metro_Lookup,CDD),0)),0))))/1000,0) -> 0 | CB22: =IFERROR(IF(B_Housing_Type="SF",EXP('Residential Energy Coefficients'!$D$3+'Residential Energy Coefficients'!$D$4*LN(B_Net_Sq_Ft_per_Unit)+'Residential Energy Coefficients'!$D$9+'Residential Energy Coefficients'!$D$10*LN(B_HH_Income)+'Residential Energy Coefficients'!$D$11*B_HH_Size+IF(B_Pct_Owner=1,'Residential Energy Coefficients'!$D$12,0)+'Residential Energy Coefficients'!$D$16*LN(Residential_Energy_Cost)),IF(B_Housing_Type="TH",EXP('Residential Energy Coefficients'!$G$3+'Residential Energy Coefficients'!$G$4*LN(B_Net_Sq_Ft_per_Unit)+'Residential Energy Coefficients'!$G$10*LN(B_HH_Income)+'Residential Energy Coefficients'!$G$11*B_HH_Size+'Residential Energy Coefficients'!$G$16*LN(Residential_Energy_Cost)),IF(B_Housing_Type="MF",EXP('Residential Energy Coefficients'!$J$3+'Residential Energy Coefficients'!$J$4*LN(B_Net_Sq_Ft_per_Unit)+'Residential Energy Coefficients'!$J$10*LN(B_HH_Income)+'Residential Energy Coefficients'!$J$11*B_HH_Size+IF(B_Pct_Owner=1,'Residential Energy Coefficients'!$J$12,0)+'Residential Energy Coefficients'!$J$16*LN(Residential_Energy_Cost)+'Residential Energy Coefficients'!$J$19),IF(B_Housing_Type="MH",EXP('Residential Energy Coefficients'!$M$3+'Residential Energy Coefficients'!$M$4*LN(B_Net_Sq_Ft_per_Unit)+'Residential Energy Coefficients'!$M$11*B_HH_Size+'Residential Energy Coefficients'!$M$16*LN(Residential_Energy_Cost)+'Residential Energy Coefficients'!$M$19),0))))/1000,0) -> 0 | CC22: 0 | CD22: =(IFERROR(EXP('Commercial Energy Coefficients'!$B$3+LN(B_Retail_Gross_Sq_Ft)*'Commercial Energy Coefficients'!$B$4+'Commercial Energy Coefficients'!$B$11+'Commercial Energy Coefficients'!$B$14+'Commercial Energy Coefficients'!$B$18*LN((B_Ret_Emp_Acre)*(B_Lot_Size/43560))+'Commercial Energy Coefficients'!$B$19*LN(40)+'Commercial Energy Coefficients'!$B$21+'Commercial Energy Coefficients'!$B$22*LN(Commercial_Energy_Cost)+'Commercial Energy Coefficients'!$B$23*IFERROR(LOOKUP(Metro_Select,Energy_Metro_Lookup,HDD),0)),0)+IFERROR(EXP('Commercial Energy Coefficients'!$E$3+LN(B_Office_Gross_Sq_Ft)*'Commercial Energy Coefficients'!$E$4+'Commercial Energy Coefficients'!$E$11+'Commercial Energy Coefficients'!$E$14+'Commercial Energy Coefficients'!$E$18*LN((B_Off_Emp_Acre)*(B_Lot_Size/43560))+'Commercial Energy Coefficients'!$E$19*LN(40)+'Commercial Energy Coefficients'!$E$21+'Commercial Energy Coefficients'!$E$22*LN(Commercial_Energy_Cost)+'Commercial Energy Coefficients'!$E$23*IFERROR(LOOKUP(Metro_Select,Energy_Metro_Lookup,HDD),0)),0)+IFERROR(EXP('Commercial Energy Coefficients'!$H$3+LN(B_Public_Gross_Sq_Ft)*'Commercial Energy Coefficients'!$H$4+'Commercial Energy Coefficients'!$H$11+'Commercial Energy Coefficients'!$H$14+'Commercial Energy Coefficients'!$H$18*LN((B_Pub_Emp_Acre)*(B_Lot_Size/43560))+'Commercial Energy Coefficients'!$H$19*LN(40)+'Commercial Energy Coefficients'!$H$21+'Commercial Energy Coefficients'!$H$22*LN(Commercial_Energy_Cost)+'Commercial Energy Coefficients'!$H$23*IFERROR(LOOKUP(Metro_Select,Energy_Metro_Lookup,HDD),0)),0))/1000 -> 0 | CE22: =(IFERROR(EXP('Commercial Energy Coefficients'!$C$3+LN((B_Retail_Gross_Sq_Ft))*'Commercial Energy Coefficients'!$C$4+'Commercial Energy Coefficients'!$C$11+'Commercial Energy Coefficients'!$C$14+'Commercial Energy Coefficients'!$C$18*LN((B_Ret_Emp_Acre)*(B_Lot_Size/43560))+'Commercial Energy Coefficients'!$C$19*LN(40)+'Commercial Energy Coefficients'!$C$21+'Commercial Energy Coefficients'!$C$22*LN(Commercial_Energy_Cost)+'Commercial Energy Coefficients'!$C$24*IFERROR(LOOKUP(Metro_Select,Energy_Metro_Lookup,CDD),0)),0)+IFERROR(EXP('Commercial Energy Coefficients'!$F$3+LN((B_Office_Gross_Sq_Ft))*'Commercial Energy Coefficients'!$F$4+'Commercial Energy Coefficients'!$F$11+'Commercial Energy Coefficients'!$F$14+'Commercial Energy Coefficients'!$F$18*LN((B_Off_Emp_Acre)*(B_Lot_Size/43560))+'Commercial Energy Coefficients'!$F$19*LN(40)+'Commercial Energy Coefficients'!$F$21+'Commercial Energy Coefficients'!$F$22*LN(Commercial_Energy_Cost)+'Commercial Energy Coefficients'!$F$24*IFERROR(LOOKUP(Metro_Select,Energy_Metro_Lookup,CDD),0)),0)+IFERROR(EXP('Commercial Energy Coefficients'!$I$3+LN((B_Public_Gross_Sq_Ft))*'Commercial Energy Coefficients'!$I$4+'Commercial Energy Coefficients'!$I$11+'Commercial Energy Coefficients'!$I$14+'Commercial Energy Coefficients'!$I$18*LN((B_Pub_Emp_Acre)*(B_Lot_Size/43560))+'Commercial Energy Coefficients'!$I$19*LN(40)+'Commercial Energy Coefficients'!$I$21+'Commercial Energy Coefficients'!$I$22*LN(Commercial_Energy_Cost)+'Commercial Energy Coefficients'!$I$24*IFERROR(LOOKUP(Metro_Select,Energy_Metro_Lookup,CDD),0)),0))/1000 -> 0 | CF22: =(IFERROR(EXP('Commercial Energy Coefficients'!$D$3+LN((B_Retail_Gross_Sq_Ft))*'Commercial Energy Coefficients'!$D$4+'Commercial Energy Coefficients'!$D$14+'Commercial Energy Coefficients'!$D$18*LN((B_Ret_Emp_Acre)*(B_Lot_Size/43560))+'Commercial Energy Coefficients'!$D$19*LN(40)+'Commercial Energy Coefficients'!$D$21+'Commercial Energy Coefficients'!$D$22*LN(Commercial_Energy_Cost)),0)+IFERROR(EXP('Commercial Energy Coefficients'!$G$3+LN((B_Office_Gross_Sq_Ft))*'Commercial Energy Coefficients'!$G$4+'Commercial Energy Coefficients'!$G$14+'Commercial Energy Coefficients'!$G$18*LN((B_Off_Emp_Acre)*(B_Lot_Size/43560))+'Commercial Energy Coefficients'!$G$19*LN(40)+'Commercial Energy Coefficients'!$G$21+'Commercial Energy Coefficients'!$G$22*LN(Commercial_Energy_Cost)),0)+IFERROR(EXP('Commercial Energy Coefficients'!$J$3+LN((B_Public_Gross_Sq_Ft))*'Commercial Energy Coefficients'!$J$4+'Commercial Energy Coefficients'!$J$14+'Commercial Energy Coefficients'!$J$18*LN((B_Pub_Emp_Acre)*(B_Lot_Size/43560))+'Commercial Energy Coefficients'!$J$19*LN(40)+'Commercial Energy Coefficients'!$J$21+'Commercial Energy Coefficients'!$J$22*LN(Commercial_Energy_Cost)),0))/1000 -> 0 | CG22: 0 | CH22: 0 | CI22: 0 | CJ22: 0 | CK22: 0 | CL22: 0 | CM22: 0 | CN22: 0 | CO22: 0 | CP22: =IF((D22*F22)>'Project Info'!$B$123*43560,'Project Info'!$B$123*43560*'Project Info'!$B$122,D22*F22*'Project Info'!$B$122) -> 0 | CQ22: =IF(AF22="",0,IF(AF22="MF",'Project Info'!$B$129,IF(AF22="TH",'Project Info'!$B$130,IF(AND(OR(AF22="SF",AF22="MH"),AC22>0,AC22<3000),'Project Info'!$B$131,IF(AND(OR(AF22="SF",AF22="MH"),AC22>=3000),'Project Info'!$B$132))))) -> 0 | CR22: =IF(AW22=0,0,(AZ22/AW22*'Project Info'!$C$133)+(BC22/AW22*'Project Info'!$C$134)+(BF22/AW22*'Project Info'!$C$135)) -> 0 | CS22: 0 | CT22: 0 | CU22: =IF(AF22="",0,IF(AF22="MF",'Project Info'!$B$141,IF(AF22="TH",'Project Info'!$B$142,IF(AND(OR(AF22="SF",AF22="MH"),AC22>0,AC22<3000),'Project Info'!$B$143,IF(AND(OR(AF22="SF",AF22="MH"),AC22>=3000),'Project Info'!$B$144))))) -> 0 | CV22: =IF(AW22=0,0,(AZ22/AW22*'Project Info'!$C$145)+(BC22/AW22*'Project Info'!$C$146)+(BF22/AW22*'Project Info'!$C$147)) -> 0 | CW22: 0 | CX22: 0 | CY22: =IF(AF22="",0,IF(AF22="MF",'Project Info'!$B$154,IF(AF22="TH",'Project Info'!$B$155,IF(AND(OR(AF22="SF",AF22="MH"),AC22>0,AC22<3000),'Project Info'!$B$156,IF(AND(OR(AF22="SF",AF22="MH"),AC22>=3000),'Project Info'!$B$157))))) -> 0 | CZ22: =IF(AW22=0,0,(AZ22/AW22*'Project Info'!$C$158)+(BC22/AW22*'Project Info'!$C$159)+(BF22/AW22*'Project Info'!$C$160)) -> 0 | DA22: 0 | DB22: 0 | DD22: 0 | DE22: 0 | DG22: 0 | DI22: 0 | DJ22: 0 | DK22: 0 | DL22: 0 | DM22: 0 | DN22: 0 | DO22: 0 | DP22: 0
B23: 20 | J23: 0 | L23: 0 | M23: 0 | N23: 0 | O23: 0 | P23: 0 | Q23: 0 | R23: 0 | S23: 0 | AA23: 0 | AD23: 0 | AE23: 0 | AH23: 0 | AJ23: 0 | AL23: 0 | AM23: 0 | AN23: =IF(AF23="",0,IF(AF23="MF",'Project Info'!$F$8,IF(AF23="TH",'Project Info'!$F$9,IF(AF23="SF",'Project Info'!$F$11,IF(AF23="MH",'Project Info'!$F$13,0))))) -> 0 | AO23: 0 | AP23: =IF(AF23="",0,IF(AF23="MF",IF((AB23/'Project Info'!$D$8)>'Project Info'!$E$8,'Project Info'!$E$8,AB23/'Project Info'!$D$8),IF(AF23="TH",IF((AB23/'Project Info'!$D$9)>'Project Info'!$E$9,'Project Info'!$E$9,AB23/'Project Info'!$D$9),IF(AF23="SF",IF((AB23/'Project Info'!$D$11)>'Project Info'!$E$11,'Project Info'!$E$11,AB23/'Project Info'!$D$11),IF(AF23="MH",IF((AB23/'Project Info'!$D$13)>'Project Info'!$E$13,'Project Info'!$E$13,AB23/'Project Info'!$D$13)))))) -> 0 | AQ23: 0 | AR23: 0 | AS23: 0 | AT23: 0 | AU23: 0 | AV23: 0 | AW23: 0 | AX23: 0 | AZ23: 0 | BA23: 0 | BC23: 0 | BD23: 0 | BF23: 0 | BG23: 0 | BI23: 0 | BJ23: 0 | BL23: 0 | BM23: 0 | BO23: 0 | BR23: 0 | BS23: 0 | BU23: 0 | BY23: 0 | BZ23: =IFERROR(IF(B_Housing_Type="SF",EXP('Residential Energy Coefficients'!$B$3+'Residential Energy Coefficients'!$B$4*LN(B_Net_Sq_Ft_per_Unit)+'Residential Energy Coefficients'!$B$9+'Residential Energy Coefficients'!$B$10*LN(B_HH_Income)+'Residential Energy Coefficients'!$B$16*LN(Residential_Energy_Cost)+'Residential Energy Coefficients'!$B$20+'Residential Energy Coefficients'!$B$24*IFERROR(LOOKUP(Metro_Select,Energy_Metro_Lookup,HDD),0)),IF(B_Housing_Type="TH",EXP('Residential Energy Coefficients'!$E$3+'Residential Energy Coefficients'!$E$4*LN(B_Net_Sq_Ft_per_Unit)+'Residential Energy Coefficients'!$E$9+'Residential Energy Coefficients'!$E$16*LN(Residential_Energy_Cost)+'Residential Energy Coefficients'!$E$19+'Residential Energy Coefficients'!$E$20+'Residential Energy Coefficients'!$E$24*IFERROR(LOOKUP(Metro_Select,Energy_Metro_Lookup,HDD),0)),IF(B_Housing_Type="MF",EXP('Residential Energy Coefficients'!$H$3+'Residential Energy Coefficients'!$H$4*LN(B_Net_Sq_Ft_per_Unit)+'Residential Energy Coefficients'!$H$9+IF(B_Pct_Owner=1,'Residential Energy Coefficients'!$H$12,0)+'Residential Energy Coefficients'!$H$16*LN(Residential_Energy_Cost)+'Residential Energy Coefficients'!$H$20+'Residential Energy Coefficients'!$H$24*IFERROR(LOOKUP(Metro_Select,Energy_Metro_Lookup,HDD),0)),IF(B_Housing_Type="MH",EXP('Residential Energy Coefficients'!$K$3+'Residential Energy Coefficients'!$K$16*LN(Residential_Energy_Cost)+'Residential Energy Coefficients'!$K$24*IFERROR(LOOKUP(Metro_Select,Energy_Metro_Lookup,HDD),0)),0))))/1000,0) -> 0 | CA23: =IFERROR(IF(B_Housing_Type="SF",EXP('Residential Energy Coefficients'!$C$3+'Residential Energy Coefficients'!$C$4*LN(B_Net_Sq_Ft_per_Unit)+'Residential Energy Coefficients'!$C$10*LN(B_HH_Income)+'Residential Energy Coefficients'!$C$11*B_HH_Size+'Residential Energy Coefficients'!$C$16*LN(Residential_Energy_Cost)+'Residential Energy Coefficients'!$C$19+'Residential Energy Coefficients'!$C$22+'Residential Energy Coefficients'!$C$25*IFERROR(LOOKUP(Metro_Select,Energy_Metro_Lookup,CDD),0)),IF(B_Housing_Type="TH",EXP('Residential Energy Coefficients'!$F$3+'Residential Energy Coefficients'!$F$4*LN(B_Net_Sq_Ft_per_Unit)+'Residential Energy Coefficients'!$F$10*LN(B_HH_Income)+'Residential Energy Coefficients'!$F$11*B_HH_Size+IF(B_Pct_Owner=1,'Residential Energy Coefficients'!$F$12,0)+'Residential Energy Coefficients'!$F$16*LN(Residential_Energy_Cost)+'Residential Energy Coefficients'!$F$22+'Residential Energy Coefficients'!$F$25*IFERROR(LOOKUP(Metro_Select,Energy_Metro_Lookup,CDD),0)),IF(B_Housing_Type="MF",EXP('Residential Energy Coefficients'!$I$3+'Residential Energy Coefficients'!$I$4*LN(B_Net_Sq_Ft_per_Unit)+'Residential Energy Coefficients'!$I$9+'Residential Energy Coefficients'!$I$11*B_HH_Size+'Residential Energy Coefficients'!$I$16*LN(Residential_Energy_Cost)+'Residential Energy Coefficients'!$I$22+'Residential Energy Coefficients'!$I$25*IFERROR(LOOKUP(Metro_Select,Energy_Metro_Lookup,CDD),0)),IF(B_Housing_Type="MH",EXP('Residential Energy Coefficients'!$L$3+'Residential Energy Coefficients'!$L$11*B_HH_Size+'Residential Energy Coefficients'!$L$16*LN(Residential_Energy_Cost)+'Residential Energy Coefficients'!$L$22+'Residential Energy Coefficients'!$L$25*IFERROR(LOOKUP(Metro_Select,Energy_Metro_Lookup,CDD),0)),0))))/1000,0) -> 0 | CB23: =IFERROR(IF(B_Housing_Type="SF",EXP('Residential Energy Coefficients'!$D$3+'Residential Energy Coefficients'!$D$4*LN(B_Net_Sq_Ft_per_Unit)+'Residential Energy Coefficients'!$D$9+'Residential Energy Coefficients'!$D$10*LN(B_HH_Income)+'Residential Energy Coefficients'!$D$11*B_HH_Size+IF(B_Pct_Owner=1,'Residential Energy Coefficients'!$D$12,0)+'Residential Energy Coefficients'!$D$16*LN(Residential_Energy_Cost)),IF(B_Housing_Type="TH",EXP('Residential Energy Coefficients'!$G$3+'Residential Energy Coefficients'!$G$4*LN(B_Net_Sq_Ft_per_Unit)+'Residential Energy Coefficients'!$G$10*LN(B_HH_Income)+'Residential Energy Coefficients'!$G$11*B_HH_Size+'Residential Energy Coefficients'!$G$16*LN(Residential_Energy_Cost)),IF(B_Housing_Type="MF",EXP('Residential Energy Coefficients'!$J$3+'Residential Energy Coefficients'!$J$4*LN(B_Net_Sq_Ft_per_Unit)+'Residential Energy Coefficients'!$J$10*LN(B_HH_Income)+'Residential Energy Coefficients'!$J$11*B_HH_Size+IF(B_Pct_Owner=1,'Residential Energy Coefficients'!$J$12,0)+'Residential Energy Coefficients'!$J$16*LN(Residential_Energy_Cost)+'Residential Energy Coefficients'!$J$19),IF(B_Housing_Type="MH",EXP('Residential Energy Coefficients'!$M$3+'Residential Energy Coefficients'!$M$4*LN(B_Net_Sq_Ft_per_Unit)+'Residential Energy Coefficients'!$M$11*B_HH_Size+'Residential Energy Coefficients'!$M$16*LN(Residential_Energy_Cost)+'Residential Energy Coefficients'!$M$19),0))))/1000,0) -> 0 | CC23: 0 | CD23: =(IFERROR(EXP('Commercial Energy Coefficients'!$B$3+LN(B_Retail_Gross_Sq_Ft)*'Commercial Energy Coefficients'!$B$4+'Commercial Energy Coefficients'!$B$11+'Commercial Energy Coefficients'!$B$14+'Commercial Energy Coefficients'!$B$18*LN((B_Ret_Emp_Acre)*(B_Lot_Size/43560))+'Commercial Energy Coefficients'!$B$19*LN(40)+'Commercial Energy Coefficients'!$B$21+'Commercial Energy Coefficients'!$B$22*LN(Commercial_Energy_Cost)+'Commercial Energy Coefficients'!$B$23*IFERROR(LOOKUP(Metro_Select,Energy_Metro_Lookup,HDD),0)),0)+IFERROR(EXP('Commercial Energy Coefficients'!$E$3+LN(B_Office_Gross_Sq_Ft)*'Commercial Energy Coefficients'!$E$4+'Commercial Energy Coefficients'!$E$11+'Commercial Energy Coefficients'!$E$14+'Commercial Energy Coefficients'!$E$18*LN((B_Off_Emp_Acre)*(B_Lot_Size/43560))+'Commercial Energy Coefficients'!$E$19*LN(40)+'Commercial Energy Coefficients'!$E$21+'Commercial Energy Coefficients'!$E$22*LN(Commercial_Energy_Cost)+'Commercial Energy Coefficients'!$E$23*IFERROR(LOOKUP(Metro_Select,Energy_Metro_Lookup,HDD),0)),0)+IFERROR(EXP('Commercial Energy Coefficients'!$H$3+LN(B_Public_Gross_Sq_Ft)*'Commercial Energy Coefficients'!$H$4+'Commercial Energy Coefficients'!$H$11+'Commercial Energy Coefficients'!$H$14+'Commercial Energy Coefficients'!$H$18*LN((B_Pub_Emp_Acre)*(B_Lot_Size/43560))+'Commercial Energy Coefficients'!$H$19*LN(40)+'Commercial Energy Coefficients'!$H$21+'Commercial Energy Coefficients'!$H$22*LN(Commercial_Energy_Cost)+'Commercial Energy Coefficients'!$H$23*IFERROR(LOOKUP(Metro_Select,Energy_Metro_Lookup,HDD),0)),0))/1000 -> 0 | CE23: =(IFERROR(EXP('Commercial Energy Coefficients'!$C$3+LN((B_Retail_Gross_Sq_Ft))*'Commercial Energy Coefficients'!$C$4+'Commercial Energy Coefficients'!$C$11+'Commercial Energy Coefficients'!$C$14+'Commercial Energy Coefficients'!$C$18*LN((B_Ret_Emp_Acre)*(B_Lot_Size/43560))+'Commercial Energy Coefficients'!$C$19*LN(40)+'Commercial Energy Coefficients'!$C$21+'Commercial Energy Coefficients'!$C$22*LN(Commercial_Energy_Cost)+'Commercial Energy Coefficients'!$C$24*IFERROR(LOOKUP(Metro_Select,Energy_Metro_Lookup,CDD),0)),0)+IFERROR(EXP('Commercial Energy Coefficients'!$F$3+LN((B_Office_Gross_Sq_Ft))*'Commercial Energy Coefficients'!$F$4+'Commercial Energy Coefficients'!$F$11+'Commercial Energy Coefficients'!$F$14+'Commercial Energy Coefficients'!$F$18*LN((B_Off_Emp_Acre)*(B_Lot_Size/43560))+'Commercial Energy Coefficients'!$F$19*LN(40)+'Commercial Energy Coefficients'!$F$21+'Commercial Energy Coefficients'!$F$22*LN(Commercial_Energy_Cost)+'Commercial Energy Coefficients'!$F$24*IFERROR(LOOKUP(Metro_Select,Energy_Metro_Lookup,CDD),0)),0)+IFERROR(EXP('Commercial Energy Coefficients'!$I$3+LN((B_Public_Gross_Sq_Ft))*'Commercial Energy Coefficients'!$I$4+'Commercial Energy Coefficients'!$I$11+'Commercial Energy Coefficients'!$I$14+'Commercial Energy Coefficients'!$I$18*LN((B_Pub_Emp_Acre)*(B_Lot_Size/43560))+'Commercial Energy Coefficients'!$I$19*LN(40)+'Commercial Energy Coefficients'!$I$21+'Commercial Energy Coefficients'!$I$22*LN(Commercial_Energy_Cost)+'Commercial Energy Coefficients'!$I$24*IFERROR(LOOKUP(Metro_Select,Energy_Metro_Lookup,CDD),0)),0))/1000 -> 0 | CF23: =(IFERROR(EXP('Commercial Energy Coefficients'!$D$3+LN((B_Retail_Gross_Sq_Ft))*'Commercial Energy Coefficients'!$D$4+'Commercial Energy Coefficients'!$D$14+'Commercial Energy Coefficients'!$D$18*LN((B_Ret_Emp_Acre)*(B_Lot_Size/43560))+'Commercial Energy Coefficients'!$D$19*LN(40)+'Commercial Energy Coefficients'!$D$21+'Commercial Energy Coefficients'!$D$22*LN(Commercial_Energy_Cost)),0)+IFERROR(EXP('Commercial Energy Coefficients'!$G$3+LN((B_Office_Gross_Sq_Ft))*'Commercial Energy Coefficients'!$G$4+'Commercial Energy Coefficients'!$G$14+'Commercial Energy Coefficients'!$G$18*LN((B_Off_Emp_Acre)*(B_Lot_Size/43560))+'Commercial Energy Coefficients'!$G$19*LN(40)+'Commercial Energy Coefficients'!$G$21+'Commercial Energy Coefficients'!$G$22*LN(Commercial_Energy_Cost)),0)+IFERROR(EXP('Commercial Energy Coefficients'!$J$3+LN((B_Public_Gross_Sq_Ft))*'Commercial Energy Coefficients'!$J$4+'Commercial Energy Coefficients'!$J$14+'Commercial Energy Coefficients'!$J$18*LN((B_Pub_Emp_Acre)*(B_Lot_Size/43560))+'Commercial Energy Coefficients'!$J$19*LN(40)+'Commercial Energy Coefficients'!$J$21+'Commercial Energy Coefficients'!$J$22*LN(Commercial_Energy_Cost)),0))/1000 -> 0 | CG23: 0 | CH23: 0 | CI23: 0 | CJ23: 0 | CK23: 0 | CL23: 0 | CM23: 0 | CN23: 0 | CO23: 0 | CP23: =IF((D23*F23)>'Project Info'!$B$123*43560,'Project Info'!$B$123*43560*'Project Info'!$B$122,D23*F23*'Project Info'!$B$122) -> 0 | CQ23: =IF(AF23="",0,IF(AF23="MF",'Project Info'!$B$129,IF(AF23="TH",'Project Info'!$B$130,IF(AND(OR(AF23="SF",AF23="MH"),AC23>0,AC23<3000),'Project Info'!$B$131,IF(AND(OR(AF23="SF",AF23="MH"),AC23>=3000),'Project Info'!$B$132))))) -> 0 | CR23: =IF(AW23=0,0,(AZ23/AW23*'Project Info'!$C$133)+(BC23/AW23*'Project Info'!$C$134)+(BF23/AW23*'Project Info'!$C$135)) -> 0 | CS23: 0 | CT23: 0 | CU23: =IF(AF23="",0,IF(AF23="MF",'Project Info'!$B$141,IF(AF23="TH",'Project Info'!$B$142,IF(AND(OR(AF23="SF",AF23="MH"),AC23>0,AC23<3000),'Project Info'!$B$143,IF(AND(OR(AF23="SF",AF23="MH"),AC23>=3000),'Project Info'!$B$144))))) -> 0 | CV23: =IF(AW23=0,0,(AZ23/AW23*'Project Info'!$C$145)+(BC23/AW23*'Project Info'!$C$146)+(BF23/AW23*'Project Info'!$C$147)) -> 0 | CW23: 0 | CX23: 0 | CY23: =IF(AF23="",0,IF(AF23="MF",'Project Info'!$B$154,IF(AF23="TH",'Project Info'!$B$155,IF(AND(OR(AF23="SF",AF23="MH"),AC23>0,AC23<3000),'Project Info'!$B$156,IF(AND(OR(AF23="SF",AF23="MH"),AC23>=3000),'Project Info'!$B$157))))) -> 0 | CZ23: =IF(AW23=0,0,(AZ23/AW23*'Project Info'!$C$158)+(BC23/AW23*'Project Info'!$C$159)+(BF23/AW23*'Project Info'!$C$160)) -> 0 | DA23: 0 | DB23: 0 | DD23: 0 | DE23: 0 | DG23: 0 | DI23: 0 | DJ23: 0 | DK23: 0 | DL23: 0 | DM23: 0 | DN23: 0 | DO23: 0 | DP23: 0
B24: 21 | J24: 0 | L24: 0 | M24: 0 | N24: 0 | O24: 0 | P24: 0 | Q24: 0 | R24: 0 | S24: 0 | AA24: 0 | AD24: 0 | AE24: 0 | AH24: 0 | AJ24: 0 | AL24: 0 | AM24: 0 | AN24: =IF(AF24="",0,IF(AF24="MF",'Project Info'!$F$8,IF(AF24="TH",'Project Info'!$F$9,IF(AF24="SF",'Project Info'!$F$11,IF(AF24="MH",'Project Info'!$F$13,0))))) -> 0 | AO24: 0 | AP24: =IF(AF24="",0,IF(AF24="MF",IF((AB24/'Project Info'!$D$8)>'Project Info'!$E$8,'Project Info'!$E$8,AB24/'Project Info'!$D$8),IF(AF24="TH",IF((AB24/'Project Info'!$D$9)>'Project Info'!$E$9,'Project Info'!$E$9,AB24/'Project Info'!$D$9),IF(AF24="SF",IF((AB24/'Project Info'!$D$11)>'Project Info'!$E$11,'Project Info'!$E$11,AB24/'Project Info'!$D$11),IF(AF24="MH",IF((AB24/'Project Info'!$D$13)>'Project Info'!$E$13,'Project Info'!$E$13,AB24/'Project Info'!$D$13)))))) -> 0 | AQ24: 0 | AR24: 0 | AS24: 0 | AT24: 0 | AU24: 0 | AV24: 0 | AW24: 0 | AX24: 0 | AZ24: 0 | BA24: 0 | BC24: 0 | BD24: 0 | BF24: 0 | BG24: 0 | BI24: 0 | BJ24: 0 | BL24: 0 | BM24: 0 | BO24: 0 | BR24: 0 | BS24: 0 | BU24: 0 | BY24: 0 | BZ24: =IFERROR(IF(B_Housing_Type="SF",EXP('Residential Energy Coefficients'!$B$3+'Residential Energy Coefficients'!$B$4*LN(B_Net_Sq_Ft_per_Unit)+'Residential Energy Coefficients'!$B$9+'Residential Energy Coefficients'!$B$10*LN(B_HH_Income)+'Residential Energy Coefficients'!$B$16*LN(Residential_Energy_Cost)+'Residential Energy Coefficients'!$B$20+'Residential Energy Coefficients'!$B$24*IFERROR(LOOKUP(Metro_Select,Energy_Metro_Lookup,HDD),0)),IF(B_Housing_Type="TH",EXP('Residential Energy Coefficients'!$E$3+'Residential Energy Coefficients'!$E$4*LN(B_Net_Sq_Ft_per_Unit)+'Residential Energy Coefficients'!$E$9+'Residential Energy Coefficients'!$E$16*LN(Residential_Energy_Cost)+'Residential Energy Coefficients'!$E$19+'Residential Energy Coefficients'!$E$20+'Residential Energy Coefficients'!$E$24*IFERROR(LOOKUP(Metro_Select,Energy_Metro_Lookup,HDD),0)),IF(B_Housing_Type="MF",EXP('Residential Energy Coefficients'!$H$3+'Residential Energy Coefficients'!$H$4*LN(B_Net_Sq_Ft_per_Unit)+'Residential Energy Coefficients'!$H$9+IF(B_Pct_Owner=1,'Residential Energy Coefficients'!$H$12,0)+'Residential Energy Coefficients'!$H$16*LN(Residential_Energy_Cost)+'Residential Energy Coefficients'!$H$20+'Residential Energy Coefficients'!$H$24*IFERROR(LOOKUP(Metro_Select,Energy_Metro_Lookup,HDD),0)),IF(B_Housing_Type="MH",EXP('Residential Energy Coefficients'!$K$3+'Residential Energy Coefficients'!$K$16*LN(Residential_Energy_Cost)+'Residential Energy Coefficients'!$K$24*IFERROR(LOOKUP(Metro_Select,Energy_Metro_Lookup,HDD),0)),0))))/1000,0) -> 0 | CA24: =IFERROR(IF(B_Housing_Type="SF",EXP('Residential Energy Coefficients'!$C$3+'Residential Energy Coefficients'!$C$4*LN(B_Net_Sq_Ft_per_Unit)+'Residential Energy Coefficients'!$C$10*LN(B_HH_Income)+'Residential Energy Coefficients'!$C$11*B_HH_Size+'Residential Energy Coefficients'!$C$16*LN(Residential_Energy_Cost)+'Residential Energy Coefficients'!$C$19+'Residential Energy Coefficients'!$C$22+'Residential Energy Coefficients'!$C$25*IFERROR(LOOKUP(Metro_Select,Energy_Metro_Lookup,CDD),0)),IF(B_Housing_Type="TH",EXP('Residential Energy Coefficients'!$F$3+'Residential Energy Coefficients'!$F$4*LN(B_Net_Sq_Ft_per_Unit)+'Residential Energy Coefficients'!$F$10*LN(B_HH_Income)+'Residential Energy Coefficients'!$F$11*B_HH_Size+IF(B_Pct_Owner=1,'Residential Energy Coefficients'!$F$12,0)+'Residential Energy Coefficients'!$F$16*LN(Residential_Energy_Cost)+'Residential Energy Coefficients'!$F$22+'Residential Energy Coefficients'!$F$25*IFERROR(LOOKUP(Metro_Select,Energy_Metro_Lookup,CDD),0)),IF(B_Housing_Type="MF",EXP('Residential Energy Coefficients'!$I$3+'Residential Energy Coefficients'!$I$4*LN(B_Net_Sq_Ft_per_Unit)+'Residential Energy Coefficients'!$I$9+'Residential Energy Coefficients'!$I$11*B_HH_Size+'Residential Energy Coefficients'!$I$16*LN(Residential_Energy_Cost)+'Residential Energy Coefficients'!$I$22+'Residential Energy Coefficients'!$I$25*IFERROR(LOOKUP(Metro_Select,Energy_Metro_Lookup,CDD),0)),IF(B_Housing_Type="MH",EXP('Residential Energy Coefficients'!$L$3+'Residential Energy Coefficients'!$L$11*B_HH_Size+'Residential Energy Coefficients'!$L$16*LN(Residential_Energy_Cost)+'Residential Energy Coefficients'!$L$22+'Residential Energy Coefficients'!$L$25*IFERROR(LOOKUP(Metro_Select,Energy_Metro_Lookup,CDD),0)),0))))/1000,0) -> 0 | CB24: =IFERROR(IF(B_Housing_Type="SF",EXP('Residential Energy Coefficients'!$D$3+'Residential Energy Coefficients'!$D$4*LN(B_Net_Sq_Ft_per_Unit)+'Residential Energy Coefficients'!$D$9+'Residential Energy Coefficients'!$D$10*LN(B_HH_Income)+'Residential Energy Coefficients'!$D$11*B_HH_Size+IF(B_Pct_Owner=1,'Residential Energy Coefficients'!$D$12,0)+'Residential Energy Coefficients'!$D$16*LN(Residential_Energy_Cost)),IF(B_Housing_Type="TH",EXP('Residential Energy Coefficients'!$G$3+'Residential Energy Coefficients'!$G$4*LN(B_Net_Sq_Ft_per_Unit)+'Residential Energy Coefficients'!$G$10*LN(B_HH_Income)+'Residential Energy Coefficients'!$G$11*B_HH_Size+'Residential Energy Coefficients'!$G$16*LN(Residential_Energy_Cost)),IF(B_Housing_Type="MF",EXP('Residential Energy Coefficients'!$J$3+'Residential Energy Coefficients'!$J$4*LN(B_Net_Sq_Ft_per_Unit)+'Residential Energy Coefficients'!$J$10*LN(B_HH_Income)+'Residential Energy Coefficients'!$J$11*B_HH_Size+IF(B_Pct_Owner=1,'Residential Energy Coefficients'!$J$12,0)+'Residential Energy Coefficients'!$J$16*LN(Residential_Energy_Cost)+'Residential Energy Coefficients'!$J$19),IF(B_Housing_Type="MH",EXP('Residential Energy Coefficients'!$M$3+'Residential Energy Coefficients'!$M$4*LN(B_Net_Sq_Ft_per_Unit)+'Residential Energy Coefficients'!$M$11*B_HH_Size+'Residential Energy Coefficients'!$M$16*LN(Residential_Energy_Cost)+'Residential Energy Coefficients'!$M$19),0))))/1000,0) -> 0 | CC24: 0 | CD24: =(IFERROR(EXP('Commercial Energy Coefficients'!$B$3+LN(B_Retail_Gross_Sq_Ft)*'Commercial Energy Coefficients'!$B$4+'Commercial Energy Coefficients'!$B$11+'Commercial Energy Coefficients'!$B$14+'Commercial Energy Coefficients'!$B$18*LN((B_Ret_Emp_Acre)*(B_Lot_Size/43560))+'Commercial Energy Coefficients'!$B$19*LN(40)+'Commercial Energy Coefficients'!$B$21+'Commercial Energy Coefficients'!$B$22*LN(Commercial_Energy_Cost)+'Commercial Energy Coefficients'!$B$23*IFERROR(LOOKUP(Metro_Select,Energy_Metro_Lookup,HDD),0)),0)+IFERROR(EXP('Commercial Energy Coefficients'!$E$3+LN(B_Office_Gross_Sq_Ft)*'Commercial Energy Coefficients'!$E$4+'Commercial Energy Coefficients'!$E$11+'Commercial Energy Coefficients'!$E$14+'Commercial Energy Coefficients'!$E$18*LN((B_Off_Emp_Acre)*(B_Lot_Size/43560))+'Commercial Energy Coefficients'!$E$19*LN(40)+'Commercial Energy Coefficients'!$E$21+'Commercial Energy Coefficients'!$E$22*LN(Commercial_Energy_Cost)+'Commercial Energy Coefficients'!$E$23*IFERROR(LOOKUP(Metro_Select,Energy_Metro_Lookup,HDD),0)),0)+IFERROR(EXP('Commercial Energy Coefficients'!$H$3+LN(B_Public_Gross_Sq_Ft)*'Commercial Energy Coefficients'!$H$4+'Commercial Energy Coefficients'!$H$11+'Commercial Energy Coefficients'!$H$14+'Commercial Energy Coefficients'!$H$18*LN((B_Pub_Emp_Acre)*(B_Lot_Size/43560))+'Commercial Energy Coefficients'!$H$19*LN(40)+'Commercial Energy Coefficients'!$H$21+'Commercial Energy Coefficients'!$H$22*LN(Commercial_Energy_Cost)+'Commercial Energy Coefficients'!$H$23*IFERROR(LOOKUP(Metro_Select,Energy_Metro_Lookup,HDD),0)),0))/1000 -> 0 | CE24: =(IFERROR(EXP('Commercial Energy Coefficients'!$C$3+LN((B_Retail_Gross_Sq_Ft))*'Commercial Energy Coefficients'!$C$4+'Commercial Energy Coefficients'!$C$11+'Commercial Energy Coefficients'!$C$14+'Commercial Energy Coefficients'!$C$18*LN((B_Ret_Emp_Acre)*(B_Lot_Size/43560))+'Commercial Energy Coefficients'!$C$19*LN(40)+'Commercial Energy Coefficients'!$C$21+'Commercial Energy Coefficients'!$C$22*LN(Commercial_Energy_Cost)+'Commercial Energy Coefficients'!$C$24*IFERROR(LOOKUP(Metro_Select,Energy_Metro_Lookup,CDD),0)),0)+IFERROR(EXP('Commercial Energy Coefficients'!$F$3+LN((B_Office_Gross_Sq_Ft))*'Commercial Energy Coefficients'!$F$4+'Commercial Energy Coefficients'!$F$11+'Commercial Energy Coefficients'!$F$14+'Commercial Energy Coefficients'!$F$18*LN((B_Off_Emp_Acre)*(B_Lot_Size/43560))+'Commercial Energy Coefficients'!$F$19*LN(40)+'Commercial Energy Coefficients'!$F$21+'Commercial Energy Coefficients'!$F$22*LN(Commercial_Energy_Cost)+'Commercial Energy Coefficients'!$F$24*IFERROR(LOOKUP(Metro_Select,Energy_Metro_Lookup,CDD),0)),0)+IFERROR(EXP('Commercial Energy Coefficients'!$I$3+LN((B_Public_Gross_Sq_Ft))*'Commercial Energy Coefficients'!$I$4+'Commercial Energy Coefficients'!$I$11+'Commercial Energy Coefficients'!$I$14+'Commercial Energy Coefficients'!$I$18*LN((B_Pub_Emp_Acre)*(B_Lot_Size/43560))+'Commercial Energy Coefficients'!$I$19*LN(40)+'Commercial Energy Coefficients'!$I$21+'Commercial Energy Coefficients'!$I$22*LN(Commercial_Energy_Cost)+'Commercial Energy Coefficients'!$I$24*IFERROR(LOOKUP(Metro_Select,Energy_Metro_Lookup,CDD),0)),0))/1000 -> 0 | CF24: =(IFERROR(EXP('Commercial Energy Coefficients'!$D$3+LN((B_Retail_Gross_Sq_Ft))*'Commercial Energy Coefficients'!$D$4+'Commercial Energy Coefficients'!$D$14+'Commercial Energy Coefficients'!$D$18*LN((B_Ret_Emp_Acre)*(B_Lot_Size/43560))+'Commercial Energy Coefficients'!$D$19*LN(40)+'Commercial Energy Coefficients'!$D$21+'Commercial Energy Coefficients'!$D$22*LN(Commercial_Energy_Cost)),0)+IFERROR(EXP('Commercial Energy Coefficients'!$G$3+LN((B_Office_Gross_Sq_Ft))*'Commercial Energy Coefficients'!$G$4+'Commercial Energy Coefficients'!$G$14+'Commercial Energy Coefficients'!$G$18*LN((B_Off_Emp_Acre)*(B_Lot_Size/43560))+'Commercial Energy Coefficients'!$G$19*LN(40)+'Commercial Energy Coefficients'!$G$21+'Commercial Energy Coefficients'!$G$22*LN(Commercial_Energy_Cost)),0)+IFERROR(EXP('Commercial Energy Coefficients'!$J$3+LN((B_Public_Gross_Sq_Ft))*'Commercial Energy Coefficients'!$J$4+'Commercial Energy Coefficients'!$J$14+'Commercial Energy Coefficients'!$J$18*LN((B_Pub_Emp_Acre)*(B_Lot_Size/43560))+'Commercial Energy Coefficients'!$J$19*LN(40)+'Commercial Energy Coefficients'!$J$21+'Commercial Energy Coefficients'!$J$22*LN(Commercial_Energy_Cost)),0))/1000 -> 0 | CG24: 0 | CH24: 0 | CI24: 0 | CJ24: 0 | CK24: 0 | CL24: 0 | CM24: 0 | CN24: 0 | CO24: 0 | CP24: =IF((D24*F24)>'Project Info'!$B$123*43560,'Project Info'!$B$123*43560*'Project Info'!$B$122,D24*F24*'Project Info'!$B$122) -> 0 | CQ24: =IF(AF24="",0,IF(AF24="MF",'Project Info'!$B$129,IF(AF24="TH",'Project Info'!$B$130,IF(AND(OR(AF24="SF",AF24="MH"),AC24>0,AC24<3000),'Project Info'!$B$131,IF(AND(OR(AF24="SF",AF24="MH"),AC24>=3000),'Project Info'!$B$132))))) -> 0 | CR24: =IF(AW24=0,0,(AZ24/AW24*'Project Info'!$C$133)+(BC24/AW24*'Project Info'!$C$134)+(BF24/AW24*'Project Info'!$C$135)) -> 0 | CS24: 0 | CT24: 0 | CU24: =IF(AF24="",0,IF(AF24="MF",'Project Info'!$B$141,IF(AF24="TH",'Project Info'!$B$142,IF(AND(OR(AF24="SF",AF24="MH"),AC24>0,AC24<3000),'Project Info'!$B$143,IF(AND(OR(AF24="SF",AF24="MH"),AC24>=3000),'Project Info'!$B$144))))) -> 0 | CV24: =IF(AW24=0,0,(AZ24/AW24*'Project Info'!$C$145)+(BC24/AW24*'Project Info'!$C$146)+(BF24/AW24*'Project Info'!$C$147)) -> 0 | CW24: 0 | CX24: 0 | CY24: =IF(AF24="",0,IF(AF24="MF",'Project Info'!$B$154,IF(AF24="TH",'Project Info'!$B$155,IF(AND(OR(AF24="SF",AF24="MH"),AC24>0,AC24<3000),'Project Info'!$B$156,IF(AND(OR(AF24="SF",AF24="MH"),AC24>=3000),'Project Info'!$B$157))))) -> 0 | CZ24: =IF(AW24=0,0,(AZ24/AW24*'Project Info'!$C$158)+(BC24/AW24*'Project Info'!$C$159)+(BF24/AW24*'Project Info'!$C$160)) -> 0 | DA24: 0 | DB24: 0 | DD24: 0 | DE24: 0 | DG24: 0 | DI24: 0 | DJ24: 0 | DK24: 0 | DL24: 0 | DM24: 0 | DN24: 0 | DO24: 0 | DP24: 0
B25: 22 | J25: 0 | L25: 0 | M25: 0 | N25: 0 | O25: 0 | P25: 0 | Q25: 0 | R25: 0 | S25: 0 | AA25: 0 | AD25: 0 | AE25: 0 | AH25: 0 | AJ25: 0 | AL25: 0 | AM25: 0 | AN25: =IF(AF25="",0,IF(AF25="MF",'Project Info'!$F$8,IF(AF25="TH",'Project Info'!$F$9,IF(AF25="SF",'Project Info'!$F$11,IF(AF25="MH",'Project Info'!$F$13,0))))) -> 0 | AO25: 0 | AP25: =IF(AF25="",0,IF(AF25="MF",IF((AB25/'Project Info'!$D$8)>'Project Info'!$E$8,'Project Info'!$E$8,AB25/'Project Info'!$D$8),IF(AF25="TH",IF((AB25/'Project Info'!$D$9)>'Project Info'!$E$9,'Project Info'!$E$9,AB25/'Project Info'!$D$9),IF(AF25="SF",IF((AB25/'Project Info'!$D$11)>'Project Info'!$E$11,'Project Info'!$E$11,AB25/'Project Info'!$D$11),IF(AF25="MH",IF((AB25/'Project Info'!$D$13)>'Project Info'!$E$13,'Project Info'!$E$13,AB25/'Project Info'!$D$13)))))) -> 0 | AQ25: 0 | AR25: 0 | AS25: 0 | AT25: 0 | AU25: 0 | AV25: 0 | AW25: 0 | AX25: 0 | AZ25: 0 | BA25: 0 | BC25: 0 | BD25: 0 | BF25: 0 | BG25: 0 | BI25: 0 | BJ25: 0 | BL25: 0 | BM25: 0 | BO25: 0 | BR25: 0 | BS25: 0 | BU25: 0 | BY25: 0 | BZ25: =IFERROR(IF(B_Housing_Type="SF",EXP('Residential Energy Coefficients'!$B$3+'Residential Energy Coefficients'!$B$4*LN(B_Net_Sq_Ft_per_Unit)+'Residential Energy Coefficients'!$B$9+'Residential Energy Coefficients'!$B$10*LN(B_HH_Income)+'Residential Energy Coefficients'!$B$16*LN(Residential_Energy_Cost)+'Residential Energy Coefficients'!$B$20+'Residential Energy Coefficients'!$B$24*IFERROR(LOOKUP(Metro_Select,Energy_Metro_Lookup,HDD),0)),IF(B_Housing_Type="TH",EXP('Residential Energy Coefficients'!$E$3+'Residential Energy Coefficients'!$E$4*LN(B_Net_Sq_Ft_per_Unit)+'Residential Energy Coefficients'!$E$9+'Residential Energy Coefficients'!$E$16*LN(Residential_Energy_Cost)+'Residential Energy Coefficients'!$E$19+'Residential Energy Coefficients'!$E$20+'Residential Energy Coefficients'!$E$24*IFERROR(LOOKUP(Metro_Select,Energy_Metro_Lookup,HDD),0)),IF(B_Housing_Type="MF",EXP('Residential Energy Coefficients'!$H$3+'Residential Energy Coefficients'!$H$4*LN(B_Net_Sq_Ft_per_Unit)+'Residential Energy Coefficients'!$H$9+IF(B_Pct_Owner=1,'Residential Energy Coefficients'!$H$12,0)+'Residential Energy Coefficients'!$H$16*LN(Residential_Energy_Cost)+'Residential Energy Coefficients'!$H$20+'Residential Energy Coefficients'!$H$24*IFERROR(LOOKUP(Metro_Select,Energy_Metro_Lookup,HDD),0)),IF(B_Housing_Type="MH",EXP('Residential Energy Coefficients'!$K$3+'Residential Energy Coefficients'!$K$16*LN(Residential_Energy_Cost)+'Residential Energy Coefficients'!$K$24*IFERROR(LOOKUP(Metro_Select,Energy_Metro_Lookup,HDD),0)),0))))/1000,0) -> 0 | CA25: =IFERROR(IF(B_Housing_Type="SF",EXP('Residential Energy Coefficients'!$C$3+'Residential Energy Coefficients'!$C$4*LN(B_Net_Sq_Ft_per_Unit)+'Residential Energy Coefficients'!$C$10*LN(B_HH_Income)+'Residential Energy Coefficients'!$C$11*B_HH_Size+'Residential Energy Coefficients'!$C$16*LN(Residential_Energy_Cost)+'Residential Energy Coefficients'!$C$19+'Residential Energy Coefficients'!$C$22+'Residential Energy Coefficients'!$C$25*IFERROR(LOOKUP(Metro_Select,Energy_Metro_Lookup,CDD),0)),IF(B_Housing_Type="TH",EXP('Residential Energy Coefficients'!$F$3+'Residential Energy Coefficients'!$F$4*LN(B_Net_Sq_Ft_per_Unit)+'Residential Energy Coefficients'!$F$10*LN(B_HH_Income)+'Residential Energy Coefficients'!$F$11*B_HH_Size+IF(B_Pct_Owner=1,'Residential Energy Coefficients'!$F$12,0)+'Residential Energy Coefficients'!$F$16*LN(Residential_Energy_Cost)+'Residential Energy Coefficients'!$F$22+'Residential Energy Coefficients'!$F$25*IFERROR(LOOKUP(Metro_Select,Energy_Metro_Lookup,CDD),0)),IF(B_Housing_Type="MF",EXP('Residential Energy Coefficients'!$I$3+'Residential Energy Coefficients'!$I$4*LN(B_Net_Sq_Ft_per_Unit)+'Residential Energy Coefficients'!$I$9+'Residential Energy Coefficients'!$I$11*B_HH_Size+'Residential Energy Coefficients'!$I$16*LN(Residential_Energy_Cost)+'Residential Energy Coefficients'!$I$22+'Residential Energy Coefficients'!$I$25*IFERROR(LOOKUP(Metro_Select,Energy_Metro_Lookup,CDD),0)),IF(B_Housing_Type="MH",EXP('Residential Energy Coefficients'!$L$3+'Residential Energy Coefficients'!$L$11*B_HH_Size+'Residential Energy Coefficients'!$L$16*LN(Residential_Energy_Cost)+'Residential Energy Coefficients'!$L$22+'Residential Energy Coefficients'!$L$25*IFERROR(LOOKUP(Metro_Select,Energy_Metro_Lookup,CDD),0)),0))))/1000,0) -> 0 | CB25: =IFERROR(IF(B_Housing_Type="SF",EXP('Residential Energy Coefficients'!$D$3+'Residential Energy Coefficients'!$D$4*LN(B_Net_Sq_Ft_per_Unit)+'Residential Energy Coefficients'!$D$9+'Residential Energy Coefficients'!$D$10*LN(B_HH_Income)+'Residential Energy Coefficients'!$D$11*B_HH_Size+IF(B_Pct_Owner=1,'Residential Energy Coefficients'!$D$12,0)+'Residential Energy Coefficients'!$D$16*LN(Residential_Energy_Cost)),IF(B_Housing_Type="TH",EXP('Residential Energy Coefficients'!$G$3+'Residential Energy Coefficients'!$G$4*LN(B_Net_Sq_Ft_per_Unit)+'Residential Energy Coefficients'!$G$10*LN(B_HH_Income)+'Residential Energy Coefficients'!$G$11*B_HH_Size+'Residential Energy Coefficients'!$G$16*LN(Residential_Energy_Cost)),IF(B_Housing_Type="MF",EXP('Residential Energy Coefficients'!$J$3+'Residential Energy Coefficients'!$J$4*LN(B_Net_Sq_Ft_per_Unit)+'Residential Energy Coefficients'!$J$10*LN(B_HH_Income)+'Residential Energy Coefficients'!$J$11*B_HH_Size+IF(B_Pct_Owner=1,'Residential Energy Coefficients'!$J$12,0)+'Residential Energy Coefficients'!$J$16*LN(Residential_Energy_Cost)+'Residential Energy Coefficients'!$J$19),IF(B_Housing_Type="MH",EXP('Residential Energy Coefficients'!$M$3+'Residential Energy Coefficients'!$M$4*LN(B_Net_Sq_Ft_per_Unit)+'Residential Energy Coefficients'!$M$11*B_HH_Size+'Residential Energy Coefficients'!$M$16*LN(Residential_Energy_Cost)+'Residential Energy Coefficients'!$M$19),0))))/1000,0) -> 0 | CC25: 0 | CD25: =(IFERROR(EXP('Commercial Energy Coefficients'!$B$3+LN(B_Retail_Gross_Sq_Ft)*'Commercial Energy Coefficients'!$B$4+'Commercial Energy Coefficients'!$B$11+'Commercial Energy Coefficients'!$B$14+'Commercial Energy Coefficients'!$B$18*LN((B_Ret_Emp_Acre)*(B_Lot_Size/43560))+'Commercial Energy Coefficients'!$B$19*LN(40)+'Commercial Energy Coefficients'!$B$21+'Commercial Energy Coefficients'!$B$22*LN(Commercial_Energy_Cost)+'Commercial Energy Coefficients'!$B$23*IFERROR(LOOKUP(Metro_Select,Energy_Metro_Lookup,HDD),0)),0)+IFERROR(EXP('Commercial Energy Coefficients'!$E$3+LN(B_Office_Gross_Sq_Ft)*'Commercial Energy Coefficients'!$E$4+'Commercial Energy Coefficients'!$E$11+'Commercial Energy Coefficients'!$E$14+'Commercial Energy Coefficients'!$E$18*LN((B_Off_Emp_Acre)*(B_Lot_Size/43560))+'Commercial Energy Coefficients'!$E$19*LN(40)+'Commercial Energy Coefficients'!$E$21+'Commercial Energy Coefficients'!$E$22*LN(Commercial_Energy_Cost)+'Commercial Energy Coefficients'!$E$23*IFERROR(LOOKUP(Metro_Select,Energy_Metro_Lookup,HDD),0)),0)+IFERROR(EXP('Commercial Energy Coefficients'!$H$3+LN(B_Public_Gross_Sq_Ft)*'Commercial Energy Coefficients'!$H$4+'Commercial Energy Coefficients'!$H$11+'Commercial Energy Coefficients'!$H$14+'Commercial Energy Coefficients'!$H$18*LN((B_Pub_Emp_Acre)*(B_Lot_Size/43560))+'Commercial Energy Coefficients'!$H$19*LN(40)+'Commercial Energy Coefficients'!$H$21+'Commercial Energy Coefficients'!$H$22*LN(Commercial_Energy_Cost)+'Commercial Energy Coefficients'!$H$23*IFERROR(LOOKUP(Metro_Select,Energy_Metro_Lookup,HDD),0)),0))/1000 -> 0 | CE25: =(IFERROR(EXP('Commercial Energy Coefficients'!$C$3+LN((B_Retail_Gross_Sq_Ft))*'Commercial Energy Coefficients'!$C$4+'Commercial Energy Coefficients'!$C$11+'Commercial Energy Coefficients'!$C$14+'Commercial Energy Coefficients'!$C$18*LN((B_Ret_Emp_Acre)*(B_Lot_Size/43560))+'Commercial Energy Coefficients'!$C$19*LN(40)+'Commercial Energy Coefficients'!$C$21+'Commercial Energy Coefficients'!$C$22*LN(Commercial_Energy_Cost)+'Commercial Energy Coefficients'!$C$24*IFERROR(LOOKUP(Metro_Select,Energy_Metro_Lookup,CDD),0)),0)+IFERROR(EXP('Commercial Energy Coefficients'!$F$3+LN((B_Office_Gross_Sq_Ft))*'Commercial Energy Coefficients'!$F$4+'Commercial Energy Coefficients'!$F$11+'Commercial Energy Coefficients'!$F$14+'Commercial Energy Coefficients'!$F$18*LN((B_Off_Emp_Acre)*(B_Lot_Size/43560))+'Commercial Energy Coefficients'!$F$19*LN(40)+'Commercial Energy Coefficients'!$F$21+'Commercial Energy Coefficients'!$F$22*LN(Commercial_Energy_Cost)+'Commercial Energy Coefficients'!$F$24*IFERROR(LOOKUP(Metro_Select,Energy_Metro_Lookup,CDD),0)),0)+IFERROR(EXP('Commercial Energy Coefficients'!$I$3+LN((B_Public_Gross_Sq_Ft))*'Commercial Energy Coefficients'!$I$4+'Commercial Energy Coefficients'!$I$11+'Commercial Energy Coefficients'!$I$14+'Commercial Energy Coefficients'!$I$18*LN((B_Pub_Emp_Acre)*(B_Lot_Size/43560))+'Commercial Energy Coefficients'!$I$19*LN(40)+'Commercial Energy Coefficients'!$I$21+'Commercial Energy Coefficients'!$I$22*LN(Commercial_Energy_Cost)+'Commercial Energy Coefficients'!$I$24*IFERROR(LOOKUP(Metro_Select,Energy_Metro_Lookup,CDD),0)),0))/1000 -> 0 | CF25: =(IFERROR(EXP('Commercial Energy Coefficients'!$D$3+LN((B_Retail_Gross_Sq_Ft))*'Commercial Energy Coefficients'!$D$4+'Commercial Energy Coefficients'!$D$14+'Commercial Energy Coefficients'!$D$18*LN((B_Ret_Emp_Acre)*(B_Lot_Size/43560))+'Commercial Energy Coefficients'!$D$19*LN(40)+'Commercial Energy Coefficients'!$D$21+'Commercial Energy Coefficients'!$D$22*LN(Commercial_Energy_Cost)),0)+IFERROR(EXP('Commercial Energy Coefficients'!$G$3+LN((B_Office_Gross_Sq_Ft))*'Commercial Energy Coefficients'!$G$4+'Commercial Energy Coefficients'!$G$14+'Commercial Energy Coefficients'!$G$18*LN((B_Off_Emp_Acre)*(B_Lot_Size/43560))+'Commercial Energy Coefficients'!$G$19*LN(40)+'Commercial Energy Coefficients'!$G$21+'Commercial Energy Coefficients'!$G$22*LN(Commercial_Energy_Cost)),0)+IFERROR(EXP('Commercial Energy Coefficients'!$J$3+LN((B_Public_Gross_Sq_Ft))*'Commercial Energy Coefficients'!$J$4+'Commercial Energy Coefficients'!$J$14+'Commercial Energy Coefficients'!$J$18*LN((B_Pub_Emp_Acre)*(B_Lot_Size/43560))+'Commercial Energy Coefficients'!$J$19*LN(40)+'Commercial Energy Coefficients'!$J$21+'Commercial Energy Coefficients'!$J$22*LN(Commercial_Energy_Cost)),0))/1000 -> 0 | CG25: 0 | CH25: 0 | CI25: 0 | CJ25: 0 | CK25: 0 | CL25: 0 | CM25: 0 | CN25: 0 | CO25: 0 | CP25: =IF((D25*F25)>'Project Info'!$B$123*43560,'Project Info'!$B$123*43560*'Project Info'!$B$122,D25*F25*'Project Info'!$B$122) -> 0 | CQ25: =IF(AF25="",0,IF(AF25="MF",'Project Info'!$B$129,IF(AF25="TH",'Project Info'!$B$130,IF(AND(OR(AF25="SF",AF25="MH"),AC25>0,AC25<3000),'Project Info'!$B$131,IF(AND(OR(AF25="SF",AF25="MH"),AC25>=3000),'Project Info'!$B$132))))) -> 0 | CR25: =IF(AW25=0,0,(AZ25/AW25*'Project Info'!$C$133)+(BC25/AW25*'Project Info'!$C$134)+(BF25/AW25*'Project Info'!$C$135)) -> 0 | CS25: 0 | CT25: 0 | CU25: =IF(AF25="",0,IF(AF25="MF",'Project Info'!$B$141,IF(AF25="TH",'Project Info'!$B$142,IF(AND(OR(AF25="SF",AF25="MH"),AC25>0,AC25<3000),'Project Info'!$B$143,IF(AND(OR(AF25="SF",AF25="MH"),AC25>=3000),'Project Info'!$B$144))))) -> 0 | CV25: =IF(AW25=0,0,(AZ25/AW25*'Project Info'!$C$145)+(BC25/AW25*'Project Info'!$C$146)+(BF25/AW25*'Project Info'!$C$147)) -> 0 | CW25: 0 | CX25: 0 | CY25: =IF(AF25="",0,IF(AF25="MF",'Project Info'!$B$154,IF(AF25="TH",'Project Info'!$B$155,IF(AND(OR(AF25="SF",AF25="MH"),AC25>0,AC25<3000),'Project Info'!$B$156,IF(AND(OR(AF25="SF",AF25="MH"),AC25>=3000),'Project Info'!$B$157))))) -> 0 | CZ25: =IF(AW25=0,0,(AZ25/AW25*'Project Info'!$C$158)+(BC25/AW25*'Project Info'!$C$159)+(BF25/AW25*'Project Info'!$C$160)) -> 0 | DA25: 0 | DB25: 0 | DD25: 0 | DE25: 0 | DG25: 0 | DI25: 0 | DJ25: 0 | DK25: 0 | DL25: 0 | DM25: 0 | DN25: 0 | DO25: 0 | DP25: 0
B26: 23 | J26: 0 | L26: 0 | M26: 0 | N26: 0 | O26: 0 | P26: 0 | Q26: 0 | R26: 0 | S26: 0 | AA26: 0 | AD26: 0 | AE26: 0 | AH26: 0 | AJ26: 0 | AL26: 0 | AM26: 0 | AN26: =IF(AF26="",0,IF(AF26="MF",'Project Info'!$F$8,IF(AF26="TH",'Project Info'!$F$9,IF(AF26="SF",'Project Info'!$F$11,IF(AF26="MH",'Project Info'!$F$13,0))))) -> 0 | AO26: 0 | AP26: =IF(AF26="",0,IF(AF26="MF",IF((AB26/'Project Info'!$D$8)>'Project Info'!$E$8,'Project Info'!$E$8,AB26/'Project Info'!$D$8),IF(AF26="TH",IF((AB26/'Project Info'!$D$9)>'Project Info'!$E$9,'Project Info'!$E$9,AB26/'Project Info'!$D$9),IF(AF26="SF",IF((AB26/'Project Info'!$D$11)>'Project Info'!$E$11,'Project Info'!$E$11,AB26/'Project Info'!$D$11),IF(AF26="MH",IF((AB26/'Project Info'!$D$13)>'Project Info'!$E$13,'Project Info'!$E$13,AB26/'Project Info'!$D$13)))))) -> 0 | AQ26: 0 | AR26: 0 | AS26: 0 | AT26: 0 | AU26: 0 | AV26: 0 | AW26: 0 | AX26: 0 | AZ26: 0 | BA26: 0 | BC26: 0 | BD26: 0 | BF26: 0 | BG26: 0 | BI26: 0 | BJ26: 0 | BL26: 0 | BM26: 0 | BO26: 0 | BR26: 0 | BS26: 0 | BU26: 0 | BY26: 0 | BZ26: =IFERROR(IF(B_Housing_Type="SF",EXP('Residential Energy Coefficients'!$B$3+'Residential Energy Coefficients'!$B$4*LN(B_Net_Sq_Ft_per_Unit)+'Residential Energy Coefficients'!$B$9+'Residential Energy Coefficients'!$B$10*LN(B_HH_Income)+'Residential Energy Coefficients'!$B$16*LN(Residential_Energy_Cost)+'Residential Energy Coefficients'!$B$20+'Residential Energy Coefficients'!$B$24*IFERROR(LOOKUP(Metro_Select,Energy_Metro_Lookup,HDD),0)),IF(B_Housing_Type="TH",EXP('Residential Energy Coefficients'!$E$3+'Residential Energy Coefficients'!$E$4*LN(B_Net_Sq_Ft_per_Unit)+'Residential Energy Coefficients'!$E$9+'Residential Energy Coefficients'!$E$16*LN(Residential_Energy_Cost)+'Residential Energy Coefficients'!$E$19+'Residential Energy Coefficients'!$E$20+'Residential Energy Coefficients'!$E$24*IFERROR(LOOKUP(Metro_Select,Energy_Metro_Lookup,HDD),0)),IF(B_Housing_Type="MF",EXP('Residential Energy Coefficients'!$H$3+'Residential Energy Coefficients'!$H$4*LN(B_Net_Sq_Ft_per_Unit)+'Residential Energy Coefficients'!$H$9+IF(B_Pct_Owner=1,'Residential Energy Coefficients'!$H$12,0)+'Residential Energy Coefficients'!$H$16*LN(Residential_Energy_Cost)+'Residential Energy Coefficients'!$H$20+'Residential Energy Coefficients'!$H$24*IFERROR(LOOKUP(Metro_Select,Energy_Metro_Lookup,HDD),0)),IF(B_Housing_Type="MH",EXP('Residential Energy Coefficients'!$K$3+'Residential Energy Coefficients'!$K$16*LN(Residential_Energy_Cost)+'Residential Energy Coefficients'!$K$24*IFERROR(LOOKUP(Metro_Select,Energy_Metro_Lookup,HDD),0)),0))))/1000,0) -> 0 | CA26: =IFERROR(IF(B_Housing_Type="SF",EXP('Residential Energy Coefficients'!$C$3+'Residential Energy Coefficients'!$C$4*LN(B_Net_Sq_Ft_per_Unit)+'Residential Energy Coefficients'!$C$10*LN(B_HH_Income)+'Residential Energy Coefficients'!$C$11*B_HH_Size+'Residential Energy Coefficients'!$C$16*LN(Residential_Energy_Cost)+'Residential Energy Coefficients'!$C$19+'Residential Energy Coefficients'!$C$22+'Residential Energy Coefficients'!$C$25*IFERROR(LOOKUP(Metro_Select,Energy_Metro_Lookup,CDD),0)),IF(B_Housing_Type="TH",EXP('Residential Energy Coefficients'!$F$3+'Residential Energy Coefficients'!$F$4*LN(B_Net_Sq_Ft_per_Unit)+'Residential Energy Coefficients'!$F$10*LN(B_HH_Income)+'Residential Energy Coefficients'!$F$11*B_HH_Size+IF(B_Pct_Owner=1,'Residential Energy Coefficients'!$F$12,0)+'Residential Energy Coefficients'!$F$16*LN(Residential_Energy_Cost)+'Residential Energy Coefficients'!$F$22+'Residential Energy Coefficients'!$F$25*IFERROR(LOOKUP(Metro_Select,Energy_Metro_Lookup,CDD),0)),IF(B_Housing_Type="MF",EXP('Residential Energy Coefficients'!$I$3+'Residential Energy Coefficients'!$I$4*LN(B_Net_Sq_Ft_per_Unit)+'Residential Energy Coefficients'!$I$9+'Residential Energy Coefficients'!$I$11*B_HH_Size+'Residential Energy Coefficients'!$I$16*LN(Residential_Energy_Cost)+'Residential Energy Coefficients'!$I$22+'Residential Energy Coefficients'!$I$25*IFERROR(LOOKUP(Metro_Select,Energy_Metro_Lookup,CDD),0)),IF(B_Housing_Type="MH",EXP('Residential Energy Coefficients'!$L$3+'Residential Energy Coefficients'!$L$11*B_HH_Size+'Residential Energy Coefficients'!$L$16*LN(Residential_Energy_Cost)+'Residential Energy Coefficients'!$L$22+'Residential Energy Coefficients'!$L$25*IFERROR(LOOKUP(Metro_Select,Energy_Metro_Lookup,CDD),0)),0))))/1000,0) -> 0 | CB26: =IFERROR(IF(B_Housing_Type="SF",EXP('Residential Energy Coefficients'!$D$3+'Residential Energy Coefficients'!$D$4*LN(B_Net_Sq_Ft_per_Unit)+'Residential Energy Coefficients'!$D$9+'Residential Energy Coefficients'!$D$10*LN(B_HH_Income)+'Residential Energy Coefficients'!$D$11*B_HH_Size+IF(B_Pct_Owner=1,'Residential Energy Coefficients'!$D$12,0)+'Residential Energy Coefficients'!$D$16*LN(Residential_Energy_Cost)),IF(B_Housing_Type="TH",EXP('Residential Energy Coefficients'!$G$3+'Residential Energy Coefficients'!$G$4*LN(B_Net_Sq_Ft_per_Unit)+'Residential Energy Coefficients'!$G$10*LN(B_HH_Income)+'Residential Energy Coefficients'!$G$11*B_HH_Size+'Residential Energy Coefficients'!$G$16*LN(Residential_Energy_Cost)),IF(B_Housing_Type="MF",EXP('Residential Energy Coefficients'!$J$3+'Residential Energy Coefficients'!$J$4*LN(B_Net_Sq_Ft_per_Unit)+'Residential Energy Coefficients'!$J$10*LN(B_HH_Income)+'Residential Energy Coefficients'!$J$11*B_HH_Size+IF(B_Pct_Owner=1,'Residential Energy Coefficients'!$J$12,0)+'Residential Energy Coefficients'!$J$16*LN(Residential_Energy_Cost)+'Residential Energy Coefficients'!$J$19),IF(B_Housing_Type="MH",EXP('Residential Energy Coefficients'!$M$3+'Residential Energy Coefficients'!$M$4*LN(B_Net_Sq_Ft_per_Unit)+'Residential Energy Coefficients'!$M$11*B_HH_Size+'Residential Energy Coefficients'!$M$16*LN(Residential_Energy_Cost)+'Residential Energy Coefficients'!$M$19),0))))/1000,0) -> 0 | CC26: 0 | CD26: =(IFERROR(EXP('Commercial Energy Coefficients'!$B$3+LN(B_Retail_Gross_Sq_Ft)*'Commercial Energy Coefficients'!$B$4+'Commercial Energy Coefficients'!$B$11+'Commercial Energy Coefficients'!$B$14+'Commercial Energy Coefficients'!$B$18*LN((B_Ret_Emp_Acre)*(B_Lot_Size/43560))+'Commercial Energy Coefficients'!$B$19*LN(40)+'Commercial Energy Coefficients'!$B$21+'Commercial Energy Coefficients'!$B$22*LN(Commercial_Energy_Cost)+'Commercial Energy Coefficients'!$B$23*IFERROR(LOOKUP(Metro_Select,Energy_Metro_Lookup,HDD),0)),0)+IFERROR(EXP('Commercial Energy Coefficients'!$E$3+LN(B_Office_Gross_Sq_Ft)*'Commercial Energy Coefficients'!$E$4+'Commercial Energy Coefficients'!$E$11+'Commercial Energy Coefficients'!$E$14+'Commercial Energy Coefficients'!$E$18*LN((B_Off_Emp_Acre)*(B_Lot_Size/43560))+'Commercial Energy Coefficients'!$E$19*LN(40)+'Commercial Energy Coefficients'!$E$21+'Commercial Energy Coefficients'!$E$22*LN(Commercial_Energy_Cost)+'Commercial Energy Coefficients'!$E$23*IFERROR(LOOKUP(Metro_Select,Energy_Metro_Lookup,HDD),0)),0)+IFERROR(EXP('Commercial Energy Coefficients'!$H$3+LN(B_Public_Gross_Sq_Ft)*'Commercial Energy Coefficients'!$H$4+'Commercial Energy Coefficients'!$H$11+'Commercial Energy Coefficients'!$H$14+'Commercial Energy Coefficients'!$H$18*LN((B_Pub_Emp_Acre)*(B_Lot_Size/43560))+'Commercial Energy Coefficients'!$H$19*LN(40)+'Commercial Energy Coefficients'!$H$21+'Commercial Energy Coefficients'!$H$22*LN(Commercial_Energy_Cost)+'Commercial Energy Coefficients'!$H$23*IFERROR(LOOKUP(Metro_Select,Energy_Metro_Lookup,HDD),0)),0))/1000 -> 0 | CE26: =(IFERROR(EXP('Commercial Energy Coefficients'!$C$3+LN((B_Retail_Gross_Sq_Ft))*'Commercial Energy Coefficients'!$C$4+'Commercial Energy Coefficients'!$C$11+'Commercial Energy Coefficients'!$C$14+'Commercial Energy Coefficients'!$C$18*LN((B_Ret_Emp_Acre)*(B_Lot_Size/43560))+'Commercial Energy Coefficients'!$C$19*LN(40)+'Commercial Energy Coefficients'!$C$21+'Commercial Energy Coefficients'!$C$22*LN(Commercial_Energy_Cost)+'Commercial Energy Coefficients'!$C$24*IFERROR(LOOKUP(Metro_Select,Energy_Metro_Lookup,CDD),0)),0)+IFERROR(EXP('Commercial Energy Coefficients'!$F$3+LN((B_Office_Gross_Sq_Ft))*'Commercial Energy Coefficients'!$F$4+'Commercial Energy Coefficients'!$F$11+'Commercial Energy Coefficients'!$F$14+'Commercial Energy Coefficients'!$F$18*LN((B_Off_Emp_Acre)*(B_Lot_Size/43560))+'Commercial Energy Coefficients'!$F$19*LN(40)+'Commercial Energy Coefficients'!$F$21+'Commercial Energy Coefficients'!$F$22*LN(Commercial_Energy_Cost)+'Commercial Energy Coefficients'!$F$24*IFERROR(LOOKUP(Metro_Select,Energy_Metro_Lookup,CDD),0)),0)+IFERROR(EXP('Commercial Energy Coefficients'!$I$3+LN((B_Public_Gross_Sq_Ft))*'Commercial Energy Coefficients'!$I$4+'Commercial Energy Coefficients'!$I$11+'Commercial Energy Coefficients'!$I$14+'Commercial Energy Coefficients'!$I$18*LN((B_Pub_Emp_Acre)*(B_Lot_Size/43560))+'Commercial Energy Coefficients'!$I$19*LN(40)+'Commercial Energy Coefficients'!$I$21+'Commercial Energy Coefficients'!$I$22*LN(Commercial_Energy_Cost)+'Commercial Energy Coefficients'!$I$24*IFERROR(LOOKUP(Metro_Select,Energy_Metro_Lookup,CDD),0)),0))/1000 -> 0 | CF26: =(IFERROR(EXP('Commercial Energy Coefficients'!$D$3+LN((B_Retail_Gross_Sq_Ft))*'Commercial Energy Coefficients'!$D$4+'Commercial Energy Coefficients'!$D$14+'Commercial Energy Coefficients'!$D$18*LN((B_Ret_Emp_Acre)*(B_Lot_Size/43560))+'Commercial Energy Coefficients'!$D$19*LN(40)+'Commercial Energy Coefficients'!$D$21+'Commercial Energy Coefficients'!$D$22*LN(Commercial_Energy_Cost)),0)+IFERROR(EXP('Commercial Energy Coefficients'!$G$3+LN((B_Office_Gross_Sq_Ft))*'Commercial Energy Coefficients'!$G$4+'Commercial Energy Coefficients'!$G$14+'Commercial Energy Coefficients'!$G$18*LN((B_Off_Emp_Acre)*(B_Lot_Size/43560))+'Commercial Energy Coefficients'!$G$19*LN(40)+'Commercial Energy Coefficients'!$G$21+'Commercial Energy Coefficients'!$G$22*LN(Commercial_Energy_Cost)),0)+IFERROR(EXP('Commercial Energy Coefficients'!$J$3+LN((B_Public_Gross_Sq_Ft))*'Commercial Energy Coefficients'!$J$4+'Commercial Energy Coefficients'!$J$14+'Commercial Energy Coefficients'!$J$18*LN((B_Pub_Emp_Acre)*(B_Lot_Size/43560))+'Commercial Energy Coefficients'!$J$19*LN(40)+'Commercial Energy Coefficients'!$J$21+'Commercial Energy Coefficients'!$J$22*LN(Commercial_Energy_Cost)),0))/1000 -> 0 | CG26: 0 | CH26: 0 | CI26: 0 | CJ26: 0 | CK26: 0 | CL26: 0 | CM26: 0 | CN26: 0 | CO26: 0 | CP26: =IF((D26*F26)>'Project Info'!$B$123*43560,'Project Info'!$B$123*43560*'Project Info'!$B$122,D26*F26*'Project Info'!$B$122) -> 0 | CQ26: =IF(AF26="",0,IF(AF26="MF",'Project Info'!$B$129,IF(AF26="TH",'Project Info'!$B$130,IF(AND(OR(AF26="SF",AF26="MH"),AC26>0,AC26<3000),'Project Info'!$B$131,IF(AND(OR(AF26="SF",AF26="MH"),AC26>=3000),'Project Info'!$B$132))))) -> 0 | CR26: =IF(AW26=0,0,(AZ26/AW26*'Project Info'!$C$133)+(BC26/AW26*'Project Info'!$C$134)+(BF26/AW26*'Project Info'!$C$135)) -> 0 | CS26: 0 | CT26: 0 | CU26: =IF(AF26="",0,IF(AF26="MF",'Project Info'!$B$141,IF(AF26="TH",'Project Info'!$B$142,IF(AND(OR(AF26="SF",AF26="MH"),AC26>0,AC26<3000),'Project Info'!$B$143,IF(AND(OR(AF26="SF",AF26="MH"),AC26>=3000),'Project Info'!$B$144))))) -> 0 | CV26: =IF(AW26=0,0,(AZ26/AW26*'Project Info'!$C$145)+(BC26/AW26*'Project Info'!$C$146)+(BF26/AW26*'Project Info'!$C$147)) -> 0 | CW26: 0 | CX26: 0 | CY26: =IF(AF26="",0,IF(AF26="MF",'Project Info'!$B$154,IF(AF26="TH",'Project Info'!$B$155,IF(AND(OR(AF26="SF",AF26="MH"),AC26>0,AC26<3000),'Project Info'!$B$156,IF(AND(OR(AF26="SF",AF26="MH"),AC26>=3000),'Project Info'!$B$157))))) -> 0 | CZ26: =IF(AW26=0,0,(AZ26/AW26*'Project Info'!$C$158)+(BC26/AW26*'Project Info'!$C$159)+(BF26/AW26*'Project Info'!$C$160)) -> 0 | DA26: 0 | DB26: 0 | DD26: 0 | DE26: 0 | DG26: 0 | DI26: 0 | DJ26: 0 | DK26: 0 | DL26: 0 | DM26: 0 | DN26: 0 | DO26: 0 | DP26: 0
